{"text_format":"1","workbook":"xlsx","n_sheets":13,"sheets":["SolCotizacion","Anexo","ResumenCotizacion","Cotizacion","CSV","Categorias","Consolidado","ProXCat","Cuadro Totales","Listas","minimo","temp","tempListas"],"not_rendered":{"charts":0,"images":0,"macros":1,"external_links":1,"defined_names":4,"comments":0,"pivot_tables":1},"unopened":[],"bounds":{"document_bytes":16777216,"sheet_cells":100000,"rows_first":2000,"rows_last":500,"rows_between":2000,"halvings":0,"cell_chars":16384,"cell_head_chars":4096},"cells_cut":0,"cells_raw":0,"read":"whole","date_system":"1900"}

{"sheet":"SolCotizacion","index":0,"n_rows":47,"n_cols":17,"rows_kept":47,"cut":false,"hidden":false,"merged":[[9,12,9,15],[7,1,7,3],[7,4,7,8],[7,10,7,11],[7,12,7,15],[9,1,9,3],[9,4,9,8],[9,10,9,11],[0,1,1,15],[3,1,3,15],[5,1,5,3],[5,4,5,8],[5,10,5,11],[5,12,5,15],[11,4,11,8],[13,1,13,3],[13,4,13,8],[39,1,39,7],[17,1,17,3],[37,1,37,15],[15,1,15,15],[17,4,17,6],[19,1,19,15],[21,2,21,15],[26,4,26,7],[17,9,17,10],[18,8,18,11],[28,2,28,3],[28,4,28,7],[11,1,11,3],[30,2,30,3],[30,4,30,7],[31,2,31,3],[31,4,31,7],[42,2,42,6],[32,2,32,3],[26,2,26,3],[27,2,27,3],[27,4,27,7],[29,2,29,3],[29,4,29,7],[32,4,32,7],[33,2,33,3],[33,4,33,7],[44,5,44,6],[40,2,40,6],[41,2,41,6],[38,1,38,15],[43,2,43,6]]}
[null,"Solicitud de Cotización\nIAD Software I - ArcGIS"]
[]
[null,"Versión: 9","25/10/2021"]
[null,"Información de la Entidad Compradora"]
[]
[null,"Nombre de la Entidad",null,null,"Secretaría General Alcaldía Mayor de Bogotá",null,null,null,null,null,"NIT",null,899999061]
[]
[null,"Dirección de la Entidad",null,null,"Carrera 8 No 10 - 65",null,null,null,null,null,"Correo de contacto",null,"rlondono@alcaldiabogota.gov.co"]
[]
[null,"Municipio",null,null,"Bogotá D.C",null,null,null,null,null,"Teléfono de contacto",null,"3813000 ext 1160"]
[]
[null,"Nombre funcionario Comprador",null,null,"Rafael Londoño Caranton"]
[]
[]
[]
[null,"Solicitud de Cotización"]
[]
[null,"Categoría",null,null,"Software ArgGIS",null,null,null,"Valor TRM",3936.41,null,null,"Fecha de lanzamiento del evento de cotización",{"$f":"TODAY()","v":"2021-12-20"}]
[null,null,null,null,null,null,null,null,"Escribir hasta dos cifras decimales. Tenga en cuenta\nque el simulador aproxima al entero más cercano."]
[null,"Productos"]
[]
["*Libros, revistas, cartillas y/o catálogo Segmento 1.",{"$f":"E18","v":"Software ArgGIS"}]
[]
[null,"Cantidad de filas:"]
[null,1]
[]
[null,"Item","Código Catálogo",null,"Descripción del Producto",null,null,null,"Tipo","Unidad","Zona","Asistencia","Perfil","Número de parte","Forma de Pago","cantidad"]
[{"$f":"E28&L28","v":"ArcGIS for Desktop Standard Concurrent LicenN/A"},1,"86353-LU",null,{"$f":"IFERROR(VLOOKUP($C28&$E$18,Consolidado!$B:$U,9,0),VLOOKUP($C28&\"Canal\",Consolidado!$B:$U,9,0))","v":"ArcGIS for Desktop Standard Concurrent Licen"},null,null,null,{"$f":"IFERROR(VLOOKUP($C28&$E$18,Consolidado!$B:$U,12,0),VLOOKUP($C28&\"Canal\",Consolidado!$B:$U,12,0))","v":"Licencias"},{"$f":"IFERROR(VLOOKUP($C28&$E$18,Consolidado!$B:$U,10,0),VLOOKUP($C28&\"Canal\",Consolidado!$B:$U,10,0))","v":"Licencia "},{"$f":"IFERROR(VLOOKUP($C28&$E$18,Consolidado!$B:$U,13,0),VLOOKUP($C28&\"Canal\",Consolidado!$B:$U,13,0))","v":"N/A"},{"$f":"IFERROR(VLOOKUP($C28&$E$18,Consolidado!$B:$U,14,0),VLOOKUP($C28&\"Canal\",Consolidado!$B:$U,14,0))","v":"N/A"},{"$f":"IFERROR(VLOOKUP($C28&$E$18,Consolidado!$B:$U,15,0),VLOOKUP($C28&\"Canal\",Consolidado!$B:$U,15,0))","v":"N/A"},{"$f":"IFERROR(VLOOKUP($C28&$E$18,Consolidado!$B:$U,16,0),VLOOKUP($C28&\"Canal\",Consolidado!$B:$U,16,0))","v":"86353-LU"},{"$f":"IFERROR(VLOOKUP($C28&$E$18,Consolidado!$B:$U,17,0),VLOOKUP($C28&\"Canal\",Consolidado!$B:$U,17,0))","v":"Credito a 30 días "},1,{"$f":"IFERROR(VLOOKUP($C28&$E$18,Consolidado!$B:$U,5,0),VLOOKUP($C28&\"Canal\",Consolidado!$B:$U,5,0))","v":"Software ArgGIS"}]
[{"$f":"E29&L29","v":"ArcGIS for Desktop Standard Concurrent Primary actualizaciónN/A"},2,"C86497",null,{"$f":"IFERROR(VLOOKUP($C29&$E$18,Consolidado!$B:$U,9,0),VLOOKUP($C29&\"Canal\",Consolidado!$B:$U,9,0))","v":"ArcGIS for Desktop Standard Concurrent Primary actualización"},null,null,null,{"$f":"IFERROR(VLOOKUP($C29&$E$18,Consolidado!$B:$U,12,0),VLOOKUP($C29&\"Canal\",Consolidado!$B:$U,12,0))","v":"Actualización"},{"$f":"IFERROR(VLOOKUP($C29&$E$18,Consolidado!$B:$U,10,0),VLOOKUP($C29&\"Canal\",Consolidado!$B:$U,10,0))","v":"Licencia "},{"$f":"IFERROR(VLOOKUP($C29&$E$18,Consolidado!$B:$U,13,0),VLOOKUP($C29&\"Canal\",Consolidado!$B:$U,13,0))","v":"N/A"},{"$f":"IFERROR(VLOOKUP($C29&$E$18,Consolidado!$B:$U,14,0),VLOOKUP($C29&\"Canal\",Consolidado!$B:$U,14,0))","v":"N/A"},{"$f":"IFERROR(VLOOKUP($C29&$E$18,Consolidado!$B:$U,15,0),VLOOKUP($C29&\"Canal\",Consolidado!$B:$U,15,0))","v":"N/A"},{"$f":"IFERROR(VLOOKUP($C29&$E$18,Consolidado!$B:$U,16,0),VLOOKUP($C29&\"Canal\",Consolidado!$B:$U,16,0))","v":"C86497"},{"$f":"IFERROR(VLOOKUP($C29&$E$18,Consolidado!$B:$U,17,0),VLOOKUP($C29&\"Canal\",Consolidado!$B:$U,17,0))","v":"Credito a 30 días "},1,{"$f":"IFERROR(VLOOKUP($C29&$E$18,Consolidado!$B:$U,5,0),VLOOKUP($C29&\"Canal\",Consolidado!$B:$U,5,0))","v":"Software ArgGIS"}]
[{"$f":"E30&L30","v":"ArcGIS Online (Creator) User Type Term LicenseN/A"},3,"C153148",null,{"$f":"IFERROR(VLOOKUP($C30&$E$18,Consolidado!$B:$U,9,0),VLOOKUP($C30&\"Canal\",Consolidado!$B:$U,9,0))","v":"ArcGIS Online (Creator) User Type Term License"},null,null,null,{"$f":"IFERROR(VLOOKUP($C30&$E$18,Consolidado!$B:$U,12,0),VLOOKUP($C30&\"Canal\",Consolidado!$B:$U,12,0))","v":"Licencias"},{"$f":"IFERROR(VLOOKUP($C30&$E$18,Consolidado!$B:$U,10,0),VLOOKUP($C30&\"Canal\",Consolidado!$B:$U,10,0))","v":"Licencia/mes"},{"$f":"IFERROR(VLOOKUP($C30&$E$18,Consolidado!$B:$U,13,0),VLOOKUP($C30&\"Canal\",Consolidado!$B:$U,13,0))","v":"N/A"},{"$f":"IFERROR(VLOOKUP($C30&$E$18,Consolidado!$B:$U,14,0),VLOOKUP($C30&\"Canal\",Consolidado!$B:$U,14,0))","v":"N/A"},{"$f":"IFERROR(VLOOKUP($C30&$E$18,Consolidado!$B:$U,15,0),VLOOKUP($C30&\"Canal\",Consolidado!$B:$U,15,0))","v":"N/A"},{"$f":"IFERROR(VLOOKUP($C30&$E$18,Consolidado!$B:$U,16,0),VLOOKUP($C30&\"Canal\",Consolidado!$B:$U,16,0))","v":"C153148"},{"$f":"IFERROR(VLOOKUP($C30&$E$18,Consolidado!$B:$U,17,0),VLOOKUP($C30&\"Canal\",Consolidado!$B:$U,17,0))","v":"Credito a 30 días "},12,{"$f":"IFERROR(VLOOKUP($C30&$E$18,Consolidado!$B:$U,5,0),VLOOKUP($C30&\"Canal\",Consolidado!$B:$U,5,0))","v":"Software ArgGIS"}]
[{"$f":"E31&L31","v":"ArcGIS Online Service Credits; Block of 1,000N/A"},4,"C153418",null,{"$f":"IFERROR(VLOOKUP($C31&$E$18,Consolidado!$B:$U,9,0),VLOOKUP($C31&\"Canal\",Consolidado!$B:$U,9,0))","v":"ArcGIS Online Service Credits; Block of 1,000"},null,null,null,{"$f":"IFERROR(VLOOKUP($C31&$E$18,Consolidado!$B:$U,12,0),VLOOKUP($C31&\"Canal\",Consolidado!$B:$U,12,0))","v":"Licencias"},{"$f":"IFERROR(VLOOKUP($C31&$E$18,Consolidado!$B:$U,10,0),VLOOKUP($C31&\"Canal\",Consolidado!$B:$U,10,0))","v":"paquete de creditos"},{"$f":"IFERROR(VLOOKUP($C31&$E$18,Consolidado!$B:$U,13,0),VLOOKUP($C31&\"Canal\",Consolidado!$B:$U,13,0))","v":"N/A"},{"$f":"IFERROR(VLOOKUP($C31&$E$18,Consolidado!$B:$U,14,0),VLOOKUP($C31&\"Canal\",Consolidado!$B:$U,14,0))","v":"N/A"},{"$f":"IFERROR(VLOOKUP($C31&$E$18,Consolidado!$B:$U,15,0),VLOOKUP($C31&\"Canal\",Consolidado!$B:$U,15,0))","v":"N/A"},{"$f":"IFERROR(VLOOKUP($C31&$E$18,Consolidado!$B:$U,16,0),VLOOKUP($C31&\"Canal\",Consolidado!$B:$U,16,0))","v":"C153418"},{"$f":"IFERROR(VLOOKUP($C31&$E$18,Consolidado!$B:$U,17,0),VLOOKUP($C31&\"Canal\",Consolidado!$B:$U,17,0))","v":"Credito a 30 días "},3,{"$f":"IFERROR(VLOOKUP($C31&$E$18,Consolidado!$B:$U,5,0),VLOOKUP($C31&\"Canal\",Consolidado!$B:$U,5,0))","v":"Software ArgGIS"}]
[{"$f":"E32&L32","v":"ArcGIS Online (Viewer) User Type Term LicenseN/A"},5,"C153147",null,{"$f":"IFERROR(VLOOKUP($C32&$E$18,Consolidado!$B:$U,9,0),VLOOKUP($C32&\"Canal\",Consolidado!$B:$U,9,0))","v":"ArcGIS Online (Viewer) User Type Term License"},null,null,null,{"$f":"IFERROR(VLOOKUP($C32&$E$18,Consolidado!$B:$U,12,0),VLOOKUP($C32&\"Canal\",Consolidado!$B:$U,12,0))","v":"Licencias"},{"$f":"IFERROR(VLOOKUP($C32&$E$18,Consolidado!$B:$U,10,0),VLOOKUP($C32&\"Canal\",Consolidado!$B:$U,10,0))","v":"Licencia/mes"},{"$f":"IFERROR(VLOOKUP($C32&$E$18,Consolidado!$B:$U,13,0),VLOOKUP($C32&\"Canal\",Consolidado!$B:$U,13,0))","v":"N/A"},{"$f":"IFERROR(VLOOKUP($C32&$E$18,Consolidado!$B:$U,14,0),VLOOKUP($C32&\"Canal\",Consolidado!$B:$U,14,0))","v":"N/A"},{"$f":"IFERROR(VLOOKUP($C32&$E$18,Consolidado!$B:$U,15,0),VLOOKUP($C32&\"Canal\",Consolidado!$B:$U,15,0))","v":"N/A"},{"$f":"IFERROR(VLOOKUP($C32&$E$18,Consolidado!$B:$U,16,0),VLOOKUP($C32&\"Canal\",Consolidado!$B:$U,16,0))","v":"C153147"},{"$f":"IFERROR(VLOOKUP($C32&$E$18,Consolidado!$B:$U,17,0),VLOOKUP($C32&\"Canal\",Consolidado!$B:$U,17,0))","v":"Credito a 30 días "},12,{"$f":"IFERROR(VLOOKUP($C32&$E$18,Consolidado!$B:$U,5,0),VLOOKUP($C32&\"Canal\",Consolidado!$B:$U,5,0))","v":"Software ArgGIS"}]
[{"$f":"E33&L33","v":"ArcGIS Online (Viewer) User Type Term LicenseN/A"},6,"C153147",null,{"$f":"IFERROR(VLOOKUP($C33&$E$18,Consolidado!$B:$U,9,0),VLOOKUP($C33&\"Canal\",Consolidado!$B:$U,9,0))","v":"ArcGIS Online (Viewer) User Type Term License"},null,null,null,{"$f":"IFERROR(VLOOKUP($C33&$E$18,Consolidado!$B:$U,12,0),VLOOKUP($C33&\"Canal\",Consolidado!$B:$U,12,0))","v":"Licencias"},{"$f":"IFERROR(VLOOKUP($C33&$E$18,Consolidado!$B:$U,10,0),VLOOKUP($C33&\"Canal\",Consolidado!$B:$U,10,0))","v":"Licencia/mes"},{"$f":"IFERROR(VLOOKUP($C33&$E$18,Consolidado!$B:$U,13,0),VLOOKUP($C33&\"Canal\",Consolidado!$B:$U,13,0))","v":"N/A"},{"$f":"IFERROR(VLOOKUP($C33&$E$18,Consolidado!$B:$U,14,0),VLOOKUP($C33&\"Canal\",Consolidado!$B:$U,14,0))","v":"N/A"},{"$f":"IFERROR(VLOOKUP($C33&$E$18,Consolidado!$B:$U,15,0),VLOOKUP($C33&\"Canal\",Consolidado!$B:$U,15,0))","v":"N/A"},{"$f":"IFERROR(VLOOKUP($C33&$E$18,Consolidado!$B:$U,16,0),VLOOKUP($C33&\"Canal\",Consolidado!$B:$U,16,0))","v":"C153147"},{"$f":"IFERROR(VLOOKUP($C33&$E$18,Consolidado!$B:$U,17,0),VLOOKUP($C33&\"Canal\",Consolidado!$B:$U,17,0))","v":"Credito a 30 días "},12,{"$f":"IFERROR(VLOOKUP($C33&$E$18,Consolidado!$B:$U,5,0),VLOOKUP($C33&\"Canal\",Consolidado!$B:$U,5,0))","v":"Software ArgGIS"}]
[{"$f":"E34&L34","v":"ArcGIS Online (Viewer) User Type Term LicenseN/A"},7,"C153147",null,{"$f":"IFERROR(VLOOKUP($C34&$E$18,Consolidado!$B:$U,9,0),VLOOKUP($C34&\"Canal\",Consolidado!$B:$U,9,0))","v":"ArcGIS Online (Viewer) User Type Term License"},null,null,null,{"$f":"IFERROR(VLOOKUP($C34&$E$18,Consolidado!$B:$U,12,0),VLOOKUP($C34&\"Canal\",Consolidado!$B:$U,12,0))","v":"Licencias"},{"$f":"IFERROR(VLOOKUP($C34&$E$18,Consolidado!$B:$U,10,0),VLOOKUP($C34&\"Canal\",Consolidado!$B:$U,10,0))","v":"Licencia/mes"},{"$f":"IFERROR(VLOOKUP($C34&$E$18,Consolidado!$B:$U,13,0),VLOOKUP($C34&\"Canal\",Consolidado!$B:$U,13,0))","v":"N/A"},{"$f":"IFERROR(VLOOKUP($C34&$E$18,Consolidado!$B:$U,14,0),VLOOKUP($C34&\"Canal\",Consolidado!$B:$U,14,0))","v":"N/A"},{"$f":"IFERROR(VLOOKUP($C34&$E$18,Consolidado!$B:$U,15,0),VLOOKUP($C34&\"Canal\",Consolidado!$B:$U,15,0))","v":"N/A"},{"$f":"IFERROR(VLOOKUP($C34&$E$18,Consolidado!$B:$U,16,0),VLOOKUP($C34&\"Canal\",Consolidado!$B:$U,16,0))","v":"C153147"},{"$f":"IFERROR(VLOOKUP($C34&$E$18,Consolidado!$B:$U,17,0),VLOOKUP($C34&\"Canal\",Consolidado!$B:$U,17,0))","v":"Credito a 30 días "},12,{"$f":"IFERROR(VLOOKUP($C34&$E$18,Consolidado!$B:$U,5,0),VLOOKUP($C34&\"Canal\",Consolidado!$B:$U,5,0))","v":"Software ArgGIS"}]
[null,"1. Si requiere agregue o elimine fila"]
[]
[]
[null,"Gravámenes adicionales*"]
[null,"Si los hay, indique los gravámenes adicionales a los que está sujeta la Orden de Compra. Son gravámenes adicionales por ejemplo; estampillas y demás impuestos territoriales. \nLos impuestos como ICA y retención en la fuente NO son gravámenes adicionales.\n"]
[null,"Gravámenes adicionales (estampillas)"]
[null,"No","Descripción",null,null,null,null,"Porcentaje"]
[null,1,"\tPROADULTO MAYOR\t",null,null,null,null,0.02,"","","","","","","",""]
[null,2,"PROCULTURA",null,null,null,null,5.0000000000000001E-3]
[null,3,"UNIVERSIDAD DISTRITAL FRANCISCO JOSE DE CALDAS",null,null,null,null,1.0999999999999999E-2]
[null,null,null,null,null,"Total porcentaje:",null,{"$f":"SUM(H42:H44)","v":3.6000000000000004E-2}]
[null,null,null,"Filas a agregar o eliminar Gravámenes:"]
[null,null,null,1]

{"sheet":"Anexo","index":1,"n_rows":16,"n_cols":4,"rows_kept":16,"cut":false,"hidden":false,"merged":[[0,1,0,3],[1,1,1,3],[2,1,2,3]]}
[null,"Con el objetivo de complementar el entendimiento sobre la solicitud de Productos y Servicios ArcGIS , por favor diligencie la totalidad de la información que se pide a continuación."]
[]
[null,"Tenga en cuenta que esta información es de utilidad para que el Proveedor pueda cotizar de la manera más precisa posible los Productos y Servicios ArcGIS solicitados, por lo cual la exactitud y completitud es muy importante."]
["No","Requerimiento adicional","Descripción ","INFORMACION SUMINISTRADA POR LA ENTIDAD COMPRADORA"]
[null,"Nombre y Nit de la Entidad Estatal a la cual se le entregará la titularidad de las licencias adquiridas."]
[1,"Lugar de entrega de los Productos y Servicios ArcGIS. (Especificar dirección y ciudad de entrega)."]
[2,"Datos Contacto de entrega (Especificar nombre, teléfono y correo electrónico)."]
[3,"Funciones a realizar el soporte en sitio."]
[4,"Área de conocimiento de las personas que prestan el servicio de soporte técnico proactivo."]
[5,"Área de conocimiento de las personas que prestan el servicio de soporte técnico reactivo."]
[6,"Mecanismo de solicitud del soporte reactivo."]
[7,"Especificar que información o que bases de datos se van a migrar. Aplica en el caso que la Entidad Compradora solicite el servicio de migración de información o de bases de datos."]
[8,"Actividades del gerente de cuenta."]
[9,"Indique número de personas que requieren de capacitación. En caso que la Entidad Compradora solicite el servicio de capacitación usuario final o usuario técnico."]
[10,"Especificar características de configuración y descripción de las tareas a realizar. En caso que la Entidad Compradora solicite el servicio de configuración y parametrización. "]
[12,"Establecer las políticas de respaldo de información."]

{"sheet":"ResumenCotizacion","index":2,"n_rows":945005,"n_cols":22,"rows_kept":4500,"cut":true,"hidden":false,"merged":[[42,2,42,6],[40,2,40,6],[41,2,41,6],[37,1,37,15],[38,1,38,15],[39,1,39,7],[15,1,15,15],[26,4,26,7],[19,1,19,15],[17,4,17,6],[17,1,17,3],[21,2,21,15],[26,2,26,3],[17,9,17,10],[7,12,7,15],[9,10,9,11],[9,12,9,15],[9,1,9,3],[9,4,9,8],[7,10,7,11],[11,1,11,3],[11,4,11,8],[13,1,13,3],[13,4,13,8],[7,1,7,3],[7,4,7,8],[0,1,1,15],[3,1,3,15],[5,1,5,3],[5,4,5,8],[5,10,5,11],[5,12,5,15],[43,2,43,6],[44,5,44,6],[31,2,31,3],[31,4,31,7],[27,2,27,3],[27,4,27,7],[28,2,28,3],[28,4,28,7],[29,2,29,3],[29,4,29,7],[30,2,30,3],[30,4,30,7],[32,2,32,3],[32,4,32,7],[33,2,33,3],[33,4,33,7]],"bounds":{"rows_first":2000,"rows_last":500,"rows_between":2000,"halvings":0}}
[null,"Solicitud de Cotización\nSoftware ArcGIS"]
[]
[null,{"$f":"SolCotizacion!B3","v":"Versión: 9"}]
[null,"Información de la Entidad Compradora"]
[]
[null,"Nombre de la Entidad",null,null,"Secretaría General Alcaldía Mayor de Bogotá",null,null,null,null,null,"NIT",null,899999061]
[]
[null,"Dirección de la Entidad",null,null,"Carrera 8 No 10 - 65",null,null,null,null,null,"Correo de contacto",null,"rlondono@alcaldiabogota.gov.co"]
[]
[null,"Municipio",null,null,"Bogotá D.C",null,null,null,null,null,"Teléfono de contacto",null,"3813000 ext 1160"]
[]
[null,"Nombre funcionario Comprador",null,null,"Rafael Londoño Caranton"]
[]
[]
[]
[null,"Solicitud de Cotización"]
[]
[null,"Categoría",null,null,"Software ArgGIS",null,null,null,"Valor TRM",{"$f":"SolCotizacion!J18","v":3936.41},null,null,"Fecha",{"$f":"SolCotizacion!N18","v":"2021-12-20"}]
[]
[null,"Productos"]
[]
["*Libros, revistas, cartillas y/o catálogo Segmento 1.",{"$f":"SolCotizacion!B22","v":"Software ArgGIS"}]
[]
[null,"Cantidad de filas:"]
[null,1]
[]
[null,"Item","Código Catálogo",null,"Descripción del Producto",null,null,null,"Tipo","Unidad","Zona","Asistencia","Perfil","Número de parte","Forma de Pago","cantidad","Precio Unitario","Precio máximo permitido","Subtotal","IVA","Precio Total"]
["ArcGIS for Desktop Standard Concurrent LicenN/A",1,"86353-LU",null,"ArcGIS for Desktop Standard Concurrent Licen",null,null,null,"Licencias","Licencia ","N/A","N/A","N/A","86353-LU","Credito a 30 días ",1,{"$f":"IFERROR(VLOOKUP(\"ESRI\"&$V28&$C28,temp!$A:$Y,19,0)*$J$18,VLOOKUP(\"Catalogo principal\"&$V28&$C28,temp!$A:$Y,19,0)*$J$18)","v":37809139.321799994},{"$f":"ROUND(Q28/(1-(VLOOKUP(\"Total porcentaje:\",$F:$H,3))),0)","v":39221099},{"$f":"ROUND(P28*R28,0)","v":39221099},{"$f":"IFERROR(ROUND(S28*IF(VLOOKUP(\"ESRI\"&$V28&$C28,Consolidado!$A:$U,21,0)=1,19%,0),0),ROUND(S28*IF(VLOOKUP(\"Catalogo principal\"&$V28&$C28,Consolidado!$A:$U,21,0)=1,19%,0),0))","v":0},{"$f":"S28+T28","v":39221099},{"$f":"IFERROR(VLOOKUP($C28&$E$18,Consolidado!$B:$U,5,0),VLOOKUP($C28&\"Canal\",Consolidado!$B:$U,5,0))","v":"Software ArgGIS"}]
["ArcGIS for Desktop Standard Concurrent Primary actualizaciónN/A",2,"C86497",null,"ArcGIS for Desktop Standard Concurrent Primary actualización",null,null,null,"Actualización","Licencia ","N/A","N/A","N/A","C86497","Credito a 30 días ",1,{"$f":"IFERROR(VLOOKUP(\"ESRI\"&$V29&$C29,temp!$A:$Y,19,0)*$J$18,VLOOKUP(\"Catalogo principal\"&$V29&$C29,temp!$A:$Y,19,0)*$J$18)","v":19250521.053750001},19969420,19969420,{"$f":"IFERROR(ROUND(S29*IF(VLOOKUP(\"ESRI\"&$V29&$C29,Consolidado!$A:$U,21,0)=1,19%,0),0),ROUND(S29*IF(VLOOKUP(\"Catalogo principal\"&$V29&$C29,Consolidado!$A:$U,21,0)=1,19%,0),0))","v":0},19969420,{"$f":"IFERROR(VLOOKUP($C29&$E$18,Consolidado!$B:$U,5,0),VLOOKUP($C29&\"Canal\",Consolidado!$B:$U,5,0))","v":"Software ArgGIS"}]
["ArcGIS Online (Creator) User Type Term LicenseN/A",3,"C153148",null,"ArcGIS Online (Creator) User Type Term License",null,null,null,"Licencias","Licencia/mes","N/A","N/A","N/A","C153148","Credito a 30 días ",12,{"$f":"IFERROR(VLOOKUP(\"ESRI\"&$V30&$C30,temp!$A:$Y,19,0)*$J$18,VLOOKUP(\"Catalogo principal\"&$V30&$C30,temp!$A:$Y,19,0)*$J$18)","v":213894.67837499999},221882,2662584,{"$f":"IFERROR(ROUND(S30*IF(VLOOKUP(\"ESRI\"&$V30&$C30,Consolidado!$A:$U,21,0)=1,19%,0),0),ROUND(S30*IF(VLOOKUP(\"Catalogo principal\"&$V30&$C30,Consolidado!$A:$U,21,0)=1,19%,0),0))","v":0},2662584,{"$f":"IFERROR(VLOOKUP($C30&$E$18,Consolidado!$B:$U,5,0),VLOOKUP($C30&\"Canal\",Consolidado!$B:$U,5,0))","v":"Software ArgGIS"}]
["ArcGIS Online Service Credits; Block of 1,000N/A",4,"C153418",null,"ArcGIS Online Service Credits; Block of 1,000",null,null,null,"Licencias","paquete de creditos","N/A","N/A","N/A","C153418","Credito a 30 días ",3,{"$f":"IFERROR(VLOOKUP(\"ESRI\"&$V31&$C31,temp!$A:$Y,19,0)*$J$18,VLOOKUP(\"Catalogo principal\"&$V31&$C31,temp!$A:$Y,19,0)*$J$18)","v":513347.22809999995},532518,1597554,{"$f":"IFERROR(ROUND(S31*IF(VLOOKUP(\"ESRI\"&$V31&$C31,Consolidado!$A:$U,21,0)=1,19%,0),0),ROUND(S31*IF(VLOOKUP(\"Catalogo principal\"&$V31&$C31,Consolidado!$A:$U,21,0)=1,19%,0),0))","v":0},1597554,{"$f":"IFERROR(VLOOKUP($C31&$E$18,Consolidado!$B:$U,5,0),VLOOKUP($C31&\"Canal\",Consolidado!$B:$U,5,0))","v":"Software ArgGIS"}]
["ArcGIS Online (Viewer) User Type Term LicenseN/A",5,"C153147",null,"ArcGIS Online (Viewer) User Type Term License",null,null,null,"Licencias","Licencia/mes","N/A","N/A","N/A","C153147","Credito a 30 días ",12,{"$f":"IFERROR(VLOOKUP(\"ESRI\"&$V32&$C32,temp!$A:$Y,19,0)*$J$18,VLOOKUP(\"Catalogo principal\"&$V32&$C32,temp!$A:$Y,19,0)*$J$18)","v":42778.935675000001},44376,532512,{"$f":"IFERROR(ROUND(S32*IF(VLOOKUP(\"ESRI\"&$V32&$C32,Consolidado!$A:$U,21,0)=1,19%,0),0),ROUND(S32*IF(VLOOKUP(\"Catalogo principal\"&$V32&$C32,Consolidado!$A:$U,21,0)=1,19%,0),0))","v":0},532512,{"$f":"IFERROR(VLOOKUP($C32&$E$18,Consolidado!$B:$U,5,0),VLOOKUP($C32&\"Canal\",Consolidado!$B:$U,5,0))","v":"Software ArgGIS"}]
["ArcGIS Online (Viewer) User Type Term LicenseN/A",6,"C153147",null,"ArcGIS Online (Viewer) User Type Term License",null,null,null,"Licencias","Licencia/mes","N/A","N/A","N/A","C153147","Credito a 30 días ",12,{"$f":"IFERROR(VLOOKUP(\"ESRI\"&$V33&$C33,temp!$A:$Y,19,0)*$J$18,VLOOKUP(\"Catalogo principal\"&$V33&$C33,temp!$A:$Y,19,0)*$J$18)","v":42778.935675000001},44376,532512,{"$f":"IFERROR(ROUND(S33*IF(VLOOKUP(\"ESRI\"&$V33&$C33,Consolidado!$A:$U,21,0)=1,19%,0),0),ROUND(S33*IF(VLOOKUP(\"Catalogo principal\"&$V33&$C33,Consolidado!$A:$U,21,0)=1,19%,0),0))","v":0},532512,{"$f":"IFERROR(VLOOKUP($C33&$E$18,Consolidado!$B:$U,5,0),VLOOKUP($C33&\"Canal\",Consolidado!$B:$U,5,0))","v":"Software ArgGIS"}]
["ArcGIS Online (Viewer) User Type Term LicenseN/A",7,"C153147",null,"ArcGIS Online (Viewer) User Type Term License",null,null,null,"Licencias","Licencia/mes","N/A","N/A","N/A","C153147","Credito a 30 días ",12,{"$f":"IFERROR(VLOOKUP(\"ESRI\"&$V34&$C34,temp!$A:$Y,19,0)*$J$18,VLOOKUP(\"Catalogo principal\"&$V34&$C34,temp!$A:$Y,19,0)*$J$18)","v":42778.935675000001},44376,532512,{"$f":"IFERROR(ROUND(S34*IF(VLOOKUP(\"ESRI\"&$V34&$C34,Consolidado!$A:$U,21,0)=1,19%,0),0),ROUND(S34*IF(VLOOKUP(\"Catalogo principal\"&$V34&$C34,Consolidado!$A:$U,21,0)=1,19%,0),0))","v":0},532512,{"$f":"IFERROR(VLOOKUP($C34&$E$18,Consolidado!$B:$U,5,0),VLOOKUP($C34&\"Canal\",Consolidado!$B:$U,5,0))","v":"Software ArgGIS"}]
[null,"1. Si requiere agregue o elimine fila",null,null,null,null,null,null,null,null,null,null,null,null,null,null,null,null,null,"Valor Total",{"$f":"ROUND(SUM($U$28:$U$34),0)","v":65048193}]
[]
[]
[null,"Gravámenes adicionales*"]
[null,"Si los hay, indique los gravámenes adicionales a los que está sujeta la Orden de Compra. Son gravámenes adicionales por ejemplo; estampillas y demás impuestos territoriales. \nLos impuestos como ICA y retención en la fuente NO son gravámenes adicionales.\n"]
[null,"Gravámenes adicionales (estampillas)"]
[null,"No","Descripción",null,null,null,null,"Porcentaje"]
[null,1,"\tPROADULTO MAYOR\t",null,null,null,null,0.02,"","","","","","","",""]
[null,2,"PROCULTURA",null,null,null,null,5.0000000000000001E-3]
[null,3,"UNIVERSIDAD DISTRITAL FRANCISCO JOSE DE CALDAS",null,null,null,null,1.0999999999999999E-2]
[null,null,null,null,null,"Total porcentaje:",null,{"$f":"SUM(H42:H44)","v":3.6000000000000004E-2}]
[null,null,null,"Filas a agregar o eliminar Gravámenes:"]
[null,null,null,1]
[]
[]
[]
[]
[]
[]
[]
[]
[]
[]
[]
[]
[]
[]
[]
[]
[]
[]
[]
[]
[]
[]
[]
[]
[]
[]
[]
[]
[]
[]
[]
[]
[]
[]
[]
[]
[]
[]
[]
[]
[]
[]
[]
[]
[]
[]
[]
[]
[]
[]
[]
[]
[]
[]
[]
[]
[]
[]
[]
[]
[]
[]
[]
[]
[]
[]
[]
[]
[]
[]
[]
[]
[]
[]
[]
[]
[]
[]
[]
[]
[]
[]
[]
[]
[]
[]
[]
[]
[]
[]
[]
[]
[]
[]
[]
[]
[]
[]
[]
[]
[]
[]
[]
[]
[]
[]
[]
[]
[]
[]
[]
[]
[]
[]
[]
[]
[]
[]
[]
[]
[]
[]
[]
[]
[]
[]
[]
[]
[]
[]
[]
[]
[]
[]
[]
[]
[]
[]
[]
[]
[]
[]
[]
[]
[]
[]
[]
[]
[]
[]
[]
[]
[]
[]
[]
[]
[]
[]
[]
[]
[]
[]
[]
[]
[]
[]
[]
[]
[]
[]
[]
[]
[]
[]
[]
[]
[]
[]
[]
[]
[]
[]
[]
[]
[]
[]
[]
[]
[]
[]
[]
[]
[]
[]
[]
[]
[]
[]
[]
[]
[]
[]
[]
[]
[]
[]
[]
[]
[]
[]
[]
[]
[]
[]
[]
[]
[]
[]
[]
[]
[]
[]
[]
[]
[]
[]
[]
[]
[]
[]
[]
[]
[]
[]
[]
[]
[]
[]
[]
[]
[]
[]
[]
[]
[]
[]
[]
[]
[]
[]
[]
[]
[]
[]
[]
[]
[]
[]
[]
[]
[]
[]
[]
[]
[]
[]
[]
[]
[]
[]
[]
[]
[]
[]
[]
[]
[]
[]
[]
[]
[]
[]
[]
[]
[]
[]
[]
[]
[]
[]
[]
[]
[]
[]
[]
[]
[]
[]
[]
[]
[]
[]
[]
[]
[]
[]
[]
[]
[]
[]
[]
[]
[]
[]
[]
[]
[]
[]
[]
[]
[]
[]
[]
[]
[]
[]
[]
[]
[]
[]
[]
[]
[]
[]
[]
[]
[]
[]
[]
[]
[]
[]
[]
[]
[]
[]
[]
[]
[]
[]
[]
[]
[]
[]
[]
[]
[]
[]
[]
[]
[]
[]
[]
[]
[]
[]
[]
[]
[]
[]
[]
[]
[]
[]
[]
[]
[]
[]
[]
[]
[]
[]
[]
[]
[]
[]
[]
[]
[]
[]
[]
[]
[]
[]
[]
[]
[]
[]
[]
[]
[]
[]
[]
[]
[]
[]
[]
[]
[]
[]
[]
[]
[]
[]
[]
[]
[]
[]
[]
[]
[]
[]
[]
[]
[]
[]
[]
[]
[]
[]
[]
[]
[]
[]
[]
[]
[]
[]
[]
[]
[]
[]
[]
[]
[]
[]
[]
[]
[]
[]
[]
[]
[]
[]
[]
[]
[]
[]
[]
[]
[]
[]
[]
[]
[]
[]
[]
[]
[]
[]
[]
[]
[]
[]
[]
[]
[]
[]
[]
[]
[]
[]
[]
[]
[]
[]
[]
[]
[]
[]
[]
[]
[]
[]
[]
[]
[]
[]
[]
[]
[]
[]
[]
[]
[]
[]
[]
[]
[]
[]
[]
[]
[]
[]
[]
[]
[]
[]
[]
[]
[]
[]
[]
[]
[]
[]
[]
[]
[]
[]
[]
[]
[]
[]
[]
[]
[]
[]
[]
[]
[]
[]
[]
[]
[]
[]
[]
[]
[]
[]
[]
[]
[]
[]
[]
[]
[]
[]
[]
[]
[]
[]
[]
[]
[]
[]
[]
[]
[]
[]
[]
[]
[]
[]
[]
[]
[]
[]
[]
[]
[]
[]
[]
[]
[]
[]
[]
[]
[]
[]
[]
[]
[]
[]
[]
[]
[]
[]
[]
[]
[]
[]
[]
[]
[]
[]
[]
[]
[]
[]
[]
[]
[]
[]
[]
[]
[]
[]
[]
[]
[]
[]
[]
[]
[]
[]
[]
[]
[]
[]
[]
[]
[]
[]
[]
[]
[]
[]
[]
[]
[]
[]
[]
[]
[]
[]
[]
[]
[]
[]
[]
[]
[]
[]
[]
[]
[]
[]
[]
[]
[]
[]
[]
[]
[]
[]
[]
[]
[]
[]
[]
[]
[]
[]
[]
[]
[]
[]
[]
[]
[]
[]
[]
[]
[]
[]
[]
[]
[]
[]
[]
[]
[]
[]
[]
[]
[]
[]
[]
[]
[]
[]
[]
[]
[]
[]
[]
[]
[]
[]
[]
[]
[]
[]
[]
[]
[]
[]
[]
[]
[]
[]
[]
[]
[]
[]
[]
[]
[]
[]
[]
[]
[]
[]
[]
[]
[]
[]
[]
[]
[]
[]
[]
[]
[]
[]
[]
[]
[]
[]
[]
[]
[]
[]
[]
[]
[]
[]
[]
[]
[]
[]
[]
[]
[]
[]
[]
[]
[]
[]
[]
[]
[]
[]
[]
[]
[]
[]
[]
[]
[]
[]
[]
[]
[]
[]
[]
[]
[]
[]
[]
[]
[]
[]
[]
[]
[]
[]
[]
[]
[]
[]
[]
[]
[]
[]
[]
[]
[]
[]
[]
[]
[]
[]
[]
[]
[]
[]
[]
[]
[]
[]
[]
[]
[]
[]
[]
[]
[]
[]
[]
[]
[]
[]
[]
[]
[]
[]
[]
[]
[]
[]
[]
[]
[]
[]
[]
[]
[]
[]
[]
[]
[]
[]
[]
[]
[]
[]
[]
[]
[]
[]
[]
[]
[]
[]
[]
[]
[]
[]
[]
[]
[]
[]
[]
[]
[]
[]
[]
[]
[]
[]
[]
[]
[]
[]
[]
[]
[]
[]
[]
[]
[]
[]
[]
[]
[]
[]
[]
[]
[]
[]
[]
[]
[]
[]
[]
[]
[]
[]
[]
[]
[]
[]
[]
[]
[]
[]
[]
[]
[]
[]
[]
[]
[]
[]
[]
[]
[]
[]
[]
[]
[]
[]
[]
[]
[]
[]
[]
[]
[]
[]
[]
[]
[]
[]
[]
[]
[]
[]
[]
[]
[]
[]
[]
[]
[]
[]
[]
[]
[]
[]
[]
[]
[]
[]
[]
[]
[]
[]
[]
[]
[]
[]
[]
[]
[]
[]
[]
[]
[]
[]
[]
[]
[]
[]
[]
[]
[]
[]
[]
[]
[]
[]
[]
[]
[]
[]
[]
[]
[]
[]
[]
[]
[]
[]
[]
[]
[]
[]
[]
[]
[]
[]
[]
[]
[]
[]
[]
[]
[]
[]
[]
[]
[]
[]
[]
[]
[]
[]
[]
[]
[]
[]
[]
[]
[]
[]
[]
[]
[]
[]
[]
[]
[]
[]
[]
[]
[]
[]
[]
[]
[]
[]
[]
[]
[]
[]
[]
[]
[]
[]
[]
[]
[]
[]
[]
[]
[]
[]
[]
[]
[]
[]
[]
[]
[]
[]
[]
[]
[]
[]
[]
[]
[]
[]
[]
[]
[]
[]
[]
[]
[]
[]
[]
[]
[]
[]
[]
[]
[]
[]
[]
[]
[]
[]
[]
[]
[]
[]
[]
[]
[]
[]
[]
[]
[]
[]
[]
[]
[]
[]
[]
[]
[]
[]
[]
[]
[]
[]
[]
[]
[]
[]
[]
[]
[]
[]
[]
[]
[]
[]
[]
[]
[]
[]
[]
[]
[]
[]
[]
[]
[]
[]
[]
[]
[]
[]
[]
[]
[]
[]
[]
[]
[]
[]
[]
[]
[]
[]
[]
[]
[]
[]
[]
[]
[]
[]
[]
[]
[]
[]
[]
[]
[]
[]
[]
[]
[]
[]
[]
[]
[]
[]
[]
[]
[]
[]
[]
[]
[]
[]
[]
[]
[]
[]
[]
[]
[]
[]
[]
[]
[]
[]
[]
[]
[]
[]
[]
[]
[]
[]
[]
[]
[]
[]
[]
[]
[]
[]
[]
[]
[]
[]
[]
[]
[]
[]
[]
[]
[]
[]
[]
[]
[]
[]
[]
[]
[]
[]
[]
[]
[]
[]
[]
[]
[]
[]
[]
[]
[]
[]
[]
[]
[]
[]
[]
[]
[]
[]
[]
[]
[]
[]
[]
[]
[]
[]
[]
[]
[]
[]
[]
[]
[]
[]
[]
[]
[]
[]
[]
[]
[]
[]
[]
[]
[]
[]
[]
[]
[]
[]
[]
[]
[]
[]
[]
[]
[]
[]
[]
[]
[]
[]
[]
[]
[]
[]
[]
[]
[]
[]
[]
[]
[]
[]
[]
[]
[]
[]
[]
[]
[]
[]
[]
[]
[]
[]
[]
[]
[]
[]
[]
[]
[]
[]
[]
[]
[]
[]
[]
[]
[]
[]
[]
[]
[]
[]
[]
[]
[]
[]
[]
[]
[]
[]
[]
[]
[]
[]
[]
[]
[]
[]
[]
[]
[]
[]
[]
[]
[]
[]
[]
[]
[]
[]
[]
[]
[]
[]
[]
[]
[]
[]
[]
[]
[]
[]
[]
[]
[]
[]
[]
[]
[]
[]
[]
[]
[]
[]
[]
[]
[]
[]
[]
[]
[]
[]
[]
[]
[]
[]
[]
[]
[]
[]
[]
[]
[]
[]
[]
[]
[]
[]
[]
[]
[]
[]
[]
[]
[]
[]
[]
[]
[]
[]
[]
[]
[]
[]
[]
[]
[]
[]
[]
[]
[]
[]
[]
[]
[]
[]
[]
[]
[]
[]
[]
[]
[]
[]
[]
[]
[]
[]
[]
[]
[]
[]
[]
[]
[]
[]
[]
[]
[]
[]
[]
[]
[]
[]
[]
[]
[]
[]
[]
[]
[]
[]
[]
[]
[]
[]
[]
[]
[]
[]
[]
[]
[]
[]
[]
[]
[]
[]
[]
[]
[]
[]
[]
[]
[]
[]
[]
[]
[]
[]
[]
[]
[]
[]
[]
[]
[]
[]
[]
[]
[]
[]
[]
[]
[]
[]
[]
[]
[]
[]
[]
[]
[]
[]
[]
[]
[]
[]
[]
[]
[]
[]
[]
[]
[]
[]
[]
[]
[]
[]
[]
[]
[]
[]
[]
[]
[]
[]
[]
[]
[]
[]
[]
[]
[]
[]
[]
[]
[]
[]
[]
[]
[]
[]
[]
[]
[]
[]
[]
[]
[]
[]
[]
[]
[]
[]
[]
[]
[]
[]
[]
[]
[]
[]
[]
[]
[]
[]
[]
[]
[]
[]
[]
[]
[]
[]
[]
[]
[]
[]
[]
[]
[]
[]
[]
[]
[]
[]
[]
[]
[]
[]
[]
[]
[]
[]
[]
[]
[]
[]
[]
[]
[]
[]
[]
[]
[]
[]
[]
[]
[]
[]
[]
[]
[]
[]
[]
[]
[]
[]
[]
[]
[]
[]
[]
[]
[]
[]
[]
[]
[]
[]
[]
[]
[]
[]
[]
[]
[]
[]
[]
[]
[]
[]
[]
[]
[]
[]
[]
[]
[]
[]
[]
[]
[]
[]
[]
[]
[]
[]
[]
[]
[]
[]
[]
[]
[]
[]
[]
[]
[]
[]
[]
[]
[]
[]
[]
[]
[]
[]
[]
[]
[]
[]
[]
[]
[]
[]
[]
[]
[]
[]
[]
[]
[]
[]
[]
[]
[]
[]
[]
[]
[]
[]
[]
[]
[]
[]
[]
[]
[]
[]
[]
[]
[]
[]
[]
[]
[]
[]
[]
[]
[]
[]
[]
[]
[]
[]
[]
[]
[]
[]
[]
[]
[]
[]
[]
[]
[]
[]
[]
[]
[]
[]
[]
[]
[]
[]
[]
[]
[]
[]
[]
[]
[]
[]
[]
[]
[]
[]
[]
[]
[]
[]
[]
[]
[]
[]
[]
[]
[]
[]
[]
[]
[]
[]
[]
[]
[]
[]
[]
[]
[]
[]
[]
[]
[]
[]
[]
[]
[]
[]
[]
[]
[]
[]
[]
[]
[]
[]
[]
[]
[]
[]
[]
[]
[]
[]
[]
[]
[]
[]
[]
[]
[]
[]
[]
[]
[]
[]
[]
[]
[]
[]
[]
[]
[]
[]
[]
[]
[]
[]
[]
[]
[]
[]
[]
[]
[]
[]
[]
[]
[]
[]
[]
[]
[]
[]
[]
[]
[]
[]
[]
[]
[]
[]
[]
[]
[]
[]
[]
[]
[]
[]
[]
[]
[]
[]
[]
[]
[]
[]
[]
[]
[]
[]
[]
[]
[]
[]
[]
[]
[]
[]
[]
[]
[]
[]
[]
[]
[]
[]
[]
[]
[]
[]
[]
[]
[]
[]
[]
[]
[]
[]
[]
[]
[]
[]
[]
[]
[]
[]
[]
[]
[]
[]
[]
[]
[]
[]
[]
[]
[]
[]
[]
[]
[]
[]
[]
[]
[]
[]
[]
[]
[]
[]
[]
[]
[]
[]
[]
[]
[]
[]
[]
[]
[]
[]
[]
[]
[]
[]
[]
[]
[]
[]
[]
[]
[]
[]
[]
[]
[]
[]
[]
[]
[]
[]
[]
[]
[]
[]
[]
[]
[]
[]
[]
[]
[]
[]
[]
[]
[]
[]
[]
[]
[]
[]
[]
[]
[]
[]
[]
[]
[]
[]
[]
[]
[]
[]
[]
[]
[]
[]
[]
[]
[]
[]
[]
[]
[]
[]
[]
[]
[]
[]
[]
[]
[]
[]
[]
[]
[]
[]
[]
[]
[]
[]
[]
[]
[]
[]
[]
[]
[]
[]
[]
[]
[]
[]
[]
[]
[]
[]
[]
[]
[]
[]
[]
[]
[]
[]
[]
[]
[]
[]
[]
[]
[]
[]
[]
[]
[]
[]
[]
[]
[]
[]
[]
[]
[]
[]
[]
[]
[]
[]
[]
[]
[]
[]
[]
[]
[]
[]
[]
[]
[]
[]
[]
[]
[]
[]
[]
[]
[]
[]
[]
[]
[]
[]
[]
[]
[]
[]
[]
[]
[]
[]
[]
[]
[]
[]
[]
[]
[]
[]
[]
[]
[]
[]
[]
[]
[]
[]
[]
[]
[]
[]
[]
[]
[]
[]
[]
[]
[]
[]
[]
[]
[]
[]
[]
[]
[]
[]
[]
[]
[]
[]
[]
[]
[]
[]
[]
[]
[]
[]
[]
[]
[]
[]
[]
[]
[]
[]
[]
[]
[]
[]
[]
[]
[]
[]
[]
[]
[]
[]
[]
[]
[]
[]
[]
[]
[]
[]
[]
[]
[]
[]
[]
[]
[]
[]
[]
[]
[]
[]
[]
[]
[]
[]
[]
[]
[]
[]
[]
[]
[]
[]
[]
[]
[]
[]
[]
[]
[]
[]
[]
[]
[]
[]
[]
[]
[]
[]
[]
[]
[]
[]
[]
[]
[]
[]
[]
[]
[]
[]
[]
[]
[]
[]
[]
[]
[]
[]
[]
[]
[]
[]
[]
[]
[]
[]
[]
[]
[]
[]
[]
[]
[]
[]
[]
[]
[]
[]
[]
[]
[]
[]
[]
[]
[]
[]
[]
[]
[]
[]
[]
[]
[]
[]
[]
[]
[]
[]
[]
[]
[]
[]
[]
[]
[]
[]
[]
[]
[]
[]
[]
[]
[]
[]
[]
[]
[]
[]
[]
[]
[]
[]
[]
[]
[]
[]
[]
[]
[]
[]
[]
[]
[]
[]
[]
[]
[]
[]
[]
[]
[]
[]
[]
[]
[]
[]
[]
[]
[]
[]
[]
[]
[]
[]
[]
[]
[]
[]
[]
[]
[]
[]
[]
[]
[]
[]
[]
[]
[]
[]
[]
[]
[]
[]
[]
[]
[]
[]
[]
[]
[]
[]
[]
[]
[]
[]
[]
[]
[]
[]
[]
[]
[]
[]
[]
[]
[]
[]
[]
[]
[]
[]
[]
[]
[]
[]
[]
[]
[]
[]
[]
[]
[]
[]
[]
[]
[]
[]
[]
[]
[]
[]
[]
[]
[]
[]
[]
[]
[]
[]
[]
[]
[]
[]
[]
[]
[]
[]
[]
[]
[]
[]
[]
[]
[]
[]
[]
[]
[]
[]
[]
[]
[]
[]
[]
[]
[]
[]
[]
[]
[]
[]
[]
[]
[]
[]
[]
[]
[]
[]
[]
[]
[]
[]
[]
[]
[]
[]
[]
[]
[]
[]
[]
[]
[]
[]
[]
[]
[]
[]
[]
[]
[]
[]
[]
[]
[]
[]
[]
[]
[]
[]
[]
[]
[]
[]
[]
[]
[]
[]
[]
[]
[]
[]
[]
[]
[]
[]
[]
[]
[]
[]
[]
[]
[]
[]
[]
[]
[]
[]
[]
[]
[]
[]
[]
[]
[]
[]
[]
[]
[]
[]
[]
[]
[]
[]
[]
[]
[]
[]
[]
[]
[]
[]
[]
[]
[]
[]
[]
[]
[]
[]
[]
[]
[]
[]
[]
[]
[]
[]
[]
[]
[]
[]
[]
[]
[]
[]
[]
[]
[]
[]
[]
[]
[]
[]
[]
[]
[]
[]
[]
[]
[]
[]
[]
[]
[]
[]
[]
[]
[]
[]
[]
[]
[]
[]
[]
[]
[]
[]
[]
[]
[]
[]
[]
[]
[]
[]
[]
[]
[]
[]
[]
[]
[]
[]
[]
[]
[]
[]
[]
[]
[]
[]
[]
[]
[]
[]
[]
[]
[]
[]
[]
[]
[]
[]
[]
[]
[]
[]
[]
[]
[]
[]
[]
[]
[]
[]
[]
[]
[]
[]
[]
[]
[]
[]
[]
[]
[]
[]
[]
[]
[]
[]
[]
[]
[]
[]
[]
[]
[]
[]
[]
[]
[]
[]
[]
[]
[]
[]
[]
[]
[]
[]
[]
[]
[]
[]
[]
[]
[]
[]
[]
[]
[]
[]
[]
[]
[]
[]
[]
[]
[]
[]
[]
[]
[]
[]
[]
[]
[]
[]
[]
[]
[]
[]
[]
[]
[]
[]
[]
[]
[]
[]
[]
[]
[]
[]
[]
[]
[]
[]
[]
[]
[]
[]
[]
[]
[]
[]
[]
[]
[]
[]
[]
[]
[]
[]
[]
[]
[]
[]
[]
[]
[]
[]
[]
[]
[]
[]
[]
[]
[]
[]
[]
[]
[]
[]
[]
[]
[]
[]
[]
[]
[]
[]
[]
[]
[]
[]
[]
[]
[]
[]
[]
[]
[]
[]
[]
[]
[]
[]
[]
[]
[]
[]
[]
[]
[]
[]
[]
[]
[]
[]
[]
[]
[]
[]
[]
[]
[]
[]
[]
[]
[]
[]
[]
[]
[]
[]
[]
[]
[]
[]
[]
[]
[]
[]
[]
[]
[]
[]
[]
[]
[]
[]
[]
[]
[]
[]
[]
[]
[]
[]
[]
[]
[]
[]
[]
[]
[]
[]
[]
[]
[]
[]
[]
[]
[]
[]
[]
[]
[]
[]
[]
[]
[]
[]
[]
[]
[]
[]
[]
[]
[]
[]
[]
[]
[]
[]
[]
[]
[]
[]
[]
[]
[]
[]
[]
[]
[]
[]
[]
[]
[]
[]
[]
[]
[]
[]
[]
[]
[]
[]
[]
[]
[]
[]
[]
[]
[]
[]
[]
[]
[]
[]
[]
[]
[]
[]
[]
[]
[]
[]
[]
[]
[]
[]
[]
[]
[]
[]
[]
[]
[]
[]
[]
[]
[]
[]
[]
[]
[]
[]
[]
[]
[]
[]
[]
[]
[]
[]
[]
[]
[]
[]
[]
[]
[]
[]
[]
[]
[]
[]
[]
[]
[]
[]
[]
[]
[]
[]
[]
[]
[]
[]
[]
[]
[]
[]
[]
[]
[]
[]
[]
[]
[]
[]
[]
[]
[]
[]
[]
[]
[]
[]
[]
[]
[]
[]
[]
[]
[]
[]
[]
[]
[]
[]
[]
[]
[]
[]
[]
[]
[]
[]
[]
[]
[]
[]
[]
[]
[]
[]
[]
[]
[]
[]
[]
[]
[]
[]
[]
[]
[]
[]
[]
[]
[]
[]
[]
[]
[]
[]
[]
[]
[]
[]
[]
[]
[]
[]
[]
[]
[]
[]
[]
[]
[]
[]
[]
[]
[]
[]
[]
[]
[]
[]
[]
[]
[]
[]
[]
[]
[]
[]
[]
[]
[]
[]
[]
[]
[]
[]
[]
[]
[]
[]
[]
[]
[]
[]
[]
[]
[]
[]
[]
[]
[]
[]
[]
[]
[]
[]
[]
[]
[]
[]
[]
[]
[]
[]
[]
[]
[]
[]
[]
[]
[]
[]
[]
[]
[]
[]
[]
[]
[]
[]
[]
[]
[]
[]
[]
[]
[]
[]
[]
[]
[]
[]
[]
[]
[]
[]
[]
[]
[]
[]
[]
[]
[]
[]
[]
[]
[]
[]
[]
[]
[]
[]
[]
[]
[]
[]
[]
[]
[]
[]
[]
[]
[]
[]
[]
[]
[]
[]
[]
[]
[]
[]
[]
[]
[]
[]
[]
[]
[]
[]
[]
[]
[]
[]
[]
[]
[]
[]
[]
[]
[]
[]
[]
[]
[]
[]
[]
[]
[]
[]
[]
[]
[]
[]
[]
[]
[]
[]
[]
[]
[]
[]
[]
[]
[]
[]
[]
[]
[]
[]
[]
[]
[]
[]
[]
[]
[]
[]
[]
[]
[]
[]
[]
[]
[]
[]
[]
[]
[]
[]
[]
[]
[]
[]
[]
[]
[]
[]
[]
[]
[]
[]
[]
[]
[]
[]
[]
[]
[]
[]
[]
[]
[]
[]
[]
[]
[]
[]
[]
[]
[]
[]
[]
[]
[]
[]
[]
[]
[]
[]
[]
[]
[]
[]
[]
[]
[]
[]
[]
[]
[]
[]
[]
[]
[]
[]
[]
[]
[]
[]
[]
[]
[]
[]
[]
[]
[]
[]
[]
[]
[]
[]
[]
[]
[]
[]
[]
[]
[]
[]
[]
[]
[]
[]
[]
[]
[]
[]
[]
[]
[]
[]
[]
[]
[]
[]
[]
[]
[]
[]
[]
[]
[]
[]
[]
[]
[]
[]
[]
[]
[]
[]
[]
[]
[]
[]
[]
[]
[]
[]
[]
[]
[]
[]
[]
[]
[]
[]
[]
[]
[]
[]
[]
[]
[]
[]
[]
[]
[]
[]
[]
[]
[]
[]
[]
[]
[]
[]
[]
[]
[]
[]
[]
[]
[]
[]
[]
[]
[]
[]
[]
[]
[]
[]
[]
[]
[]
[]
[]
[]
[]
[]
[]
[]
[]
[]
[]
[]
[]
[]
[]
[]
[]
[]
[]
[]
[]
[]
[]
[]
[]
[]
[]
[]
[]
[]
[]
[]
[]
[]
[]
[]
[]
[]
[]
[]
[]
[]
[]
[]
[]
[]
[]
[]
[]
[]
[]
[]
[]
[]
[]
[]
[]
[]
[]
[]
[]
[]
[]
[]
[]
[]
[]
[]
[]
[]
[]
[]
[]
[]
[]
[]
[]
[]
[]
[]
[]
[]
[]
[]
[]
[]
[]
[]
[]
[]
[]
[]
[]
[]
[]
[]
[]
[]
[]
[]
[]
[]
[]
[]
[]
[]
[]
[]
[]
[]
[]
[]
[]
[]
[]
[]
[]
[]
[]
[]
[]
[]
[]
[]
[]
[]
[]
[]
[]
[]
[]
[]
[]
[]
[]
[]
[]
[]
[]
[]
[]
[]
[]
[]
[]
[]
[]
[]
[]
[]
[]
[]
[]
[]
[]
[]
[]
[]
[]
[]
[]
[]
[]
[]
[]
[]
[]
[]
[]
[]
[]
[]
[]
[]
[]
[]
[]
[]
[]
[]
[]
[]
[]
[]
[]
[]
[]
[]
[]
[]
[]
[]
[]
[]
[]
[]
[]
[]
[]
[]
[]
[]
[]
[]
[]
[]
[]
[]
[]
[]
[]
[]
[]
[]
[]
[]
[]
[]
[]
[]
[]
[]
[]
[]
[]
[]
[]
[]
[]
[]
[]
[]
[]
[]
[]
[]
[]
[]
[]
[]
[]
[]
[]
[]
[]
[]
[]
[]
[]
[]
[]
[]
[]
[]
[]
[]
[]
[]
[]
[]
[]
[]
[]
[]
[]
[]
[]
[]
[]
[]
[]
[]
[]
[]
[]
[]
[]
[]
[]
[]
[]
[]
[]
[]
[]
[]
[]
[]
[]
[]
[]
[]
[]
[]
[]
[]
[]
[]
[]
[]
[]
[]
[]
[]
[]
[]
[]
[]
[]
[]
[]
[]
[]
[]
[]
[]
[]
[]
[]
[]
[]
[]
[]
[]
[]
[]
[]
[]
[]
[]
[]
[]
[]
[]
[]
[]
[]
[]
[]
[]
[]
[]
[]
[]
[]
[]
[]
[]
[]
[]
[]
[]
[]
[]
[]
[]
[]
[]
[]
[]
[]
[]
[]
[]
[]
[]
[]
[]
[]
[]
[]
[]
[]
[]
[]
[]
[]
[]
[]
[]
[]
[]
[]
[]
[]
[]
[]
[]
[]
[]
[]
[]
[]
[]
[]
[]
[]
[]
[]
[]
[]
[]
[]
[]
[]
[]
[]
[]
[]
[]
[]
[]
[]
[]
[]
[]
[]
[]
[]
[]
[]
[]
[]
[]
[]
[]
[]
[]
[]
[]
[]
[]
[]
[]
[]
[]
[]
[]
[]
[]
[]
[]
[]
[]
[]
[]
[]
[]
[]
[]
[]
[]
[]
[]
[]
[]
[]
[]
[]
[]
[]
[]
[]
[]
[]
[]
[]
[]
[]
[]
[]
[]
[]
[]
[]
[]
[]
[]
[]
[]
[]
[]
[]
[]
[]
[]
[]
[]
[]
[]
[]
[]
[]
[]
[]
[]
[]
[]
[]
[]
[]
[]
[]
[]
[]
[]
[]
[]
[]
[]
[]
[]
[]
[]
[]
[]
[]
[]
[]
[]
[]
[]
[]
[]
[]
[]
[]
[]
[]
[]
[]
[]
[]
[]
[]
[]
[]
[]
[]
[]
[]
[]
[]
[]
[]
[]
[]
[]
[]
[]
[]
[]
[]
[]
[]
[]
[]
[]
[]
[]
[]
[]
[]
[]
[]
[]
[]
[]
[]
[]
[]
[]
[]
[]
[]
[]
[]
[]
[]
[]
[]
[]
[]
[]
[]
[]
[]
[]
[]
[]
[]
[]
[]
[]
[]
[]
[]
[]
[]
[]
[]
[]
[]
[]
[]
[]
[]
[]
[]
[]
[]
[]
[]
[]
[]
[]
[]
[]
[]
[]
[]
[]
[]
[]
[]
[]
[]
[]
[]
[]
[]
[]
[]
[]
[]
[]
[]
[]
[]
[]
[]
[]
[]
[]
[]
[]
[]
[]
[]
[]
[]
[]
[]
[]
[]
[]
[]
[]
[]
[]
[]
[]
[]
[]
[]
[]
[]
[]
[]
[]
[]
[]
[]
[]
[]
[]
[]
[]
[]
[]
[]
[]
[]
[]
[]
[]
[]
[]
[]
[]
[]
[]
[]
[]
[]
[]
[]
[]
[]
[]
[]
[]
[]
[]
[]
[]
[]
[]
[]
[]
[]
[]
[]
[]
[]
[]
[]
[]
[]
[]
[]
[]
[]
[]
[]
[]
[]
[]
[]
[]
[]
[]
[]
[]
[]
[]
[]
[]
[]
[]
[]
[]
[]
[]
[]
[]
[]
[]
[]
[]
[]
[]
[]
[]
[]
[]
[]
[]
[]
[]
[]
[]
[]
[]
[]
[]
[]
[]
[]
[]
[]
[]
[]
[]
[]
[]
[]
[]
[]
[]
[]
[]
[]
[]
[]
[]
[]
[]
[]
[]
[]
[]
[]
[]
[]
[]
[]
[]
[]
[]
[]
[]
[]
[]
[]
[]
[]
[]
[]
[]
[]
[]
[]
[]
[]
[]
[]
[]
[]
[]
[]
[]
[]
[]
[]
[]
[]
[]
[]
[]
[]
[]
[]
[]
[]
[]
[]
[]
[]
[]
[]
[]
[]
[]
[]
[]
[]
[]
[]
[]
[]
[]
[]
[]
[]
[]
[]
[]
[]
[]
[]
[]
[]
[]
[]
[]
[]
[]
[]
[]
[]
[]
[]
[]
[]
[]
[]
[]
[]
[]
[]
[]
[]
[]
[]
[]
[]
[]
[]
[]
[]
[]
[]
[]
[]
[]
[]
[]
[]
[]
[]
[]
[]
[]
[]
[]
[]
[]
[]
[]
[]
[]
[]
[]
[]
[]
[]
[]
[]
[]
[]
[]
[]
[]
[]
[]
[]
[]
[]
[]
[]
[]
[]
[]
[]
[]
[]
[]
[]
[]
[]
[]
[]
[]
[]
[]
[]
[]
[]
[]
[]
[]
[]
[]
[]
[]
[]
[]
[]
[]
[]
[]
[]
[]
[]
[]
[]
[]
[]
[]
[]
[]
[]
[]
[]
[]
[]
[]
[]
[]
[]
[]
[]
[]
[]
[]
[]
[]
[]
[]
[]
[]
[]
[]
[]
[]
[null,null,null,null,null,null,null,null,null,null,null,null,null,null,null,null,null,null,null,null,null,{"$f":"ROUND(SUM(#REF!),2)","v":{"$error":"#REF!"}}]

{"sheet":"Cotizacion","index":3,"n_rows":47,"n_cols":24,"rows_kept":47,"cut":false,"hidden":false,"merged":[[40,2,40,6],[31,2,31,3],[31,4,31,7],[37,1,37,15],[38,1,38,15],[39,1,39,7],[17,1,17,3],[26,4,26,7],[26,2,26,3],[21,2,21,15],[15,1,15,15],[17,4,17,6],[9,1,9,3],[9,4,9,8],[11,1,11,3],[11,4,11,8],[13,1,13,3],[13,4,13,8],[17,9,17,10],[19,1,19,15],[24,13,24,15],[24,11,24,12],[0,1,1,15],[3,1,3,15],[5,1,5,3],[5,4,5,8],[5,10,5,11],[5,12,5,15],[7,4,7,8],[7,1,7,3],[7,10,7,11],[7,12,7,15],[9,10,9,11],[9,12,9,15],[43,2,43,6],[44,5,44,6],[41,2,41,6],[42,2,42,6],[27,2,27,3],[27,4,27,7],[28,2,28,3],[28,4,28,7],[29,2,29,3],[29,4,29,7],[32,2,32,3],[32,4,32,7],[33,2,33,3],[33,4,33,7],[30,2,30,3],[30,4,30,7]]}
[null,"Solicitud de Cotización\nSoftwareArcGIS"]
[]
[null,{"$f":"SolCotizacion!B3","v":"Versión: 9"},{"$f":"SolCotizacion!C3","v":"25/10/2021"}]
[null,"Información de la Entidad Compradora"]
[]
[null,"Nombre de la Entidad",null,null,"Secretaría General Alcaldía Mayor de Bogotá",null,null,null,null,null,"NIT",null,899999061]
[]
[null,"Dirección de la Entidad",null,null,"Carrera 8 No 10 - 65",null,null,null,null,null,"Correo de contacto",null,"rlondono@alcaldiabogota.gov.co"]
[]
[null,"Municipio",null,null,"Bogotá D.C",null,null,null,null,null,"Teléfono de contacto",null,"3813000 ext 1160"]
[]
[null,"Nombre funcionario Comprador",null,null,"Rafael Londoño Caranton"]
[]
[]
[]
[null,"Solicitud de Cotización"]
[]
[null,"Categoría",null,null,"Software ArgGIS",null,null,null,"Valor TRM",{"$f":"SolCotizacion!J18","v":3936.41},null,null,"Fecha",{"$f":"SolCotizacion!N18","v":"2021-12-20"}]
[]
[null,"Productos"]
[]
["*Libros, revistas, cartillas y/o catálogo Segmento 1.",{"$f":"SolCotizacion!B22","v":"Software ArgGIS"}]
[]
[null,"Cantidad de filas:"]
[null,1,null,null,null,null,null,null,null,null,null,"Proveedor"]
[]
[null,"Item","Código Catálogo",null,"Descripción del Producto",null,null,null,"Tipo","Unidad","Zona","Asistencia","Perfil","Número de parte","Forma de Pago","cantidad","Precio Unitario","Precio máximo permitido","Descuento adicional","Precio con Descuento","Subtotal","IVA","Precio Total"]
["ArcGIS for Desktop Standard Concurrent LicenN/A",1,"86353-LU",null,"ArcGIS for Desktop Standard Concurrent Licen",null,null,null,"Licencias","Licencia ","N/A","N/A","N/A","86353-LU","Credito a 30 días ",1,{"$f":"IFERROR(VLOOKUP($N$25&$X28&$C28,temp!$A:$Y,19,0)*$J$18,VLOOKUP(\"Catalogo principal\"&$X28&$C28,temp!$A:$Y,19,0)*$J$18)","v":{"$error":"#N/A"}},{"$f":"ROUND(Q28/(1-(VLOOKUP(\"Total porcentaje:\",$F:$H,3))),0)","v":{"$error":"#N/A"}},{"$f":"IF(T28<>\"\",((R28-T28)*100%)/R28,0)","v":0},null,{"$f":"ROUND(P28*T28,0)","v":0},{"$f":"IFERROR(ROUND(U28*IF(VLOOKUP($N$25&$X28&$C28,Consolidado!$A:$U,21,0)=1,19%,0),0),ROUND(U28*IF(VLOOKUP(\"Catalogo principal\"&$X28&$C28,Consolidado!$A:$U,21,0)=1,19%,0),0))","v":{"$error":"#N/A"}},{"$f":"U28+V28","v":{"$error":"#N/A"}},{"$f":"IFERROR(VLOOKUP($C28&$E$18,Consolidado!$B:$U,5,0),VLOOKUP($C28&\"Canal\",Consolidado!$B:$U,5,0))","v":"Software ArgGIS"}]
["ArcGIS for Desktop Standard Concurrent Primary actualizaciónN/A",2,"C86497",null,"ArcGIS for Desktop Standard Concurrent Primary actualización",null,null,null,"Actualización","Licencia ","N/A","N/A","N/A","C86497","Credito a 30 días ",1,{"$f":"IFERROR(VLOOKUP($N$25&$X29&$C29,temp!$A:$Y,19,0)*$J$18,VLOOKUP(\"Catalogo principal\"&$X29&$C29,temp!$A:$Y,19,0)*$J$18)","v":{"$error":"#N/A"}},{"$error":"#N/A"},0,null,0,{"$f":"IFERROR(ROUND(U29*IF(VLOOKUP($N$25&$X29&$C29,Consolidado!$A:$U,21,0)=1,19%,0),0),ROUND(U29*IF(VLOOKUP(\"Catalogo principal\"&$X29&$C29,Consolidado!$A:$U,21,0)=1,19%,0),0))","v":{"$error":"#N/A"}},{"$error":"#N/A"},{"$f":"IFERROR(VLOOKUP($C29&$E$18,Consolidado!$B:$U,5,0),VLOOKUP($C29&\"Canal\",Consolidado!$B:$U,5,0))","v":"Software ArgGIS"}]
["ArcGIS Online (Creator) User Type Term LicenseN/A",3,"C153148",null,"ArcGIS Online (Creator) User Type Term License",null,null,null,"Licencias","Licencia/mes","N/A","N/A","N/A","C153148","Credito a 30 días ",12,{"$f":"IFERROR(VLOOKUP($N$25&$X30&$C30,temp!$A:$Y,19,0)*$J$18,VLOOKUP(\"Catalogo principal\"&$X30&$C30,temp!$A:$Y,19,0)*$J$18)","v":{"$error":"#N/A"}},{"$error":"#N/A"},0,null,0,{"$f":"IFERROR(ROUND(U30*IF(VLOOKUP($N$25&$X30&$C30,Consolidado!$A:$U,21,0)=1,19%,0),0),ROUND(U30*IF(VLOOKUP(\"Catalogo principal\"&$X30&$C30,Consolidado!$A:$U,21,0)=1,19%,0),0))","v":{"$error":"#N/A"}},{"$error":"#N/A"},{"$f":"IFERROR(VLOOKUP($C30&$E$18,Consolidado!$B:$U,5,0),VLOOKUP($C30&\"Canal\",Consolidado!$B:$U,5,0))","v":"Software ArgGIS"}]
["ArcGIS Online Service Credits; Block of 1,000N/A",4,"C153418",null,"ArcGIS Online Service Credits; Block of 1,000",null,null,null,"Licencias","paquete de creditos","N/A","N/A","N/A","C153418","Credito a 30 días ",3,{"$f":"IFERROR(VLOOKUP($N$25&$X31&$C31,temp!$A:$Y,19,0)*$J$18,VLOOKUP(\"Catalogo principal\"&$X31&$C31,temp!$A:$Y,19,0)*$J$18)","v":{"$error":"#N/A"}},{"$error":"#N/A"},0,null,0,{"$f":"IFERROR(ROUND(U31*IF(VLOOKUP($N$25&$X31&$C31,Consolidado!$A:$U,21,0)=1,19%,0),0),ROUND(U31*IF(VLOOKUP(\"Catalogo principal\"&$X31&$C31,Consolidado!$A:$U,21,0)=1,19%,0),0))","v":{"$error":"#N/A"}},{"$error":"#N/A"},{"$f":"IFERROR(VLOOKUP($C31&$E$18,Consolidado!$B:$U,5,0),VLOOKUP($C31&\"Canal\",Consolidado!$B:$U,5,0))","v":"Software ArgGIS"}]
["ArcGIS Online (Viewer) User Type Term LicenseN/A",5,"C153147",null,"ArcGIS Online (Viewer) User Type Term License",null,null,null,"Licencias","Licencia/mes","N/A","N/A","N/A","C153147","Credito a 30 días ",12,{"$f":"IFERROR(VLOOKUP($N$25&$X32&$C32,temp!$A:$Y,19,0)*$J$18,VLOOKUP(\"Catalogo principal\"&$X32&$C32,temp!$A:$Y,19,0)*$J$18)","v":{"$error":"#N/A"}},{"$error":"#N/A"},0,null,0,{"$f":"IFERROR(ROUND(U32*IF(VLOOKUP($N$25&$X32&$C32,Consolidado!$A:$U,21,0)=1,19%,0),0),ROUND(U32*IF(VLOOKUP(\"Catalogo principal\"&$X32&$C32,Consolidado!$A:$U,21,0)=1,19%,0),0))","v":{"$error":"#N/A"}},{"$error":"#N/A"},{"$f":"IFERROR(VLOOKUP($C32&$E$18,Consolidado!$B:$U,5,0),VLOOKUP($C32&\"Canal\",Consolidado!$B:$U,5,0))","v":"Software ArgGIS"}]
["ArcGIS Online (Viewer) User Type Term LicenseN/A",6,"C153147",null,"ArcGIS Online (Viewer) User Type Term License",null,null,null,"Licencias","Licencia/mes","N/A","N/A","N/A","C153147","Credito a 30 días ",12,{"$f":"IFERROR(VLOOKUP($N$25&$X33&$C33,temp!$A:$Y,19,0)*$J$18,VLOOKUP(\"Catalogo principal\"&$X33&$C33,temp!$A:$Y,19,0)*$J$18)","v":{"$error":"#N/A"}},{"$error":"#N/A"},0,null,0,{"$f":"IFERROR(ROUND(U33*IF(VLOOKUP($N$25&$X33&$C33,Consolidado!$A:$U,21,0)=1,19%,0),0),ROUND(U33*IF(VLOOKUP(\"Catalogo principal\"&$X33&$C33,Consolidado!$A:$U,21,0)=1,19%,0),0))","v":{"$error":"#N/A"}},{"$error":"#N/A"},{"$f":"IFERROR(VLOOKUP($C33&$E$18,Consolidado!$B:$U,5,0),VLOOKUP($C33&\"Canal\",Consolidado!$B:$U,5,0))","v":"Software ArgGIS"}]
["ArcGIS Online (Viewer) User Type Term LicenseN/A",7,"C153147",null,"ArcGIS Online (Viewer) User Type Term License",null,null,null,"Licencias","Licencia/mes","N/A","N/A","N/A","C153147","Credito a 30 días ",12,{"$f":"IFERROR(VLOOKUP($N$25&$X34&$C34,temp!$A:$Y,19,0)*$J$18,VLOOKUP(\"Catalogo principal\"&$X34&$C34,temp!$A:$Y,19,0)*$J$18)","v":{"$error":"#N/A"}},{"$error":"#N/A"},0,null,0,{"$f":"IFERROR(ROUND(U34*IF(VLOOKUP($N$25&$X34&$C34,Consolidado!$A:$U,21,0)=1,19%,0),0),ROUND(U34*IF(VLOOKUP(\"Catalogo principal\"&$X34&$C34,Consolidado!$A:$U,21,0)=1,19%,0),0))","v":{"$error":"#N/A"}},{"$error":"#N/A"},{"$f":"IFERROR(VLOOKUP($C34&$E$18,Consolidado!$B:$U,5,0),VLOOKUP($C34&\"Canal\",Consolidado!$B:$U,5,0))","v":"Software ArgGIS"}]
[null,"1. Si requiere agregue o elimine fila",null,null,null,null,null,null,null,null,null,null,null,null,null,null,null,null,null,null,null,"Valor Total",{"$f":"ROUND(SUM($W$28:$W$34),0)","v":{"$error":"#N/A"}}]
[]
[]
[null,"Gravámenes adicionales*"]
[null,"Si los hay, indique los gravámenes adicionales a los que está sujeta la Orden de Compra. Son gravámenes adicionales por ejemplo; estampillas y demás impuestos territoriales. \nLos impuestos como ICA y retención en la fuente NO son gravámenes adicionales.\n"]
[null,"Gravámenes adicionales (estampillas)"]
[null,"No","Descripción",null,null,null,null,"Porcentaje"]
[null,1,"\tPROADULTO MAYOR\t",null,null,null,null,0.02,"","","","","","","",""]
[null,2,"PROCULTURA",null,null,null,null,5.0000000000000001E-3]
[null,3,"UNIVERSIDAD DISTRITAL FRANCISCO JOSE DE CALDAS",null,null,null,null,1.0999999999999999E-2]
[null,null,null,null,null,"Total porcentaje:",null,{"$f":"SUM(H42:H44)","v":3.6000000000000004E-2}]
[null,null,null,"Filas a agregar o eliminar Gravámenes:"]
[null,null,null,1]

{"sheet":"CSV","index":4,"n_rows":5,"n_cols":8,"rows_kept":5,"cut":false,"hidden":true,"merged":[]}
["Tipo (servicio o artículo)","Cantidad","Código de unidad de medida*","Posición","Precio base","Divisa","Descripción","Mercancía"]
["item",1,"Und",null,7203735,"COP","war01--93198-LU ArcGIS for Desktop Basic Single Licen"]
["item",1,"Und",null,67234860,"COP","war01--52382-LU ArcGIS for Desktop Advanced Concurrent Licen"]
["item",1,"Und",null,12619950,"COP","war01--CCE_CAP_UF_10_Z2_R CapacitaciÃ³n para usuario final - hasta 10 Personas.  "]
["item",1,"Und",null,2397791,"COP","war01--IVA"]

{"sheet":"Categorias","index":5,"n_rows":7,"n_cols":2,"rows_kept":7,"cut":false,"hidden":true,"merged":[]}
["Categoría 1","Sistema Operativo, Plataforma, Nube e Infraestructura y Desarrollo Aplicaciones (Open – CSP)"]
["Categoría 2","Productividad Administración y análisis de datos (Open - CSP)"]
["Categoría 3","Movilidad (Open - CSP)"]
["Categoría 4","Aplicaciones empresariales (Open - CSP)"]
["Categoría 5","Campus (Educativo)"]
["Categoría 6","OVS (Educativo)"]
["Categoría 7","Open - CSP (Educativo)"]

{"sheet":"Consolidado","index":6,"n_rows":747,"n_cols":22,"rows_kept":747,"cut":false,"hidden":true,"merged":[]}
["LLAVE","TEMP1","TEMP2","PROVEEDOR","Código matriz Colombia Compra Eficiente","categoria","PROVEEDOR2","Moneda","Parametrización de los Servicios","Nombre Producto","Unidad de Medida","Unidad TVEC","Tipo","Zona","Asistencia","Perfil","Número de parte","Forma de Pago","Precio","Activo","IVA","Moneda"]
[{"$f":"D2&F2&E2","v":"ESRISoftware ArgGISC52384"},{"$f":"E2&F2","v":"C52384Software ArgGIS"},null,"ESRI","C52384","Software ArgGIS","ESRI","USD","N/A","ArcGIS for Desktop Advanced Concurrent Primary actualización","Licencia ","Und","Actualización","N/A","N/A","N/A",{"$f":"+E2","v":"C52384"},"Credito a 30 días ",9768.6,1,0,"USD"]
["ESRISoftware ArgGISC52385","C52385Software ArgGIS",null,"ESRI","C52385","Software ArgGIS","ESRI","USD","N/A","ArcGIS for Desktop Advanced Concurrent Secondary actualización","Licencia ","Und","Actualización","N/A","N/A","N/A","C52385","Credito a 30 días ",3907.45,1,0,"USD"]
["ESRISoftware ArgGISC52386","C52386Software ArgGIS",null,"ESRI","C52386","Software ArgGIS","ESRI","USD","N/A","ArcGIS for Desktop Advanced Node Locked Primary actualización","Licencia ","Und","Actualización","N/A","N/A","N/A","C52386","Credito a 30 días ",13041,1,0,"USD"]
["ESRISoftware ArgGISC52387","C52387Software ArgGIS",null,"ESRI","C52387","Software ArgGIS","ESRI","USD","N/A","ArcGIS for Desktop Advanced Node Locked Secondary actualización","Licencia ","Und","Actualización","N/A","N/A","N/A","C52387","Credito a 30 días ",5216.3999999999996,1,0,"USD"]
["ESRISoftware ArgGISC86497","C86497Software ArgGIS",null,"ESRI","C86497","Software ArgGIS","ESRI","USD","N/A","ArcGIS for Desktop Standard Concurrent Primary actualización","Licencia ","Und","Actualización","N/A","N/A","N/A","C86497","Credito a 30 días ",4890.375,1,0,"USD"]
["ESRISoftware ArgGISC86500","C86500Software ArgGIS",null,"ESRI","C86500","Software ArgGIS","ESRI","USD","N/A","ArcGIS for Desktop Standard Concurrent Secondary actualización","Licencia ","Und","Actualización","N/A","N/A","N/A","C86500","Credito a 30 días ",3912.3,1,0,"USD"]
["ESRISoftware ArgGISC87192","C87192Software ArgGIS",null,"ESRI","C87192","Software ArgGIS","ESRI","USD","N/A","ArcGIS for Desktop Basic Single Primary actualización","Licencia ","Und","Actualización","N/A","N/A","N/A","C87192","Credito a 30 días ",1304.0999999999999,1,0,"USD"]
["ESRISoftware ArgGISC87193","C87193Software ArgGIS",null,"ESRI","C87193","Software ArgGIS","ESRI","USD","N/A","ArcGIS for Desktop Basic Single Secondary actualización","Licencia ","Und","Actualización","N/A","N/A","N/A","C87193","Credito a 30 días ",978.07500000000005,1,0,"USD"]
["ESRISoftware ArgGISC87194","C87194Software ArgGIS",null,"ESRI","C87194","Software ArgGIS","ESRI","USD","N/A","ArcGIS for Desktop Basic Concurrent Primary actualización","Licencia ","Und","Actualización","N/A","N/A","N/A","C87194","Credito a 30 días ",2282.1750000000002,1,0,"USD"]
["ESRISoftware ArgGISC87195","C87195Software ArgGIS",null,"ESRI","C87195","Software ArgGIS","ESRI","USD","N/A","ArcGIS for Desktop Basic Concurrent Secondary actualización","Licencia ","Und","Actualización","N/A","N/A","N/A","C87195","Credito a 30 días ",1630.125,1,0,"USD"]
["ESRISoftware ArgGISC87198","C87198Software ArgGIS",null,"ESRI","C87198","Software ArgGIS","ESRI","USD","N/A","ArcGIS 3D Analyst for Desktop Concurrent Primary actualización","Licencia ","Und","Actualización","N/A","N/A","N/A","C87198","Credito a 30 días ",1630.125,1,0,"USD"]
["ESRISoftware ArgGISC87199","C87199Software ArgGIS",null,"ESRI","C87199","Software ArgGIS","ESRI","USD","N/A","ArcGIS 3D Analyst for Desktop Concurrent Secondary actualización","Licencia ","Und","Actualización","N/A","N/A","N/A","C87199","Credito a 30 días ",652.04999999999995,1,0,"USD"]
["ESRISoftware ArgGISC87232","C87232Software ArgGIS",null,"ESRI","C87232","Software ArgGIS","ESRI","USD","N/A","ArcGIS Spatial Analyst for Desktop Concurrent Primary actualización","Licencia ","Und","Actualización","N/A","N/A","N/A","C87232","Credito a 30 días ",1630.125,1,0,"USD"]
["ESRISoftware ArgGISC87233","C87233Software ArgGIS",null,"ESRI","C87233","Software ArgGIS","ESRI","USD","N/A","ArcGIS Spatial Analyst for Desktop Concurrent Secondary actualización","Licencia ","Und","Actualización","N/A","N/A","N/A","C87233","Credito a 30 días ",652.04999999999995,1,0,"USD"]
["ESRISoftware ArgGISC87236","C87236Software ArgGIS",null,"ESRI","C87236","Software ArgGIS","ESRI","USD","N/A","ArcGIS Geostatistical Analyst for Desktop Concurrent Primary actualización","Licencia ","Und","Actualización","N/A","N/A","N/A","C87236","Credito a 30 días ",1630.125,1,0,"USD"]
["ESRISoftware ArgGISC87237","C87237Software ArgGIS",null,"ESRI","C87237","Software ArgGIS","ESRI","USD","N/A","ArcGIS Geostatistical Analyst for Desktop Concurrent Secondary actualización","Licencia ","Und","Actualización","N/A","N/A","N/A","C87237","Credito a 30 días ",652.04999999999995,1,0,"USD"]
["ESRISoftware ArgGISC92774","C92774Software ArgGIS",null,"ESRI","C92774","Software ArgGIS","ESRI","USD","N/A","ArcGIS Tracking Analyst for Desktop Concurrent Primary actualización","Licencia ","Und","Actualización","N/A","N/A","N/A","C92774","Credito a 30 días ",1630.125,1,0,"USD"]
["ESRISoftware ArgGISC92775","C92775Software ArgGIS",null,"ESRI","C92775","Software ArgGIS","ESRI","USD","N/A","ArcGIS Tracking Analyst for Desktop Concurrent Secondary actualización","Licencia ","Und","Actualización","N/A","N/A","N/A","C92775","Credito a 30 días ",652.04999999999995,1,0,"USD"]
["ESRISoftware ArgGISC93094","C93094Software ArgGIS",null,"ESRI","C93094","Software ArgGIS","ESRI","USD","N/A","ArcGIS for Desktop Basic with Extensions Single Primary actualización","Licencia ","Und","Actualización","N/A","N/A","N/A","C93094","Credito a 30 días ",3260.25,1,0,"USD"]
["ESRISoftware ArgGISC93095","C93095Software ArgGIS",null,"ESRI","C93095","Software ArgGIS","ESRI","USD","N/A","ArcGIS for Desktop Basic with Extensions Single Secondary actualización","Licencia ","Und","Actualización","N/A","N/A","N/A","C93095","Credito a 30 días ",2934.2250000000004,1,0,"USD"]
["ESRISoftware ArgGISC93303","C93303Software ArgGIS",null,"ESRI","C93303","Software ArgGIS","ESRI","USD","N/A","ArcGIS for Desktop Standard Single Primary actualización","Licencia ","Und","Actualización","N/A","N/A","N/A","C93303","Credito a 30 días ",4890.375,1,0,"USD"]
["ESRISoftware ArgGISC93304","C93304Software ArgGIS",null,"ESRI","C93304","Software ArgGIS","ESRI","USD","N/A","ArcGIS for Desktop Standard Single Secondary actualización","Licencia ","Und","Actualización","N/A","N/A","N/A","C93304","Credito a 30 días ",3912.3,1,0,"USD"]
["ESRISoftware ArgGISC93306","C93306Software ArgGIS",null,"ESRI","C93306","Software ArgGIS","ESRI","USD","N/A","ArcGIS for Desktop Standard with Extensions Single Primary actualización","Licencia ","Und","Actualización","N/A","N/A","N/A","C93306","Credito a 30 días ",6846.5250000000005,1,0,"USD"]
["ESRISoftware ArgGISC93307","C93307Software ArgGIS",null,"ESRI","C93307","Software ArgGIS","ESRI","USD","N/A","ArcGIS for Desktop Standard with Extensions Single Secondary actualización","Licencia ","Und","Actualización","N/A","N/A","N/A","C93307","Credito a 30 días ",5868.4500000000007,1,0,"USD"]
["ESRISoftware ArgGISC93984","C93984Software ArgGIS",null,"ESRI","C93984","Software ArgGIS","ESRI","USD","N/A","ArcGIS Workflow Manager (Classic) for Desktop Concurrent Use Secondary Actualización ","Licencia ","Und","Actualización","N/A","N/A","N/A","C93984","Credito a 30 días ",652.04999999999995,1,0,"USD"]
["ESRISoftware ArgGISC96880","C96880Software ArgGIS",null,"ESRI","C96880","Software ArgGIS","ESRI","USD","N/A","ArcGIS Workflow Manager (Classic) for Desktop Concurrent Use Primaryactualización ","Licencia ","Und","Actualización","N/A","N/A","N/A","C96880","Credito a 30 días ",1630.125,1,0,"USD"]
["ESRISoftware ArgGISC97442","C97442Software ArgGIS",null,"ESRI","C97442","Software ArgGIS","ESRI","USD","N/A","ArcGIS Engine Developer Kit Primary actualización","Licencia ","Und","Actualización","N/A","N/A","N/A","C97442","Credito a 30 días ",9780.75,1,0,"USD"]
["ESRISoftware ArgGISC97443","C97443Software ArgGIS",null,"ESRI","C97443","Software ArgGIS","ESRI","USD","N/A","ArcGIS Engine Developer Kit Secondary actualización","Licencia ","Und","Actualización","N/A","N/A","N/A","C97443","Credito a 30 días ",4890.375,1,0,"USD"]
["ESRISoftware ArgGISC97444","C97444Software ArgGIS",null,"ESRI","C97444","Software ArgGIS","ESRI","USD","N/A","ArcGIS Engine Single Use without Extension actualización","Licencia ","Und","Actualización","N/A","N/A","N/A","C97444","Credito a 30 días ",326.02499999999998,1,0,"USD"]
["ESRISoftware ArgGISC97445","C97445Software ArgGIS",null,"ESRI","C97445","Software ArgGIS","ESRI","USD","N/A","ArcGIS Engine Single Use with Extension actualización","Licencia ","Und","Actualización","N/A","N/A","N/A","C97445","Credito a 30 días ",1304.0999999999999,1,0,"USD"]
["ESRISoftware ArgGISC98134","C98134Software ArgGIS",null,"ESRI","C98134","Software ArgGIS","ESRI","USD","N/A","ArcGIS Data Interoperability for Desktop Concurrent Primary actualización","Licencia ","Und","Actualización","N/A","N/A","N/A","C98134","Credito a 30 días ",1630.125,1,0,"USD"]
["ESRISoftware ArgGISC98135","C98135Software ArgGIS",null,"ESRI","C98135","Software ArgGIS","ESRI","USD","N/A","ArcGIS Data Interoperability for Desktop Concurrent Secondary actualización","Licencia ","Und","Actualización","N/A","N/A","N/A","C98135","Credito a 30 días ",652.04999999999995,1,0,"USD"]
["ESRISoftware ArgGISC98696","C98696Software ArgGIS",null,"ESRI","C98696","Software ArgGIS","ESRI","USD","N/A","ArcGIS Publisher for Desktop Concurrent Primary actualización","Licencia ","Und","Actualización","N/A","N/A","N/A","C98696","Credito a 30 días ",1630.125,1,0,"USD"]
["ESRISoftware ArgGISC98697","C98697Software ArgGIS",null,"ESRI","C98697","Software ArgGIS","ESRI","USD","N/A","ArcGIS Publisher for Desktop Concurrent Secondary actualización","Licencia ","Und","Actualización","N/A","N/A","N/A","C98697","Credito a 30 días ",652.04999999999995,1,0,"USD"]
["ESRISoftware ArgGISC100571","C100571Software ArgGIS",null,"ESRI","C100571","Software ArgGIS","ESRI","USD","N/A","ArcGIS Network Analyst for Desktop Concurrent Primary actualización","Licencia ","Und","Actualización","N/A","N/A","N/A","C100571","Credito a 30 días ",1630.125,1,0,"USD"]
["ESRISoftware ArgGISC100572","C100572Software ArgGIS",null,"ESRI","C100572","Software ArgGIS","ESRI","USD","N/A","ArcGIS Network Analyst for Desktop Concurrent Secondary actualización","Licencia ","Und","Actualización","N/A","N/A","N/A","C100572","Credito a 30 días ",652.04999999999995,1,0,"USD"]
["ESRISoftware ArgGISC100573","C100573Software ArgGIS",null,"ESRI","C100573","Software ArgGIS","ESRI","USD","N/A","ArcGIS Schematics for Desktop Concurrent Primary actualización","Licencia ","Und","Actualización","N/A","N/A","N/A","C100573","Credito a 30 días ",1630.125,1,0,"USD"]
["ESRISoftware ArgGISC100574","C100574Software ArgGIS",null,"ESRI","C100574","Software ArgGIS","ESRI","USD","N/A","ArcGIS Schematics for Desktop Concurrent Secondary actualización","Licencia ","Und","Actualización","N/A","N/A","N/A","C100574","Credito a 30 días ",652.04999999999995,1,0,"USD"]
["ESRISoftware ArgGISC118242","C118242Software ArgGIS",null,"ESRI","C118242","Software ArgGIS","ESRI","USD","N/A","ArcGIS Data Reviewer for Desktop Concurrent Primary actualización","Licencia ","Und","Actualización","N/A","N/A","N/A","C118242","Credito a 30 días ",1630.125,1,0,"USD"]
["ESRISoftware ArgGISC118243","C118243Software ArgGIS",null,"ESRI","C118243","Software ArgGIS","ESRI","USD","N/A","ArcGIS Data Reviewer for Desktop Concurrent Secondary actualización","Licencia ","Und","Actualización","N/A","N/A","N/A","C118243","Credito a 30 días ",652.04999999999995,1,0,"USD"]
["ESRISoftware ArgGISC121804","C121804Software ArgGIS",null,"ESRI","C121804","Software ArgGIS","ESRI","USD","N/A","Esri Production Mapping for Desktop Single Use actualización","Licencia ","Und","Actualización","N/A","N/A","N/A","C121804","Credito a 30 días ",8150.625,1,0,"USD"]
["ESRISoftware ArgGISC121805","C121805Software ArgGIS",null,"ESRI","C121805","Software ArgGIS","ESRI","USD","N/A","Esri Production Mapping for Desktop Concurrent Use actualización","Licencia ","Und","Actualización","N/A","N/A","N/A","C121805","Credito a 30 días ",8150.625,1,0,"USD"]
["ESRISoftware ArgGISC121810","C121810Software ArgGIS",null,"ESRI","C121810","Software ArgGIS","ESRI","USD","N/A","Esri Defense Mapping for Desktop Single Use actualización","Licencia ","Und","Actualización","N/A","N/A","N/A","C121810","Credito a 30 días ",8150.625,1,0,"USD"]
["ESRISoftware ArgGISC121871","C121871Software ArgGIS",null,"ESRI","C121871","Software ArgGIS","ESRI","USD","N/A","Esri Defense Mapping for Desktop Concurrent Use actualización","Licencia ","Und","Actualización","N/A","N/A","N/A","C121871","Credito a 30 días ",8150.625,1,0,"USD"]
["ESRISoftware ArgGISC121872","C121872Software ArgGIS",null,"ESRI","C121872","Software ArgGIS","ESRI","USD","N/A","ArcGIS for Aviation: Charting for Desktop Single Use actualización","Licencia ","Und","Actualización","N/A","N/A","N/A","C121872","Credito a 30 días ",8150.625,1,0,"USD"]
["ESRISoftware ArgGISC121873","C121873Software ArgGIS",null,"ESRI","C121873","Software ArgGIS","ESRI","USD","N/A","ArcGIS for Aviation: Charting for Desktop Concurrent Use actualización","Licencia ","Und","Actualización","N/A","N/A","N/A","C121873","Credito a 30 días ",8150.625,1,0,"USD"]
["ESRISoftware ArgGISC121874","C121874Software ArgGIS",null,"ESRI","C121874","Software ArgGIS","ESRI","USD","N/A","ArcGIS For Maritime: Charting for Desktop Single Use actualización","Licencia ","Und","Actualización","N/A","N/A","N/A","C121874","Credito a 30 días ",8150.625,1,0,"USD"]
["ESRISoftware ArgGISC121875","C121875Software ArgGIS",null,"ESRI","C121875","Software ArgGIS","ESRI","USD","N/A","ArcGIS For Maritime: Charting for Desktop Concurrent Use actualización","Licencia ","Und","Actualización","N/A","N/A","N/A","C121875","Credito a 30 días ",8150.625,1,0,"USD"]
["ESRISoftware ArgGISC122181","C122181Software ArgGIS",null,"ESRI","C122181","Software ArgGIS","ESRI","USD","N/A","ArcGIS for Desktop Advanced Single Primary actualización","Licencia ","Und","Actualización","N/A","N/A","N/A","C122181","Credito a 30 días ",9768.6,1,0,"USD"]
["ESRISoftware ArgGISC122183","C122183Software ArgGIS",null,"ESRI","C122183","Software ArgGIS","ESRI","USD","N/A","ArcGIS for Desktop Advanced Single Secondary actualización","Licencia ","Und","Actualización","N/A","N/A","N/A","C122183","Credito a 30 días ",3907.45,1,0,"USD"]
["ESRISoftware ArgGISC122184","C122184Software ArgGIS",null,"ESRI","C122184","Software ArgGIS","ESRI","USD","N/A","ArcGIS 3D Analyst for Desktop Single Use Primary actualización","Licencia ","Und","Actualización","N/A","N/A","N/A","C122184","Credito a 30 días ",1630.125,1,0,"USD"]
["ESRISoftware ArgGISC122185","C122185Software ArgGIS",null,"ESRI","C122185","Software ArgGIS","ESRI","USD","N/A","ArcGIS 3D Analyst for Desktop Single Use Secondary actualización","Licencia ","Und","Actualización","N/A","N/A","N/A","C122185","Credito a 30 días ",651.25,1,0,"USD"]
["ESRISoftware ArgGISC122187","C122187Software ArgGIS",null,"ESRI","C122187","Software ArgGIS","ESRI","USD","N/A","ArcGIS Spatial Analyst for Desktop Single Use Primary actualización","Licencia ","Und","Actualización","N/A","N/A","N/A","C122187","Credito a 30 días ",1630.125,1,0,"USD"]
["ESRISoftware ArgGISC122188","C122188Software ArgGIS",null,"ESRI","C122188","Software ArgGIS","ESRI","USD","N/A","ArcGIS Spatial Analyst for Desktop Single Use Secondary actualización","Licencia ","Und","Actualización","N/A","N/A","N/A","C122188","Credito a 30 días ",651.25,1,0,"USD"]
["ESRISoftware ArgGISC122189","C122189Software ArgGIS",null,"ESRI","C122189","Software ArgGIS","ESRI","USD","N/A","ArcGIS Geostatistical Analyst for Desktop Single Use Primary actualización","Licencia ","Und","Actualización","N/A","N/A","N/A","C122189","Credito a 30 días ",1630.125,1,0,"USD"]
["ESRISoftware ArgGISC122190","C122190Software ArgGIS",null,"ESRI","C122190","Software ArgGIS","ESRI","USD","N/A","ArcGIS Geostatistical Analyst for Desktop Single Use Secondary actualización","Licencia ","Und","Actualización","N/A","N/A","N/A","C122190","Credito a 30 días ",651.25,1,0,"USD"]
["ESRISoftware ArgGISC122191","C122191Software ArgGIS",null,"ESRI","C122191","Software ArgGIS","ESRI","USD","N/A","ArcGIS Tracking Analyst for Desktop Single Use Primary actualización","Licencia ","Und","Actualización","N/A","N/A","N/A","C122191","Credito a 30 días ",1630.125,1,0,"USD"]
["ESRISoftware ArgGISC122192","C122192Software ArgGIS",null,"ESRI","C122192","Software ArgGIS","ESRI","USD","N/A","ArcGIS Tracking Analyst for Desktop Single Use Secondary actualización","Licencia ","Und","Actualización","N/A","N/A","N/A","C122192","Credito a 30 días ",652.04999999999995,1,0,"USD"]
["ESRISoftware ArgGISC122195","C122195Software ArgGIS",null,"ESRI","C122195","Software ArgGIS","ESRI","USD","N/A","ArcGIS Data Reviewer for Desktop Single Use Primary actualización","Licencia ","Und","Actualización","N/A","N/A","N/A","C122195","Credito a 30 días ",1630.125,1,0,"USD"]
["ESRISoftware ArgGISC122196","C122196Software ArgGIS",null,"ESRI","C122196","Software ArgGIS","ESRI","USD","N/A","ArcGIS Data Reviewer for Desktop Single Use Secondary actualización","Licencia ","Und","Actualización","N/A","N/A","N/A","C122196","Credito a 30 días ",651.25,1,0,"USD"]
["ESRISoftware ArgGISC122197","C122197Software ArgGIS",null,"ESRI","C122197","Software ArgGIS","ESRI","USD","N/A","ArcGIS Publisher for Desktop Single Use Primary actualización","Licencia ","Und","Actualización","N/A","N/A","N/A","C122197","Credito a 30 días ",1630.125,1,0,"USD"]
["ESRISoftware ArgGISC122270","C122270Software ArgGIS",null,"ESRI","C122270","Software ArgGIS","ESRI","USD","N/A","ArcGIS Publisher for Desktop Single Use Secondary actualización","Licencia ","Und","Actualización","N/A","N/A","N/A","C122270","Credito a 30 días ",651.25,1,0,"USD"]
["ESRISoftware ArgGISC122275","C122275Software ArgGIS",null,"ESRI","C122275","Software ArgGIS","ESRI","USD","N/A","ArcGIS Data Interoperability for Desktop Single use Primary actualización","Licencia ","Und","Actualización","N/A","N/A","N/A","C122275","Credito a 30 días ",1630.125,1,0,"USD"]
["ESRISoftware ArgGISC122276","C122276Software ArgGIS",null,"ESRI","C122276","Software ArgGIS","ESRI","USD","N/A","ArcGIS Data Interoperability for Desktop Advanced Single Secondary actualización","Licencia ","Und","Actualización","N/A","N/A","N/A","C122276","Credito a 30 días ",651.25,1,0,"USD"]
[{"$f":"D66&F66&E66","v":"ESRISoftware ArgGISC122277"},{"$f":"E66&F66","v":"C122277Software ArgGIS"},null,"ESRI","C122277","Software ArgGIS","ESRI","USD","N/A","ArcGIS Network Analyst for Desktop Single Use Primary actualización","Licencia ","Und","Actualización","N/A","N/A","N/A",{"$f":"+E66","v":"C122277"},"Credito a 30 días ",1630.125,1,0,"USD"]
["ESRISoftware ArgGISC122278","C122278Software ArgGIS",null,"ESRI","C122278","Software ArgGIS","ESRI","USD","N/A","ArcGIS Network Analyst for Desktop Single Use Secondary actualización","Licencia ","Und","Actualización","N/A","N/A","N/A","C122278","Credito a 30 días ",651.25,1,0,"USD"]
["ESRISoftware ArgGISC122279","C122279Software ArgGIS",null,"ESRI","C122279","Software ArgGIS","ESRI","USD","N/A","ArcGIS Schematics for Desktop Single Use Primary actualización","Licencia ","Und","Actualización","N/A","N/A","N/A","C122279","Credito a 30 días ",1628.1,1,0,"USD"]
["ESRISoftware ArgGISC122280","C122280Software ArgGIS",null,"ESRI","C122280","Software ArgGIS","ESRI","USD","N/A","ArcGIS Schematics for Desktop Single Use Secondary actualización","Licencia ","Und","Actualización","N/A","N/A","N/A","C122280","Credito a 30 días ",651.25,1,0,"USD"]
["ESRISoftware ArgGISC122281","C122281Software ArgGIS",null,"ESRI","C122281","Software ArgGIS","ESRI","USD","N/A","ArcGIS Workflow Manager (Classic) for Desktop Single Use Primary actualización ","Licencia ","Und","Actualización","N/A","N/A","N/A","C122281","Credito a 30 días ",1630.125,1,0,"USD"]
["ESRISoftware ArgGISC122282","C122282Software ArgGIS",null,"ESRI","C122282","Software ArgGIS","ESRI","USD","N/A","ArcGIS Workflow Manager (Classic) for Desktop Single Use Secondary Actualización ","Licencia ","Und","Actualización","N/A","N/A","N/A","C122282","Credito a 30 días ",652.04999999999995,1,0,"USD"]
["ESRISoftware ArgGISC122283","C122283Software ArgGIS",null,"ESRI","C122283","Software ArgGIS","ESRI","USD","N/A","ArcGIS Engine Concurrent Primary actualización","Licencia ","Und","Actualización","N/A","N/A","N/A","C122283","Credito a 30 días ",815.07499999999993,1,0,"USD"]
["ESRISoftware ArgGISC122284","C122284Software ArgGIS",null,"ESRI","C122284","Software ArgGIS","ESRI","USD","N/A","ArcGIS 3D Analyst for Engine Concurrent Primary actualización","Licencia ","Und","Actualización","N/A","N/A","N/A","C122284","Credito a 30 días ",652.04999999999995,1,0,"USD"]
["ESRISoftware ArgGISC122285","C122285Software ArgGIS",null,"ESRI","C122285","Software ArgGIS","ESRI","USD","N/A","ArcGIS Spatial Analyst for Engine Concurrent Primary actualización","Licencia ","Und","Actualización","N/A","N/A","N/A","C122285","Credito a 30 días ",652.04999999999995,1,0,"USD"]
["ESRISoftware ArgGISC122286","C122286Software ArgGIS",null,"ESRI","C122286","Software ArgGIS","ESRI","USD","N/A","ArcGIS Engine Geodatabase Update Concurrent Primary actualización","Licencia ","Und","Actualización","N/A","N/A","N/A","C122286","Credito a 30 días ",652.04999999999995,1,0,"USD"]
["ESRISoftware ArgGISC122287","C122287Software ArgGIS",null,"ESRI","C122287","Software ArgGIS","ESRI","USD","N/A","ArcGIS Network Analyst for Engine Concurrent Primary actualización","Licencia ","Und","Actualización","N/A","N/A","N/A","C122287","Credito a 30 días ",652.04999999999995,1,0,"USD"]
["ESRISoftware ArgGISC122288","C122288Software ArgGIS",null,"ESRI","C122288","Software ArgGIS","ESRI","USD","N/A","ArcGIS Tracking Analyst for Engine Concurrent Primary actualización","Licencia ","Und","Actualización","N/A","N/A","N/A","C122288","Credito a 30 días ",652.04999999999995,1,0,"USD"]
["ESRISoftware ArgGISC122290","C122290Software ArgGIS",null,"ESRI","C122290","Software ArgGIS","ESRI","USD","N/A","ArcGIS Data Interoperability for Engine Concurrent Primary actualización","Licencia ","Und","Actualización","N/A","N/A","N/A","C122290","Credito a 30 días ",652.04999999999995,1,0,"USD"]
["ESRISoftware ArgGISC122291","C122291Software ArgGIS",null,"ESRI","C122291","Software ArgGIS","ESRI","USD","N/A","ArcGIS Schematics for Engine Concurrent Primary actualización","Licencia ","Und","Actualización","N/A","N/A","N/A","C122291","Credito a 30 días ",652.04999999999995,1,0,"USD"]
["ESRISoftware ArgGISC122292","C122292Software ArgGIS",null,"ESRI","C122292","Software ArgGIS","ESRI","USD","N/A","ArcGIS Engine Concurrent Secondary actualización","Licencia ","Und","Actualización","N/A","N/A","N/A","C122292","Credito a 30 días ",603.15,1,0,"USD"]
["ESRISoftware ArgGISC122293","C122293Software ArgGIS",null,"ESRI","C122293","Software ArgGIS","ESRI","USD","N/A","ArcGIS 3D Analyst for Engine Concurrent Secondary actualización","Licencia ","Und","Actualización","N/A","N/A","N/A","C122293","Credito a 30 días ",489.05,1,0,"USD"]
["ESRISoftware ArgGISC122294","C122294Software ArgGIS",null,"ESRI","C122294","Software ArgGIS","ESRI","USD","N/A","ArcGIS Spatial Analyst for Engine Concurrent Secondary actualización","Licencia ","Und","Actualización","N/A","N/A","N/A","C122294","Credito a 30 días ",489.05,1,0,"USD"]
["ESRISoftware ArgGISC122295","C122295Software ArgGIS",null,"ESRI","C122295","Software ArgGIS","ESRI","USD","N/A","ArcGIS Engine Geodatabase Update Concurrent Secondary actualización","Licencia ","Und","Actualización","N/A","N/A","N/A","C122295","Credito a 30 días ",489.05,1,0,"USD"]
["ESRISoftware ArgGISC122296","C122296Software ArgGIS",null,"ESRI","C122296","Software ArgGIS","ESRI","USD","N/A","ArcGIS Network Analyst for Engine Concurrent Secondary actualización","Licencia ","Und","Actualización","N/A","N/A","N/A","C122296","Credito a 30 días ",489.05,1,0,"USD"]
["ESRISoftware ArgGISC122297","C122297Software ArgGIS",null,"ESRI","C122297","Software ArgGIS","ESRI","USD","N/A","ArcGIS Tracking Analyst for Engine Concurrent Secondary actualización","Licencia ","Und","Actualización","N/A","N/A","N/A","C122297","Credito a 30 días ",489.05,1,0,"USD"]
["ESRISoftware ArgGISC122299","C122299Software ArgGIS",null,"ESRI","C122299","Software ArgGIS","ESRI","USD","N/A","ArcGIS Data Interoperability for Engine Concurrent Secondary actualización","Licencia ","Und","Actualización","N/A","N/A","N/A","C122299","Credito a 30 días ",489.05,1,0,"USD"]
["ESRISoftware ArgGISC122300","C122300Software ArgGIS",null,"ESRI","C122300","Software ArgGIS","ESRI","USD","N/A","ArcGIS Schematics for Engine Concurrent Secondary actualización","Licencia ","Und","Actualización","N/A","N/A","N/A","C122300","Credito a 30 días ",489.05,1,0,"USD"]
["ESRISoftware ArgGISC154880","C154880Software ArgGIS",null,"ESRI","C154880","Software ArgGIS","ESRI","USD","N/A"," ArcGIS Aviation Charting for ArcGIS Desktop Single Use Actualización Bundle","Licencia ","Und","Actualización","N/A","N/A","N/A","C154880","Credito a 30 días ",21191.625,1,0,"USD"]
["ESRISoftware ArgGISC123515","C123515Software ArgGIS",null,"ESRI","C123515","Software ArgGIS","ESRI","USD","N/A","Esri Defense Mapping for Desktop Concurrent Use actualización Bundle","Licencia ","Und","Actualización","N/A","N/A","N/A","C123515","Credito a 30 días ",21191.625,1,0,"USD"]
["ESRISoftware ArgGISC127623","C127623Software ArgGIS",null,"ESRI","C127623","Software ArgGIS","ESRI","USD","N/A","Esri CityEngine Basic Single Primary actualización","Licencia ","Und","Actualización","N/A","N/A","N/A","C127623","Credito a 30 días ",326.02499999999998,1,0,"USD"]
["ESRISoftware ArgGISC127624","C127624Software ArgGIS",null,"ESRI","C127624","Software ArgGIS","ESRI","USD","N/A","Esri CityEngine Basic Single Secondary actualización","Licencia ","Und","Actualización","N/A","N/A","N/A","C127624","Credito a 30 días ",277.125,1,0,"USD"]
["ESRISoftware ArgGISC127625","C127625Software ArgGIS",null,"ESRI","C127625","Software ArgGIS","ESRI","USD","N/A","Esri CityEngine Advanced Single Primary actualización","Licencia ","Und","Actualización","N/A","N/A","N/A","C127625","Credito a 30 días ",2608.1999999999998,1,0,"USD"]
["ESRISoftware ArgGISC127626","C127626Software ArgGIS",null,"ESRI","C127626","Software ArgGIS","ESRI","USD","N/A","Esri CityEngine Advanced Concurrent Primary actualización","Licencia ","Und","Actualización","N/A","N/A","N/A","C127626","Credito a 30 días ",2608.1999999999998,1,0,"USD"]
["ESRISoftware ArgGISC127627","C127627Software ArgGIS",null,"ESRI","C127627","Software ArgGIS","ESRI","USD","N/A","Esri CityEngine Advanced Single Secondary actualización","Licencia ","Und","Actualización","N/A","N/A","N/A","C127627","Credito a 30 días ",2200.65,1,0,"USD"]
["ESRISoftware ArgGISC127657","C127657Software ArgGIS",null,"ESRI","C127657","Software ArgGIS","ESRI","USD","N/A","Esri CityEngine Advanced Concurrent Secondary actualización","Licencia ","Und","Actualización","N/A","N/A","N/A","C127657","Credito a 30 días ",2200.65,1,0,"USD"]
["ESRISoftware ArgGISC128916","C128916Software ArgGIS",null,"ESRI","C128916","Software ArgGIS","ESRI","USD","N/A","Esri Roads and Highways for Desktop Concurrent Use actualización","Licencia ","Und","Actualización","N/A","N/A","N/A","C128916","Credito a 30 días ",8150.625,1,0,"USD"]
["ESRISoftware ArgGISC130909","C130909Software ArgGIS",null,"ESRI","C130909","Software ArgGIS","ESRI","USD","N/A","ArcGIS for Maritime: Charting for Desktop Bundle Concurrent Use actualización","Licencia ","Und","Actualización","N/A","N/A","N/A","C130909","Credito a 30 días ",19561.5,1,0,"USD"]
["ESRISoftware ArgGISC130922","C130922Software ArgGIS",null,"ESRI","C130922","Software ArgGIS","ESRI","USD","N/A","ArcGIS for Maritime: Bathymetry for Desktop Single Use actualización","Licencia ","Und","Actualización","N/A","N/A","N/A","C130922","Credito a 30 días ",4075.3250000000003,1,0,"USD"]
["ESRISoftware ArgGISC130923","C130923Software ArgGIS",null,"ESRI","C130923","Software ArgGIS","ESRI","USD","N/A","ArcGIS for Maritime: Bathymetry for Desktop Concurrent Use actualización","Licencia ","Und","Actualización","N/A","N/A","N/A","C130923","Credito a 30 días ",4075.3250000000003,1,0,"USD"]
["ESRISoftware ArgGISC130942","C130942Software ArgGIS",null,"ESRI","C130942","Software ArgGIS","ESRI","USD","N/A","ArcGIS for Maritime: Bathymetry for Desktop Bundle Single Use actualización","Licencia ","Und","Actualización","N/A","N/A","N/A","C130942","Credito a 30 días ",10921.849999999999,1,0,"USD"]
["ESRISoftware ArgGISC130943","C130943Software ArgGIS",null,"ESRI","C130943","Software ArgGIS","ESRI","USD","N/A","ArcGIS for Maritime: Bathymetry for Desktop Bundle Concurrent Use actualización","Licencia ","Und","Actualización","N/A","N/A","N/A","C130943","Credito a 30 días ",10595.825000000001,1,0,"USD"]
["ESRISoftware ArgGISC133018","C133018Software ArgGIS",null,"ESRI","C133018","Software ArgGIS","ESRI","USD","N/A","ArcGIS for Aviation: Airports for Desktop Single Use actualización Bundle","Licencia ","Und","Actualización","N/A","N/A","N/A","C133018","Credito a 30 días ",8964,1,0,"USD"]
["ESRISoftware ArgGISC133019","C133019Software ArgGIS",null,"ESRI","C133019","Software ArgGIS","ESRI","USD","N/A","ArcGIS for Aviation: Airports Concurrent Use actualización Bundle","Licencia ","Und","Actualización","N/A","N/A","N/A","C133019","Credito a 30 días ",8964,1,0,"USD"]
["ESRISoftware ArgGISC133033","C133033Software ArgGIS",null,"ESRI","C133033","Software ArgGIS","ESRI","USD","N/A","ArcGIS for Aviation: Airports for Desktop Single Use actualización","Licencia ","Und","Actualización","N/A","N/A","N/A","C133033","Credito a 30 días ",4075.3250000000003,1,0,"USD"]
["ESRISoftware ArgGISC133034","C133034Software ArgGIS",null,"ESRI","C133034","Software ArgGIS","ESRI","USD","N/A","ArcGIS for Aviation: Airports for Desktop Concurrent Use actualización","Licencia ","Und","Actualización","N/A","N/A","N/A","C133034","Credito a 30 días ",4075.3250000000003,1,0,"USD"]
["ESRISoftware ArgGISC133196","C133196Software ArgGIS",null,"ESRI","C133196","Software ArgGIS","ESRI","USD","N/A","Esri Roads and Highways for Desktop Single Use actualización","Licencia ","Und","Actualización","N/A","N/A","N/A","C133196","Credito a 30 días ",8150.625,1,0,"USD"]
["ESRISoftware ArgGISC151823","C151823Software ArgGIS",null,"ESRI","C151823","Software ArgGIS","ESRI","USD","N/A","Drone2Map for ArcGIS Online Term License","Licencia/mes","Und","Licencias","N/A","N/A","N/A","C151823","Credito a 30 días ",163.01250000000002,1,0,"USD"]
["ESRISoftware ArgGISC153147","C153147Software ArgGIS",null,"ESRI","C153147","Software ArgGIS","ESRI","USD","N/A","ArcGIS Online (Viewer) User Type Term License","Licencia/mes","Und","Licencias","N/A","N/A","N/A","C153147","Credito a 30 días ",10.8675,1,0,"USD"]
["ESRISoftware ArgGISC153148","C153148Software ArgGIS",null,"ESRI","C153148","Software ArgGIS","ESRI","USD","N/A","ArcGIS Online (Creator) User Type Term License","Licencia/mes","Und","Licencias","N/A","N/A","N/A","C153148","Credito a 30 días ",54.337499999999999,1,0,"USD"]
["ESRISoftware ArgGISC153373","C153373Software ArgGIS",null,"ESRI","C153373","Software ArgGIS","ESRI","USD","N/A","ArcGIS Pipeline Referencing for Desktop actualización","Licencia ","Und","Actualización","N/A","N/A","N/A","C153373","Credito a 30 días ",8150.625,1,0,"USD"]
["ESRISoftware ArgGISC153416","C153416Software ArgGIS",null,"ESRI","C153416","Software ArgGIS","ESRI","USD","N/A","ArcGIS Business Analyst Web App Online Bundle Term License (1 ArcGIS Online Creator User, 1 user BA Web App, & credits)","Licencia/mes","Und","Licencias","N/A","N/A","N/A","C153416","Credito a 30 días ",119.5425,1,0,"USD"]
["ESRISoftware ArgGISC153417","C153417Software ArgGIS",null,"ESRI","C153417","Software ArgGIS","ESRI","USD","N/A","ArcGIS Business Analyst Web App Single User Add-on for ArcGIS Online","Licencia/mes","Und","Licencias","N/A","N/A","N/A","C153417","Credito a 30 días ",10.8675,1,0,"USD"]
["ESRISoftware ArgGISC153418","C153418Software ArgGIS",null,"ESRI","C153418","Software ArgGIS","ESRI","USD","N/A","ArcGIS Online Service Credits; Block of 1,000","paquete de creditos","Und","Licencias","N/A","N/A","N/A","C153418","Credito a 30 días ",130.41,1,0,"USD"]
["ESRISoftware ArgGISC153543","C153543Software ArgGIS",null,"ESRI","C153543","Software ArgGIS","ESRI","USD","N/A","ArcGIS Pipeline Referencing for ArcGIS GIS Server Standard (Windows) Up to Four Cores actualización","Licencia ","Und","Actualización","N/A","N/A","N/A","C153543","Credito a 30 días ",8150.625,1,0,"USD"]
["ESRISoftware ArgGISC153544","C153544Software ArgGIS",null,"ESRI","C153544","Software ArgGIS","ESRI","USD","N/A","ArcGIS Pipeline Referencing for ArcGIS GIS Server Advanced (Windows) Up to Four Cores actualización","Licencia ","Und","Actualización","N/A","N/A","N/A","C153544","Credito a 30 días ",8150.625,1,0,"USD"]
["ESRISoftware ArgGISC153545","C153545Software ArgGIS",null,"ESRI","C153545","Software ArgGIS","ESRI","USD","N/A","ArcGIS Pipeline Referencing for ArcGIS GIS Server Workgroup Standard Up to Four Cores actualización","Licencia ","Und","Actualización","N/A","N/A","N/A","C153545","Credito a 30 días ",4075.3250000000003,1,0,"USD"]
["ESRISoftware ArgGISC153546","C153546Software ArgGIS",null,"ESRI","C153546","Software ArgGIS","ESRI","USD","N/A","ArcGIS Pipeline Referencing for ArcGIS GIS Server Workgroup Advanced Up to Four Cores actualización","Licencia ","Und","Actualización","N/A","N/A","N/A","C153546","Credito a 30 días ",4075.3250000000003,1,0,"USD"]
["ESRISoftware ArgGISC153547","C153547Software ArgGIS",null,"ESRI","C153547","Software ArgGIS","ESRI","USD","N/A","ArcGIS Pipeline Referencing for ArcGIS GIS Server Standard (Windows) Additional Core actualización","Licencia ","Und","Actualización","N/A","N/A","N/A","C153547","Credito a 30 días ",2037.6749999999997,1,0,"USD"]
["ESRISoftware ArgGISC153548","C153548Software ArgGIS",null,"ESRI","C153548","Software ArgGIS","ESRI","USD","N/A","ArcGIS Pipeline Referencing for ArcGIS GIS Server Advanced (Windows) Additional Core actualización","Licencia ","Und","Actualización","N/A","N/A","N/A","C153548","Credito a 30 días ",2037.6749999999997,1,0,"USD"]
["ESRISoftware ArgGISC154097","C154097Software ArgGIS",null,"ESRI","C154097","Software ArgGIS","ESRI","USD","N/A","ArcGIS Enterprise Creator (Formerly Named User Level 2) actualización","Licencia ","Und","Actualización","N/A","N/A","N/A","C154097","Credito a 30 días ",1630.125,1,0,"USD"]
["ESRISoftware ArgGISC154300","C154300Software ArgGIS",null,"ESRI","C154300","Software ArgGIS","ESRI","USD","N/A","Insights for ArcGIS in ArcGIS Enterprise actualización","Licencia ","Und","Actualización","N/A","N/A","N/A","C154300","Credito a 30 días ",1630.125,1,0,"USD"]
["ESRISoftware ArgGISC157002","C157002Software ArgGIS",null,"ESRI","C157002","Software ArgGIS","ESRI","USD","N/A","Navigator for ArcGIS Online Term License","Licencia/mes","Und","Licencias","N/A","N/A","N/A","C157002","Credito a 30 días ",6.0375000000000005,1,0,"USD"]
["ESRISoftware ArgGISC157007","C157007Software ArgGIS",null,"ESRI","C157007","Software ArgGIS","ESRI","USD","N/A","ArcGIS Community Analyst Web App Online Term License","Licencia/mes","Und","Licencias","N/A","N/A","N/A","C157007","Credito a 30 días ",10.8675,1,0,"USD"]
["ESRISoftware ArgGISC157021","C157021Software ArgGIS",null,"ESRI","C157021","Software ArgGIS","ESRI","USD","N/A","ArcGIS Developer Premium Annual Subscription","Licencia/año ","Und","Licencias","N/A","N/A","N/A","C157021","Credito a 30 días ",4303.53,1,0,"USD"]
["ESRISoftware ArgGISC157022","C157022Software ArgGIS",null,"ESRI","C157022","Software ArgGIS","ESRI","USD","N/A","ArcGIS Developer Builder Annual Subscription","Licencia/año ","Und","Licencias","N/A","N/A","N/A","C157022","Credito a 30 días ",1956.15,1,0,"USD"]
["ESRISoftware ArgGISC157023","C157023Software ArgGIS",null,"ESRI","C157023","Software ArgGIS","ESRI","USD","N/A","ArcGIS Developer Professional Annual Subscription","Licencia/año ","Und","Licencias","N/A","N/A","N/A","C157023","Credito a 30 días ",2347.38,1,0,"USD"]
["ESRISoftware ArgGISC157024","C157024Software ArgGIS",null,"ESRI","C157024","Software ArgGIS","ESRI","USD","N/A","ArcGIS Developer Enterprise Annual Subscription","Licencia/año ","Und","Licencias","N/A","N/A","N/A","C157024","Credito a 30 días ",5607.63,1,0,"USD"]
["ESRISoftware ArgGISC157558","C157558Software ArgGIS",null,"ESRI","C157558","Software ArgGIS","ESRI","USD","N/A","Educational Academic Additional ArcGIS Online Service Credits (100,000 Credits)","paquete de creditos","Und","Licencias","N/A","N/A","N/A","C157558","Credito a 30 días ",130.41,1,0,"USD"]
["ESRISoftware ArgGISC157564","C157564Software ArgGIS",null,"ESRI","C157564","Software ArgGIS","ESRI","USD","N/A","ArcGIS Online Premium Feature Data Store M-1 Annual Term License","Licencia/año","Und","Licencias","N/A","N/A","N/A","C157564","Credito a 30 días ",14028.28,1,0,"USD"]
[{"$f":"D130&F130&E130","v":"ESRISoftware ArgGISC157565"},{"$f":"E130&F130","v":"C157565Software ArgGIS"},null,"ESRI","C157565","Software ArgGIS","ESRI","USD","N/A","ArcGIS Online Premium Feature Data Store M-2 Annual Term License","Licencia/año","Und","Licencias","N/A","N/A","N/A",{"$f":"+E130","v":"C157565"},"Credito a 30 días ",28168.560000000001,1,0,"USD"]
["ESRISoftware ArgGISC157566","C157566Software ArgGIS",null,"ESRI","C157566","Software ArgGIS","ESRI","USD","N/A","ArcGIS Online Premium Feature Data Store M-3 Annual Term License","Licencia/año","Und","Licencias","N/A","N/A","N/A","C157566","Credito a 30 días ",56337.120000000003,1,0,"USD"]
["ESRISoftware ArgGISC157577","C157577Software ArgGIS",null,"ESRI","C157577","Software ArgGIS","ESRI","USD","N/A","Educational Administrative Use Departmental ArcGIS Online Level 1 Additional Named User (0 Credits)","Licencia/mes","Und","Licencias","N/A","N/A","N/A","C157577","Credito a 30 días ",65.209999999999994,1,0,"USD"]
["ESRISoftware ArgGISC157578","C157578Software ArgGIS",null,"ESRI","C157578","Software ArgGIS","ESRI","USD","N/A","Educational Administrative Use Departmental Additional ArcGIS Online Service Credits (1000 Credits)","paquete de creditos","Und","Licencias","N/A","N/A","N/A","C157578","Credito a 30 días ",130.41,1,0,"USD"]
["ESRISoftware ArgGISC157580","C157580Software ArgGIS",null,"ESRI","C157580","Software ArgGIS","ESRI","USD","N/A","Educational Administrative Use Departmental ArcGIS Online Level 2 Additional Named User (500 Credits)","Licencia/mes","Und","Licencias","N/A","N/A","N/A","C157580","Credito a 30 días ",326.02999999999997,1,0,"USD"]
["ESRISoftware ArgGISC157591","C157591Software ArgGIS",null,"ESRI","C157591","Software ArgGIS","ESRI","USD","N/A","ArcGIS Online Premium Feature Data Store M-1 Monthly Term License","Licencias/mes ","Und","Licencias","N/A","N/A","N/A","C157591","Credito a 30 días ",1304.0999999999999,1,0,"USD"]
["ESRISoftware ArgGISC157592","C157592Software ArgGIS",null,"ESRI","C157592","Software ArgGIS","ESRI","USD","N/A","ArcGIS Online Premium Feature Data Store M-2 Monthly Term License","Licencias/mes ","Und","Licencias","N/A","N/A","N/A","C157592","Credito a 30 días ",2608.1999999999998,1,0,"USD"]
["ESRISoftware ArgGISC157593","C157593Software ArgGIS",null,"ESRI","C157593","Software ArgGIS","ESRI","USD","N/A","ArcGIS Online Premium Feature Data Store M-3 Monthly Term License","Licencias/mes ","Und","Licencias","N/A","N/A","N/A","C157593","Credito a 30 días ",5216.3999999999996,1,0,"USD"]
["ESRISoftware ArgGISC159044","C159044Software ArgGIS",null,"ESRI","C159044","Software ArgGIS","ESRI","USD","N/A","ArcGIS Online Insights Analyst Term License","Licencias/mes ","Und","Licencias","N/A","N/A","N/A","C159044","Credito a 30 días ",54.337499999999999,1,0,"USD"]
["ESRISoftware ArgGISC159055","C159055Software ArgGIS",null,"ESRI","C159055","Software ArgGIS","ESRI","USD","N/A","ArcGIS Data Interoperability for ArcGIS Pro Online Term License","Licencias/mes ","Und","Licencias","N/A","N/A","N/A","C159055","Credito a 30 días ",65.204999999999998,1,0,"USD"]
["ESRISoftware ArgGISC159070","C159070Software ArgGIS",null,"ESRI","C159070","Software ArgGIS","ESRI","USD","N/A","ArcGIS Image Analyst for ArcGIS Pro Online Term License","Licencias/mes ","Und","Licencias","N/A","N/A","N/A","C159070","Credito a 30 días ",65.204999999999998,1,0,"USD"]
["ESRISoftware ArgGISC159166","C159166Software ArgGIS",null,"ESRI","C159166","Software ArgGIS","ESRI","USD","N/A","ArcGIS Hub Premium ArcGIS Online Community Term License","Licencias/mes ","Und","Licencias","N/A","N/A","N/A","C159166","Credito a 30 días ",1086.75,1,0,"USD"]
["ESRISoftware ArgGISC159168","C159168Software ArgGIS",null,"ESRI","C159168","Software ArgGIS","ESRI","USD","N/A","ArcGIS Hub Premium Additional 1000 ArcGIS Online Community Creator Term License","Licencias/mes ","Und","Licencias","N/A","N/A","N/A","C159168","Credito a 30 días ",108.675,1,0,"USD"]
["ESRISoftware ArgGISC159171","C159171Software ArgGIS",null,"ESRI","C159171","Software ArgGIS","ESRI","USD","N/A","ArcGIS Hub Premium Unlimited ArcGIS Online Community Population Less than 1,000,000 Term License","Licencias/mes ","Und","Licencias","N/A","N/A","N/A","C159171","Credito a 30 días ",4347,1,0,"USD"]
["ESRISoftware ArgGISC159173","C159173Software ArgGIS",null,"ESRI","C159173","Software ArgGIS","ESRI","USD","N/A","ArcGIS Hub Premium Unlimited ArcGIS Online Community Population Greater than 1,000,000 Term License","Licencias/mes ","Und","Licencias","N/A","N/A","N/A","C159173","Credito a 30 días ",8694,1,0,"USD"]
["ESRISoftware ArgGISC161320","C161320Software ArgGIS",null,"ESRI","C161320","Software ArgGIS","ESRI","USD","N/A","ArcGIS Enterprise Workgroup Advanced Up to Two Cores actualización","Licencia ","Und","Actualización","N/A","N/A","N/A","C161320","Credito a 30 días ",8150.625,1,0,"USD"]
["ESRISoftware ArgGISC161322","C161322Software ArgGIS",null,"ESRI","C161322","Software ArgGIS","ESRI","USD","N/A","ArcGIS Enterprise Workgroup Standard Up to Two Cores actualización","Licencia ","Und","Actualización","N/A","N/A","N/A","C161322","Credito a 30 días ",4075.3250000000003,1,0,"USD"]
["ESRISoftware ArgGISC161324","C161324Software ArgGIS",null,"ESRI","C161324","Software ArgGIS","ESRI","USD","N/A","ArcGIS GIS Server Workgroup Advanced Up to Two Cores actualización","Licencia ","Und","Actualización","N/A","N/A","N/A","C161324","Credito a 30 días ",8150.625,1,0,"USD"]
["ESRISoftware ArgGISC161325","C161325Software ArgGIS",null,"ESRI","C161325","Software ArgGIS","ESRI","USD","N/A","ArcGIS GIS Server Workgroup Standard Up to Two Cores actualización","Licencia ","Und","Actualización","N/A","N/A","N/A","C161325","Credito a 30 días ",4075.3250000000003,1,0,"USD"]
["ESRISoftware ArgGISC161326","C161326Software ArgGIS",null,"ESRI","C161326","Software ArgGIS","ESRI","USD","N/A","ArcGIS Enterprise Advanced Up to Four Cores actualización","Licencia ","Und","Actualización","N/A","N/A","N/A","C161326","Credito a 30 días ",32602.5,1,0,"USD"]
["ESRISoftware ArgGISC161328","C161328Software ArgGIS",null,"ESRI","C161328","Software ArgGIS","ESRI","USD","N/A","ArcGIS Enterprise Standard Up to Four Cores actualización","Licencia ","Und","Actualización","N/A","N/A","N/A","C161328","Credito a 30 días ",16301.25,1,0,"USD"]
["ESRISoftware ArgGISC161334","C161334Software ArgGIS",null,"ESRI","C161334","Software ArgGIS","ESRI","USD","N/A","ArcGIS GeoAnalytics Server Up to Four Cores actualización","Licencia ","Und","Actualización","N/A","N/A","N/A","C161334","Credito a 30 días ",16301.25,1,0,"USD"]
["ESRISoftware ArgGISC161336","C161336Software ArgGIS",null,"ESRI","C161336","Software ArgGIS","ESRI","USD","N/A","ArcGIS GeoAnalytics Server Workgroup Up to Four Cores actualización","Licencia ","Und","Actualización","N/A","N/A","N/A","C161336","Credito a 30 días ",8150.625,1,0,"USD"]
["ESRISoftware ArgGISC161337","C161337Software ArgGIS",null,"ESRI","C161337","Software ArgGIS","ESRI","USD","N/A","ArcGIS GeoEvent Server Up to Four Cores actualización","Licencia ","Und","Actualización","N/A","N/A","N/A","C161337","Credito a 30 días ",16301.25,1,0,"USD"]
["ESRISoftware ArgGISC161338","C161338Software ArgGIS",null,"ESRI","C161338","Software ArgGIS","ESRI","USD","N/A","ArcGIS GeoEvent Server Workgroup Up to Four Cores actualización","Licencia ","Und","Actualización","N/A","N/A","N/A","C161338","Credito a 30 días ",8150.625,1,0,"USD"]
["ESRISoftware ArgGISC161339","C161339Software ArgGIS",null,"ESRI","C161339","Software ArgGIS","ESRI","USD","N/A","ArcGIS Image Server Up to Four Cores actualización","Licencia ","Und","Actualización","N/A","N/A","N/A","C161339","Credito a 30 días ",16301.25,1,0,"USD"]
["ESRISoftware ArgGISC161341","C161341Software ArgGIS",null,"ESRI","C161341","Software ArgGIS","ESRI","USD","N/A","ArcGIS Image Server Workgroup Up to Four Cores actualización","Licencia ","Und","Actualización","N/A","N/A","N/A","C161341","Credito a 30 días ",8150.625,1,0,"USD"]
["ESRISoftware ArgGISC161343","C161343Software ArgGIS",null,"ESRI","C161343","Software ArgGIS","ESRI","USD","N/A","ArcGIS GIS Server Advanced Up to Four Cores actualización","Licencia ","Und","Actualización","N/A","N/A","N/A","C161343","Credito a 30 días ",32602.5,1,0,"USD"]
["ESRISoftware ArgGISC161344","C161344Software ArgGIS",null,"ESRI","C161344","Software ArgGIS","ESRI","USD","N/A","ArcGIS for Maritime for ArcGIS GIS Server Advanced (Windows) Up to Four Cores actualización","Licencia ","Und","Actualización","N/A","N/A","N/A","C161344","Credito a 30 días ",8150.625,1,0,"USD"]
["ESRISoftware ArgGISC161345","C161345Software ArgGIS",null,"ESRI","C161345","Software ArgGIS","ESRI","USD","N/A","ArcGIS for Maritime for ArcGIS GIS Server Workgroup Advanced Up to Four Cores actualización","Licencia ","Und","Actualización","N/A","N/A","N/A","C161345","Credito a 30 días ",4075.3250000000003,1,0,"USD"]
["ESRISoftware ArgGISC161346","C161346Software ArgGIS",null,"ESRI","C161346","Software ArgGIS","ESRI","USD","N/A","ArcGIS for Maritime for ArcGIS GIS Server Standard (Windows) Up to Four Cores actualización","Licencia ","Und","Actualización","N/A","N/A","N/A","C161346","Credito a 30 días ",8150.625,1,0,"USD"]
["ESRISoftware ArgGISC161347","C161347Software ArgGIS",null,"ESRI","C161347","Software ArgGIS","ESRI","USD","N/A","ArcGIS for Maritime for ArcGIS GIS Server Workgroup Standard Up to Four Cores actualización","Licencia ","Und","Actualización","N/A","N/A","N/A","C161347","Credito a 30 días ",4075.3250000000003,1,0,"USD"]
["ESRISoftware ArgGISC161348","C161348Software ArgGIS",null,"ESRI","C161348","Software ArgGIS","ESRI","USD","N/A","ArcGIS GIS Server Basic Up to Four Cores actualización","Licencia ","Und","Actualización","N/A","N/A","N/A","C161348","Credito a 30 días ",9780.75,1,0,"USD"]
["ESRISoftware ArgGISC161349","C161349Software ArgGIS",null,"ESRI","C161349","Software ArgGIS","ESRI","USD","N/A","ArcGIS GIS Server Workgroup Basic Maximum Four Cores actualización","Licencia ","Und","Actualización","N/A","N/A","N/A","C161349","Credito a 30 días ",4075.3250000000003,1,0,"USD"]
["ESRISoftware ArgGISC161350","C161350Software ArgGIS",null,"ESRI","C161350","Software ArgGIS","ESRI","USD","N/A","ArcGIS Data Reviewer for ArcGIS GIS Server Standard or Advanced (Windows Only) Up to Four Cores Actualización ","Licencia ","Und","Actualización","N/A","N/A","N/A","C161350","Credito a 30 días ",8150.625,1,0,"USD"]
["ESRISoftware ArgGISC161351","C161351Software ArgGIS",null,"ESRI","C161351","Software ArgGIS","ESRI","USD","N/A","ArcGIS Data Reviewer for ArcGIS GIS Server Workgroup Standard or Advanced Maximum Four Cores Actualización ","Licencia ","Und","Actualización","N/A","N/A","N/A","C161351","Credito a 30 días ",4075.3250000000003,1,0,"USD"]
["ESRISoftware ArgGISC161354","C161354Software ArgGIS",null,"ESRI","C161354","Software ArgGIS","ESRI","USD","N/A","Esri Defense Mapping for ArcGIS GIS Server Advanced (Windows) Up to Four Cores actualización","Licencia ","Und","Actualización","N/A","N/A","N/A","C161354","Credito a 30 días ",8150.625,1,0,"USD"]
["ESRISoftware ArgGISC161355","C161355Software ArgGIS",null,"ESRI","C161355","Software ArgGIS","ESRI","USD","N/A","Esri Defense Mapping for ArcGIS GIS Server Workgroup Advanced Up to Four Cores actualización","Licencia ","Und","Actualización","N/A","N/A","N/A","C161355","Credito a 30 días ",4075.3250000000003,1,0,"USD"]
["ESRISoftware ArgGISC161356","C161356Software ArgGIS",null,"ESRI","C161356","Software ArgGIS","ESRI","USD","N/A","Esri Production Mapping for ArcGIS GIS Server Advanced (Windows) Up to Four Cores actualización","Licencia ","Und","Actualización","N/A","N/A","N/A","C161356","Credito a 30 días ",8150.625,1,0,"USD"]
["ESRISoftware ArgGISC161357","C161357Software ArgGIS",null,"ESRI","C161357","Software ArgGIS","ESRI","USD","N/A","Esri Production Mapping for ArcGIS GIS Server Workgroup Advanced Up to Four Cores actualización","Licencia ","Und","Actualización","N/A","N/A","N/A","C161357","Credito a 30 días ",4075.3250000000003,1,0,"USD"]
["ESRISoftware ArgGISC161358","C161358Software ArgGIS",null,"ESRI","C161358","Software ArgGIS","ESRI","USD","N/A","Esri Production Mapping for ArcGIS GIS Server Standard (Windows) Up to Four Cores actualización","Licencia ","Und","Actualización","N/A","N/A","N/A","C161358","Credito a 30 días ",8150.625,1,0,"USD"]
["ESRISoftware ArgGISC161359","C161359Software ArgGIS",null,"ESRI","C161359","Software ArgGIS","ESRI","USD","N/A","Esri Production Mapping for ArcGIS GIS Server Workgroup Standard (Wind.) Up to Four Cores actualizaciónanc","Licencia ","Und","Actualización","N/A","N/A","N/A","C161359","Credito a 30 días ",4075.3250000000003,1,0,"USD"]
["ESRISoftware ArgGISC161360","C161360Software ArgGIS",null,"ESRI","C161360","Software ArgGIS","ESRI","USD","N/A","ArcGIS Roads and Highways for ArcGIS GIS Server Workgroup Standard or Advanced Maximum Four Cores  Actualización","Licencia ","Und","Actualización","N/A","N/A","N/A","C161360","Credito a 30 días ",4075.3250000000003,1,0,"USD"]
["ESRISoftware ArgGISC161362","C161362Software ArgGIS",null,"ESRI","C161362","Software ArgGIS","ESRI","USD","N/A","ArcGIS Data Interoperability for ArcGIS GIS Server Workgroup Advanced Maximum Four Cores actualización","Licencia ","Und","Actualización","N/A","N/A","N/A","C161362","Credito a 30 días ",4075.3250000000003,1,0,"USD"]
["ESRISoftware ArgGISC161363","C161363Software ArgGIS",null,"ESRI","C161363","Software ArgGIS","ESRI","USD","N/A","ArcGIS Data Interoperability for ArcGIS GIS Server Workgroup Standard Maximum Four Cores actualización","Licencia ","Und","Actualización","N/A","N/A","N/A","C161363","Credito a 30 días ",4075.3250000000003,1,0,"USD"]
["ESRISoftware ArgGISC161364","C161364Software ArgGIS",null,"ESRI","C161364","Software ArgGIS","ESRI","USD","N/A","ArcGIS Data Interoperability for ArcGIS GIS Server Advanced Up to Four Cores actualización","Licencia ","Und","Actualización","N/A","N/A","N/A","C161364","Credito a 30 días ",8150.625,1,0,"USD"]
["ESRISoftware ArgGISC161365","C161365Software ArgGIS",null,"ESRI","C161365","Software ArgGIS","ESRI","USD","N/A","ArcGIS Data Interoperability for ArcGIS GIS Server Standard Up to Four Cores actualización","Licencia ","Und","Actualización","N/A","N/A","N/A","C161365","Credito a 30 días ",8150.625,1,0,"USD"]
["ESRISoftware ArgGISC161366","C161366Software ArgGIS",null,"ESRI","C161366","Software ArgGIS","ESRI","USD","N/A","ArcGIS Network Analyst for ArcGIS GIS Server Standard Up to Four Cores actualización","Licencia ","Und","Actualización","N/A","N/A","N/A","C161366","Credito a 30 días ",8150.625,1,0,"USD"]
["ESRISoftware ArgGISC161367","C161367Software ArgGIS",null,"ESRI","C161367","Software ArgGIS","ESRI","USD","N/A","ArcGIS Network Analyst for ArcGIS GIS Server Workgroup Standard Maximum Four Cores actualización","Licencia ","Und","Actualización","N/A","N/A","N/A","C161367","Credito a 30 días ",4075.3250000000003,1,0,"USD"]
["ESRISoftware ArgGISC161369","C161369Software ArgGIS",null,"ESRI","C161369","Software ArgGIS","ESRI","USD","N/A","ArcGIS GIS Server Standard Up to Four Cores actualización","Licencia ","Und","Actualización","N/A","N/A","N/A","C161369","Credito a 30 días ",16301.25,1,0,"USD"]
["ESRISoftware ArgGISC161370","C161370Software ArgGIS",null,"ESRI","C161370","Software ArgGIS","ESRI","USD","N/A","ArcGIS Workflow Manager (Classic) for ArcGIS GIS Server Standard or Advanced (Windows Only) Up to Four Cores  Actualización","Licencia ","Und","Actualización","N/A","N/A","N/A","C161370","Credito a 30 días ",8150.625,1,0,"USD"]
["ESRISoftware ArgGISC161372","C161372Software ArgGIS",null,"ESRI","C161372","Software ArgGIS","ESRI","USD","N/A","ArcGIS Workflow Manager (Classic) for ArcGIS GIS Server Workgroup Standard or Advanced Maximum Four Cores Actualización","Licencia ","Und","Actualización","N/A","N/A","N/A","C161372","Credito a 30 días ",4075.3250000000003,1,0,"USD"]
["ESRISoftware ArgGISC161380","C161380Software ArgGIS",null,"ESRI","C161380","Software ArgGIS","ESRI","USD","N/A","ArcGIS Roads and Highways for ArcGIS GIS Server Standard or Advanced (Windows Only) Up to Four Cores Actualización ","Licencia ","Und","Actualización","N/A","N/A","N/A","C161380","Credito a 30 días ",8150.625,1,0,"USD"]
["ESRISoftware ArgGISC161387","C161387Software ArgGIS",null,"ESRI","C161387","Software ArgGIS","ESRI","USD","N/A","ArcGIS GeoEvent Server Additional Core (up to 32 per server) actualización","Licencia ","Und","Actualización","N/A","N/A","N/A","C161387","Credito a 30 días ",4075.3250000000003,1,0,"USD"]
["ESRISoftware ArgGISC161388","C161388Software ArgGIS",null,"ESRI","C161388","Software ArgGIS","ESRI","USD","N/A","ArcGIS GIS Server Advanced Additional Cores actualización","Licencia ","Und","Actualización","N/A","N/A","N/A","C161388","Credito a 30 días ",8150.625,1,0,"USD"]
["ESRISoftware ArgGISC161389","C161389Software ArgGIS",null,"ESRI","C161389","Software ArgGIS","ESRI","USD","N/A","ArcGIS GIS Server Standard Additional Cores actualización","Licencia ","Und","Actualización","N/A","N/A","N/A","C161389","Credito a 30 días ",4075.3250000000003,1,0,"USD"]
["ESRISoftware ArgGISC161392","C161392Software ArgGIS",null,"ESRI","C161392","Software ArgGIS","ESRI","USD","N/A","ArcGIS GeoAnalytics Server Additional Core (up to 32 per server) actualización","Licencia ","Und","Actualización","N/A","N/A","N/A","C161392","Credito a 30 días ",4075.3250000000003,1,0,"USD"]
["ESRISoftware ArgGISC161393","C161393Software ArgGIS",null,"ESRI","C161393","Software ArgGIS","ESRI","USD","N/A","ArcGIS Image Server Additional Core (up to 32 per server) actualización","Licencia ","Und","Actualización","N/A","N/A","N/A","C161393","Credito a 30 días ",4075.3250000000003,1,0,"USD"]
["ESRISoftware ArgGISC161397","C161397Software ArgGIS",null,"ESRI","C161397","Software ArgGIS","ESRI","USD","N/A","ArcGIS for Maritime for ArcGIS GIS Server Advanced (Windows) Additional Core actualización","Licencia ","Und","Actualización","N/A","N/A","N/A","C161397","Credito a 30 días ",2037.6749999999997,1,0,"USD"]
["ESRISoftware ArgGISC161398","C161398Software ArgGIS",null,"ESRI","C161398","Software ArgGIS","ESRI","USD","N/A","ArcGIS for Maritime for ArcGIS GIS Server Standard (Windows) Additional Core actualización","Licencia ","Und","Actualización","N/A","N/A","N/A","C161398","Credito a 30 días ",2037.6749999999997,1,0,"USD"]
["ESRISoftware ArgGISC161399","C161399Software ArgGIS",null,"ESRI","C161399","Software ArgGIS","ESRI","USD","N/A","ArcGIS GIS Server Basic Additional Cores actualización","Licencia ","Und","Actualización","N/A","N/A","N/A","C161399","Credito a 30 días ",2445.2000000000003,1,0,"USD"]
["ESRISoftware ArgGISC161400","C161400Software ArgGIS",null,"ESRI","C161400","Software ArgGIS","ESRI","USD","N/A","ArcGIS Data Reviewer for ArcGIS GIS Server Standard or Advanced (Windows Only) Additional Core Actualización ","Licencia ","Und","Actualización","N/A","N/A","N/A","C161400","Credito a 30 días ",2037.6749999999997,1,0,"USD"]
["ESRISoftware ArgGISC161402","C161402Software ArgGIS",null,"ESRI","C161402","Software ArgGIS","ESRI","USD","N/A","Esri Defense Mapping for ArcGIS GIS Server Advanced (Windows) Additional Core actualización","Licencia ","Und","Actualización","N/A","N/A","N/A","C161402","Credito a 30 días ",2037.6749999999997,1,0,"USD"]
["ESRISoftware ArgGISC161403","C161403Software ArgGIS",null,"ESRI","C161403","Software ArgGIS","ESRI","USD","N/A","Esri Production Mapping for ArcGIS GIS Server Advanced (Windows) Additional Core actualización","Licencia ","Und","Actualización","N/A","N/A","N/A","C161403","Credito a 30 días ",2037.6749999999997,1,0,"USD"]
[{"$f":"D194&F194&E194","v":"ESRISoftware ArgGISC161404"},{"$f":"E194&F194","v":"C161404Software ArgGIS"},null,"ESRI","C161404","Software ArgGIS","ESRI","USD","N/A","Esri Production Mapping for ArcGIS GIS Server Standard (Windows) Additional Core actualización","Licencia ","Und","Actualización","N/A","N/A","N/A",{"$f":"+E194","v":"C161404"},"Credito a 30 días ",2037.6749999999997,1,0,"USD"]
["ESRISoftware ArgGISC161405","C161405Software ArgGIS",null,"ESRI","C161405","Software ArgGIS","ESRI","USD","N/A","ArcGIS Data Interoperability for ArcGIS GIS Server Advanced Additional Core actualización","Licencia ","Und","Actualización","N/A","N/A","N/A","C161405","Credito a 30 días ",2037.6749999999997,1,0,"USD"]
["ESRISoftware ArgGISC161406","C161406Software ArgGIS",null,"ESRI","C161406","Software ArgGIS","ESRI","USD","N/A","ArcGIS Data Interoperability for ArcGIS GIS Server Standard Additional Core actualización","Licencia ","Und","Actualización","N/A","N/A","N/A","C161406","Credito a 30 días ",2037.6749999999997,1,0,"USD"]
["ESRISoftware ArgGISC161407","C161407Software ArgGIS",null,"ESRI","C161407","Software ArgGIS","ESRI","USD","N/A","ArcGIS Network Analyst for ArcGIS GIS Server Standard Additional Core actualización","Licencia ","Und","Actualización","N/A","N/A","N/A","C161407","Credito a 30 días ",2037.6749999999997,1,0,"USD"]
["ESRISoftware ArgGISC161409","C161409Software ArgGIS",null,"ESRI","C161409","Software ArgGIS","ESRI","USD","N/A","ArcGIS Workflow Manager (Classic) for ArcGIS GIS Server Standard or Advanced (Windows Only) Additional Core Actualización","Licencia ","Und","Actualización","N/A","N/A","N/A","C161409","Credito a 30 días ",2037.6749999999997,1,0,"USD"]
["ESRISoftware ArgGISC161414","C161414Software ArgGIS",null,"ESRI","C161414","Software ArgGIS","ESRI","USD","N/A","ArcGIS Roads and Highways for ArcGIS GIS Server Standard or Advanced (Windows Only) Additional Core Actualización","Licencia ","Und","Actualización","N/A","N/A","N/A","C161414","Credito a 30 días ",2037.6749999999997,1,0,"USD"]
["ESRISoftware ArgGISC161419","C161419Software ArgGIS",null,"ESRI","C161419","Software ArgGIS","ESRI","USD","N/A","ArcGIS GeoAnalytics Server Additional Core (more than 32 per Server) actualización","Licencia ","Und","Actualización","N/A","N/A","N/A","C161419","Credito a 30 días ",2037.6749999999997,1,0,"USD"]
["ESRISoftware ArgGISC161420","C161420Software ArgGIS",null,"ESRI","C161420","Software ArgGIS","ESRI","USD","N/A","ArcGIS GeoEvent Server Additional Core (more than 32 per Server) actualización","Licencia ","Und","Actualización","N/A","N/A","N/A","C161420","Credito a 30 días ",2037.6749999999997,1,0,"USD"]
["ESRISoftware ArgGISC161421","C161421Software ArgGIS",null,"ESRI","C161421","Software ArgGIS","ESRI","USD","N/A","ArcGIS Image Server Additional Core (more than 32 per Server) actualización","Licencia ","Und","Actualización","N/A","N/A","N/A","C161421","Credito a 30 días ",2037.6749999999997,1,0,"USD"]
["ESRISoftware ArgGISC161422","C161422Software ArgGIS",null,"ESRI","C161422","Software ArgGIS","ESRI","USD","N/A","ArcGIS GIS Server Workgroup Advanced Additional Core actualización","Licencia ","Und","Actualización","N/A","N/A","N/A","C161422","Credito a 30 días ",4075.3250000000003,1,0,"USD"]
["ESRISoftware ArgGISC161423","C161423Software ArgGIS",null,"ESRI","C161423","Software ArgGIS","ESRI","USD","N/A","ArcGIS GIS Server Workgroup Standard Additional Core actualización","Licencia ","Und","Actualización","N/A","N/A","N/A","C161423","Credito a 30 días ",2037.6749999999997,1,0,"USD"]
["ESRISoftware ArgGISC161429","C161429Software ArgGIS",null,"ESRI","C161429","Software ArgGIS","ESRI","USD","N/A","ArcGIS Enterprise Advanced Up to Four Cores Staging Server actualización","Licencia ","Und","Actualización","N/A","N/A","N/A","C161429","Credito a 30 días ",16301.25,1,0,"USD"]
["ESRISoftware ArgGISC161430","C161430Software ArgGIS",null,"ESRI","C161430","Software ArgGIS","ESRI","USD","N/A","ArcGIS Enterprise Standard Up to Four Cores Staging Server actualización","Licencia ","Und","Actualización","N/A","N/A","N/A","C161430","Credito a 30 días ",8150.625,1,0,"USD"]
["ESRISoftware ArgGISC161433","C161433Software ArgGIS",null,"ESRI","C161433","Software ArgGIS","ESRI","USD","N/A","ArcGIS GeoAnalytics Server Up to Four Cores Staging Server actualización","Licencia ","Und","Actualización","N/A","N/A","N/A","C161433","Credito a 30 días ",8150.625,1,0,"USD"]
["ESRISoftware ArgGISC161434","C161434Software ArgGIS",null,"ESRI","C161434","Software ArgGIS","ESRI","USD","N/A","ArcGIS GeoEvent Server Up to Four Cores Staging Server actualización","Licencia ","Und","Actualización","N/A","N/A","N/A","C161434","Credito a 30 días ",8150.625,1,0,"USD"]
["ESRISoftware ArgGISC161435","C161435Software ArgGIS",null,"ESRI","C161435","Software ArgGIS","ESRI","USD","N/A","ArcGIS Image Server Up to Four Cores Staging Server actualización","Licencia ","Und","Actualización","N/A","N/A","N/A","C161435","Credito a 30 días ",8150.625,1,0,"USD"]
["ESRISoftware ArgGISC161449","C161449Software ArgGIS",null,"ESRI","C161449","Software ArgGIS","ESRI","USD","N/A","ArcGIS Workflow Manager (Classic) for ArcGIS GIS Server Standard or Advanced (Windows Only) Up to Four Cores Staging Server Actualización","Licencia ","Und","Actualización","N/A","N/A","N/A","C161449","Credito a 30 días ",4075.3250000000003,1,0,"USD"]
["ESRISoftware ArgGISC161454","C161454Software ArgGIS",null,"ESRI","C161454","Software ArgGIS","ESRI","USD","N/A","ArcGIS GeoEvent Server Additional Core (up to 32 per server) Staging Server actualización","Licencia ","Und","Actualización","N/A","N/A","N/A","C161454","Credito a 30 días ",2037.5,1,0,"USD"]
["ESRISoftware ArgGISC162037","C162037Software ArgGIS",null,"ESRI","C162037","Software ArgGIS","ESRI","USD","N/A","ArcGIS Monitor for ArcGIS Server Up to Four Cores actualización","Licencia ","Und","Actualización","N/A","N/A","N/A","C162037","Credito a 30 días ",8150.625,1,0,"USD"]
["ESRISoftware ArgGISC162039","C162039Software ArgGIS",null,"ESRI","C162039","Software ArgGIS","ESRI","USD","N/A","ArcGIS Monitor for ArcGIS Server Additional Core actualización","Licencia ","Und","Actualización","N/A","N/A","N/A","C162039","Credito a 30 días ",407.52499999999998,1,0,"USD"]
["ESRISoftware ArgGISC162073","C162073Software ArgGIS",null,"ESRI","C162073","Software ArgGIS","ESRI","USD","N/A","ArcGIS Monitor for ArcGIS Server Up to Four Cores Staging Server actualización","Licencia ","Und","Actualización","N/A","N/A","N/A","C162073","Credito a 30 días ",4075,1,0,"USD"]
["ESRISoftware ArgGISC162075","C162075Software ArgGIS",null,"ESRI","C162075","Software ArgGIS","ESRI","USD","N/A","ArcGIS Monitor for ArcGIS Server Additional Core Staging Server actualización","Licencia ","Und","Actualización","N/A","N/A","N/A","C162075","Credito a 30 días ",205.39999999999998,1,0,"USD"]
["ESRISoftware ArgGISC162282","C162282Software ArgGIS",null,"ESRI","C162282","Software ArgGIS","ESRI","USD","N/A","ArcGIS Image Analyst for ArcGIS Pro Single Use Primary actualización","Licencia ","Und","Actualización","N/A","N/A","N/A","C162282","Credito a 30 días ",1630.125,1,0,"USD"]
["ESRISoftware ArgGISC162283","C162283Software ArgGIS",null,"ESRI","C162283","Software ArgGIS","ESRI","USD","N/A","ArcGIS Image Analyst for ArcGIS Pro Single Use Secondary actualización","Licencia ","Und","Actualización","N/A","N/A","N/A","C162283","Credito a 30 días ",652.04999999999995,1,0,"USD"]
["ESRISoftware ArgGISC162284","C162284Software ArgGIS",null,"ESRI","C162284","Software ArgGIS","ESRI","USD","N/A","ArcGIS Image Analyst for ArcGIS Pro Concurrent Use Primary actualización","Licencia ","Und","Actualización","N/A","N/A","N/A","C162284","Credito a 30 días ",1630.125,1,0,"USD"]
["ESRISoftware ArgGISC162285","C162285Software ArgGIS",null,"ESRI","C162285","Software ArgGIS","ESRI","USD","N/A","ArcGIS Image Analyst for ArcGIS Pro Concurrent Use Secondary actualización","Licencia ","Und","Actualización","N/A","N/A","N/A","C162285","Credito a 30 días ",652.04999999999995,1,0,"USD"]
["ESRISoftware ArgGISC162295","C162295Software ArgGIS",null,"ESRI","C162295","Software ArgGIS","ESRI","USD","N/A","ArcGIS Utility Network Management for ArcGIS GIS Server Advanced Up to Four Cores actualización","Licencia ","Und","Actualización","N/A","N/A","N/A","C162295","Credito a 30 días ",8150.625,1,0,"USD"]
["ESRISoftware ArgGISC165324","C165324Software ArgGIS",null,"ESRI","C165324","Software ArgGIS","ESRI","USD","N/A","ArcGIS LocateXT for Desktop Single Use Primary actualización","Licencia ","Und","Actualización","N/A","N/A","N/A","C165324","Credito a 30 días ",1956.15,1,0,"USD"]
["ESRISoftware ArgGISC165325","C165325Software ArgGIS",null,"ESRI","C165325","Software ArgGIS","ESRI","USD","N/A","ArcGIS LocateXT for Desktop Concurrent Use Primary actualización","Licencia ","Und","Actualización","N/A","N/A","N/A","C165325","Credito a 30 días ",1956.15,1,0,"USD"]
["ESRISoftware ArgGISC165326","C165326Software ArgGIS",null,"ESRI","C165326","Software ArgGIS","ESRI","USD","N/A","ArcGIS LocateXT for Desktop Single Use Secondary actualización","Licencia ","Und","Actualización","N/A","N/A","N/A","C165326","Credito a 30 días ",815.07499999999993,1,0,"USD"]
["ESRISoftware ArgGISC165327","C165327Software ArgGIS",null,"ESRI","C165327","Software ArgGIS","ESRI","USD","N/A","ArcGIS LocateXT for Desktop Concurrent Use Secondary actualización","Licencia ","Und","Actualización","N/A","N/A","N/A","C165327","Credito a 30 días ",815.07499999999993,1,0,"USD"]
["ESRISoftware ArgGISC165531","C165531Software ArgGIS",null,"ESRI","C165531","Software ArgGIS","ESRI","USD","N/A","ArcGIS Online Editor Term License","Licencias/mes ","Und","Licencias","N/A","N/A","N/A","C165531","Credito a 30 días ",21.734999999999999,1,0,"USD"]
["ESRISoftware ArgGISC165533","C165533Software ArgGIS",null,"ESRI","C165533","Software ArgGIS","ESRI","USD","N/A","ArcGIS Online Field Worker Term License","Licencias/mes ","Und","Licencias","N/A","N/A","N/A","C165533","Credito a 30 días ",38.036666666666669,1,0,"USD"]
["ESRISoftware ArgGISC165535","C165535Software ArgGIS",null,"ESRI","C165535","Software ArgGIS","ESRI","USD","N/A","ArcGIS Online GIS Professional Basic Term License","Licencia/año ","Und","Licencias","N/A","N/A","N/A","C165535","Credito a 30 días ",912.87,1,0,"USD"]
["ESRISoftware ArgGISC165536","C165536Software ArgGIS",null,"ESRI","C165536","Software ArgGIS","ESRI","USD","N/A","ArcGIS Online GIS Professional Standard Term License","Licencia/año ","Und","Licencias","N/A","N/A","N/A","C165536","Credito a 30 días ",3586.28,1,0,"USD"]
["ESRISoftware ArgGISC165537","C165537Software ArgGIS",null,"ESRI","C165537","Software ArgGIS","ESRI","USD","N/A","ArcGIS Online GIS Professional Advanced Term License","Licencia/año ","Und","Licencias","N/A","N/A","N/A","C165537","Credito a 30 días ",4955.58,1,0,"USD"]
["ESRISoftware ArgGISC165542","C165542Software ArgGIS",null,"ESRI","C165542","Software ArgGIS","ESRI","USD","N/A","ArcGIS Online Essential Apps Bundle Term License","Licencia/mes","Und","Licencias","N/A","N/A","N/A","C165542","Credito a 30 días ",5.4341666666666661,1,0,"USD"]
["ESRISoftware ArgGISC165543","C165543Software ArgGIS",null,"ESRI","C165543","Software ArgGIS","ESRI","USD","N/A","ArcGIS Online Field Apps Bundle Term License (Workforce, Survey123, Collector for ArcGIS & ArcGIS QuickCapture)","Licencia/mes","Und","Licencias","N/A","N/A","N/A","C165543","Credito a 30 días ",16.301666666666666,1,0,"USD"]
["ESRISoftware ArgGISC165544","C165544Software ArgGIS",null,"ESRI","C165544","Software ArgGIS","ESRI","USD","N/A","ArcGIS Online Office Apps Bundle Term License","Licencia/mes","Und","Licencias","N/A","N/A","N/A","C165544","Credito a 30 días ",10.8675,1,0,"USD"]
["ESRISoftware ArgGISC165545","C165545Software ArgGIS",null,"ESRI","C165545","Software ArgGIS","ESRI","USD","N/A","Workforce for ArcGIS Online Term License","Licencia/mes","Und","Licencias","N/A","N/A","N/A","C165545","Credito a 30 días ",6.520833333333333,1,0,"USD"]
["ESRISoftware ArgGISC165546","C165546Software ArgGIS",null,"ESRI","C165546","Software ArgGIS","ESRI","USD","N/A","Survey123 for ArcGIS Online Term License","Licencia/mes","Und","Licencias","N/A","N/A","N/A","C165546","Credito a 30 días ",6.520833333333333,1,0,"USD"]
["ESRISoftware ArgGISC165547","C165547Software ArgGIS",null,"ESRI","C165547","Software ArgGIS","ESRI","USD","N/A","Collector for ArcGIS Online Term License","Licencia/mes","Und","Licencias","N/A","N/A","N/A","C165547","Credito a 30 días ",6.520833333333333,1,0,"USD"]
["ESRISoftware ArgGISC165554","C165554Software ArgGIS",null,"ESRI","C165554","Software ArgGIS","ESRI","USD","N/A","ArcGIS 3D Analyst for ArcGIS Pro Online Term License","Licencia/mes","Und","Licencias","N/A","N/A","N/A","C165554","Credito a 30 días ",65.204999999999998,1,0,"USD"]
["ESRISoftware ArgGISC165556","C165556Software ArgGIS",null,"ESRI","C165556","Software ArgGIS","ESRI","USD","N/A","ArcGIS Data Reviewer for ArcGIS Pro Online Term License ","Licencia/mes","Und","Licencias","N/A","N/A","N/A","C165556","Credito a 30 días ",65.204999999999998,1,0,"USD"]
["ESRISoftware ArgGISC165557","C165557Software ArgGIS",null,"ESRI","C165557","Software ArgGIS","ESRI","USD","N/A","ArcGIS Geostatistical Analyst for ArcGIS Pro Online Term License $/year","Licencia/mes","Und","Licencias","N/A","N/A","N/A","C165557","Credito a 30 días ",65.204999999999998,1,0,"USD"]
["ESRISoftware ArgGISC165558","C165558Software ArgGIS",null,"ESRI","C165558","Software ArgGIS","ESRI","USD","N/A","ArcGIS Network Analyst for ArcGIS Pro Online Term License","Licencia/mes","Und","Licencias","N/A","N/A","N/A","C165558","Credito a 30 días ",65.204999999999998,1,0,"USD"]
["ESRISoftware ArgGISC165559","C165559Software ArgGIS",null,"ESRI","C165559","Software ArgGIS","ESRI","USD","N/A","ArcGIS Publisher for ArcGIS Pro Online Term License","Licencia/mes","Und","Licencias","N/A","N/A","N/A","C165559","Credito a 30 días ",65.204999999999998,1,0,"USD"]
["ESRISoftware ArgGISC165560","C165560Software ArgGIS",null,"ESRI","C165560","Software ArgGIS","ESRI","USD","N/A","ArcGIS Spatial Analyst for ArcGIS Pro Online Term License","Licencia/mes","Und","Licencias","N/A","N/A","N/A","C165560","Credito a 30 días ",65.204999999999998,1,0,"USD"]
["ESRISoftware ArgGISC165561","C165561Software ArgGIS",null,"ESRI","C165561","Software ArgGIS","ESRI","USD","N/A","ArcGIS Workflow Manager for ArcGIS Pro Standard or Advanced Online Term License","Licencia/mes","Und","Licencias","N/A","N/A","N/A","C165561","Credito a 30 días ",65.204999999999998,1,0,"USD"]
["ESRISoftware ArgGISC165562","C165562Software ArgGIS",null,"ESRI","C165562","Software ArgGIS","ESRI","USD","N/A","ArcGIS Pro Online Extensions Bundle Term License ","Licencia/mes","Und","Licencias","N/A","N/A","N/A","C165562","Credito a 30 días ",195.61500000000001,1,0,"USD"]
["ESRISoftware ArgGISC166996","C166996Software ArgGIS",null,"ESRI","C166996","Software ArgGIS","ESRI","USD","N/A","ArcGIS LocateXT for ArcGIS Pro Online Term License","Licencia/mes","Und","Licencias","N/A","N/A","N/A","C166996","Credito a 30 días ",65.204999999999998,1,0,"USD"]
["ESRISoftware ArgGISC167257","C167257Software ArgGIS",null,"ESRI","C167257","Software ArgGIS","ESRI","USD","N/A","ArcGIS Enterprise Editor actualización","Licencia ","Und","Actualización","N/A","N/A","N/A","C167257","Credito a 30 días ",652.04999999999995,1,0,"USD"]
["ESRISoftware ArgGISC167258","C167258Software ArgGIS",null,"ESRI","C167258","Software ArgGIS","ESRI","USD","N/A","ArcGIS Enterprise Field Worker actualización","Licencia ","Und","Actualización","N/A","N/A","N/A","C167258","Credito a 30 días ",1141.1000000000001,1,0,"USD"]
["ESRISoftware ArgGISC167269","C167269Software ArgGIS",null,"ESRI","C167269","Software ArgGIS","ESRI","USD","N/A","Workforce for ArcGIS Enterprise actualización","Licencia ","Und","Actualización","N/A","N/A","N/A","C167269","Credito a 30 días ",195.625,1,0,"USD"]
["ESRISoftware ArgGISC167270","C167270Software ArgGIS",null,"ESRI","C167270","Software ArgGIS","ESRI","USD","N/A","Survey123 for ArcGIS Enterprise actualización","Licencia ","Und","Actualización","N/A","N/A","N/A","C167270","Credito a 30 días ",195.625,1,0,"USD"]
["ESRISoftware ArgGISC167400","C167400Software ArgGIS",null,"ESRI","C167400","Software ArgGIS","ESRI","USD","N/A","ArcGIS LocateXT for ArcGIS GIS Server Advanced Up to Four Cores actualización","Licencia ","Und","Actualización","N/A","N/A","N/A","C167400","Credito a 30 días ",8150.625,1,0,"USD"]
["ESRISoftware ArgGISC167441","C167441Software ArgGIS",null,"ESRI","C167441","Software ArgGIS","ESRI","USD","N/A","ArcGIS LocateXT for ArcGIS GIS Server Standard Up to Four Cores actualización","Licencia ","Und","Actualización","N/A","N/A","N/A","C167441","Credito a 30 días ",8150.625,1,0,"USD"]
["ESRISoftware ArgGISC167442","C167442Software ArgGIS",null,"ESRI","C167442","Software ArgGIS","ESRI","USD","N/A","ArcGIS LocateXT for ArcGIS GIS Server Workgroup Advanced Maximum Four Cores actualización","Licencia ","Und","Actualización","N/A","N/A","N/A","C167442","Credito a 30 días ",4075.3250000000003,1,0,"USD"]
["ESRISoftware ArgGISC167443","C167443Software ArgGIS",null,"ESRI","C167443","Software ArgGIS","ESRI","USD","N/A","ArcGIS LocateXT for ArcGIS GIS Server Workgroup Standard Maximum Four Cores actualización","Licencia ","Und","Actualización","N/A","N/A","N/A","C167443","Credito a 30 días ",4075.3250000000003,1,0,"USD"]
["ESRISoftware ArgGISC167920","C167920Software ArgGIS",null,"ESRI","C167920","Software ArgGIS","ESRI","USD","N/A","ArcGIS Online Insights Analyst User Type Term License","Licencia/mes","Und","Licencias","N/A","N/A","N/A","C167920","Credito a 30 días ",54.337499999999999,1,0,"USD"]
["ESRISoftware ArgGISC167922","C167922Software ArgGIS",null,"ESRI","C167922","Software ArgGIS","ESRI","USD","N/A","Tracker for ArcGIS Online Term License","Licencia/mes","Und","Licencias","N/A","N/A","N/A","C167922","Credito a 30 días ",6.520833333333333,1,0,"USD"]
["ESRISoftware ArgGISC167926","C167926Software ArgGIS",null,"ESRI","C167926","Software ArgGIS","ESRI","USD","N/A","Esri CityEngine for ArcGIS Online Term License","Licencia/mes","Und","Licencias","N/A","N/A","N/A","C167926","Credito a 30 días ",217.35,1,0,"USD"]
["ESRISoftware ArgGISC168038","C168038Software ArgGIS",null,"ESRI","C168038","Software ArgGIS","ESRI","USD","N/A","ArcGIS Monitor for ArcGIS Server Workgroup Up to Four Cores actualización","Licencia ","Und","Actualización","N/A","N/A","N/A","C168038","Credito a 30 días ",4075,1,0,"USD"]
["ESRISoftware ArgGISC168040","C168040Software ArgGIS",null,"ESRI","C168040","Software ArgGIS","ESRI","USD","N/A","ArcGIS Monitor for ArcGIS Server Workgroup Additional Core actualización","Licencia ","Und","Actualización","N/A","N/A","N/A","C168040","Credito a 30 días ",205.39999999999998,1,0,"USD"]
[{"$f":"D258&F258&E258","v":"ESRISoftware ArgGISC168115"},{"$f":"E258&F258","v":"C168115Software ArgGIS"},null,"ESRI","C168115","Software ArgGIS","ESRI","USD","N/A","ArcGIS Notebook Server Advanced Up to Four Cores actualización","Licencia ","Und","Actualización","N/A","N/A","N/A",{"$f":"+E258","v":"C168115"},"Credito a 30 días ",16301.25,1,0,"USD"]
["ESRISoftware ArgGISC168630","C168630Software ArgGIS",null,"ESRI","C168630","Software ArgGIS","ESRI","USD","N/A","ArcGIS Desktop All Extensions Single Use Primary actualización","Licencia ","Und","Actualización","N/A","N/A","N/A","C168630","Credito a 30 días ",4890.375,1,0,"USD"]
["ESRISoftware ArgGISC168631","C168631Software ArgGIS",null,"ESRI","C168631","Software ArgGIS","ESRI","USD","N/A","ArcGIS Desktop All Extensions Single Use Secondary actualización","Licencia ","Und","Actualización","N/A","N/A","N/A","C168631","Credito a 30 días ",1956.15,1,0,"USD"]
["ESRISoftware ArgGISC169017","C169017Software ArgGIS",null,"ESRI","C169017","Software ArgGIS","ESRI","USD","N/A","ArcGIS Online Storyteller Term License","Licencia/mes","Und","Licencias","N/A","N/A","N/A","C169017","Credito a 30 días ",10.86,1,0,"USD"]
["ESRISoftware ArgGISC169043","C169043Software ArgGIS",null,"ESRI","C169043","Software ArgGIS","ESRI","USD","N/A","ArcGIS QuickCapture for ArcGIS Online Term License","Licencia/mes","Und","Licencias","N/A","N/A","N/A","C169043","Credito a 30 días ",6.520833333333333,1,0,"USD"]
["ESRISoftware ArgGISC169044","C169044Software ArgGIS",null,"ESRI","C169044","Software ArgGIS","ESRI","USD","N/A","ArcGIS Urban Suite Term License (ArcGIS Urban & CityEngine) ","Licencia/mes","Und","Licencias","N/A","N/A","N/A","C169044","Credito a 30 días ",326.02500000000003,1,0,"USD"]
["ESRISoftware ArgGIS100475-LU","100475-LUSoftware ArgGIS",null,"ESRI","100475-LU","Software ArgGIS","ESRI","USD","N/A","ArcGIS Schematics for Desktop Single Licen","Licencia ","Und","Licencias","N/A","N/A","N/A","100475-LU","Credito a 30 días ",3430.35,1,0,"USD"]
["ESRISoftware ArgGIS100477-LU","100477-LUSoftware ArgGIS",null,"ESRI","100477-LU","Software ArgGIS","ESRI","USD","N/A","ArcGIS Schematics for Desktop Concurrent Licen","Licencia ","Und","Licencias","N/A","N/A","N/A","100477-LU","Credito a 30 días ",3430.35,1,0,"USD"]
["ESRISoftware ArgGIS101322-LU","101322-LUSoftware ArgGIS",null,"ESRI","101322-LU","Software ArgGIS","ESRI","USD","N/A","ArcGIS Network Analyst for Engine Single Licen","Licencia ","Und","Licencias","N/A","N/A","N/A","101322-LU","Credito a 30 días ",1372.14,1,0,"USD"]
["ESRISoftware ArgGIS102583-LU","102583-LUSoftware ArgGIS",null,"ESRI","102583-LU","Software ArgGIS","ESRI","USD","N/A","ArcGIS for Desktop Standard Concurrent Upgrade from ArcGIS for Desktop Basic Single","Licencia ","Und","Licencias","N/A","N/A","N/A","102583-LU","Credito a 30 días ",7546.77,1,0,"USD"]
["ESRISoftware ArgGIS106238-LU","106238-LUSoftware ArgGIS",null,"ESRI","106238-LU","Software ArgGIS","ESRI","USD","N/A","ArcGIS Tracking Analyst for Engine Single Licen","Licencia ","Und","Licencias","N/A","N/A","N/A","106238-LU","Credito a 30 días ",1372.14,1,0,"USD"]
["ESRISoftware ArgGIS106304-LU","106304-LUSoftware ArgGIS",null,"ESRI","106304-LU","Software ArgGIS","ESRI","USD","N/A","ArcGIS Data Interoperability for Engine Single Licen","Licencia ","Und","Licencias","N/A","N/A","N/A","106304-LU","Credito a 30 días ",1372.14,1,0,"USD"]
["ESRISoftware ArgGIS106307-LU","106307-LUSoftware ArgGIS",null,"ESRI","106307-LU","Software ArgGIS","ESRI","USD","N/A","ArcGIS Schematics for Engine Single Licen","Licencia ","Und","Licencias","N/A","N/A","N/A","106307-LU","Credito a 30 días ",1372.14,1,0,"USD"]
["ESRISoftware ArgGIS111290-LU","111290-LUSoftware ArgGIS",null,"ESRI","111290-LU","Software ArgGIS","ESRI","USD","N/A","ArcGIS Workflow Manager (Classic) for Desktop Concurrent Use Perpetual License","Licencia ","Und","Licencias","N/A","N/A","N/A","111290-LU","Credito a 30 días ",3430.35,1,0,"USD"]
["ESRISoftware ArgGIS111560-LU","111560-LUSoftware ArgGIS",null,"ESRI","111560-LU","Software ArgGIS","ESRI","USD","N/A","ArcGIS Workflow Manager (Classic) for Desktop Single Use Perpetual License","Licencia ","Und","Licencias","N/A","N/A","N/A","111560-LU","Credito a 30 días ",3430.35,1,0,"USD"]
["ESRISoftware ArgGIS114684-LU","114684-LUSoftware ArgGIS",null,"ESRI","114684-LU","Software ArgGIS","ESRI","USD","N/A","StreetMap Premium for ArcGIS for Server Enterprise Europe HERE Up to Four Cores Term License","Licencia/año ","Und","Licencias","N/A","N/A","N/A","114684-LU","Credito a 30 días ",217898.1,1,0,"USD"]
["ESRISoftware ArgGIS114687-LU","114687-LUSoftware ArgGIS",null,"ESRI","114687-LU","Software ArgGIS","ESRI","USD","N/A","StreetMap Premium for ArcGIS for Server Enterprise Europe HERE Two Additional Cores Term License","Licencia/año ","Und","Licencias","N/A","N/A","N/A","114687-LU","Credito a 30 días ",87159.24,1,0,"USD"]
["ESRISoftware ArgGIS121831-LU","121831-LUSoftware ArgGIS",null,"ESRI","121831-LU","Software ArgGIS","ESRI","USD","N/A","Esri Production Mapping for Desktop Concurrent Use License","Licencia ","Und","Licencias","N/A","N/A","N/A","121831-LU","Credito a 30 días ",13721.4,1,0,"USD"]
["ESRISoftware ArgGIS121832-LU","121832-LUSoftware ArgGIS",null,"ESRI","121832-LU","Software ArgGIS","ESRI","USD","N/A","Esri Production Mapping for Desktop Single Use License","Licencia ","Und","Licencias","N/A","N/A","N/A","121832-LU","Credito a 30 días ",13721.4,1,0,"USD"]
["ESRISoftware ArgGIS121833-LU","121833-LUSoftware ArgGIS",null,"ESRI","121833-LU","Software ArgGIS","ESRI","USD","N/A","ArcGIS for Aviation: Charting for Desktop Concurrent Use License","Licencia ","Und","Licencias","N/A","N/A","N/A","121833-LU","Credito a 30 días ",13721.4,1,0,"USD"]
["ESRISoftware ArgGIS121834-LU","121834-LUSoftware ArgGIS",null,"ESRI","121834-LU","Software ArgGIS","ESRI","USD","N/A","ArcGIS for Aviation: Charting for Desktop Single Use License","Licencia ","Und","Licencias","N/A","N/A","N/A","121834-LU","Credito a 30 días ",13721.4,1,0,"USD"]
["ESRISoftware ArgGIS121835-LU","121835-LUSoftware ArgGIS",null,"ESRI","121835-LU","Software ArgGIS","ESRI","USD","N/A","Esri Defense Mapping for Desktop Concurrent Use License","Licencia ","Und","Licencias","N/A","N/A","N/A","121835-LU","Credito a 30 días ",13721.4,1,0,"USD"]
["ESRISoftware ArgGIS121836-LU","121836-LUSoftware ArgGIS",null,"ESRI","121836-LU","Software ArgGIS","ESRI","USD","N/A","Esri Defense Mapping for Desktop Single Use License","Licencia ","Und","Licencias","N/A","N/A","N/A","121836-LU","Credito a 30 días ",13721.4,1,0,"USD"]
["ESRISoftware ArgGIS121839-LU","121839-LUSoftware ArgGIS",null,"ESRI","121839-LU","Software ArgGIS","ESRI","USD","N/A","ArcGIS For Maritime: Charting for Desktop Concurrent Use License","Licencia ","Und","Licencias","N/A","N/A","N/A","121839-LU","Credito a 30 días ",13721.4,1,0,"USD"]
["ESRISoftware ArgGIS121840-LU","121840-LUSoftware ArgGIS",null,"ESRI","121840-LU","Software ArgGIS","ESRI","USD","N/A","ArcGIS For Maritime: Charting for Desktop Single Use License","Licencia ","Und","Licencias","N/A","N/A","N/A","121840-LU","Credito a 30 días ",13721.4,1,0,"USD"]
["ESRISoftware ArgGIS122086-LU","122086-LUSoftware ArgGIS",null,"ESRI","122086-LU","Software ArgGIS","ESRI","USD","N/A","ArcGIS for Desktop Advanced Single Licen","Licencia ","Und","Licencias","N/A","N/A","N/A","122086-LU","Credito a 30 días ",19209.96,1,0,"USD"]
["ESRISoftware ArgGIS122132-LU","122132-LUSoftware ArgGIS",null,"ESRI","122132-LU","Software ArgGIS","ESRI","USD","N/A","ArcGIS Engine Concurrent Use License","Licencia ","Und","Licencias","N/A","N/A","N/A","122132-LU","Credito a 30 días ",1715.18,1,0,"USD"]
["ESRISoftware ArgGIS122133-LU","122133-LUSoftware ArgGIS",null,"ESRI","122133-LU","Software ArgGIS","ESRI","USD","N/A","ArcGIS 3D Analyst for Engine Concurrent Licen","Licencia ","Und","Licencias","N/A","N/A","N/A","122133-LU","Credito a 30 días ",1372.14,1,0,"USD"]
["ESRISoftware ArgGIS122134-LU","122134-LUSoftware ArgGIS",null,"ESRI","122134-LU","Software ArgGIS","ESRI","USD","N/A","ArcGIS Spatial Analyst for Engine Concurrent Licen","Licencia ","Und","Licencias","N/A","N/A","N/A","122134-LU","Credito a 30 días ",1372.14,1,0,"USD"]
["ESRISoftware ArgGIS122135-LU","122135-LUSoftware ArgGIS",null,"ESRI","122135-LU","Software ArgGIS","ESRI","USD","N/A","ArcGIS Engine Geodatabase Update Concurrent Licen","Licencia ","Und","Licencias","N/A","N/A","N/A","122135-LU","Credito a 30 días ",1372.14,1,0,"USD"]
["ESRISoftware ArgGIS122136-LU","122136-LUSoftware ArgGIS",null,"ESRI","122136-LU","Software ArgGIS","ESRI","USD","N/A","ArcGIS Network Analyst for Engine Concurrent Licen","Licencia ","Und","Licencias","N/A","N/A","N/A","122136-LU","Credito a 30 días ",1372.14,1,0,"USD"]
["ESRISoftware ArgGIS122137-LU","122137-LUSoftware ArgGIS",null,"ESRI","122137-LU","Software ArgGIS","ESRI","USD","N/A","ArcGIS Tracking Analyst for Engine Concurrent Licen","Licencia ","Und","Licencias","N/A","N/A","N/A","122137-LU","Credito a 30 días ",1372.14,1,0,"USD"]
["ESRISoftware ArgGIS122139-LU","122139-LUSoftware ArgGIS",null,"ESRI","122139-LU","Software ArgGIS","ESRI","USD","N/A","ArcGIS Data Interoperability for Engine Concurrent Licen","Licencia ","Und","Licencias","N/A","N/A","N/A","122139-LU","Credito a 30 días ",1372.14,1,0,"USD"]
["ESRISoftware ArgGIS122140-LU","122140-LUSoftware ArgGIS",null,"ESRI","122140-LU","Software ArgGIS","ESRI","USD","N/A","ArcGIS Schematics for Engine Concurrent Licen","Licencia ","Und","Licencias","N/A","N/A","N/A","122140-LU","Credito a 30 días ",1372.14,1,0,"USD"]
["ESRISoftware ArgGIS122496-LU","122496-LUSoftware ArgGIS",null,"ESRI","122496-LU","Software ArgGIS","ESRI","USD","N/A","ArcGIS for Desktop Standard Single Upgrade from ArcGIS for Desktop Basic Single","Licencia ","Und","Licencias","N/A","N/A","N/A","122496-LU","Credito a 30 días ",7546.77,1,0,"USD"]
["ESRISoftware ArgGIS122497-LU","122497-LUSoftware ArgGIS",null,"ESRI","122497-LU","Software ArgGIS","ESRI","USD","N/A","ArcGIS Desktop Standard Single Use Upgrade from ArcGIS Desktop Basic Concurrent Use","Licencia ","Und","Licencias","N/A","N/A","N/A","122497-LU","Credito a 30 días ",5488.56,1,0,"USD"]
["ESRISoftware ArgGIS122603-LU","122603-LUSoftware ArgGIS",null,"ESRI","122603-LU","Software ArgGIS","ESRI","USD","N/A","ArcGIS Engine Developer Kit Addition Licen","Licencia/año ","Und","Licencias","N/A","N/A","N/A","122603-LU","Credito a 30 días ",4116.42,1,0,"USD"]
["ESRISoftware ArgGIS122774-LU","122774-LUSoftware ArgGIS",null,"ESRI","122774-LU","Software ArgGIS","ESRI","USD","N/A","ArcGIS for Desktop Advanced Single Upgrade from ArcGIS for Desktop Basic Single","Licencia ","Und","Licencias","N/A","N/A","N/A","122774-LU","Credito a 30 días ",17151.75,1,0,"USD"]
["ESRISoftware ArgGIS122775-LU","122775-LUSoftware ArgGIS",null,"ESRI","122775-LU","Software ArgGIS","ESRI","USD","N/A","ArcGIS for Desktop Advanced Single Upgrade from ArcGIS for Desktop Basic Concurrent","Licencia ","Und","Licencias","N/A","N/A","N/A","122775-LU","Credito a 30 días ",14407.47,1,0,"USD"]
["ESRISoftware ArgGIS122776-LU","122776-LUSoftware ArgGIS",null,"ESRI","122776-LU","Software ArgGIS","ESRI","USD","N/A","ArcGIS for Desktop Advanced Single Upgrade from ArcGIS for Desktop Standard Single or Concurrent","Licencia ","Und","Licencias","N/A","N/A","N/A","122776-LU","Credito a 30 días ",9604.98,1,0,"USD"]
["ESRISoftware ArgGIS123386-LU","123386-LUSoftware ArgGIS",null,"ESRI","123386-LU","Software ArgGIS","ESRI","USD","N/A","ArcGIS Engine Concurrent Use Upgrade from ArcGIS Engine Single","Licencia ","Und","Licencias","N/A","N/A","N/A","123386-LU","Credito a 30 días ",1029.1099999999999,1,0,"USD"]
["ESRISoftware ArgGIS127611-LU","127611-LUSoftware ArgGIS",null,"ESRI","127611-LU","Software ArgGIS","ESRI","USD","N/A","Esri CityEngine Single Use for Linux License","Licencia ","Und","Licencias","N/A","N/A","N/A","127611-LU","Credito a 30 días ",5488.56,1,0,"USD"]
["ESRISoftware ArgGIS127612-LU","127612-LUSoftware ArgGIS",null,"ESRI","127612-LU","Software ArgGIS","ESRI","USD","N/A","Esri CityEngine Advanced Concurrent for Linux Licen","Licencia ","Und","Licencias","N/A","N/A","N/A","127612-LU","Credito a 30 días ",5488.56,1,0,"USD"]
["ESRISoftware ArgGIS127615-LU","127615-LUSoftware ArgGIS",null,"ESRI","127615-LU","Software ArgGIS","ESRI","USD","N/A","Esri CityEngine Single Use for Macintosh License","Licencia ","Und","Licencias","N/A","N/A","N/A","127615-LU","Credito a 30 días ",5488.56,1,0,"USD"]
["ESRISoftware ArgGIS127616-LU","127616-LUSoftware ArgGIS",null,"ESRI","127616-LU","Software ArgGIS","ESRI","USD","N/A","Esri CityEngine Concurrent Use for Macintosh License","Licencia ","Und","Licencias","N/A","N/A","N/A","127616-LU","Credito a 30 días ",5488.56,1,0,"USD"]
["ESRISoftware ArgGIS127619-LU","127619-LUSoftware ArgGIS",null,"ESRI","127619-LU","Software ArgGIS","ESRI","USD","N/A","Esri CityEngine Advanced Concurrent Licen Upgrade from Basic Single Licen","Licencia ","Und","Licencias","N/A","N/A","N/A","127619-LU","Credito a 30 días ",4802.49,1,0,"USD"]
["ESRISoftware ArgGIS127658-LU","127658-LUSoftware ArgGIS",null,"ESRI","127658-LU","Software ArgGIS","ESRI","USD","N/A","Esri CityEngine Concurrent Use for Windows License","Licencia ","Und","Licencias","N/A","N/A","N/A","127658-LU","Credito a 30 días ",5488.56,1,0,"USD"]
["ESRISoftware ArgGIS127672-LU","127672-LUSoftware ArgGIS",null,"ESRI","127672-LU","Software ArgGIS","ESRI","USD","N/A","Esri CityEngine Single Use for Windows License","Licencia ","Und","Licencias","N/A","N/A","N/A","127672-LU","Credito a 30 días ",5488.56,1,0,"USD"]
["ESRISoftware ArgGIS128208-LU","128208-LUSoftware ArgGIS",null,"ESRI","128208-LU","Software ArgGIS","ESRI","USD","N/A","Esri Production Mapping for Desktop Single Use Term License","Licencia/año ","Und","Licencias","N/A","N/A","N/A","128208-LU","Credito a 30 días ",5488.56,1,0,"USD"]
["ESRISoftware ArgGIS128884-LU","128884-LUSoftware ArgGIS",null,"ESRI","128884-LU","Software ArgGIS","ESRI","USD","N/A","Esri Roads and Highways for Desktop Single Licen","Licencia ","Und","Licencias","N/A","N/A","N/A","128884-LU","Credito a 30 días ",13721.4,1,0,"USD"]
["ESRISoftware ArgGIS128890-LU","128890-LUSoftware ArgGIS",null,"ESRI","128890-LU","Software ArgGIS","ESRI","USD","N/A","Esri Roads and Highways for Desktop Concurrent Licen","Licencia ","Und","Licencias","N/A","N/A","N/A","128890-LU","Credito a 30 días ",13721.4,1,0,"USD"]
["ESRISoftware ArgGIS130214-LU","130214-LUSoftware ArgGIS",null,"ESRI","130214-LU","Software ArgGIS","ESRI","USD","N/A","ArcGIS for Maritime: Bathymetry for Desktop Concurrent Use License","Licencia ","Und","Licencias","N/A","N/A","N/A","130214-LU","Credito a 30 días ",6860.7,1,0,"USD"]
["ESRISoftware ArgGIS130215-LU","130215-LUSoftware ArgGIS",null,"ESRI","130215-LU","Software ArgGIS","ESRI","USD","N/A","ArcGIS for Maritime: Bathymetry for Desktop Single Use License","Licencia ","Und","Licencias","N/A","N/A","N/A","130215-LU","Credito a 30 días ",6860.7,1,0,"USD"]
["ESRISoftware ArgGIS130885-LU","130885-LUSoftware ArgGIS",null,"ESRI","130885-LU","Software ArgGIS","ESRI","USD","N/A","ArcGIS for Maritime: Bathymetry for Desktop Single Use Term License","Licencia ","Und","Licencias","N/A","N/A","N/A","130885-LU","Credito a 30 días ",4116.42,1,0,"USD"]
["ESRISoftware ArgGIS130940-LU","130940-LUSoftware ArgGIS",null,"ESRI","130940-LU","Software ArgGIS","ESRI","USD","N/A","ArcGIS for Maritime: Bathymetry for Desktop Bundle Single Use License","Licencia ","Und","Licencias","N/A","N/A","N/A","130940-LU","Credito a 30 días ",17151.75,1,0,"USD"]
["ESRISoftware ArgGIS130941-LU","130941-LUSoftware ArgGIS",null,"ESRI","130941-LU","Software ArgGIS","ESRI","USD","N/A","ArcGIS for Maritime: Bathymetry for Desktop Bundle Concurrent Use License","Licencia ","Und","Licencias","N/A","N/A","N/A","130941-LU","Credito a 30 días ",17151.75,1,0,"USD"]
["ESRISoftware ArgGIS132296-LU","132296-LUSoftware ArgGIS",null,"ESRI","132296-LU","Software ArgGIS","ESRI","USD","N/A","ArcGIS Full Motion Video License","Licencia ","Und","Licencias","N/A","N/A","N/A","132296-LU","Credito a 30 días ",28.27,1,0,"USD"]
["ESRISoftware ArgGIS133005-LU","133005-LUSoftware ArgGIS",null,"ESRI","133005-LU","Software ArgGIS","ESRI","USD","N/A","ArcGIS for Aviation: Airports Concurrent Licen","Licencia ","Und","Licencias","N/A","N/A","N/A","133005-LU","Credito a 30 días ",6860.7,1,0,"USD"]
["ESRISoftware ArgGIS133006-LU","133006-LUSoftware ArgGIS",null,"ESRI","133006-LU","Software ArgGIS","ESRI","USD","N/A","ArcGIS for Aviation: Airports Single Licen","Licencia ","Und","Licencias","N/A","N/A","N/A","133006-LU","Credito a 30 días ",6352.5,1,0,"USD"]
["ESRISoftware ArgGIS133016-LU","133016-LUSoftware ArgGIS",null,"ESRI","133016-LU","Software ArgGIS","ESRI","USD","N/A","ArcGIS for Aviation: Airports Bundle for Desktop Single Use License","Licencia ","Und","Licencias","N/A","N/A","N/A","133016-LU","Credito a 30 días ",14418,1,0,"USD"]
["ESRISoftware ArgGIS133017-LU","133017-LUSoftware ArgGIS",null,"ESRI","133017-LU","Software ArgGIS","ESRI","USD","N/A","ArcGIS for Aviation: Airports Bundle for Desktop Concurrent Use License","Licencia ","Und","Licencias","N/A","N/A","N/A","133017-LU","Credito a 30 días ",14418,1,0,"USD"]
["ESRISoftware ArgGIS133032-LU","133032-LUSoftware ArgGIS",null,"ESRI","133032-LU","Software ArgGIS","ESRI","USD","N/A","ArcGIS for Aviation: Airports for Desktop Single Use Term License","Licencia/año ","Und","Licencias","N/A","N/A","N/A","133032-LU","Credito a 30 días ",4116.42,1,0,"USD"]
["ESRISoftware ArgGIS133066-LU","133066-LUSoftware ArgGIS",null,"ESRI","133066-LU","Software ArgGIS","ESRI","USD","N/A","StreetMap Premium for ArcGIS Desktop Full Use North America HERE Single Use Term License","Licencia/año ","Und","Licencias","N/A","N/A","N/A","133066-LU","Credito a 30 días ",16465.68,1,0,"USD"]
["ESRISoftware ArgGIS133068-LU","133068-LUSoftware ArgGIS",null,"ESRI","133068-LU","Software ArgGIS","ESRI","USD","N/A","StreetMap Premium for ArcGIS for Server Enterprise N.A (USA, Canada, Mexico) HERE Up to 4 Cores Term","Licencia/año ","Und","Licencias","N/A","N/A","N/A","133068-LU","Credito a 30 días ",207522,1,0,"USD"]
[{"$f":"D322&F322&E322","v":"ESRISoftware ArgGIS133069-LU"},{"$f":"E322&F322","v":"133069-LUSoftware ArgGIS"},null,"ESRI","133069-LU","Software ArgGIS","ESRI","USD","N/A","StreetMap Premium for ArcGIS for Server Enterprise N.A (USA, Canada, Mexico) 2 Add. Cores Term Licen","Licencia/año ","Und","Licencias","N/A","N/A","N/A",{"$f":"+E322","v":"133069-LU"},"Credito a 30 días ",82328.399999999994,1,0,"USD"]
["ESRISoftware ArgGIS133072-LU","133072-LUSoftware ArgGIS",null,"ESRI","133072-LU","Software ArgGIS","ESRI","USD","N/A","StreetMap Premium for ArcGIS Desktop Full Use USA HERE Single Use Term License","Licencia/año ","Und","Licencias","N/A","N/A","N/A","133072-LU","Credito a 30 días ",8232.84,1,0,"USD"]
["ESRISoftware ArgGIS133073-LU","133073-LUSoftware ArgGIS",null,"ESRI","133073-LU","Software ArgGIS","ESRI","USD","N/A","StreetMap Premium for ArcGIS Desktop Full Use, USA HERE Concurrent Use Term License","Licencia/año ","Und","Licencias","N/A","N/A","N/A","133073-LU","Credito a 30 días ",20582.099999999999,1,0,"USD"]
["ESRISoftware ArgGIS133074-LU","133074-LUSoftware ArgGIS",null,"ESRI","133074-LU","Software ArgGIS","ESRI","USD","N/A","StreetMap Premium for ArcGIS for Server Enterprise USA HERE Up to Four Cores Term License","Licencia/año ","Und","Licencias","N/A","N/A","N/A","133074-LU","Credito a 30 días ",103761,1,0,"USD"]
["ESRISoftware ArgGIS133075-LU","133075-LUSoftware ArgGIS",null,"ESRI","133075-LU","Software ArgGIS","ESRI","USD","N/A","StreetMap Premium for ArcGIS for Server Enterprise USA HERE Two Additional Cores Term License","Licencia/año ","Und","Licencias","N/A","N/A","N/A","133075-LU","Credito a 30 días ",41504.400000000001,1,0,"USD"]
["ESRISoftware ArgGIS133080-LU","133080-LUSoftware ArgGIS",null,"ESRI","133080-LU","Software ArgGIS","ESRI","USD","N/A","StreetMap Premium for ArcGIS Desktop USA State HERE Single Use Term License","Licencia/año ","Und","Licencias","N/A","N/A","N/A","133080-LU","Credito a 30 días ",2744.28,1,0,"USD"]
["ESRISoftware ArgGIS133085-LU","133085-LUSoftware ArgGIS",null,"ESRI","133085-LU","Software ArgGIS","ESRI","USD","N/A","StreetMap Premium for ArcGIS Desktop Map Display + Geocoding USA HERE Single Use Term License","Licencia/año ","Und","Licencias","N/A","N/A","N/A","133085-LU","Credito a 30 días ",4116.42,1,0,"USD"]
["ESRISoftware ArgGIS133086-LU","133086-LUSoftware ArgGIS",null,"ESRI","133086-LU","Software ArgGIS","ESRI","USD","N/A","StreetMap Premium for ArcGIS Desktop Map Display + Geocoding USA HERE Concurrent Use Term License","Licencia/año ","Und","Licencias","N/A","N/A","N/A","133086-LU","Credito a 30 días ",10291.049999999999,1,0,"USD"]
["ESRISoftware ArgGIS133124-LU","133124-LUSoftware ArgGIS",null,"ESRI","133124-LU","Software ArgGIS","ESRI","USD","N/A","StreetMap Premium for AGServer Enterprise MapDisplay+Geocoding N.A(USA, Can. Mex.) 2 Add.Cores Term","Licencia/año ","Und","Licencias","N/A","N/A","N/A","133124-LU","Credito a 30 días ",41164.199999999997,1,0,"USD"]
["ESRISoftware ArgGIS133127-LU","133127-LUSoftware ArgGIS",null,"ESRI","133127-LU","Software ArgGIS","ESRI","USD","N/A","StreetMap Premium for ArcGIS for Server Enterprise Map Display+Geocoding Europe Up to 4 Cores Term L","Licencia/año ","Und","Licencias","N/A","N/A","N/A","133127-LU","Credito a 30 días ",108056.03,1,0,"USD"]
["ESRISoftware ArgGIS133128-LU","133128-LUSoftware ArgGIS",null,"ESRI","133128-LU","Software ArgGIS","ESRI","USD","N/A","StreetMap Premium for ArcGIS for Server Enterprise Map Display+Geocoding Europe 2 Add.Cores Term Lic","Licencia/año ","Und","Licencias","N/A","N/A","N/A","133128-LU","Credito a 30 días ",43222.41,1,0,"USD"]
["ESRISoftware ArgGIS139794-LU","139794-LUSoftware ArgGIS",null,"ESRI","139794-LU","Software ArgGIS","ESRI","USD","N/A","StreetMap Premium for ArcGIS Desktop Latin America HERE Single Use Term License","Licencia/año ","Und","Licencias","N/A","N/A","N/A","139794-LU","Credito a 30 días ",12760.9,1,0,"USD"]
["ESRISoftware ArgGIS139795-LU","139795-LUSoftware ArgGIS",null,"ESRI","139795-LU","Software ArgGIS","ESRI","USD","N/A","StreetMap Premium for ArcGIS Desktop Latin America HERE Concurrent Use Term License","Licencia/año ","Und","Licencias","N/A","N/A","N/A","139795-LU","Credito a 30 días ",29783.25,1,0,"USD"]
["ESRISoftware ArgGIS139796-LU","139796-LUSoftware ArgGIS",null,"ESRI","139796-LU","Software ArgGIS","ESRI","USD","N/A","StreetMap Premium for ArcGIS Enterprise Latin America HERE Up to Four Cores Term License","Licencia/año ","Und","Licencias","N/A","N/A","N/A","139796-LU","Credito a 30 días ",148916.25,1,0,"USD"]
["ESRISoftware ArgGIS139797-LU","139797-LUSoftware ArgGIS",null,"ESRI","139797-LU","Software ArgGIS","ESRI","USD","N/A","StreetMap Premium for ArcGIS Enterprise Latin America HERE Two Additional Cores Term License","Licencia/año ","Und","Licencias","N/A","N/A","N/A","139797-LU","Credito a 30 días ",63804.51,1,0,"USD"]
["ESRISoftware ArgGIS139821-LU","139821-LUSoftware ArgGIS",null,"ESRI","139821-LU","Software ArgGIS","ESRI","USD","N/A","StreetMap Premium for ArcGIS for Desktop Small Latin America Country HERE Single Use Term","Licencia/año ","Und","Licencias","N/A","N/A","N/A","139821-LU","Credito a 30 días ",3018.71,1,0,"USD"]
["ESRISoftware ArgGIS139822-LU","139822-LUSoftware ArgGIS",null,"ESRI","139822-LU","Software ArgGIS","ESRI","USD","N/A","StreetMap Premium for ArcGIS for Desktop Small Latin America Country HERE Concurrent Use Term Licens","Licencia/año ","Und","Licencias","N/A","N/A","N/A","139822-LU","Credito a 30 días ",7546.77,1,0,"USD"]
["ESRISoftware ArgGIS139823-LU","139823-LUSoftware ArgGIS",null,"ESRI","139823-LU","Software ArgGIS","ESRI","USD","N/A","StreetMap Premium for ArcGIS for Server Enterprise Small Latin America Country HERE Up to Four Cores","Licencia/año ","Und","Licencias","N/A","N/A","N/A","139823-LU","Credito a 30 días ",37733.85,1,0,"USD"]
["ESRISoftware ArgGIS139825-LU","139825-LUSoftware ArgGIS",null,"ESRI","139825-LU","Software ArgGIS","ESRI","USD","N/A","StreetMap Premium for ArcGIS Desktop Medium Latin America Country HERE Single Use Term License","Licencia/año ","Und","Licencias","N/A","N/A","N/A","139825-LU","Credito a 30 días ",4012.09,1,0,"USD"]
["ESRISoftware ArgGIS139826-LU","139826-LUSoftware ArgGIS",null,"ESRI","139826-LU","Software ArgGIS","ESRI","USD","N/A","StreetMap Premium for ArcGIS Desktop (full Use) Medium Latin America Country HERE Concurrent Use Term License","Licencia/año ","Und","Licencias","N/A","N/A","N/A","139826-LU","Credito a 30 días ",9948.02,1,0,"USD"]
["ESRISoftware ArgGIS139827-LU","139827-LUSoftware ArgGIS",null,"ESRI","139827-LU","Software ArgGIS","ESRI","USD","N/A","StreetMap Premium for ArcGIS for Server Enterprise Medium LatinA. Country HERE Up to 4 Cores Term Li","Licencia/año ","Und","Licencias","N/A","N/A","N/A","139827-LU","Credito a 30 días ",50151.15,1,0,"USD"]
["ESRISoftware ArgGIS139828-LU","139828-LUSoftware ArgGIS",null,"ESRI","139828-LU","Software ArgGIS","ESRI","USD","N/A","StreetMap Premium for ArcGIS for Server Enterprise Colombia HERE Two Additional Cores Term","Licencia/año ","Und","Licencias","N/A","N/A","N/A","139828-LU","Credito a 30 días ",20060.46,1,0,"USD"]
["ESRISoftware ArgGIS139829-LU","139829-LUSoftware ArgGIS",null,"ESRI","139829-LU","Software ArgGIS","ESRI","USD","N/A","StreetMap Premium for ArcGIS Desktop Large (full use) Latin America Country Single Use Term License (full use)","Licencia/año ","Und","Licencias","N/A","N/A","N/A","139829-LU","Credito a 30 días ",5900.2,1,0,"USD"]
["ESRISoftware ArgGIS139830-LU","139830-LUSoftware ArgGIS",null,"ESRI","139830-LU","Software ArgGIS","ESRI","USD","N/A","StreetMap Premium for ArcGIS Desktop Large (full use)  Latin America Country Concurrent Use Term License","Licencia/año ","Und","Licencias","N/A","N/A","N/A","139830-LU","Credito a 30 días ",14750.51,1,0,"USD"]
["ESRISoftware ArgGIS139833-LU","139833-LUSoftware ArgGIS",null,"ESRI","139833-LU","Software ArgGIS","ESRI","USD","N/A","StreetMap Premium for ArcGIS Desktop Map Display + Geocoding Latin America HERE Single Use Term","Licencia/año ","Und","Licencias","N/A","N/A","N/A","139833-LU","Credito a 30 días ",6433.18,1,0,"USD"]
["ESRISoftware ArgGIS139834-LU","139834-LUSoftware ArgGIS",null,"ESRI","139834-LU","Software ArgGIS","ESRI","USD","N/A","StreetMap Premium for ArcGIS Desktop Map Display + Geocoding Latin America Concurrent Use Term License","Licencia/año ","Und","Licencias","N/A","N/A","N/A","139834-LU","Credito a 30 días ",15951.13,1,0,"USD"]
["ESRISoftware ArgGIS139835-LU","139835-LUSoftware ArgGIS",null,"ESRI","139835-LU","Software ArgGIS","ESRI","USD","N/A","StreetMap Premium for ArcGIS Enterprise Map Display + Geocoding Latin America HERE Up to Four Cores","Licencia/año ","Und","Licencias","N/A","N/A","N/A","139835-LU","Credito a 30 días ",79755.64,1,0,"USD"]
["ESRISoftware ArgGIS139837-LU","139837-LUSoftware ArgGIS",null,"ESRI","139837-LU","Software ArgGIS","ESRI","USD","N/A","StreetMap Premium ArcGIS Desktop Map Display+Geocoding Small Latin America HERE Single Use Term Lic.","Licencia/año ","Und","Licencias","N/A","N/A","N/A","139837-LU","Credito a 30 días ",1509.35,1,0,"USD"]
["ESRISoftware ArgGIS139838-LU","139838-LUSoftware ArgGIS",null,"ESRI","139838-LU","Software ArgGIS","ESRI","USD","N/A","StreetMap Premium for ArcGIS Desktop Map Display + Geocoding Small Latin America Country HERE Concurrent Use Term License","Licencia/año ","Und","Licencias","N/A","N/A","N/A","139838-LU","Credito a 30 días ",3773.39,1,0,"USD"]
["ESRISoftware ArgGIS139841-LU","139841-LUSoftware ArgGIS",null,"ESRI","139841-LU","Software ArgGIS","ESRI","USD","N/A","StreetMap Premium ArcGIS Desktop Map Display+Geocoding Medium L.America Country HERE Single Use Term","Licencia/año ","Und","Licencias","N/A","N/A","N/A","139841-LU","Credito a 30 días ",2006.05,1,0,"USD"]
["ESRISoftware ArgGIS139842-LU","139842-LUSoftware ArgGIS",null,"ESRI","139842-LU","Software ArgGIS","ESRI","USD","N/A","StreetMap Premium for ArcGIS Desktop Map Display+Geoc. Medium LatinAm. CountryHERE Conc.Use Term Lic","Licencia/año ","Und","Licencias","N/A","N/A","N/A","139842-LU","Credito a 30 días ",4974.01,1,0,"USD"]
["ESRISoftware ArgGIS139843-LU","139843-LUSoftware ArgGIS",null,"ESRI","139843-LU","Software ArgGIS","ESRI","USD","N/A","StreetMap Premium ArcGIS Server Enterp MapDisplay+Geocoding Medium LatinA Country HERE 4 Cores Term","Licencia/año ","Und","Licencias","N/A","N/A","N/A","139843-LU","Credito a 30 días ",25075.58,1,0,"USD"]
["ESRISoftware ArgGIS139844-LU","139844-LUSoftware ArgGIS",null,"ESRI","139844-LU","Software ArgGIS","ESRI","USD","N/A","StreetMap Premium for ArcGIS Server Enterp Map Display+Geocoding Colombia HERE 2 Add Cores TermLic","Licencia/año ","Und","Licencias","N/A","N/A","N/A","139844-LU","Credito a 30 días ",10030.23,1,0,"USD"]
["ESRISoftware ArgGIS139845-LU","139845-LUSoftware ArgGIS",null,"ESRI","139845-LU","Software ArgGIS","ESRI","USD","N/A","StreetMap Premium for ArcGIS Desktop Map Display + Geocoding Large Latin America Country Single Use Term License","Licencia/año ","Und","Licencias","N/A","N/A","N/A","139845-LU","Credito a 30 días ",2950.41,1,0,"USD"]
["ESRISoftware ArgGIS139846-LU","139846-LUSoftware ArgGIS",null,"ESRI","139846-LU","Software ArgGIS","ESRI","USD","N/A","StreetMap Premium ArcGIS Desktop Map Display+Geocod.Large LatinAmericaCountry Concurrent Use TermLic","Licencia/año ","Und","Licencias","N/A","N/A","N/A","139846-LU","Credito a 30 días ",7375.26,1,0,"USD"]
["ESRISoftware ArgGIS144392-LU","144392-LUSoftware ArgGIS",null,"ESRI","144392-LU","Software ArgGIS","ESRI","USD","N/A","StreetMap Premium for ArcGIS Desktop (full use) Mexico  HERE Single Use Term License","Licencia/año ","Und","Licencias","N/A","N/A","N/A","144392-LU","Credito a 30 días ",6586.27,1,0,"USD"]
["ESRISoftware ArgGIS144395-LU","144395-LUSoftware ArgGIS",null,"ESRI","144395-LU","Software ArgGIS","ESRI","USD","N/A","streetMap Premium for ArcGIS Desktop (Full Use) Mexico Concurrent Use Term License","Licencia/año ","Und","Licencias","N/A","N/A","N/A","144395-LU","Credito a 30 días ",16465.68,1,0,"USD"]
["ESRISoftware ArgGIS144396-LU","144396-LUSoftware ArgGIS",null,"ESRI","144396-LU","Software ArgGIS","ESRI","USD","N/A","StreetMap Premium ArcGIS for Server Enterprise (Full Use) Mexico HERE Up to Four Cores Term License","Licencia/año ","Und","Licencias","N/A","N/A","N/A","144396-LU","Credito a 30 días ",82328.399999999994,1,0,"USD"]
["ESRISoftware ArgGIS144398-LU","144398-LUSoftware ArgGIS",null,"ESRI","144398-LU","Software ArgGIS","ESRI","USD","N/A","StreetMap Premium for ArcGIS Desktop Map Display + Geocoding Mexico HERE Single Use Term License","Licencia/año ","Und","Licencias","N/A","N/A","N/A","144398-LU","Credito a 30 días ",3293.14,1,0,"USD"]
["ESRISoftware ArgGIS144399-LU","144399-LUSoftware ArgGIS",null,"ESRI","144399-LU","Software ArgGIS","ESRI","USD","N/A","StreetMap Premium for ArcGIS Desktop Map Display + Geocoding Mexico  Concurrent Use Term License","Licencia/año ","Und","Licencias","N/A","N/A","N/A","144399-LU","Credito a 30 días ",8232.84,1,0,"USD"]
["ESRISoftware ArgGIS144400-LU","144400-LUSoftware ArgGIS",null,"ESRI","144400-LU","Software ArgGIS","ESRI","USD","N/A","StreetMap Premium ArcGIS for Server Enterprise Map Display+Geocoding Mexico HERE Up 4 Cores Term Lic","Licencia/año ","Und","Licencias","N/A","N/A","N/A","144400-LU","Credito a 30 días ",41164.199999999997,1,0,"USD"]
["ESRISoftware ArgGIS148097-LU","148097-LUSoftware ArgGIS",null,"ESRI","148097-LU","Software ArgGIS","ESRI","USD","N/A","ArcGIS 3D Analyst for Desktop Single Use Term License","Licencia/mes","Und","Licencias","N/A","N/A","N/A","148097-LU","Credito a 30 días ",68.606666666666669,1,0,"USD"]
["ESRISoftware ArgGIS148098-LU","148098-LUSoftware ArgGIS",null,"ESRI","148098-LU","Software ArgGIS","ESRI","USD","N/A","ArcGIS Data Interoperability for Desktop Single Use Term License","Licencia/mes","Und","Licencias","N/A","N/A","N/A","148098-LU","Credito a 30 días ",68.606666666666669,1,0,"USD"]
["ESRISoftware ArgGIS148100-LU","148100-LUSoftware ArgGIS",null,"ESRI","148100-LU","Software ArgGIS","ESRI","USD","N/A","ArcGIS Geostatistical Analyst for Desktop Single Use Term License","Licencia/mes","Und","Licencias","N/A","N/A","N/A","148100-LU","Credito a 30 días ",68.606666666666669,1,0,"USD"]
["ESRISoftware ArgGIS148104-LU","148104-LUSoftware ArgGIS",null,"ESRI","148104-LU","Software ArgGIS","ESRI","USD","N/A","ArcGIS Desktop Advanced Single Use Term License. Annual Fee","Licencia/año ","Und","Licencias","N/A","N/A","N/A","148104-LU","Credito a 30 días ",5762.99,1,0,"USD"]
["ESRISoftware ArgGIS148105-LU","148105-LUSoftware ArgGIS",null,"ESRI","148105-LU","Software ArgGIS","ESRI","USD","N/A","ArcGIS Desktop Standard Single Use Term License. Annual Fee","Licencia/año ","Und","Licencias","N/A","N/A","N/A","148105-LU","Credito a 30 días ",4116.42,1,0,"USD"]
["ESRISoftware ArgGIS148106-LU","148106-LUSoftware ArgGIS",null,"ESRI","148106-LU","Software ArgGIS","ESRI","USD","N/A","ArcGIS Desktop Basic Single Use Term License. Annual Fee","Licencia/año ","Und","Licencias","N/A","N/A","N/A","148106-LU","Credito a 30 días ",1097.71,1,0,"USD"]
["ESRISoftware ArgGIS148107-LU","148107-LUSoftware ArgGIS",null,"ESRI","148107-LU","Software ArgGIS","ESRI","USD","N/A","ArcGIS Desktop All Extensions Single Use (Bundle) Term License","Licencia/mes","Und","Licencias","N/A","N/A","N/A","148107-LU","Credito a 30 días ",205.82083333333333,1,0,"USD"]
["ESRISoftware ArgGIS148112-LU","148112-LUSoftware ArgGIS",null,"ESRI","148112-LU","Software ArgGIS","ESRI","USD","N/A","ArcGIS Network Analyst for Desktop Single Use Term License","Licencia/mes","Und","Licencias","N/A","N/A","N/A","148112-LU","Credito a 30 días ",68.606666666666669,1,0,"USD"]
["ESRISoftware ArgGIS148113-LU","148113-LUSoftware ArgGIS",null,"ESRI","148113-LU","Software ArgGIS","ESRI","USD","N/A","ArcGIS Publisher for Desktop Single Use Term License","Licencia/mes","Und","Licencias","N/A","N/A","N/A","148113-LU","Credito a 30 días ",68.606666666666669,1,0,"USD"]
["ESRISoftware ArgGIS148114-LU","148114-LUSoftware ArgGIS",null,"ESRI","148114-LU","Software ArgGIS","ESRI","USD","N/A","ArcGIS Schematics for Desktop Single Use Term License","Licencia/mes","Und","Licencias","N/A","N/A","N/A","148114-LU","Credito a 30 días ",68.606666666666669,1,0,"USD"]
["ESRISoftware ArgGIS148115-LU","148115-LUSoftware ArgGIS",null,"ESRI","148115-LU","Software ArgGIS","ESRI","USD","N/A","ArcGIS Spatial Analyst for Desktop Single Use Term License","Licencia/mes","Und","Licencias","N/A","N/A","N/A","148115-LU","Credito a 30 días ",68.606666666666669,1,0,"USD"]
["ESRISoftware ArgGIS148116-LU","148116-LUSoftware ArgGIS",null,"ESRI","148116-LU","Software ArgGIS","ESRI","USD","N/A","ArcGIS Tracking Analyst for Desktop Single Use Term License","Licencia/mes","Und","Licencias","N/A","N/A","N/A","148116-LU","Credito a 30 días ",68.606666666666669,1,0,"USD"]
["ESRISoftware ArgGIS148117-LU","148117-LUSoftware ArgGIS",null,"ESRI","148117-LU","Software ArgGIS","ESRI","USD","N/A","ArcGIS Data Reviewer for Desktop Single Use Term License","Licencia/mes","Und","Licencias","N/A","N/A","N/A","148117-LU","Credito a 30 días ",68.606666666666669,1,0,"USD"]
["ESRISoftware ArgGIS148118-LU","148118-LUSoftware ArgGIS",null,"ESRI","148118-LU","Software ArgGIS","ESRI","USD","N/A","ArcGIS Workflow Manager (Classic) for Desktop Single Use Término 1 mes ","Licencia/mes","Und","Licencias","N/A","N/A","N/A","148118-LU","Credito a 30 días ",68.606666666666669,1,0,"USD"]
["ESRISoftware ArgGIS150543-LU","150543-LUSoftware ArgGIS",null,"ESRI","150543-LU","Software ArgGIS","ESRI","USD","N/A","GeoPlanner for ArcGIS Online Term License","Licencia/mes","Und","Licencias","N/A","N/A","N/A","150543-LU","Credito a 30 días ",54.337499999999999,1,0,"USD"]
["ESRISoftware ArgGIS153351-LU","153351-LUSoftware ArgGIS",null,"ESRI","153351-LU","Software ArgGIS","ESRI","USD","N/A","Esri CityEngine Single Use for Windows Term License","Licencia/año ","Und","Licencias","N/A","N/A","N/A","153351-LU","Credito a 30 días ",2744.28,1,0,"USD"]
["ESRISoftware ArgGIS153352-LU","153352-LUSoftware ArgGIS",null,"ESRI","153352-LU","Software ArgGIS","ESRI","USD","N/A","Esri CityEngine Single Use for Linux Term License","Licencia/año ","Und","Licencias","N/A","N/A","N/A","153352-LU","Credito a 30 días ",2744.28,1,0,"USD"]
["ESRISoftware ArgGIS153353-LU","153353-LUSoftware ArgGIS",null,"ESRI","153353-LU","Software ArgGIS","ESRI","USD","N/A","Esri CityEngine Single Use for Macintosh Term License","Licencia/año ","Und","Licencias","N/A","N/A","N/A","153353-LU","Credito a 30 días ",2744.28,1,0,"USD"]
["ESRISoftware ArgGIS153359-LU","153359-LUSoftware ArgGIS",null,"ESRI","153359-LU","Software ArgGIS","ESRI","USD","N/A","ArcGIS Pipeline Referencing for Desktop Single Use License","Licencia ","Und","Licencias","N/A","N/A","N/A","153359-LU","Credito a 30 días ",13721.4,1,0,"USD"]
["ESRISoftware ArgGIS153360-LU","153360-LUSoftware ArgGIS",null,"ESRI","153360-LU","Software ArgGIS","ESRI","USD","N/A","ArcGIS Pipeline Referencing for Desktop Single Use Term License","Licencia/mes","Und","Licencias","N/A","N/A","N/A","153360-LU","Credito a 30 días ",457.33333333333331,1,0,"USD"]
["ESRISoftware ArgGIS153391-LU","153391-LUSoftware ArgGIS",null,"ESRI","153391-LU","Software ArgGIS","ESRI","USD","N/A","Insights for ArcGIS Enterprise Perpetual License","Licencia ","Und","Licencias","N/A","N/A","N/A","153391-LU","Credito a 30 días ",2744.28,1,0,"USD"]
["ESRISoftware ArgGIS153472-LU","153472-LUSoftware ArgGIS",null,"ESRI","153472-LU","Software ArgGIS","ESRI","USD","N/A","ArcGIS Pipeline Referencing for ArcGIS GIS Server Standard (Windows) Up to Four Cores License","Licencia ","Und","Licencias","N/A","N/A","N/A","153472-LU","Credito a 30 días ",13721.4,1,0,"USD"]
["ESRISoftware ArgGIS153473-LU","153473-LUSoftware ArgGIS",null,"ESRI","153473-LU","Software ArgGIS","ESRI","USD","N/A","ArcGIS Pipeline Referencing for ArcGIS GIS Server Advanced (Windows) Up to Four Cores License","Licencia ","Und","Licencias","N/A","N/A","N/A","153473-LU","Credito a 30 días ",13721.4,1,0,"USD"]
[{"$f":"D386&F386&E386","v":"ESRISoftware ArgGIS153476-LU"},{"$f":"E386&F386","v":"153476-LUSoftware ArgGIS"},null,"ESRI","153476-LU","Software ArgGIS","ESRI","USD","N/A","ArcGIS Pipeline Referencing for ArcGIS GIS Server Standard (Windows) Additional Core License","Licencia ","Und","Licencias","N/A","N/A","N/A",{"$f":"+E386","v":"153476-LU"},"Credito a 30 días ",3430.35,1,0,"USD"]
["ESRISoftware ArgGIS153477-LU","153477-LUSoftware ArgGIS",null,"ESRI","153477-LU","Software ArgGIS","ESRI","USD","N/A","ArcGIS Pipeline Referencing for ArcGIS GIS Server Advanced (Windows) Additional Core License","Licencia ","Und","Licencias","N/A","N/A","N/A","153477-LU","Credito a 30 días ",3430.35,1,0,"USD"]
["ESRISoftware ArgGIS153480-LU","153480-LUSoftware ArgGIS",null,"ESRI","153480-LU","Software ArgGIS","ESRI","USD","N/A","ArcGIS Pipeline Referencing for ArcGIS GIS Server Standard (Windows) Up to Four Cores Term License","Licencia/año ","Und","Licencias","N/A","N/A","N/A","153480-LU","Credito a 30 días ",7824.6,1,0,"USD"]
["ESRISoftware ArgGIS153551-LU","153551-LUSoftware ArgGIS",null,"ESRI","153551-LU","Software ArgGIS","ESRI","USD","N/A","ArcGIS Pipeline Referencing for ArcGIS GIS Server Workgroup Standard Up to Four Cores License","Licencia ","Und","Licencias","N/A","N/A","N/A","153551-LU","Credito a 30 días ",6860.7,1,0,"USD"]
["ESRISoftware ArgGIS153552-LU","153552-LUSoftware ArgGIS",null,"ESRI","153552-LU","Software ArgGIS","ESRI","USD","N/A","ArcGIS Pipeline Referencing for ArcGIS GIS Server Workgroup Advanced Up to Four Cores License","Licencia ","Und","Licencias","N/A","N/A","N/A","153552-LU","Credito a 30 días ",6860.7,1,0,"USD"]
["ESRISoftware ArgGIS154141-LU","154141-LUSoftware ArgGIS",null,"ESRI","154141-LU","Software ArgGIS","ESRI","USD","N/A","ArcGIS Runtime Basic 50 Pack (Level 2 Named User) Single Use Deployment License","Licencia ","Und","Licencias","N/A","N/A","N/A","154141-LU","Credito a 30 días ",6860.7,1,0,"USD"]
["ESRISoftware ArgGIS154142-LU","154142-LUSoftware ArgGIS",null,"ESRI","154142-LU","Software ArgGIS","ESRI","USD","N/A","ArcGIS Runtime Standard 25 Pack Single Use Deployment License","Licencia ","Und","Licencias","N/A","N/A","N/A","154142-LU","Credito a 30 días ",10291.049999999999,1,0,"USD"]
["ESRISoftware ArgGIS154143-LU","154143-LUSoftware ArgGIS",null,"ESRI","154143-LU","Software ArgGIS","ESRI","USD","N/A","ArcGIS Runtime Advanced 5 Pack Single Use Deployment License","Licencia ","Und","Licencias","N/A","N/A","N/A","154143-LU","Credito a 30 días ",10291.049999999999,1,0,"USD"]
["ESRISoftware ArgGIS154144-LU","154144-LUSoftware ArgGIS",null,"ESRI","154144-LU","Software ArgGIS","ESRI","USD","N/A","ArcGIS Runtime Analysis Extension 5 Pack Single Use Deployment License","Licencia ","Und","Licencias","N/A","N/A","N/A","154144-LU","Credito a 30 días ",6860.7,1,0,"USD"]
["ESRISoftware ArgGIS154251-LU","154251-LUSoftware ArgGIS",null,"ESRI","154251-LU","Software ArgGIS","ESRI","USD","N/A","ArcGIS Enterprise Creator (Formerly Named User Level 2) perpetual License","Licencia/mes","Und","Licencias","N/A","N/A","N/A","154251-LU","Credito a 30 días ",228.69000000000003,1,0,"USD"]
["ESRISoftware ArgGIS154252-LU","154252-LUSoftware ArgGIS",null,"ESRI","154252-LU","Software ArgGIS","ESRI","USD","N/A","ArcGIS Enterprise Creator (Formerly Named User Level 2) Term License","Licencia/mes","Und","Licencias","N/A","N/A","N/A","154252-LU","Credito a 30 días ",57.172500000000007,1,0,"USD"]
["ESRISoftware ArgGIS154283-LU","154283-LUSoftware ArgGIS",null,"ESRI","154283-LU","Software ArgGIS","ESRI","USD","N/A","ArcGIS Desktop All Extensions Single Use (Bundle)  Perpetual License","Licencia ","Und","Licencias","N/A","N/A","N/A","154283-LU","Credito a 30 días ",10291.049999999999,1,0,"USD"]
["ESRISoftware ArgGIS154292-LU","154292-LUSoftware ArgGIS",null,"ESRI","154292-LU","Software ArgGIS","ESRI","USD","N/A","Navigator for ArcGIS Enterprise License","Licencia/mes","Und","Licencias","N/A","N/A","N/A","154292-LU","Credito a 30 días ",27.442499999999999,1,0,"USD"]
["ESRISoftware ArgGIS154293-LU","154293-LUSoftware ArgGIS",null,"ESRI","154293-LU","Software ArgGIS","ESRI","USD","N/A","Navigator for ArcGIS Enterprise Term License ","Licencia/mes","Und","Licencias","N/A","N/A","N/A","154293-LU","Credito a 30 días ",6.8608333333333329,1,0,"USD"]
["ESRISoftware ArgGIS154295-LU","154295-LUSoftware ArgGIS",null,"ESRI","154295-LU","Software ArgGIS","ESRI","USD","N/A","Drone2Map for ArcGIS Enterprise Term License","Licencia/mes","Und","Licencias","N/A","N/A","N/A","154295-LU","Credito a 30 días ",171.51750000000001,1,0,"USD"]
["ESRISoftware ArgGIS154296-LU","154296-LUSoftware ArgGIS",null,"ESRI","154296-LU","Software ArgGIS","ESRI","USD","N/A","GeoPlanner for ArcGIS Enterprise License","Licencia/mes","Und","Licencias","N/A","N/A","N/A","154296-LU","Credito a 30 días ",228.69000000000003,1,0,"USD"]
["ESRISoftware ArgGIS154297-LU","154297-LUSoftware ArgGIS",null,"ESRI","154297-LU","Software ArgGIS","ESRI","USD","N/A","GeoPlanner for ArcGIS Enterprise Term License","Licencia/mes","Und","Licencias","N/A","N/A","N/A","154297-LU","Credito a 30 días ",57.172500000000007,1,0,"USD"]
["ESRISoftware ArgGIS154332-LU","154332-LUSoftware ArgGIS",null,"ESRI","154332-LU","Software ArgGIS","ESRI","USD","N/A","Insights for ArcGIS in ArcGIS Enterprise Term License","Licencia/año ","Und","Licencias","N/A","N/A","N/A","154332-LU","Credito a 30 días ",686.07,1,0,"USD"]
["ESRISoftware ArgGIS154567-LU","154567-LUSoftware ArgGIS",null,"ESRI","154567-LU","Software ArgGIS","ESRI","USD","N/A","ArcGIS Business Analyst Desktop without Data Intl Version Single Use License","Licencia/mes","Und","Licencias","N/A","N/A","N/A","154567-LU","Credito a 30 días ",400.20749999999998,1,0,"USD"]
["ESRISoftware ArgGIS154621-LU","154621-LUSoftware ArgGIS",null,"ESRI","154621-LU","Software ArgGIS","ESRI","USD","N/A","ArcGIS Enterprise Standard Up to 4Cores Upgrade from ArcGIS Enterprise Workgroup Standard Up to 4Cor","Licencia ","Und","Licencias","N/A","N/A","N/A","154621-LU","Credito a 30 días ",13721.4,1,0,"USD"]
["ESRISoftware ArgGIS154623-LU","154623-LUSoftware ArgGIS",null,"ESRI","154623-LU","Software ArgGIS","ESRI","USD","N/A","ArcGIS Enterprise Advanced Up to 4Cores Upgrade from ArcGIS Enterprise Workgroup Standard Up to 4Cor","Licencia ","Und","Licencias","N/A","N/A","N/A","154623-LU","Credito a 30 días ",41164.199999999997,1,0,"USD"]
["ESRISoftware ArgGIS154625-LU","154625-LUSoftware ArgGIS",null,"ESRI","154625-LU","Software ArgGIS","ESRI","USD","N/A","ArcGIS Enterprise Advanced Up to 4Cores Upgrade from ArcGIS Enterprise Workgroup Advanced Up to 4Cor","Licencia ","Und","Licencias","N/A","N/A","N/A","154625-LU","Credito a 30 días ",27442.799999999999,1,0,"USD"]
["ESRISoftware ArgGIS154627-LU","154627-LUSoftware ArgGIS",null,"ESRI","154627-LU","Software ArgGIS","ESRI","USD","N/A","ArcGIS Enterprise Advanced (Windows) Up to Four Cores Upgrade from ArcGIS Enterprise Standard","Licencia ","Und","Licencias","N/A","N/A","N/A","154627-LU","Credito a 30 días ",27442.799999999999,1,0,"USD"]
["ESRISoftware ArgGIS154631-LU","154631-LUSoftware ArgGIS",null,"ESRI","154631-LU","Software ArgGIS","ESRI","USD","N/A","ArcGIS Enterprise Workgroup Advanced Up to 2 Cores Upgrade from ArcGIS Enterprise Workgroup Standard","Licencia ","Und","Licencias","N/A","N/A","N/A","154631-LU","Credito a 30 días ",6861.24,1,0,"USD"]
["ESRISoftware ArgGIS154633-LU","154633-LUSoftware ArgGIS",null,"ESRI","154633-LU","Software ArgGIS","ESRI","USD","N/A","ArcGIS Enterprise Standard Up to 4Cores Upgrade from ArcGIS Enterprise Workgroup Standard Up to 2Cor","Licencia ","Und","Licencias","N/A","N/A","N/A","154633-LU","Credito a 30 días ",20582.64,1,0,"USD"]
["ESRISoftware ArgGIS154635-LU","154635-LUSoftware ArgGIS",null,"ESRI","154635-LU","Software ArgGIS","ESRI","USD","N/A","ArcGIS Enterprise Standard Up to 4Cores Upgrade from ArcGISEnterprise Workgroup Advanced Up to 2Cor","Licencia ","Und","Licencias","N/A","N/A","N/A","154635-LU","Credito a 30 días ",13721.4,1,0,"USD"]
["ESRISoftware ArgGIS154637-LU","154637-LUSoftware ArgGIS",null,"ESRI","154637-LU","Software ArgGIS","ESRI","USD","N/A","ArcGIS Enterprise Advanced Up to 4Cores Upgrade from ArcGIS Enterprise Workgr Standard Upto 2Cores","Licencia ","Und","Licencias","N/A","N/A","N/A","154637-LU","Credito a 30 días ",48025.440000000002,1,0,"USD"]
["ESRISoftware ArgGIS154639-LU","154639-LUSoftware ArgGIS",null,"ESRI","154639-LU","Software ArgGIS","ESRI","USD","N/A","ArcGIS Enterprise Advanced Up to4 Cores Upgrade from ArcGIS Enterprise Workgr. Advanced Up to2 Cores","Licencia ","Und","Licencias","N/A","N/A","N/A","154639-LU","Credito a 30 días ",41164.199999999997,1,0,"USD"]
["ESRISoftware ArgGIS154745-LU","154745-LUSoftware ArgGIS",null,"ESRI","154745-LU","Software ArgGIS","ESRI","USD","N/A","ArcGIS Enterprise Standard (Windows) Up to Four Cores Upgrade from ArcGIS GIS Server Workgroup Basic Up to Four Cores","Licencia ","Und","Licencias","N/A","N/A","N/A","154745-LU","Credito a 30 días ",20582.099999999999,1,0,"USD"]
["ESRISoftware ArgGIS154747-LU","154747-LUSoftware ArgGIS",null,"ESRI","154747-LU","Software ArgGIS","ESRI","USD","N/A","ArcGIS Enterprise Advanced Up to 4Cores Upgrade from ArcGIS GIS Server Workgroup Basic Up to 4 Cores","Licencia ","Und","Licencias","N/A","N/A","N/A","154747-LU","Credito a 30 días ",48025.440000000002,1,0,"USD"]
["ESRISoftware ArgGIS154749-LU","154749-LUSoftware ArgGIS",null,"ESRI","154749-LU","Software ArgGIS","ESRI","USD","N/A","ArcGIS Enterprise Workgroup Standard 4 Cores Upgrade from ArcGIS GIS Server Workgroup Basic 4 Cores","Licencia ","Und","Licencias","N/A","N/A","N/A","154749-LU","Credito a 30 días ",6861.24,1,0,"USD"]
["ESRISoftware ArgGIS154750-LU","154750-LUSoftware ArgGIS",null,"ESRI","154750-LU","Software ArgGIS","ESRI","USD","N/A","ArcGIS Enterprise Workgroup Advanced 4 Cores Upgrade from ArcGIS GIS Server Workgroup Basic 4Cores","Licencia ","Und","Licencias","N/A","N/A","N/A","154750-LU","Credito a 30 días ",20582.64,1,0,"USD"]
["ESRISoftware ArgGIS154781-LU","154781-LUSoftware ArgGIS",null,"ESRI","154781-LU","Software ArgGIS","ESRI","USD","N/A","ArcGIS Enterprise Standard (Windows) Up to Four Cores Upgrade from ArcGIS GIS Server Basic","Licencia ","Und","Licencias","N/A","N/A","N/A","154781-LU","Credito a 30 días ",13721.4,1,0,"USD"]
["ESRISoftware ArgGIS154783-LU","154783-LUSoftware ArgGIS",null,"ESRI","154783-LU","Software ArgGIS","ESRI","USD","N/A","ArcGIS Enterprise Advanced (Windows) Up to Four Cores Upgrade from  ArcGIS GIS Server Basic","Licencia ","Und","Licencias","N/A","N/A","N/A","154783-LU","Credito a 30 días ",41164.199999999997,1,0,"USD"]
["ESRISoftware ArgGIS154806-LU","154806-LUSoftware ArgGIS",null,"ESRI","154806-LU","Software ArgGIS","ESRI","USD","N/A","ArcGIS GIS Server Basic Win. Up to 4 Cores Upgrade from ArcGIS GIS Server Workgr Basic Up to 4 Cors","Licencia ","Und","Licencias","N/A","N/A","N/A","154806-LU","Credito a 30 días ",6860.7,1,0,"USD"]
["ESRISoftware ArgGIS154810-LU","154810-LUSoftware ArgGIS",null,"ESRI","154810-LU","Software ArgGIS","ESRI","USD","N/A","ArcGIS GIS Server Advanced Win. Up to 4 Cors Upgrade from ArcGIS GIS Server Workg. Basic Up to 4 Cor","Licencia ","Und","Licencias","N/A","N/A","N/A","154810-LU","Credito a 30 días ",48024.9,1,0,"USD"]
["ESRISoftware ArgGIS154818-LU","154818-LUSoftware ArgGIS",null,"ESRI","154818-LU","Software ArgGIS","ESRI","USD","N/A","ArcGIS GIS Server Workgroup Standard Four Cores Upgrade from ArcGIS GIS Server Workgroup Basic","Licencia ","Und","Licencias","N/A","N/A","N/A","154818-LU","Credito a 30 días ",6860.7,1,0,"USD"]
["ESRISoftware ArgGIS154819-LU","154819-LUSoftware ArgGIS",null,"ESRI","154819-LU","Software ArgGIS","ESRI","USD","N/A","ArcGIS GIS Server Workgroup Advanced Four Cores Upgrade from ArcGIS GIS Server Workgroup Basic","Licencia ","Und","Licencias","N/A","N/A","N/A","154819-LU","Credito a 30 días ",20582.099999999999,1,0,"USD"]
["ESRISoftware ArgGIS154821-LU","154821-LUSoftware ArgGIS",null,"ESRI","154821-LU","Software ArgGIS","ESRI","USD","N/A","ArcGIS GIS Server Standard (Windows) Up to Four Cores Upgrade from ArcGIS GIS Server Basic","Licencia ","Und","Licencias","N/A","N/A","N/A","154821-LU","Credito a 30 días ",13721.4,1,0,"USD"]
["ESRISoftware ArgGIS154823-LU","154823-LUSoftware ArgGIS",null,"ESRI","154823-LU","Software ArgGIS","ESRI","USD","N/A","ArcGIS for Server Enterprise Advanced , Up 4 Cores Upgrade from Enterprise Basic","Licencia ","Und","Licencias","N/A","N/A","N/A","154823-LU","Credito a 30 días ",41164.199999999997,1,0,"USD"]
["ESRISoftware ArgGIS154827-LU","154827-LUSoftware ArgGIS",null,"ESRI","154827-LU","Software ArgGIS","ESRI","USD","N/A","ArcGIS GIS Server Standard (Windows) Additional Cores Upgrade from ArcGIS GIS Server Basic","Licencia ","Und","Licencias","N/A","N/A","N/A","154827-LU","Credito a 30 días ",3430.35,1,0,"USD"]
["ESRISoftware ArgGIS155734-LU","155734-LUSoftware ArgGIS",null,"ESRI","155734-LU","Software ArgGIS","ESRI","USD","N/A","ArcGIS Business Analyst Desktop without Data Intl Version Concurrent Use License","Licencia/mes","Und","Licencias","N/A","N/A","N/A","155734-LU","Credito a 30 días ",400.20749999999998,1,0,"USD"]
["ESRISoftware ArgGIS155740-LU","155740-LUSoftware ArgGIS",null,"ESRI","155740-LU","Software ArgGIS","ESRI","USD","N/A","ArcGIS Business Analyst Desktop without Data Intl Version Single Use Term License","Licencia/mes","Und","Licencias","N/A","N/A","N/A","155740-LU","Credito a 30 días ",200.10416666666666,1,0,"USD"]
["ESRISoftware ArgGIS157060-LU","157060-LUSoftware ArgGIS",null,"ESRI","157060-LU","Software ArgGIS","ESRI","USD","N/A","Educational Academic Departmental Small Term Concurrent Use License (5 Users)","Licencia/año ","Und","Licencias","N/A","N/A","N/A","157060-LU","Credito a 30 días ",343.04,1,0,"USD"]
["ESRISoftware ArgGIS157062-LU","157062-LUSoftware ArgGIS",null,"ESRI","157062-LU","Software ArgGIS","ESRI","USD","N/A","Educational Academic Departmental Medium Term Concurrent Use License (50 Users)","Licencia/año ","Und","Licencias","N/A","N/A","N/A","157062-LU","Credito a 30 días ",686.07,1,0,"USD"]
["ESRISoftware ArgGIS157066-LU","157066-LUSoftware ArgGIS",null,"ESRI","157066-LU","Software ArgGIS","ESRI","USD","N/A","Educational Academic Departmental Large Term Concurrent Use License (100 Users)","Licencia/año ","Und","Licencias","N/A","N/A","N/A","157066-LU","Credito a 30 días ",1372.14,1,0,"USD"]
["ESRISoftware ArgGIS157067-LU","157067-LUSoftware ArgGIS",null,"ESRI","157067-LU","Software ArgGIS","ESRI","USD","N/A","Educational Administrative Use Departmental Small Term Concurrent Use License (5 Users)","Licencia/año ","Und","Licencias","N/A","N/A","N/A","157067-LU","Credito a 30 días ",3430.35,1,0,"USD"]
["ESRISoftware ArgGIS157510-LU","157510-LUSoftware ArgGIS",null,"ESRI","157510-LU","Software ArgGIS","ESRI","USD","N/A","Educational Administrative Use Departmental Medium Term Concurrent Use License (50 Users)","Licencia/año ","Und","Licencias","N/A","N/A","N/A","157510-LU","Credito a 30 días ",6860.7,1,0,"USD"]
["ESRISoftware ArgGIS157512-LU","157512-LUSoftware ArgGIS",null,"ESRI","157512-LU","Software ArgGIS","ESRI","USD","N/A","Educational Administrative Use Departmental Large Term Concurrent Use License (100 Users)","Licencia/año ","Und","Licencias","N/A","N/A","N/A","157512-LU","Credito a 30 días ",13721.4,1,0,"USD"]
["ESRISoftware ArgGIS157568-LU","157568-LUSoftware ArgGIS",null,"ESRI","157568-LU","Software ArgGIS","ESRI","USD","N/A","Educational Administrative Use Departmental Small Single Use Term License (5 Users)","Licencia/año ","Und","Licencias","N/A","N/A","N/A","157568-LU","Credito a 30 días ",3430.35,1,0,"USD"]
["ESRISoftware ArgGIS157569-LU","157569-LUSoftware ArgGIS",null,"ESRI","157569-LU","Software ArgGIS","ESRI","USD","N/A","Educational Administrative Use Departmental Large Single Use Term License (100 Users)","Licencia/año ","Und","Licencias","N/A","N/A","N/A","157569-LU","Credito a 30 días ",13721.4,1,0,"USD"]
["ESRISoftware ArgGIS157570-LU","157570-LUSoftware ArgGIS",null,"ESRI","157570-LU","Software ArgGIS","ESRI","USD","N/A","Educational Academic Departmental Small Single Use Term License (5 Users)","Licencia/año ","Und","Licencias","N/A","N/A","N/A","157570-LU","Credito a 30 días ",343.04,1,0,"USD"]
["ESRISoftware ArgGIS157571-LU","157571-LUSoftware ArgGIS",null,"ESRI","157571-LU","Software ArgGIS","ESRI","USD","N/A","Educational Academic Departmental Medium Single Use Term License (50 Users)","Licencia/año ","Und","Licencias","N/A","N/A","N/A","157571-LU","Credito a 30 días ",686.07,1,0,"USD"]
["ESRISoftware ArgGIS157572-LU","157572-LUSoftware ArgGIS",null,"ESRI","157572-LU","Software ArgGIS","ESRI","USD","N/A","Educational Academic Departmental Large Single Use Term License (100 Users)","Licencia/año ","Und","Licencias","N/A","N/A","N/A","157572-LU","Credito a 30 días ",1372.14,1,0,"USD"]
["ESRISoftware ArgGIS157574-LU","157574-LUSoftware ArgGIS",null,"ESRI","157574-LU","Software ArgGIS","ESRI","USD","N/A","Educational Administrative Use Departmental Medium Single Use Term License (50 Users)","Licencia/año ","Und","Licencias","N/A","N/A","N/A","157574-LU","Credito a 30 días ",6860.7,1,0,"USD"]
["ESRISoftware ArgGIS157051-LU","157051-LUSoftware ArgGIS",null,"ESRI","157051-LU","Software ArgGIS","ESRI","USD","N/A","Acuerdo institucional de educación Small (Usuarios Académicos y Administrativos)","Licencia/año ","Und","Licencias","N/A","N/A","N/A","157051-LU","Credito a 30 días ",6945.75,1,0,"USD"]
["ESRISoftware ArgGIS157080-LU","157080-LUSoftware ArgGIS",null,"ESRI","157080-LU","Software ArgGIS","ESRI","USD","N/A","Acuerdo institucional de educación Medium (Usuarios Académicos y Administrativos)","Licencia/año ","Und","Licencias","N/A","N/A","N/A","157080-LU","Credito a 30 días ",13891.5,1,0,"USD"]
["ESRISoftware ArgGIS157087-LU","157087-LUSoftware ArgGIS",null,"ESRI","157087-LU","Software ArgGIS","ESRI","USD","N/A","Acuerdo institucional de educación Large (Usuarios Académicos y Administrativos)","Licencia/año ","Und","Licencias","N/A","N/A","N/A","157087-LU","Credito a 30 días ",34728.75,1,0,"USD"]
["ESRISoftware ArgGIS158381-LU","158381-LUSoftware ArgGIS",null,"ESRI","158381-LU","Software ArgGIS","ESRI","USD","N/A","ArcGIS for Maritime: Charting for Desktop Bundle Single Use License","Licencia ","Und","Licencias","N/A","N/A","N/A","158381-LU","Credito a 30 días ",22228.67,1,0,"USD"]
["ESRISoftware ArgGIS159047-LU","159047-LUSoftware ArgGIS",null,"ESRI","159047-LU","Software ArgGIS","ESRI","USD","N/A","ArcGIS Image Analyst for ArcGIS Pro Single Use Term License","Licencia/mes","Und","Licencias","N/A","N/A","N/A","159047-LU","Credito a 30 días ",68.606666666666669,1,0,"USD"]
["ESRISoftware ArgGIS159049-LU","159049-LUSoftware ArgGIS",null,"ESRI","159049-LU","Software ArgGIS","ESRI","USD","N/A","ArcGIS Image Analyst for ArcGIS Pro Single Use License","Licencia ","Und","Licencias","N/A","N/A","N/A","159049-LU","Credito a 30 días ",3430.35,1,0,"USD"]
["ESRISoftware ArgGIS159050-LU","159050-LUSoftware ArgGIS",null,"ESRI","159050-LU","Software ArgGIS","ESRI","USD","N/A","ArcGIS Image Analyst for ArcGIS Pro Concurrent Use License","Licencia ","Und","Licencias","N/A","N/A","N/A","159050-LU","Credito a 30 días ",3430.35,1,0,"USD"]
["ESRISoftware ArgGIS159060-LU","159060-LUSoftware ArgGIS",null,"ESRI","159060-LU","Software ArgGIS","ESRI","USD","N/A","ArcGIS Desktop Advanced One Year Timeout for Student Use License","Licencia ","Und","Licencias","N/A","N/A","N/A","159060-LU","Credito a 30 días ",137,1,0,"USD"]
["ESRISoftware ArgGIS160031-LU","160031-LUSoftware ArgGIS",null,"ESRI","160031-LU","Software ArgGIS","ESRI","USD","N/A","ArcGIS GeoAnalytics Server (Windows) Additional Core (up to 32 per server) License (Enterprise)","Licencia ","Und","Licencias","N/A","N/A","N/A","160031-LU","Credito a 30 días ",6860.7,1,0,"USD"]
[{"$f":"D450&F450&E450","v":"ESRISoftware ArgGIS160033-LU"},{"$f":"E450&F450","v":"160033-LUSoftware ArgGIS"},null,"ESRI","160033-LU","Software ArgGIS","ESRI","USD","N/A","ArcGIS Image Server (Windows) Additional Core (more than 32 per Server) License","Licencia ","Und","Licencias","N/A","N/A","N/A",{"$f":"+E450","v":"160033-LU"},"Credito a 30 días ",3430.35,1,0,"USD"]
["ESRISoftware ArgGIS160037-LU","160037-LUSoftware ArgGIS",null,"ESRI","160037-LU","Software ArgGIS","ESRI","USD","N/A","ArcGIS GeoAnalytics Server (Windows) Additional Core (more than 32 per Server) License (Enterprise)","Licencia ","Und","Licencias","N/A","N/A","N/A","160037-LU","Credito a 30 días ",3430.35,1,0,"USD"]
["ESRISoftware ArgGIS160054-LU","160054-LUSoftware ArgGIS",null,"ESRI","160054-LU","Software ArgGIS","ESRI","USD","N/A","ArcGIS GeoEvent Server (Windows) Additional Core (more than 32 per Server) License","Licencia ","Und","Licencias","N/A","N/A","N/A","160054-LU","Credito a 30 días ",3430.35,1,0,"USD"]
["ESRISoftware ArgGIS160370-LU","160370-LUSoftware ArgGIS",null,"ESRI","160370-LU","Software ArgGIS","ESRI","USD","N/A","ArcGIS GIS Server Advanced (Windows) Additional Core Term License","Licencia/año ","Und","Licencias","N/A","N/A","N/A","160370-LU","Credito a 30 días ",8232.84,1,0,"USD"]
["ESRISoftware ArgGIS160372-LU","160372-LUSoftware ArgGIS",null,"ESRI","160372-LU","Software ArgGIS","ESRI","USD","N/A","ArcGIS GIS Server Standard (Windows) Additional Core Term License","Licencia ","Und","Licencias","N/A","N/A","N/A","160372-LU","Credito a 30 días ",4116.42,1,0,"USD"]
["ESRISoftware ArgGIS160450-LU","160450-LUSoftware ArgGIS",null,"ESRI","160450-LU","Software ArgGIS","ESRI","USD","N/A","ArcGIS Enterprise Workgroup Advanced Up to Two Cores License","Licencia ","Und","Licencias","N/A","N/A","N/A","160450-LU","Credito a 30 días ",13721.4,1,0,"USD"]
["ESRISoftware ArgGIS160452-LU","160452-LUSoftware ArgGIS",null,"ESRI","160452-LU","Software ArgGIS","ESRI","USD","N/A","ArcGIS Enterprise Workgroup Standard Up to Two Cores License","Licencia ","Und","Licencias","N/A","N/A","N/A","160452-LU","Credito a 30 días ",6861.24,1,0,"USD"]
["ESRISoftware ArgGIS160454-LU","160454-LUSoftware ArgGIS",null,"ESRI","160454-LU","Software ArgGIS","ESRI","USD","N/A","ArcGIS GIS Server Workgroup Advanced Up to Two Cores License","Licencia ","Und","Licencias","N/A","N/A","N/A","160454-LU","Credito a 30 días ",13721.4,1,0,"USD"]
["ESRISoftware ArgGIS160455-LU","160455-LUSoftware ArgGIS",null,"ESRI","160455-LU","Software ArgGIS","ESRI","USD","N/A","ArcGIS GIS Server Workgroup Standard Up to Two Cores License","Licencia ","Und","Licencias","N/A","N/A","N/A","160455-LU","Credito a 30 días ",6860.7,1,0,"USD"]
["ESRISoftware ArgGIS160456-LU","160456-LUSoftware ArgGIS",null,"ESRI","160456-LU","Software ArgGIS","ESRI","USD","N/A","ArcGIS Enterprise Advanced (Linux) Up to Four Cores License","Licencia ","Und","Licencias","N/A","N/A","N/A","160456-LU","Credito a 30 días ",54885.599999999999,1,0,"USD"]
["ESRISoftware ArgGIS160458-LU","160458-LUSoftware ArgGIS",null,"ESRI","160458-LU","Software ArgGIS","ESRI","USD","N/A","ArcGIS Enterprise Advanced (Windows) Up to Four Cores License","Licencia ","Und","Licencias","N/A","N/A","N/A","160458-LU","Credito a 30 días ",54885.599999999999,1,0,"USD"]
["ESRISoftware ArgGIS160460-LU","160460-LUSoftware ArgGIS",null,"ESRI","160460-LU","Software ArgGIS","ESRI","USD","N/A","ArcGIS Enterprise Standard (Linux) Up to Four Cores License","Licencia ","Und","Licencias","N/A","N/A","N/A","160460-LU","Credito a 30 días ",27442.799999999999,1,0,"USD"]
["ESRISoftware ArgGIS160463-LU","160463-LUSoftware ArgGIS",null,"ESRI","160463-LU","Software ArgGIS","ESRI","USD","N/A","ArcGIS Enterprise Standard (Windows) Up to Four Cores License","Licencia ","Und","Licencias","N/A","N/A","N/A","160463-LU","Credito a 30 días ",27442.799999999999,1,0,"USD"]
["ESRISoftware ArgGIS160468-LU","160468-LUSoftware ArgGIS",null,"ESRI","160468-LU","Software ArgGIS","ESRI","USD","N/A","ArcGIS GeoAnalytics Server (Linux) Up to Four Cores License","Licencia ","Und","Licencias","N/A","N/A","N/A","160468-LU","Credito a 30 días ",27442.799999999999,1,0,"USD"]
["ESRISoftware ArgGIS160470-LU","160470-LUSoftware ArgGIS",null,"ESRI","160470-LU","Software ArgGIS","ESRI","USD","N/A","ArcGIS GeoAnalytics Server (Windows) Up to Four Cores License (Enterprise)","Licencia ","Und","Licencias","N/A","N/A","N/A","160470-LU","Credito a 30 días ",27442.799999999999,1,0,"USD"]
["ESRISoftware ArgGIS160472-LU","160472-LUSoftware ArgGIS",null,"ESRI","160472-LU","Software ArgGIS","ESRI","USD","N/A","ArcGIS GeoAnalytics Server Workgroup Up to Four Cores License (Enterprise)","Licencia ","Und","Licencias","N/A","N/A","N/A","160472-LU","Credito a 30 días ",13721.4,1,0,"USD"]
["ESRISoftware ArgGIS160473-LU","160473-LUSoftware ArgGIS",null,"ESRI","160473-LU","Software ArgGIS","ESRI","USD","N/A","ArcGIS GeoEvent Server (Linux) Up to Four Cores License","Licencia ","Und","Licencias","N/A","N/A","N/A","160473-LU","Credito a 30 días ",27442.799999999999,1,0,"USD"]
["ESRISoftware ArgGIS160474-LU","160474-LUSoftware ArgGIS",null,"ESRI","160474-LU","Software ArgGIS","ESRI","USD","N/A","ArcGIS GeoEvent Server (Windows) Up to Four Cores License","Licencia ","Und","Licencias","N/A","N/A","N/A","160474-LU","Credito a 30 días ",27442.799999999999,1,0,"USD"]
["ESRISoftware ArgGIS160475-LU","160475-LUSoftware ArgGIS",null,"ESRI","160475-LU","Software ArgGIS","ESRI","USD","N/A","ArcGIS GeoEvent Server Workgroup Up to Four Cores License","Licencia ","Und","Licencias","N/A","N/A","N/A","160475-LU","Credito a 30 días ",13721.4,1,0,"USD"]
["ESRISoftware ArgGIS160476-LU","160476-LUSoftware ArgGIS",null,"ESRI","160476-LU","Software ArgGIS","ESRI","USD","N/A","ArcGIS Image Server (Linux) Up to Four Cores License","Licencia ","Und","Licencias","N/A","N/A","N/A","160476-LU","Credito a 30 días ",27442.799999999999,1,0,"USD"]
["ESRISoftware ArgGIS160478-LU","160478-LUSoftware ArgGIS",null,"ESRI","160478-LU","Software ArgGIS","ESRI","USD","N/A","ArcGIS Image Server (Windows) Up to Four Cores License","Licencia ","Und","Licencias","N/A","N/A","N/A","160478-LU","Credito a 30 días ",27442.799999999999,1,0,"USD"]
["ESRISoftware ArgGIS160480-LU","160480-LUSoftware ArgGIS",null,"ESRI","160480-LU","Software ArgGIS","ESRI","USD","N/A","ArcGIS Image Server Workgroup Up to Four Cores License","Licencia ","Und","Licencias","N/A","N/A","N/A","160480-LU","Credito a 30 días ",13721.4,1,0,"USD"]
["ESRISoftware ArgGIS160483-LU","160483-LUSoftware ArgGIS",null,"ESRI","160483-LU","Software ArgGIS","ESRI","USD","N/A","ArcGIS GIS Server Advanced (Windows) Up to Four Cores License","Licencia ","Und","Licencias","N/A","N/A","N/A","160483-LU","Credito a 30 días ",54885.599999999999,1,0,"USD"]
["ESRISoftware ArgGIS160484-LU","160484-LUSoftware ArgGIS",null,"ESRI","160484-LU","Software ArgGIS","ESRI","USD","N/A","ArcGIS for Maritime for ArcGIS GIS Server Advanced (Windows) Up to Four Cores License","Licencia ","Und","Licencias","N/A","N/A","N/A","160484-LU","Credito a 30 días ",13721.4,1,0,"USD"]
["ESRISoftware ArgGIS160485-LU","160485-LUSoftware ArgGIS",null,"ESRI","160485-LU","Software ArgGIS","ESRI","USD","N/A","ArcGIS for Maritime for ArcGIS GIS Server Workgroup Advanced Maximum Four Cores License","Licencia ","Und","Licencias","N/A","N/A","N/A","160485-LU","Credito a 30 días ",6860.7,1,0,"USD"]
["ESRISoftware ArgGIS160486-LU","160486-LUSoftware ArgGIS",null,"ESRI","160486-LU","Software ArgGIS","ESRI","USD","N/A","ArcGIS for Maritime for ArcGIS GIS Server Standard (Windows) Up to Four Cores License","Licencia ","Und","Licencias","N/A","N/A","N/A","160486-LU","Credito a 30 días ",13721.4,1,0,"USD"]
["ESRISoftware ArgGIS160487-LU","160487-LUSoftware ArgGIS",null,"ESRI","160487-LU","Software ArgGIS","ESRI","USD","N/A","ArcGIS for Maritime for ArcGIS GIS Server Workgroup Standard Maximum Four Cores License","Licencia ","Und","Licencias","N/A","N/A","N/A","160487-LU","Credito a 30 días ",6860.7,1,0,"USD"]
["ESRISoftware ArgGIS160489-LU","160489-LUSoftware ArgGIS",null,"ESRI","160489-LU","Software ArgGIS","ESRI","USD","N/A","ArcGIS GIS Server Basic (Windows) Up to Four Cores License","Licencia ","Und","Licencias","N/A","N/A","N/A","160489-LU","Credito a 30 días ",13721.4,1,0,"USD"]
["ESRISoftware ArgGIS160490-LU","160490-LUSoftware ArgGIS",null,"ESRI","160490-LU","Software ArgGIS","ESRI","USD","N/A","ArcGIS GIS Server Workgroup Basic Maximum Four Cores License","Licencia ","Und","Licencias","N/A","N/A","N/A","160490-LU","Credito a 30 días ",6860.7,1,0,"USD"]
["ESRISoftware ArgGIS160491-LU","160491-LUSoftware ArgGIS",null,"ESRI","160491-LU","Software ArgGIS","ESRI","USD","N/A","ArcGIS Data Reviewer for ArcGIS GIS Server Standard or Advanced (Windows Only) Up to Four Cores Perpetual License","Licencia ","Und","Licencias","N/A","N/A","N/A","160491-LU","Credito a 30 días ",13721.4,1,0,"USD"]
["ESRISoftware ArgGIS160492-LU","160492-LUSoftware ArgGIS",null,"ESRI","160492-LU","Software ArgGIS","ESRI","USD","N/A","ArcGIS Data Reviewer for ArcGIS GIS Server Workgroup Standard or Advanced Maximum Four Cores Perpetual License","Licencia ","Und","Licencias","N/A","N/A","N/A","160492-LU","Credito a 30 días ",6860.7,1,0,"USD"]
["ESRISoftware ArgGIS160495-LU","160495-LUSoftware ArgGIS",null,"ESRI","160495-LU","Software ArgGIS","ESRI","USD","N/A","Esri Defense Mapping for ArcGIS GIS Server Advanced (Windows) Up to Four Cores License","Licencia ","Und","Licencias","N/A","N/A","N/A","160495-LU","Credito a 30 días ",13721.4,1,0,"USD"]
["ESRISoftware ArgGIS160496-LU","160496-LUSoftware ArgGIS",null,"ESRI","160496-LU","Software ArgGIS","ESRI","USD","N/A","Esri Defense Mapping for ArcGIS GIS Server Workgroup Advanced Maximum Four Cores License","Licencia ","Und","Licencias","N/A","N/A","N/A","160496-LU","Credito a 30 días ",6860.7,1,0,"USD"]
["ESRISoftware ArgGIS160497-LU","160497-LUSoftware ArgGIS",null,"ESRI","160497-LU","Software ArgGIS","ESRI","USD","N/A","Esri Production Mapping for ArcGIS GIS Server Advanced (Windows) Up to Four Cores License","Licencia ","Und","Licencias","N/A","N/A","N/A","160497-LU","Credito a 30 días ",13721.4,1,0,"USD"]
["ESRISoftware ArgGIS160498-LU","160498-LUSoftware ArgGIS",null,"ESRI","160498-LU","Software ArgGIS","ESRI","USD","N/A","Esri Production Mapping for ArcGIS GIS Server Workgroup Advanced Maximum Four Cores License","Licencia ","Und","Licencias","N/A","N/A","N/A","160498-LU","Credito a 30 días ",6860.7,1,0,"USD"]
["ESRISoftware ArgGIS160499-LU","160499-LUSoftware ArgGIS",null,"ESRI","160499-LU","Software ArgGIS","ESRI","USD","N/A","Esri Production Mapping for ArcGIS GIS Server Standard (Windows) Up to Four Cores License","Licencia ","Und","Licencias","N/A","N/A","N/A","160499-LU","Credito a 30 días ",13721.4,1,0,"USD"]
["ESRISoftware ArgGIS160500-LU","160500-LUSoftware ArgGIS",null,"ESRI","160500-LU","Software ArgGIS","ESRI","USD","N/A","Esri Production Mapping for ArcGIS GIS Server Workgroup Standard (Windows) Maximum Four Cores Licens","Licencia ","Und","Licencias","N/A","N/A","N/A","160500-LU","Credito a 30 días ",6860.7,1,0,"USD"]
["ESRISoftware ArgGIS160503-LU","160503-LUSoftware ArgGIS",null,"ESRI","160503-LU","Software ArgGIS","ESRI","USD","N/A","ArcGIS Data Interoperability for ArcGIS GIS Server Workgroup Advanced Maximum Four Cores License","Licencia ","Und","Licencias","N/A","N/A","N/A","160503-LU","Credito a 30 días ",6860.7,1,0,"USD"]
["ESRISoftware ArgGIS160505-LU","160505-LUSoftware ArgGIS",null,"ESRI","160505-LU","Software ArgGIS","ESRI","USD","N/A","ArcGIS Data Interoperability for ArcGIS GIS Server Workgroup Standard Maximum Four Cores License","Licencia ","Und","Licencias","N/A","N/A","N/A","160505-LU","Credito a 30 días ",6860.7,1,0,"USD"]
["ESRISoftware ArgGIS160506-LU","160506-LUSoftware ArgGIS",null,"ESRI","160506-LU","Software ArgGIS","ESRI","USD","N/A","ArcGIS Data Interoperability for ArcGIS GIS Server Advanced (Windows) Up to Four Cores License","Licencia ","Und","Licencias","N/A","N/A","N/A","160506-LU","Credito a 30 días ",13721.4,1,0,"USD"]
["ESRISoftware ArgGIS160507-LU","160507-LUSoftware ArgGIS",null,"ESRI","160507-LU","Software ArgGIS","ESRI","USD","N/A","ArcGIS Data Interoperability for ArcGIS GIS Server Standard (Windows) Up to Four Cores License","Licencia ","Und","Licencias","N/A","N/A","N/A","160507-LU","Credito a 30 días ",13721.4,1,0,"USD"]
["ESRISoftware ArgGIS160509-LU","160509-LUSoftware ArgGIS",null,"ESRI","160509-LU","Software ArgGIS","ESRI","USD","N/A","ArcGIS Network Analyst for ArcGIS GIS Server Standard (Windows) Up to Four Cores License","Licencia ","Und","Licencias","N/A","N/A","N/A","160509-LU","Credito a 30 días ",13721.4,1,0,"USD"]
["ESRISoftware ArgGIS160510-LU","160510-LUSoftware ArgGIS",null,"ESRI","160510-LU","Software ArgGIS","ESRI","USD","N/A","ArcGIS Network Analyst for ArcGIS GIS Server Workgroup Standard Maximum Four Cores License","Licencia ","Und","Licencias","N/A","N/A","N/A","160510-LU","Credito a 30 días ",6860.7,1,0,"USD"]
["ESRISoftware ArgGIS160513-LU","160513-LUSoftware ArgGIS",null,"ESRI","160513-LU","Software ArgGIS","ESRI","USD","N/A","ArcGIS GIS Server Standard (Windows) Up to Four Cores License","Licencia ","Und","Licencias","N/A","N/A","N/A","160513-LU","Credito a 30 días ",27442.799999999999,1,0,"USD"]
["ESRISoftware ArgGIS160514-LU","160514-LUSoftware ArgGIS",null,"ESRI","160514-LU","Software ArgGIS","ESRI","USD","N/A","ArcGIS Workflow Manager (Classic) for ArcGIS GIS Server Standard or Advanced (Windows Only) Up to Four Cores Perpetual License","Licencia ","Und","Licencias","N/A","N/A","N/A","160514-LU","Credito a 30 días ",13721.4,1,0,"USD"]
["ESRISoftware ArgGIS160516-LU","160516-LUSoftware ArgGIS",null,"ESRI","160516-LU","Software ArgGIS","ESRI","USD","N/A","ArcGIS Workflow Manager (Classic) for ArcGIS GIS Server Workgroup Standard or Advanced Maximum Four Cores Perpetual License","Licencia ","Und","Licencias","N/A","N/A","N/A","160516-LU","Credito a 30 días ",6860.7,1,0,"USD"]
["ESRISoftware ArgGIS160582-LU","160582-LUSoftware ArgGIS",null,"ESRI","160582-LU","Software ArgGIS","ESRI","USD","N/A","Esri Roads and Highways Roadway Reporter for ArcGIS GIS Server Up to 250 Users License","Licencia ","Und","Licencias","N/A","N/A","N/A","160582-LU","Credito a 30 días ",54885.599999999999,1,0,"USD"]
["ESRISoftware ArgGIS160583-LU","160583-LUSoftware ArgGIS",null,"ESRI","160583-LU","Software ArgGIS","ESRI","USD","N/A","Esri Roads and Highways Roadway Reporter for ArcGIS GIS Server Up to 50 Users License","Licencia ","Und","Licencias","N/A","N/A","N/A","160583-LU","Credito a 30 días ",27443,1,0,"USD"]
["ESRISoftware ArgGIS160584-LU","160584-LUSoftware ArgGIS",null,"ESRI","160584-LU","Software ArgGIS","ESRI","USD","N/A","Esri Roads and Highways Roadway Reporter for ArcGIS GIS Server Up to 500 Users License","Licencia ","Und","Licencias","N/A","N/A","N/A","160584-LU","Credito a 30 días ",82328.399999999994,1,0,"USD"]
["ESRISoftware ArgGIS160588-LU","160588-LUSoftware ArgGIS",null,"ESRI","160588-LU","Software ArgGIS","ESRI","USD","N/A","ArcGIS Enterprise Advanced (Windows) Up to Four Cores Staging Server License","Licencia ","Und","Licencias","N/A","N/A","N/A","160588-LU","Credito a 30 días ",27442.799999999999,1,0,"USD"]
["ESRISoftware ArgGIS160590-LU","160590-LUSoftware ArgGIS",null,"ESRI","160590-LU","Software ArgGIS","ESRI","USD","N/A","ArcGIS Enterprise Standard (Windows) Up to Four Cores Staging Server License","Licencia ","Und","Licencias","N/A","N/A","N/A","160590-LU","Credito a 30 días ",13721.4,1,0,"USD"]
["ESRISoftware ArgGIS160594-LU","160594-LUSoftware ArgGIS",null,"ESRI","160594-LU","Software ArgGIS","ESRI","USD","N/A","ArcGIS GeoAnalytics Server (Windows) Up to Four Cores Staging Server License","Licencia ","Und","Licencias","N/A","N/A","N/A","160594-LU","Credito a 30 días ",13721.4,1,0,"USD"]
["ESRISoftware ArgGIS160596-LU","160596-LUSoftware ArgGIS",null,"ESRI","160596-LU","Software ArgGIS","ESRI","USD","N/A","ArcGIS GeoEvent Server (Windows) Up to Four Cores Staging Server License","Licencia ","Und","Licencias","N/A","N/A","N/A","160596-LU","Credito a 30 días ",13721.4,1,0,"USD"]
["ESRISoftware ArgGIS160598-LU","160598-LUSoftware ArgGIS",null,"ESRI","160598-LU","Software ArgGIS","ESRI","USD","N/A","ArcGIS Image Server (Windows) Up to Four Cores Staging Server License","Licencia ","Und","Licencias","N/A","N/A","N/A","160598-LU","Credito a 30 días ",13721.4,1,0,"USD"]
["ESRISoftware ArgGIS160602-LU","160602-LUSoftware ArgGIS",null,"ESRI","160602-LU","Software ArgGIS","ESRI","USD","N/A","ArcGIS for Maritime for ArcGIS GIS Server Standard (Windows) Up to Four Cores Staging Server License","Licencia ","Und","Licencias","N/A","N/A","N/A","160602-LU","Credito a 30 días ",6860.7,1,0,"USD"]
["ESRISoftware ArgGIS160616-LU","160616-LUSoftware ArgGIS",null,"ESRI","160616-LU","Software ArgGIS","ESRI","USD","N/A","ArcGIS Workflow Manager (Classic) for ArcGIS GIS Server Standard or Advanced (Windows Only) Up to Four Cores Staging Server Perpetual License","Licencia ","Und","Licencias","N/A","N/A","N/A","160616-LU","Credito a 30 días ",6860.7,1,0,"USD"]
["ESRISoftware ArgGIS160660-LU","160660-LUSoftware ArgGIS",null,"ESRI","160660-LU","Software ArgGIS","ESRI","USD","N/A","ArcGIS Enterprise Advanced (Windows) Up to Four Cores 365 Day Term License","Licencia/año ","Und","Licencias","N/A","N/A","N/A","160660-LU","Credito a 30 días ",32931.360000000001,1,0,"USD"]
["ESRISoftware ArgGIS160663-LU","160663-LUSoftware ArgGIS",null,"ESRI","160663-LU","Software ArgGIS","ESRI","USD","N/A","ArcGIS Enterprise Standard (Windows) Up to Four Cores 365 Day Term License","Licencia/año ","Und","Licencias","N/A","N/A","N/A","160663-LU","Credito a 30 días ",16465.68,1,0,"USD"]
["ESRISoftware ArgGIS160669-LU","160669-LUSoftware ArgGIS",null,"ESRI","160669-LU","Software ArgGIS","ESRI","USD","N/A","ArcGIS GeoAnalytics Server (Windows) Up to Four Cores Term License","Licencia/año ","Und","Licencias","N/A","N/A","N/A","160669-LU","Credito a 30 días ",16465.68,1,0,"USD"]
["ESRISoftware ArgGIS160678-LU","160678-LUSoftware ArgGIS",null,"ESRI","160678-LU","Software ArgGIS","ESRI","USD","N/A","ArcGIS GeoEvent Server (Windows) Up to Four Cores 365 Day Term License","Licencia/año ","Und","Licencias","N/A","N/A","N/A","160678-LU","Credito a 30 días ",16465.68,1,0,"USD"]
["ESRISoftware ArgGIS160684-LU","160684-LUSoftware ArgGIS",null,"ESRI","160684-LU","Software ArgGIS","ESRI","USD","N/A","ArcGIS Image Server (Windows) Up to Four Cores 365 Day Term License","Licencia/año ","Und","Licencias","N/A","N/A","N/A","160684-LU","Credito a 30 días ",16465.68,1,0,"USD"]
["ESRISoftware ArgGIS160704-LU","160704-LUSoftware ArgGIS",null,"ESRI","160704-LU","Software ArgGIS","ESRI","USD","N/A","ArcGIS GIS Server Advanced (Windows) Up to Four Cores 30 Day Term License","Licencia/mes","Und","Licencias","N/A","N/A","N/A","160704-LU","Credito a 30 días ",6449.06,1,0,"USD"]
["ESRISoftware ArgGIS160705-LU","160705-LUSoftware ArgGIS",null,"ESRI","160705-LU","Software ArgGIS","ESRI","USD","N/A","ArcGIS GIS Server Advanced (Windows) Up to Four Cores 365 Day Term License","Licencia/año ","Und","Licencias","N/A","N/A","N/A","160705-LU","Credito a 30 días ",32931.360000000001,1,0,"USD"]
["ESRISoftware ArgGIS160706-LU","160706-LUSoftware ArgGIS",null,"ESRI","160706-LU","Software ArgGIS","ESRI","USD","N/A","ArcGIS GIS Server Advanced (Windows) Up to Four Cores 90 Day Term License","Licencia ","Und","Licencias","N/A","N/A","N/A","160706-LU","Credito a 30 días ",16465.68,1,0,"USD"]
[{"$f":"D514&F514&E514","v":"ESRISoftware ArgGIS160711-LU"},{"$f":"E514&F514","v":"160711-LUSoftware ArgGIS"},null,"ESRI","160711-LU","Software ArgGIS","ESRI","USD","N/A","ArcGIS GIS Server Basic (Windows) Up to Four Cores 30 Day Term License","Licencia/mes","Und","Licencias","N/A","N/A","N/A",{"$f":"+E514","v":"160711-LU"},"Credito a 30 días ",1646.57,1,0,"USD"]
["ESRISoftware ArgGIS160713-LU","160713-LUSoftware ArgGIS",null,"ESRI","160713-LU","Software ArgGIS","ESRI","USD","N/A","ArcGIS GIS Server Basic (Windows) Up to Four Cores 365 Day Term License","Licencia/año ","Und","Licencias","N/A","N/A","N/A","160713-LU","Credito a 30 días ",8232.84,1,0,"USD"]
["ESRISoftware ArgGIS160722-LU","160722-LUSoftware ArgGIS",null,"ESRI","160722-LU","Software ArgGIS","ESRI","USD","N/A","ArcGIS GIS Server Standard (Windows) Up to Four Cores 30 Day Term License","Licencia/mes","Und","Licencias","N/A","N/A","N/A","160722-LU","Credito a 30 días ",3155.92,1,0,"USD"]
["ESRISoftware ArgGIS160723-LU","160723-LUSoftware ArgGIS",null,"ESRI","160723-LU","Software ArgGIS","ESRI","USD","N/A","ArcGIS GIS Server Standard (Windows) Up to Four Cores 365 Day Term License","Licencia/año ","Und","Licencias","N/A","N/A","N/A","160723-LU","Credito a 30 días ",16465.68,1,0,"USD"]
["ESRISoftware ArgGIS160724-LU","160724-LUSoftware ArgGIS",null,"ESRI","160724-LU","Software ArgGIS","ESRI","USD","N/A","ArcGIS GIS Server Standard (Windows) Up to Four Cores 90 Day Term License","Licencia ","Und","Licencias","N/A","N/A","N/A","160724-LU","Credito a 30 días ",8232.84,1,0,"USD"]
["ESRISoftware ArgGIS160729-LU","160729-LUSoftware ArgGIS",null,"ESRI","160729-LU","Software ArgGIS","ESRI","USD","N/A","ArcGIS Workflow Manager (Classic) for ArcGIS GIS Server Standard or Advanced (Windows Only) Up to Four Cores Término 1 año ","Licencia/año ","Und","Licencias","N/A","N/A","N/A","160729-LU","Credito a 30 días ",8232.84,1,0,"USD"]
["ESRISoftware ArgGIS160779-LU","160779-LUSoftware ArgGIS",null,"ESRI","160779-LU","Software ArgGIS","ESRI","USD","N/A","ArcGIS Network Analyst for ArcGIS GIS Server Standard (Windows) Up to Four Cores 365 Day Term Lic.","Licencia/año ","Und","Licencias","N/A","N/A","N/A","160779-LU","Credito a 30 días ",8232.84,1,0,"USD"]
["ESRISoftware ArgGIS160894-LU","160894-LUSoftware ArgGIS",null,"ESRI","160894-LU","Software ArgGIS","ESRI","USD","N/A","ArcGIS GIS Server Workgroup Advanced Additional Core License","Licencia ","Und","Licencias","N/A","N/A","N/A","160894-LU","Credito a 30 días ",6860.7,1,0,"USD"]
["ESRISoftware ArgGIS160895-LU","160895-LUSoftware ArgGIS",null,"ESRI","160895-LU","Software ArgGIS","ESRI","USD","N/A","ArcGIS GIS Server Workgroup Standard Additional Core License","Licencia ","Und","Licencias","N/A","N/A","N/A","160895-LU","Credito a 30 días ",3430.35,1,0,"USD"]
["ESRISoftware ArgGIS160899-LU","160899-LUSoftware ArgGIS",null,"ESRI","160899-LU","Software ArgGIS","ESRI","USD","N/A","ArcGIS GIS Server Advanced (Windows) Additional Core License","Licencia ","Und","Licencias","N/A","N/A","N/A","160899-LU","Credito a 30 días ",13721.4,1,0,"USD"]
["ESRISoftware ArgGIS160900-LU","160900-LUSoftware ArgGIS",null,"ESRI","160900-LU","Software ArgGIS","ESRI","USD","N/A","ArcGIS GIS Server Standard (Windows) Additional Core License","Licencia ","Und","Licencias","N/A","N/A","N/A","160900-LU","Credito a 30 días ",6860.7,1,0,"USD"]
["ESRISoftware ArgGIS160901-LU","160901-LUSoftware ArgGIS",null,"ESRI","160901-LU","Software ArgGIS","ESRI","USD","N/A","ArcGIS GIS Server Basic (Windows) Additional Core License","Licencia ","Und","Licencias","N/A","N/A","N/A","160901-LU","Credito a 30 días ",3430.35,1,0,"USD"]
["ESRISoftware ArgGIS160930-LU","160930-LUSoftware ArgGIS",null,"ESRI","160930-LU","Software ArgGIS","ESRI","USD","N/A","ArcGIS Enterprise Advanced (Windows) Up to Four Cores Staging Server 365 Day Term License","Licencia/año ","Und","Licencias","N/A","N/A","N/A","160930-LU","Credito a 30 días ",16465.68,1,0,"USD"]
["ESRISoftware ArgGIS160932-LU","160932-LUSoftware ArgGIS",null,"ESRI","160932-LU","Software ArgGIS","ESRI","USD","N/A","ArcGIS Enterprise Standard (Windows) Up to Four Cores Staging Server 365 Day Term License","Licencia/año ","Und","Licencias","N/A","N/A","N/A","160932-LU","Credito a 30 días ",8232.84,1,0,"USD"]
["ESRISoftware ArgGIS160942-LU","160942-LUSoftware ArgGIS",null,"ESRI","160942-LU","Software ArgGIS","ESRI","USD","N/A","ArcGIS GIS Server Advanced (Windows) Up to Four Cores Staging Server 30 Day Term License","Licencia/mes","Und","Licencias","N/A","N/A","N/A","160942-LU","Credito a 30 días ",3224.53,1,0,"USD"]
["ESRISoftware ArgGIS161019-LU","161019-LUSoftware ArgGIS",null,"ESRI","161019-LU","Software ArgGIS","ESRI","USD","N/A","ArcGIS Data Interoperability for ArcGIS GIS Server Advanced (Windows) Additional Core License","Licencia ","Und","Licencias","N/A","N/A","N/A","161019-LU","Credito a 30 días ",3430.35,1,0,"USD"]
["ESRISoftware ArgGIS161020-LU","161020-LUSoftware ArgGIS",null,"ESRI","161020-LU","Software ArgGIS","ESRI","USD","N/A","ArcGIS Data Interoperability for ArcGIS GIS Server Standard (Windows) Additional Core License","Licencia ","Und","Licencias","N/A","N/A","N/A","161020-LU","Credito a 30 días ",3430.35,1,0,"USD"]
["ESRISoftware ArgGIS161022-LU","161022-LUSoftware ArgGIS",null,"ESRI","161022-LU","Software ArgGIS","ESRI","USD","N/A","ArcGIS Network Analyst for ArcGIS GIS Server Standard (Windows) Additional Core License","Licencia ","Und","Licencias","N/A","N/A","N/A","161022-LU","Credito a 30 días ",3430.35,1,0,"USD"]
["ESRISoftware ArgGIS161047-LU","161047-LUSoftware ArgGIS",null,"ESRI","161047-LU","Software ArgGIS","ESRI","USD","N/A","ArcGIS Workflow Manager (Classic) for ArcGIS GIS Server Standard or Advanced (Windows Only) Additional Core Perpetual License","Licencia ","Und","Licencias","N/A","N/A","N/A","161047-LU","Credito a 30 días ",3430.35,1,0,"USD"]
["ESRISoftware ArgGIS161055-LU","161055-LUSoftware ArgGIS",null,"ESRI","161055-LU","Software ArgGIS","ESRI","USD","N/A","ArcGIS Image Server (Windows) Additional Core (up to 32 per server) License","Licencia ","Und","Licencias","N/A","N/A","N/A","161055-LU","Credito a 30 días ",6860.7,1,0,"USD"]
["ESRISoftware ArgGIS161078-LU","161078-LUSoftware ArgGIS",null,"ESRI","161078-LU","Software ArgGIS","ESRI","USD","N/A","ArcGIS Data Reviewer for ArcGIS GIS Server Standard or Advanced (Windows Only) Additional Core Perpetual License","Licencia ","Und","Licencias","N/A","N/A","N/A","161078-LU","Credito a 30 días ",3430.35,1,0,"USD"]
["ESRISoftware ArgGIS161083-LU","161083-LUSoftware ArgGIS",null,"ESRI","161083-LU","Software ArgGIS","ESRI","USD","N/A","ArcGIS Roads and Highways for ArcGIS GIS Server Standard or Advanced (Windows Only) Additional Core Perpetual License","Licencia ","Und","Licencias","N/A","N/A","N/A","161083-LU","Credito a 30 días ",3430.35,1,0,"USD"]
["ESRISoftware ArgGIS161089-LU","161089-LUSoftware ArgGIS",null,"ESRI","161089-LU","Software ArgGIS","ESRI","USD","N/A","ArcGIS GeoEvent Server (Windows) Additional Core (up to 32 per server) License","Licencia ","Und","Licencias","N/A","N/A","N/A","161089-LU","Credito a 30 días ",6860.7,1,0,"USD"]
["ESRISoftware ArgGIS161096-LU","161096-LUSoftware ArgGIS",null,"ESRI","161096-LU","Software ArgGIS","ESRI","USD","N/A","Esri Production Mapping for ArcGIS GIS Server Standard (Windows) Additional Core License","Licencia ","Und","Licencias","N/A","N/A","N/A","161096-LU","Credito a 30 días ",3430.35,1,0,"USD"]
["ESRISoftware ArgGIS161097-LU","161097-LUSoftware ArgGIS",null,"ESRI","161097-LU","Software ArgGIS","ESRI","USD","N/A","Esri Production Mapping for ArcGIS GIS Server Advanced (Windows) Additional Core License","Licencia ","Und","Licencias","N/A","N/A","N/A","161097-LU","Credito a 30 días ",3430.35,1,0,"USD"]
["ESRISoftware ArgGIS161108-LU","161108-LUSoftware ArgGIS",null,"ESRI","161108-LU","Software ArgGIS","ESRI","USD","N/A","Esri Defense Mapping for ArcGIS GIS Server Advanced (Windows) Additional Core License","Licencia ","Und","Licencias","N/A","N/A","N/A","161108-LU","Credito a 30 días ",3430.35,1,0,"USD"]
["ESRISoftware ArgGIS161111-LU","161111-LUSoftware ArgGIS",null,"ESRI","161111-LU","Software ArgGIS","ESRI","USD","N/A","ArcGIS for Maritime for ArcGIS GIS Server Standard (Windows) Additional Core License","Licencia ","Und","Licencias","N/A","N/A","N/A","161111-LU","Credito a 30 días ",3430.35,1,0,"USD"]
["ESRISoftware ArgGIS161112-LU","161112-LUSoftware ArgGIS",null,"ESRI","161112-LU","Software ArgGIS","ESRI","USD","N/A","ArcGIS for Maritime for ArcGIS GIS Server Advanced (Windows) Additional Core License","Licencia ","Und","Licencias","N/A","N/A","N/A","161112-LU","Credito a 30 días ",3430.35,1,0,"USD"]
["ESRISoftware ArgGIS162036-LU","162036-LUSoftware ArgGIS",null,"ESRI","162036-LU","Software ArgGIS","ESRI","USD","N/A","ArcGIS Monitor for ArcGIS Server Up to Four Cores License","Licencia ","Und","Licencias","N/A","N/A","N/A","162036-LU","Credito a 30 días ",13721.4,1,0,"USD"]
["ESRISoftware ArgGIS162038-LU","162038-LUSoftware ArgGIS",null,"ESRI","162038-LU","Software ArgGIS","ESRI","USD","N/A","ArcGIS Monitor for ArcGIS Server Additional Core License","Licencia ","Und","Licencias","N/A","N/A","N/A","162038-LU","Credito a 30 días ",686.07,1,0,"USD"]
["ESRISoftware ArgGIS162040-LU","162040-LUSoftware ArgGIS",null,"ESRI","162040-LU","Software ArgGIS","ESRI","USD","N/A","ArcGIS Monitor for ArcGIS Server Up to Four Cores Term License","Licencia/mes","Und","Licencias","N/A","N/A","N/A","162040-LU","Credito a 30 días ",457.38000000000005,1,0,"USD"]
["ESRISoftware ArgGIS162071-LU","162071-LUSoftware ArgGIS",null,"ESRI","162071-LU","Software ArgGIS","ESRI","USD","N/A","ArcGIS Monitor for ArcGIS Server Additional Core Term License","Licencia/año ","Und","Licencias","N/A","N/A","N/A","162071-LU","Credito a 30 días ",686.07,1,0,"USD"]
["ESRISoftware ArgGIS162072-LU","162072-LUSoftware ArgGIS",null,"ESRI","162072-LU","Software ArgGIS","ESRI","USD","N/A","ArcGIS Monitor for ArcGIS Server Up to Four Cores Staging Server License","Licencia ","Und","Licencias","N/A","N/A","N/A","162072-LU","Credito a 30 días ",6860.7,1,0,"USD"]
["ESRISoftware ArgGIS162074-LU","162074-LUSoftware ArgGIS",null,"ESRI","162074-LU","Software ArgGIS","ESRI","USD","N/A","ArcGIS Monitor for ArcGIS Server Additional Core Staging Server License","Licencia ","Und","Licencias","N/A","N/A","N/A","162074-LU","Credito a 30 días ",343.04,1,0,"USD"]
["ESRISoftware ArgGIS162076-LU","162076-LUSoftware ArgGIS",null,"ESRI","162076-LU","Software ArgGIS","ESRI","USD","N/A","ArcGIS Monitor for ArcGIS Server Up to Four Cores Staging Server Term License","Licencia ","Und","Licencias","N/A","N/A","N/A","162076-LU","Credito a 30 días ",2744.28,1,0,"USD"]
["ESRISoftware ArgGIS162077-LU","162077-LUSoftware ArgGIS",null,"ESRI","162077-LU","Software ArgGIS","ESRI","USD","N/A","ArcGIS Monitor for ArcGIS Server Additional Core Staging Server Term License","Licencia ","Und","Licencias","N/A","N/A","N/A","162077-LU","Credito a 30 días ",343.04,1,0,"USD"]
["ESRISoftware ArgGIS162293-LU","162293-LUSoftware ArgGIS",null,"ESRI","162293-LU","Software ArgGIS","ESRI","USD","N/A","ArcGIS Utility Network Management for ArcGIS GIS Server Advanced (Windows) Up to Four Cores License","Licencia ","Und","Licencias","N/A","N/A","N/A","162293-LU","Credito a 30 días ",13721.4,1,0,"USD"]
["ESRISoftware ArgGIS162296-LU","162296-LUSoftware ArgGIS",null,"ESRI","162296-LU","Software ArgGIS","ESRI","USD","N/A","ArcGIS Utility Network Management for ArcGIS GIS Server Advanced (Windows) Additional Core License","Licencia ","Und","Licencias","N/A","N/A","N/A","162296-LU","Credito a 30 días ",3430.35,1,0,"USD"]
["ESRISoftware ArgGIS162299-LU","162299-LUSoftware ArgGIS",null,"ESRI","162299-LU","Software ArgGIS","ESRI","USD","N/A","ArcGIS Utility Network Management for ArcGIS GIS Server Standard (Windows) Up to Four Cores License","Licencia ","Und","Licencias","N/A","N/A","N/A","162299-LU","Credito a 30 días ",13721.4,1,0,"USD"]
["ESRISoftware ArgGIS162352-LU","162352-LUSoftware ArgGIS",null,"ESRI","162352-LU","Software ArgGIS","ESRI","USD","N/A","ArcGIS Utility Network Management for ArcGIS GIS Server Standard (Windows) Additional Core License","Licencia ","Und","Licencias","N/A","N/A","N/A","162352-LU","Credito a 30 días ",3430.35,1,0,"USD"]
["ESRISoftware ArgGIS162412-LU","162412-LUSoftware ArgGIS",null,"ESRI","162412-LU","Software ArgGIS","ESRI","USD","N/A","ArcGIS Pipeline Referencing for Desktop Concurrent Use License","Licencia ","Und","Licencias","N/A","N/A","N/A","162412-LU","Credito a 30 días ",13721.4,1,0,"USD"]
["ESRISoftware ArgGIS162557-LU","162557-LUSoftware ArgGIS",null,"ESRI","162557-LU","Software ArgGIS","ESRI","USD","N/A","ArcGIS Utility Network Management for ArcGIS GIS Server Advanced (Windows) Up to Four Cores Staging Server License","Licencia ","Und","Licencias","N/A","N/A","N/A","162557-LU","Credito a 30 días ",6860.7,1,0,"USD"]
["ESRISoftware ArgGIS162633-LU","162633-LUSoftware ArgGIS",null,"ESRI","162633-LU","Software ArgGIS","ESRI","USD","N/A","ArcGIS Utility Network Management for ArcGIS GIS Server Standard (Windows) Up to Four Cores Staging Server License","Licencia ","Und","Licencias","N/A","N/A","N/A","162633-LU","Credito a 30 días ",6860.7,1,0,"USD"]
["ESRISoftware ArgGIS165321-LU","165321-LUSoftware ArgGIS",null,"ESRI","165321-LU","Software ArgGIS","ESRI","USD","N/A","ArcGIS LocateXT for Desktop Single Use License","Licencia ","Und","Licencias","N/A","N/A","N/A","165321-LU","Credito a 30 días ",3430.35,1,0,"USD"]
["ESRISoftware ArgGIS165322-LU","165322-LUSoftware ArgGIS",null,"ESRI","165322-LU","Software ArgGIS","ESRI","USD","N/A","ArcGIS LocateXT for Desktop Concurrent Use License","Licencia ","Und","Licencias","N/A","N/A","N/A","165322-LU","Credito a 30 días ",3430.35,1,0,"USD"]
["ESRISoftware ArgGIS165558-LU","165558-LUSoftware ArgGIS",null,"ESRI","165558-LU","Software ArgGIS","ESRI","USD","N/A","ArcGIS Network Analyst for ArcGIS Pro Online Term License ","Licencia/mes","Und","Licencias","N/A","N/A","N/A","165558-LU","Credito a 30 días ",65.204999999999998,1,0,"USD"]
["ESRISoftware ArgGIS166362-LU","166362-LUSoftware ArgGIS",null,"ESRI","166362-LU","Software ArgGIS","ESRI","USD","N/A","ArcGIS Desktop Standard Single Use Term Upgrade from ArcGIS Desktop Basic Single Use Term","Licencia ","Und","Licencias","N/A","N/A","N/A","166362-LU","Credito a 30 días ",3018.71,1,0,"USD"]
["ESRISoftware ArgGIS166790-LU","166790-LUSoftware ArgGIS",null,"ESRI","166790-LU","Software ArgGIS","ESRI","USD","N/A","Workforce for ArcGIS Enterprise Term License","Licencia/mes","Und","Licencias","N/A","N/A","N/A","166790-LU","Credito a 30 días ",6.8608333333333329,1,0,"USD"]
["ESRISoftware ArgGIS166893-LU","166893-LUSoftware ArgGIS",null,"ESRI","166893-LU","Software ArgGIS","ESRI","USD","N/A","ArcGIS Enterprise Editor Term License","Licencia/mes","Und","Licencias","N/A","N/A","N/A","166893-LU","Credito a 30 días ",22.869166666666668,1,0,"USD"]
["ESRISoftware ArgGIS166894-LU","166894-LUSoftware ArgGIS",null,"ESRI","166894-LU","Software ArgGIS","ESRI","USD","N/A","ArcGIS Enterprise Field Worker Term License","Licencia/mes","Und","Licencias","N/A","N/A","N/A","166894-LU","Credito a 30 días ",40.020833333333336,1,0,"USD"]
["ESRISoftware ArgGIS166901-LU","166901-LUSoftware ArgGIS",null,"ESRI","166901-LU","Software ArgGIS","ESRI","USD","N/A","ArcGIS Enterprise Essential Apps Bundle Term License","Licencia/mes","Und","Licencias","N/A","N/A","N/A","166901-LU","Credito a 30 días ",5.7175000000000002,1,0,"USD"]
["ESRISoftware ArgGIS166902-LU","166902-LUSoftware ArgGIS",null,"ESRI","166902-LU","Software ArgGIS","ESRI","USD","N/A","ArcGIS Enterprise Field Apps Bundle Term License (Workforce, Survey123, Collector for ArcGIS & ArcGIS QuickCapture)","Licencia/mes","Und","Licencias","N/A","N/A","N/A","166902-LU","Credito a 30 días ",17.151666666666667,1,0,"USD"]
["ESRISoftware ArgGIS166903-LU","166903-LUSoftware ArgGIS",null,"ESRI","166903-LU","Software ArgGIS","ESRI","USD","N/A","ArcGIS Enterprise Office Apps Bundle Term License","Licencia/mes","Und","Licencias","N/A","N/A","N/A","166903-LU","Credito a 30 días ",11.434166666666668,1,0,"USD"]
["ESRISoftware ArgGIS166931-LU","166931-LUSoftware ArgGIS",null,"ESRI","166931-LU","Software ArgGIS","ESRI","USD","N/A","Survey123 for ArcGIS Enterprise Term License","Licencia/mes","Und","Licencias","N/A","N/A","N/A","166931-LU","Credito a 30 días ",6.8608333333333329,1,0,"USD"]
["ESRISoftware ArgGIS166932-LU","166932-LUSoftware ArgGIS",null,"ESRI","166932-LU","Software ArgGIS","ESRI","USD","N/A","Collector for ArcGIS Enterprise Term License","Licencia/mes","Und","Licencias","N/A","N/A","N/A","166932-LU","Credito a 30 días ",6.8608333333333329,1,0,"USD"]
["ESRISoftware ArgGIS166966-LU","166966-LUSoftware ArgGIS",null,"ESRI","166966-LU","Software ArgGIS","ESRI","USD","N/A","ArcGIS Enterprise Editor License","Licencia/mes","Und","Licencias","N/A","N/A","N/A","166966-LU","Credito a 30 días ",91.475833333333341,1,0,"USD"]
["ESRISoftware ArgGIS166967-LU","166967-LUSoftware ArgGIS",null,"ESRI","166967-LU","Software ArgGIS","ESRI","USD","N/A","ArcGIS Enterprise Field Worker License","Licencia/mes","Und","Licencias","N/A","N/A","N/A","166967-LU","Credito a 30 días ",160.08333333333334,1,0,"USD"]
["ESRISoftware ArgGIS166974-LU","166974-LUSoftware ArgGIS",null,"ESRI","166974-LU","Software ArgGIS","ESRI","USD","N/A","ArcGIS Enterprise Essential Apps Bundle License","Licencia/mes","Und","Licencias","N/A","N/A","N/A","166974-LU","Credito a 30 días ",22.869166666666668,1,0,"USD"]
["ESRISoftware ArgGIS166975-LU","166975-LUSoftware ArgGIS",null,"ESRI","166975-LU","Software ArgGIS","ESRI","USD","N/A","ArcGIS Enterprise Field Apps Bundle License (Workforce, Survey123, Collector for ArcGIS & ArcGIS QuickCapture)","Licencia/mes","Und","Licencias","N/A","N/A","N/A","166975-LU","Credito a 30 días ",68.606666666666669,1,0,"USD"]
["ESRISoftware ArgGIS166976-LU","166976-LUSoftware ArgGIS",null,"ESRI","166976-LU","Software ArgGIS","ESRI","USD","N/A","ArcGIS Enterprise Office Apps Bundle License","Licencia/mes","Und","Licencias","N/A","N/A","N/A","166976-LU","Credito a 30 días ",45.738333333333337,1,0,"USD"]
["ESRISoftware ArgGIS166978-LU","166978-LUSoftware ArgGIS",null,"ESRI","166978-LU","Software ArgGIS","ESRI","USD","N/A","Workforce for ArcGIS Enterprise License","Licencia/mes","Und","Licencias","N/A","N/A","N/A","166978-LU","Credito a 30 días ",27.442499999999999,1,0,"USD"]
["ESRISoftware ArgGIS166979-LU","166979-LUSoftware ArgGIS",null,"ESRI","166979-LU","Software ArgGIS","ESRI","USD","N/A","Survey123 for ArcGIS Enterprise License","Licencia/mes","Und","Licencias","N/A","N/A","N/A","166979-LU","Credito a 30 días ",27.442499999999999,1,0,"USD"]
["ESRISoftware ArgGIS166980-LU","166980-LUSoftware ArgGIS",null,"ESRI","166980-LU","Software ArgGIS","ESRI","USD","N/A","Collector for ArcGIS Enterprise License","Licencia/mes","Und","Licencias","N/A","N/A","N/A","166980-LU","Credito a 30 días ",27.442499999999999,1,0,"USD"]
["ESRISoftware ArgGIS167335-LU","167335-LUSoftware ArgGIS",null,"ESRI","167335-LU","Software ArgGIS","ESRI","USD","N/A","ArcGIS LocateXT for ArcGIS GIS Server Advanced (Windows) Up to Four Cores License","Licencia ","Und","Licencias","N/A","N/A","N/A","167335-LU","Credito a 30 días ",13721.4,1,0,"USD"]
[{"$f":"D578&F578&E578","v":"ESRISoftware ArgGIS167336-LU"},{"$f":"E578&F578","v":"167336-LUSoftware ArgGIS"},null,"ESRI","167336-LU","Software ArgGIS","ESRI","USD","N/A","ArcGIS LocateXT for ArcGIS GIS Server Standard (Windows) Up to Four Cores License","Licencia ","Und","Licencias","N/A","N/A","N/A",{"$f":"+E578","v":"167336-LU"},"Credito a 30 días ",13721.4,1,0,"USD"]
["ESRISoftware ArgGIS167337-LU","167337-LUSoftware ArgGIS",null,"ESRI","167337-LU","Software ArgGIS","ESRI","USD","N/A","ArcGIS LocateXT for ArcGIS GIS Server Advanced (Windows) Additional Core License","Licencia ","Und","Licencias","N/A","N/A","N/A","167337-LU","Credito a 30 días ",3430.35,1,0,"USD"]
["ESRISoftware ArgGIS167338-LU","167338-LUSoftware ArgGIS",null,"ESRI","167338-LU","Software ArgGIS","ESRI","USD","N/A","ArcGIS LocateXT for ArcGIS GIS Server Standard (Windows) Additional Core License","Licencia ","Und","Licencias","N/A","N/A","N/A","167338-LU","Credito a 30 días ",3430.35,1,0,"USD"]
["ESRISoftware ArgGIS167340-LU","167340-LUSoftware ArgGIS",null,"ESRI","167340-LU","Software ArgGIS","ESRI","USD","N/A","ArcGIS LocateXT for ArcGIS GIS Server Workgroup Advanced Maximum Four Cores License","Licencia ","Und","Licencias","N/A","N/A","N/A","167340-LU","Credito a 30 días ",6860.7,1,0,"USD"]
["ESRISoftware ArgGIS167411-LU","167411-LUSoftware ArgGIS",null,"ESRI","167411-LU","Software ArgGIS","ESRI","USD","N/A","ArcGIS LocateXT for ArcGIS GIS Server Workgroup Standard Maximum Four Cores License","Licencia ","Und","Licencias","N/A","N/A","N/A","167411-LU","Credito a 30 días ",6860.7,1,0,"USD"]
["ESRISoftware ArgGIS167928-LU","167928-LUSoftware ArgGIS",null,"ESRI","167928-LU","Software ArgGIS","ESRI","USD","N/A","ArcGIS Enterprise Insights Analyst Term License","Licencia/mes","Und","Licencias","N/A","N/A","N/A","167928-LU","Credito a 30 días ",686.07,1,0,"USD"]
["ESRISoftware ArgGIS167929-LU","167929-LUSoftware ArgGIS",null,"ESRI","167929-LU","Software ArgGIS","ESRI","USD","N/A","ArcGIS Excalibur for ArcGIS Enterprise Term License","Licencia/mes","Und","Licencias","N/A","N/A","N/A","167929-LU","Credito a 30 días ",57.172500000000007,1,0,"USD"]
["ESRISoftware ArgGIS167930-LU","167930-LUSoftware ArgGIS",null,"ESRI","167930-LU","Software ArgGIS","ESRI","USD","N/A","Tracker for ArcGIS Enterprise Term License","Licencia/mes","Und","Licencias","N/A","N/A","N/A","167930-LU","Credito a 30 días ",6.8608333333333329,1,0,"USD"]
["ESRISoftware ArgGIS167942-LU","167942-LUSoftware ArgGIS",null,"ESRI","167942-LU","Software ArgGIS","ESRI","USD","N/A","ArcGIS Enterprise Insights Analyst Perpetual License","Licencia ","Und","Licencias","N/A","N/A","N/A","167942-LU","Credito a 30 días ",2744.28,1,0,"USD"]
["ESRISoftware ArgGIS167943-LU","167943-LUSoftware ArgGIS",null,"ESRI","167943-LU","Software ArgGIS","ESRI","USD","N/A","ArcGIS Excalibur for ArcGIS Enterprise License","Licencia/mes","Und","Licencias","N/A","N/A","N/A","167943-LU","Credito a 30 días ",228.69000000000003,1,0,"USD"]
["ESRISoftware ArgGIS167944-LU","167944-LUSoftware ArgGIS",null,"ESRI","167944-LU","Software ArgGIS","ESRI","USD","N/A","Tracker for ArcGIS Enterprise License","Licencia/mes","Und","Licencias","N/A","N/A","N/A","167944-LU","Credito a 30 días ",27.442499999999999,1,0,"USD"]
["ESRISoftware ArgGIS168037-LU","168037-LUSoftware ArgGIS",null,"ESRI","168037-LU","Software ArgGIS","ESRI","USD","N/A","ArcGIS Monitor for ArcGIS Server Workgroup Up to Four Cores License","Licencia ","Und","Licencias","N/A","N/A","N/A","168037-LU","Credito a 30 días ",6860.7,1,0,"USD"]
["ESRISoftware ArgGIS168039-LU","168039-LUSoftware ArgGIS",null,"ESRI","168039-LU","Software ArgGIS","ESRI","USD","N/A","ArcGIS Monitor for ArcGIS Server Workgroup Additional Core License","Licencia ","Und","Licencias","N/A","N/A","N/A","168039-LU","Credito a 30 días ",343.04,1,0,"USD"]
["ESRISoftware ArgGIS168041-LU","168041-LUSoftware ArgGIS",null,"ESRI","168041-LU","Software ArgGIS","ESRI","USD","N/A","ArcGIS Monitor for ArcGIS Server Workgroup Up to Four Cores Term License","Licencia ","Und","Licencias","N/A","N/A","N/A","168041-LU","Credito a 30 días ",2744.28,1,0,"USD"]
["ESRISoftware ArgGIS168042-LU","168042-LUSoftware ArgGIS",null,"ESRI","168042-LU","Software ArgGIS","ESRI","USD","N/A","ArcGIS Monitor for ArcGIS Server Workgroup Additional Core Term License","Licencia ","Und","Licencias","N/A","N/A","N/A","168042-LU","Credito a 30 días ",343.04,1,0,"USD"]
["ESRISoftware ArgGIS168057-LU","168057-LUSoftware ArgGIS",null,"ESRI","168057-LU","Software ArgGIS","ESRI","USD","N/A","ArcGIS for Aviation: Charting Bundle for Desktop Concurrent Use License","Licencia ","Und","Licencias","N/A","N/A","N/A","168057-LU","Credito a 30 días ",25659.02,1,0,"USD"]
["ESRISoftware ArgGIS168103-LU","168103-LUSoftware ArgGIS",null,"ESRI","168103-LU","Software ArgGIS","ESRI","USD","N/A","ArcGIS Notebook Server Advanced Up to Four Cores License","Licencia ","Und","Licencias","N/A","N/A","N/A","168103-LU","Credito a 30 días ",27442.799999999999,1,0,"USD"]
["ESRISoftware ArgGIS168104-LU","168104-LUSoftware ArgGIS",null,"ESRI","168104-LU","Software ArgGIS","ESRI","USD","N/A","ArcGIS Notebook Server Advanced  Additional Core (up to 32 per server) License","Licencia ","Und","Licencias","N/A","N/A","N/A","168104-LU","Credito a 30 días ",6860.7,1,0,"USD"]
["ESRISoftware ArgGIS168105-LU","168105-LUSoftware ArgGIS",null,"ESRI","168105-LU","Software ArgGIS","ESRI","USD","N/A","ArcGIS Notebook Server Advanced  Additional Core (more than 32 per Server) License","Licencia ","Und","Licencias","N/A","N/A","N/A","168105-LU","Credito a 30 días ",3430.35,1,0,"USD"]
["ESRISoftware ArgGIS168106-LU","168106-LUSoftware ArgGIS",null,"ESRI","168106-LU","Software ArgGIS","ESRI","USD","N/A","ArcGIS Notebook Server Advanced  Up to Four Cores Term License","Licencia/año ","Und","Licencias","N/A","N/A","N/A","168106-LU","Credito a 30 días ",16465.68,1,0,"USD"]
["ESRISoftware ArgGIS168107-LU","168107-LUSoftware ArgGIS",null,"ESRI","168107-LU","Software ArgGIS","ESRI","USD","N/A","ArcGIS Notebook Server Advanced Additional Core (up to 32 per server) Term License","Licencia ","Und","Licencias","N/A","N/A","N/A","168107-LU","Credito a 30 días ",4116.42,1,0,"USD"]
["ESRISoftware ArgGIS168108-LU","168108-LUSoftware ArgGIS",null,"ESRI","168108-LU","Software ArgGIS","ESRI","USD","N/A","ArcGIS Notebook Server Advanced  Additional Core (more than 32 per Server) Term License","Licencia ","Und","Licencias","N/A","N/A","N/A","168108-LU","Credito a 30 días ",2058.21,1,0,"USD"]
["ESRISoftware ArgGIS169018-LU","169018-LUSoftware ArgGIS",null,"ESRI","169018-LU","Software ArgGIS","ESRI","USD","N/A","ArcGIS QuickCapture for ArcGIS Enterprise Term License","Licencia/mes","Und","Licencias","N/A","N/A","N/A","169018-LU","Credito a 30 días ",6.8608333333333329,1,0,"USD"]
["ESRISoftware ArgGIS169050-LU","169050-LUSoftware ArgGIS",null,"ESRI","169050-LU","Software ArgGIS","ESRI","USD","N/A","ArcGIS QuickCapture for ArcGIS Enterprise License","Licencia/mes","Und","Licencias","N/A","N/A","N/A","169050-LU","Credito a 30 días ",27.442499999999999,1,0,"USD"]
["ESRISoftware ArgGIS169769-LU","169769-LUSoftware ArgGIS",null,"ESRI","169769-LU","Software ArgGIS","ESRI","USD","N/A","StreetMap Premium for ArcGIS Latin America Small Education Institutional Agreement Term License","Licencia/año ","Und","Licencias","N/A","N/A","N/A","169769-LU","Credito a 30 días ",1372.14,1,0,"USD"]
["ESRISoftware ArgGIS169770-LU","169770-LUSoftware ArgGIS",null,"ESRI","169770-LU","Software ArgGIS","ESRI","USD","N/A","StreetMap Premium for ArcGIS Latin America Medium Education Institutional Agreement Term License","Licencia/año ","Und","Licencias","N/A","N/A","N/A","169770-LU","Credito a 30 días ",2744.28,1,0,"USD"]
["ESRISoftware ArgGIS169771-LU","169771-LUSoftware ArgGIS",null,"ESRI","169771-LU","Software ArgGIS","ESRI","USD","N/A","StreetMap Premium for ArcGIS Latin America Large Education Institutional Agreement Term License","Licencia/año ","Und","Licencias","N/A","N/A","N/A","169771-LU","Credito a 30 días ",6860.7,1,0,"USD"]
["ESRISoftware ArgGIS52382-LU","52382-LUSoftware ArgGIS",null,"ESRI","52382-LU","Software ArgGIS","ESRI","USD","N/A","ArcGIS for Desktop Advanced Concurrent Licen","Licencia ","Und","Licencias","N/A","N/A","N/A","52382-LU","Credito a 30 días ",19209.96,1,0,"USD"]
["ESRISoftware ArgGIS86353-LU","86353-LUSoftware ArgGIS",null,"ESRI","86353-LU","Software ArgGIS","ESRI","USD","N/A","ArcGIS for Desktop Standard Concurrent Licen","Licencia ","Und","Licencias","N/A","N/A","N/A","86353-LU","Credito a 30 días ",9604.98,1,0,"USD"]
["ESRISoftware ArgGIS86609-LU","86609-LUSoftware ArgGIS",null,"ESRI","86609-LU","Software ArgGIS","ESRI","USD","N/A","ArcGIS for Desktop Basic Concurrent Upgrade from ArcGIS for Desktop Basic Single","Licencia ","Und","Licencias","N/A","N/A","N/A","86609-LU","Credito a 30 días ",2058.21,1,0,"USD"]
["ESRISoftware ArgGIS87143-LU","87143-LUSoftware ArgGIS",null,"ESRI","87143-LU","Software ArgGIS","ESRI","USD","N/A","ArcGIS for Desktop Basic Concurrent Licen","Licencia ","Und","Licencias","N/A","N/A","N/A","87143-LU","Credito a 30 días ",3912,1,0,"USD"]
["ESRISoftware ArgGIS88282-LU","88282-LUSoftware ArgGIS",null,"ESRI","88282-LU","Software ArgGIS","ESRI","USD","N/A","ArcGIS Spatial Analyst for Desktop Concurrent Licen","Licencia ","Und","Licencias","N/A","N/A","N/A","88282-LU","Credito a 30 días ",3430.35,1,0,"USD"]
["ESRISoftware ArgGIS88283-LU","88283-LUSoftware ArgGIS",null,"ESRI","88283-LU","Software ArgGIS","ESRI","USD","N/A","ArcGIS 3D Analyst for Desktop Concurrent Licen","Licencia ","Und","Licencias","N/A","N/A","N/A","88283-LU","Credito a 30 días ",3430.35,1,0,"USD"]
["ESRISoftware ArgGIS88284-LU","88284-LUSoftware ArgGIS",null,"ESRI","88284-LU","Software ArgGIS","ESRI","USD","N/A","ArcGIS Geostatistical Analyst for Desktop Concurrent Licen","Licencia ","Und","Licencias","N/A","N/A","N/A","88284-LU","Credito a 30 días ",3430.35,1,0,"USD"]
["ESRISoftware ArgGIS88925-LU","88925-LUSoftware ArgGIS",null,"ESRI","88925-LU","Software ArgGIS","ESRI","USD","N/A","ArcGIS for Desktop Advanced Concurrent Upgrade from ArcGIS for Desktop Basic Single","Licencia ","Und","Licencias","N/A","N/A","N/A","88925-LU","Credito a 30 días ",17151.75,1,0,"USD"]
["ESRISoftware ArgGIS88927-LU","88927-LUSoftware ArgGIS",null,"ESRI","88927-LU","Software ArgGIS","ESRI","USD","N/A","ArcGIS for Desktop Standard Concurrent Upgrade from ArcGIS for Desktop Basic Concurrent","Licencia ","Und","Licencias","N/A","N/A","N/A","88927-LU","Credito a 30 días ",5488.56,1,0,"USD"]
["ESRISoftware ArgGIS88928-LU","88928-LUSoftware ArgGIS",null,"ESRI","88928-LU","Software ArgGIS","ESRI","USD","N/A","ArcGIS for Desktop Advanced Concurrent Upgrade from ArcGIS for Desktop Basic Concurrent","Licencia ","Und","Licencias","N/A","N/A","N/A","88928-LU","Credito a 30 días ",14407.47,1,0,"USD"]
["ESRISoftware ArgGIS88929-LU","88929-LUSoftware ArgGIS",null,"ESRI","88929-LU","Software ArgGIS","ESRI","USD","N/A","ArcGIS for Desktop Advanced Concurrent Upgrade from ArcGIS for Desktop Standard Single or Concurrent","Licencia ","Und","Licencias","N/A","N/A","N/A","88929-LU","Credito a 30 días ",9604.98,1,0,"USD"]
["ESRISoftware ArgGIS90321-LU","90321-LUSoftware ArgGIS",null,"ESRI","90321-LU","Software ArgGIS","ESRI","USD","N/A","ArcGIS Publisher for Desktop Concurrent Licen","Licencia ","Und","Licencias","N/A","N/A","N/A","90321-LU","Credito a 30 días ",3430.35,1,0,"USD"]
["ESRISoftware ArgGIS91605-LU","91605-LUSoftware ArgGIS",null,"ESRI","91605-LU","Software ArgGIS","ESRI","USD","N/A","ArcGIS Tracking Analyst for Desktop Concurrent Licen","Licencia ","Und","Licencias","N/A","N/A","N/A","91605-LU","Credito a 30 días ",3430.35,1,0,"USD"]
["ESRISoftware ArgGIS93164-LU","93164-LUSoftware ArgGIS",null,"ESRI","93164-LU","Software ArgGIS","ESRI","USD","N/A","ArcGIS Tracking Analyst for Desktop Single Licen","Licencia ","Und","Licencias","N/A","N/A","N/A","93164-LU","Credito a 30 días ",3430.35,1,0,"USD"]
["ESRISoftware ArgGIS93168-LU","93168-LUSoftware ArgGIS",null,"ESRI","93168-LU","Software ArgGIS","ESRI","USD","N/A","ArcGIS Spatial Analyst for Desktop Single Licen","Licencia ","Und","Licencias","N/A","N/A","N/A","93168-LU","Credito a 30 días ",3430.35,1,0,"USD"]
["ESRISoftware ArgGIS93172-LU","93172-LUSoftware ArgGIS",null,"ESRI","93172-LU","Software ArgGIS","ESRI","USD","N/A","ArcGIS 3D Analyst for Desktop Single Licen","Licencia ","Und","Licencias","N/A","N/A","N/A","93172-LU","Credito a 30 días ",3430.35,1,0,"USD"]
["ESRISoftware ArgGIS93176-LU","93176-LUSoftware ArgGIS",null,"ESRI","93176-LU","Software ArgGIS","ESRI","USD","N/A","ArcGIS Geostatistical Analyst for Desktop Single Licen","Licencia ","Und","Licencias","N/A","N/A","N/A","93176-LU","Credito a 30 días ",3430.35,1,0,"USD"]
["ESRISoftware ArgGIS93194-LU","93194-LUSoftware ArgGIS",null,"ESRI","93194-LU","Software ArgGIS","ESRI","USD","N/A","ArcGIS Publisher for Desktop Single Licen","Licencia ","Und","Licencias","N/A","N/A","N/A","93194-LU","Credito a 30 días ",3430.35,1,0,"USD"]
["ESRISoftware ArgGIS93198-LU","93198-LUSoftware ArgGIS",null,"ESRI","93198-LU","Software ArgGIS","ESRI","USD","N/A","ArcGIS for Desktop Basic Single Licen","Licencia ","Und","Licencias","N/A","N/A","N/A","93198-LU","Credito a 30 días ",2058.21,1,0,"USD"]
["ESRISoftware ArgGIS93206-LU","93206-LUSoftware ArgGIS",null,"ESRI","93206-LU","Software ArgGIS","ESRI","USD","N/A","ArcGIS for Desktop Standard Single Licen","Licencia ","Und","Licencias","N/A","N/A","N/A","93206-LU","Credito a 30 días ",9604.98,1,0,"USD"]
["ESRISoftware ArgGIS97189-LU","97189-LUSoftware ArgGIS",null,"ESRI","97189-LU","Software ArgGIS","ESRI","USD","N/A","ArcGIS Engine Single Licen","Licencia ","Und","Licencias","N/A","N/A","N/A","97189-LU","Credito a 30 días ",686.07,1,0,"USD"]
["ESRISoftware ArgGIS97190-LU","97190-LUSoftware ArgGIS",null,"ESRI","97190-LU","Software ArgGIS","ESRI","USD","N/A","ArcGIS 3D Analyst for Engine Single Licen","Licencia ","Und","Licencias","N/A","N/A","N/A","97190-LU","Credito a 30 días ",1372.14,1,0,"USD"]
["ESRISoftware ArgGIS97191-LU","97191-LUSoftware ArgGIS",null,"ESRI","97191-LU","Software ArgGIS","ESRI","USD","N/A","ArcGIS Spatial Analyst for Engine Single Licen","Licencia ","Und","Licencias","N/A","N/A","N/A","97191-LU","Credito a 30 días ",1372.14,1,0,"USD"]
["ESRISoftware ArgGIS97192-LU","97192-LUSoftware ArgGIS",null,"ESRI","97192-LU","Software ArgGIS","ESRI","USD","N/A","ArcGIS Engine Geodatabase Update Single Licen","Licencia ","Und","Licencias","N/A","N/A","N/A","97192-LU","Credito a 30 días ",1372.14,1,0,"USD"]
["ESRISoftware ArgGIS97213-LU","97213-LUSoftware ArgGIS",null,"ESRI","97213-LU","Software ArgGIS","ESRI","USD","N/A","ArcGIS Engine Developer Kit Licen","Licencia/año ","Und","Licencias","N/A","N/A","N/A","97213-LU","Credito a 30 días ",6860.7,1,0,"USD"]
["ESRISoftware ArgGIS98131-LU","98131-LUSoftware ArgGIS",null,"ESRI","98131-LU","Software ArgGIS","ESRI","USD","N/A","ArcGIS Data Interoperability for Desktop Single Licen","Licencia ","Und","Licencias","N/A","N/A","N/A","98131-LU","Credito a 30 días ",3430.35,1,0,"USD"]
["ESRISoftware ArgGIS98133-LU","98133-LUSoftware ArgGIS",null,"ESRI","98133-LU","Software ArgGIS","ESRI","USD","N/A","ArcGIS Data Interoperability for Desktop Concurrent Licen","Licencia ","Und","Licencias","N/A","N/A","N/A","98133-LU","Credito a 30 días ",3430.35,1,0,"USD"]
["ESRISoftware ArgGIS99045-LU","99045-LUSoftware ArgGIS",null,"ESRI","99045-LU","Software ArgGIS","ESRI","USD","N/A","ArcGIS Data Reviewer for Desktop Single Licen","Licencia ","Und","Licencias","N/A","N/A","N/A","99045-LU","Credito a 30 días ",3430.35,1,0,"USD"]
["ESRISoftware ArgGIS99047-LU","99047-LUSoftware ArgGIS",null,"ESRI","99047-LU","Software ArgGIS","ESRI","USD","N/A","ArcGIS Data Reviewer for Desktop Concurrent Licen","Licencia ","Und","Licencias","N/A","N/A","N/A","99047-LU","Credito a 30 días ",3430.35,1,0,"USD"]
["ESRISoftware ArgGIS99734-LU","99734-LUSoftware ArgGIS",null,"ESRI","99734-LU","Software ArgGIS","ESRI","USD","N/A","ArcGIS Network Analyst for Desktop Single Licen","Licencia ","Und","Licencias","N/A","N/A","N/A","99734-LU","Credito a 30 días ",3430.35,1,0,"USD"]
["ESRISoftware ArgGIS99736-LU","99736-LUSoftware ArgGIS",null,"ESRI","99736-LU","Software ArgGIS","ESRI","USD","N/A","ArcGIS Network Analyst for Desktop Concurrent Licen","Licencia ","Und","Licencias","N/A","N/A","N/A","99736-LU","Credito a 30 días ",3430.35,1,0,"USD"]
["ESRISoftware ArgGIS174945-LU","174945-LUSoftware ArgGIS",null,"ESRI","174945-LU","Software ArgGIS","ESRI","USD","N/A","ArcGIS Workflow Manager User Type Extension for ArcGIS Enterprise Término","Licencia/mes","Und","Licencias","N/A","N/A","N/A","174945-LU","Credito a 30 días ",22.87,1,0,"USD"]
["ESRISoftware ArgGIS166950-LU","166950-LUSoftware ArgGIS",null,"ESRI","166950-LU","Software ArgGIS","ESRI","USD","N/A","ArcGIS Workflow Manager for ArcGIS Pro Enterprise Término ","Licencia/mes","Und","Licencias","N/A","N/A","N/A","166950-LU","Credito a 30 días ",68.61,1,0,"USD"]
["ESRISoftware ArgGISC167283","C167283Software ArgGIS",null,"ESRI","C167283","Software ArgGIS","ESRI","USD","N/A","ArcGIS Workflow Manager for ArcGIS Pro Enterprise Actualización ","Licencia ","Und","Licencias","N/A","N/A","N/A","C167283","Credito a 30 días ",1630.13,1,0,"USD"]
["ESRISoftware ArgGIS174947-LU","174947-LUSoftware ArgGIS",null,"ESRI","174947-LU","Software ArgGIS","ESRI","USD","N/A","ArcGIS Workflow Manager User Type Extension for ArcGIS Enterprise, precio mes ","Licencia/mes","Und","Licencias","N/A","N/A","N/A","174947-LU","Credito a 30 días ",114.35,1,0,"USD"]
["ESRISoftware ArgGIS166992-LU","166992-LUSoftware ArgGIS",null,"ESRI","166992-LU","Software ArgGIS","ESRI","USD","N/A","ArcGIS Workflow Manager for ArcGIS Pro Enterprise Perpetual License, precio mes ","Licencia/mes","Und","Licencias","N/A","N/A","N/A","166992-LU","Credito a 30 días ",285.86,1,0,"USD"]
["ESRISoftware ArgGISC174948","C174948Software ArgGIS",null,"ESRI","C174948","Software ArgGIS","ESRI","USD","N/A","ArcGIS Workflow Manager User Type Extension for ArcGIS Enterprise Actualización ","Licencia ","Und","Licencias","N/A","N/A","N/A","C174948","Credito a 30 días ",652.04999999999995,1,0,"USD"]
[{"$f":"D642&F642&E642","v":"ESRISoftware ArgGIS172426-LU"},{"$f":"E642&F642","v":"172426-LUSoftware ArgGIS"},null,"ESRI","172426-LU","Software ArgGIS","ESRI","USD","N/A","ArcGIS Roads and Highways for ArcGIS GIS Server Workgroup Standard or Advanced Maximum Four Cores Perpetual License","Licencia ","Und","Licencias","N/A","N/A","N/A",{"$f":"+E642","v":"172426-LU"},"Credito a 30 días ",6860.7,1,0,"USD"]
["ESRISoftware ArgGIS172423-LU","172423-LUSoftware ArgGIS",null,"ESRI","172423-LU","Software ArgGIS","ESRI","USD","N/A","ArcGIS Roads and Highways for ArcGIS GIS Server Standard or Advanced (Windows Only) Up to Four Cores Perpetual License","Licencia ","Und","Licencias","N/A","N/A","N/A","172423-LU","Credito a 30 días ",13721.4,1,0,"USD"]
["ESRISoftware ArgGISC165652","C165652Software ArgGIS",null,"ESRI","C165652","Software ArgGIS","ESRI","USD","N/A","ArcGIS Online Premium Feature Data Store M-4 Annual Term License","Licencia/año","Und","Licencias","N/A","N/A","N/A","C165652","Credito a 30 días ",112674.24000000001,1,0,"USD"]
["ESRISoftware ArgGISC165653","C165653Software ArgGIS",null,"ESRI","C165653","Software ArgGIS","ESRI","USD","N/A","ArcGIS Online Premium Feature Data Store M-4 Monthly Term License","Licencia/mes","Und","Licencias","N/A","N/A","N/A","C165653","Credito a 30 días ",10432.799999999999,1,0,"USD"]
["ESRISoftware ArgGIS166896-LU","166896-LUSoftware ArgGIS",null,"ESRI","166896-LU","Software ArgGIS","ESRI","USD","N/A","ArcGIS Enterprise GIS Professional Standard Term License","Licencia/año","Und","Licencias","N/A","N/A","N/A","166896-LU","Credito a 30 días ",3773.39,1,0,"USD"]
["ESRISoftware ArgGIS166895-LU","166895-LUSoftware ArgGIS",null,"ESRI","166895-LU","Software ArgGIS","ESRI","USD","N/A","ArcGIS Enterprise GIS Professional Basic Term License","Licencia/año","Und","Licencias","N/A","N/A","N/A","166895-LU","Credito a 30 días ",960.5,1,0,"USD"]
["ESRISoftware ArgGIS166897-LU","166897-LUSoftware ArgGIS",null,"ESRI","166897-LU","Software ArgGIS","ESRI","USD","N/A","ArcGIS Enterprise GIS Professional Advanced Term License","Licencia/año","Und","Licencias","N/A","N/A","N/A","166897-LU","Credito a 30 días ",5214.13,1,0,"USD"]
["ESRISoftware ArgGISCCE_CAP_CON_Z1_R","CCE_CAP_CON_Z1_RSoftware ArgGIS",null,"ESRI","CCE_CAP_CON_Z1_R","Software ArgGIS","ESRI","COP","N/A","Servicios de creacion de contenido de aprendizaje a la medida","Por capitulo de aprendizaje de 4 horas","Und","Servicios ArcGIS","Zona 1","Remoto","Capacitador","CCE_CAP_CON_Z1_R","Credito a 30 días ",20160000,1,1,"COP"]
["ESRISoftware ArgGISCCE_CAP_CON_Z2_R","CCE_CAP_CON_Z2_RSoftware ArgGIS",null,"ESRI","CCE_CAP_CON_Z2_R","Software ArgGIS","ESRI","COP","N/A","Servicios de creacion de contenido de aprendizaje a la medida ","Por capitulo de aprendizaje de 4 horas","Und","Servicios ArcGIS","Zona 2","Remoto","Capacitador","CCE_CAP_CON_Z2_R","Credito a 30 días ",20160000,1,1,"COP"]
["ESRISoftware ArgGISCCE_CAP_CON_Z3_R","CCE_CAP_CON_Z3_RSoftware ArgGIS",null,"ESRI","CCE_CAP_CON_Z3_R","Software ArgGIS","ESRI","COP","N/A","Servicios de creacion de contenido de aprendizaje a la medida ","Por capitulo de aprendizaje de 4 horas","Und","Servicios ArcGIS","Zona 3","Remoto","Capacitador","CCE_CAP_CON_Z3_R","Credito a 30 días ",20160000,1,1,"COP"]
["ESRISoftware ArgGISCCE_CAP_GRU_Z1_R","CCE_CAP_GRU_Z1_RSoftware ArgGIS",null,"ESRI","CCE_CAP_GRU_Z1_R","Software ArgGIS","ESRI","USD","N/A","Capacitación en dias de curso de catalogo para un grupo de hasta 10 personas","Por dia de capacitacion de 8 horas para un grupo de hasta 10 personas","Und","Servicios ArcGIS","Zona 1","Remoto","Capacitador","CCE_CAP_GRU_Z1_R","Credito a 30 días ",1102.5,1,1,"USD"]
["ESRISoftware ArgGISCCE_CAP_GRU_Z1_S","CCE_CAP_GRU_Z1_SSoftware ArgGIS",null,"ESRI","CCE_CAP_GRU_Z1_S","Software ArgGIS","ESRI","COP","N/A","Capacitación en dias de curso de catalogo para un grupo de hasta 10 personas","Por dia de capacitacion de 8 horas para un grupo de hasta 10 personas","Und","Servicios ArcGIS","Zona 1","Sitio","Capacitador","CCE_CAP_GRU_Z1_S","Credito a 30 días ",3638250,1,1,"COP"]
["ESRISoftware ArgGISCCE_CAP_GRU_Z2_R","CCE_CAP_GRU_Z2_RSoftware ArgGIS",null,"ESRI","CCE_CAP_GRU_Z2_R","Software ArgGIS","ESRI","USD","N/A","Capacitación en dias de curso de catalogo para un grupo de hasta 10 personas","Por dia de capacitacion de 8 horas para un grupo de hasta 10 personas","Und","Servicios ArcGIS","Zona 2","Remoto","Capacitador","CCE_CAP_GRU_Z2_R","Credito a 30 días ",1102.5,1,1,"USD"]
["ESRISoftware ArgGISCCE_CAP_GRU_Z2_S","CCE_CAP_GRU_Z2_SSoftware ArgGIS",null,"ESRI","CCE_CAP_GRU_Z2_S","Software ArgGIS","ESRI","COP","N/A","Capacitación en dias de curso de catalogo para un grupo de hasta 10 personas","Por dia de capacitacion de 8 horas para un grupo de hasta 10 personas","Und","Servicios ArcGIS","Zona 2","Sitio","Capacitador","CCE_CAP_GRU_Z2_S","Credito a 30 días ",3638250,1,1,"COP"]
["ESRISoftware ArgGISCCE_CAP_GRU_Z3_R","CCE_CAP_GRU_Z3_RSoftware ArgGIS",null,"ESRI","CCE_CAP_GRU_Z3_R","Software ArgGIS","ESRI","USD","N/A","Capacitación en dias de curso de catalogo para un grupo de hasta 10 personas","Por dia de capacitacion de 8 horas para un grupo de hasta 10 personas","Und","Servicios ArcGIS","Zona 3","Remoto","Capacitador","CCE_CAP_GRU_Z3_R","Credito a 30 días ",1102.5,1,1,"USD"]
["ESRISoftware ArgGISCCE_CAP_GRU_Z3_S","CCE_CAP_GRU_Z3_SSoftware ArgGIS",null,"ESRI","CCE_CAP_GRU_Z3_S","Software ArgGIS","ESRI","COP","N/A","Capacitación en dias de curso de catalogo para un grupo de hasta 10 personas","Por dia de capacitacion de 8 horas para un grupo de hasta 10 personas","Und","Servicios ArcGIS","Zona 3","Sitio","Capacitador","CCE_CAP_GRU_Z3_S","Credito a 30 días ",3638250,1,1,"COP"]
["ESRISoftware ArgGISCCE_CAP_IND_Z1_R","CCE_CAP_IND_Z1_RSoftware ArgGIS",null,"ESRI","CCE_CAP_IND_Z1_R","Software ArgGIS","ESRI","USD","N/A","Capacitación en dias de curso de catalogo para un funcionario o su equivalente","Por dia de capacitacion de 8 horas para un funcionario o su equivalente","Und","Servicios ArcGIS","Zona 1","Remoto","Capacitador","CCE_CAP_IND_Z1_R","Credito a 30 días ",157.5,1,1,"USD"]
["ESRISoftware ArgGISCCE_CAP_IND_Z2_R","CCE_CAP_IND_Z2_RSoftware ArgGIS",null,"ESRI","CCE_CAP_IND_Z2_R","Software ArgGIS","ESRI","USD","N/A","Capacitación en dias de curso de catalogo para un funcionario o su equivalente","Por dia de capacitacion de 8 horas para un funcionario o su equivalente","Und","Servicios ArcGIS","Zona 2","Remoto","Capacitador","CCE_CAP_IND_Z2_R","Credito a 30 días ",157.5,1,1,"USD"]
["ESRISoftware ArgGISCCE_CAP_IND_Z3_R","CCE_CAP_IND_Z3_RSoftware ArgGIS",null,"ESRI","CCE_CAP_IND_Z3_R","Software ArgGIS","ESRI","USD","N/A","Capacitación en dias de curso de catalogo para un funcionario o su equivalente","Por dia de capacitacion de 8 horas para un funcionario o su equivalente","Und","Servicios ArcGIS","Zona 3","Remoto","Capacitador","CCE_CAP_IND_Z3_R","Credito a 30 días ",157.5,1,1,"USD"]
["ESRISoftware ArgGISCCE_CAP_UF_10_Z1_R","CCE_CAP_UF_10_Z1_RSoftware ArgGIS",null,"ESRI","CCE_CAP_UF_10_Z1_R","Software ArgGIS","ESRI","USD","N/A","Capacitación para usuario final - hasta 10 Personas.  ","Por sesión de capacitación de 4 horas para un grupo de hasta 10 personas.","Und","Servicios ArcGIS","Zona 1","Remoto","Capacitador","CCE_CAP_UF_10_Z1_R","Credito a 30 días ",3605.7000000000003,1,1,"USD"]
["ESRISoftware ArgGISCCE_CAP_UF_10_Z1_S","CCE_CAP_UF_10_Z1_SSoftware ArgGIS",null,"ESRI","CCE_CAP_UF_10_Z1_S","Software ArgGIS","ESRI","COP","N/A","Capacitación para usuario final - hasta 10 Personas.  ","Por sesión de capacitación de 4 horas para un grupo de hasta 10 personas.","Und","Servicios ArcGIS","Zona 1","Sitio","Capacitador","CCE_CAP_UF_10_Z1_S","Credito a 30 días ",11899125,1,1,"COP"]
["ESRISoftware ArgGISCCE_CAP_UF_10_Z2_R","CCE_CAP_UF_10_Z2_RSoftware ArgGIS",null,"ESRI","CCE_CAP_UF_10_Z2_R","Software ArgGIS","ESRI","USD","N/A","Capacitación para usuario final - hasta 10 Personas.  ","Por sesión de capacitación de 4 horas para un grupo de hasta 10 personas.","Und","Servicios ArcGIS","Zona 2","Remoto","Capacitador","CCE_CAP_UF_10_Z2_R","Credito a 30 días ",3605.7000000000003,1,1,"USD"]
["ESRISoftware ArgGISCCE_CAP_UF_10_Z2_S","CCE_CAP_UF_10_Z2_SSoftware ArgGIS",null,"ESRI","CCE_CAP_UF_10_Z2_S","Software ArgGIS","ESRI","COP","N/A","Capacitación para usuario final - hasta 10 Personas.  ","Por sesión de capacitación de 4 horas para un grupo de hasta 10 personas.","Und","Servicios ArcGIS","Zona 2","Sitio","Capacitador","CCE_CAP_UF_10_Z2_S","Credito a 30 días ",11899125,1,1,"COP"]
["ESRISoftware ArgGISCCE_CAP_UF_10_Z3_R","CCE_CAP_UF_10_Z3_RSoftware ArgGIS",null,"ESRI","CCE_CAP_UF_10_Z3_R","Software ArgGIS","ESRI","USD","N/A","Capacitación para usuario final - hasta 10 Personas.  ","Por sesión de capacitación de 4 horas para un grupo de hasta 10 personas.","Und","Servicios ArcGIS","Zona 3","Remoto","Capacitador","CCE_CAP_UF_10_Z3_R","Credito a 30 días ",3605.7000000000003,1,1,"USD"]
["ESRISoftware ArgGISCCE_CAP_UF_10_Z3_S","CCE_CAP_UF_10_Z3_SSoftware ArgGIS",null,"ESRI","CCE_CAP_UF_10_Z3_S","Software ArgGIS","ESRI","COP","N/A","Capacitación para usuario final - hasta 10 Personas.  ","Por sesión de capacitación de 4 horas para un grupo de hasta 10 personas.","Und","Servicios ArcGIS","Zona 3","Sitio","Capacitador","CCE_CAP_UF_10_Z3_S","Credito a 30 días ",11899125,1,1,"COP"]
["ESRISoftware ArgGISCCE_CAP_UF_20_Z1_R","CCE_CAP_UF_20_Z1_RSoftware ArgGIS",null,"ESRI","CCE_CAP_UF_20_Z1_R","Software ArgGIS","ESRI","USD","N/A","Capacitación para usuario final hasta 20 Personas.  ","Por sesión de capacitación de 4 horas para un grupo de hasta 20 personas.","Und","Servicios ArcGIS","Zona 1","Remoto","Capacitador","CCE_CAP_UF_20_Z1_R","Credito a 30 días ",4156.95,1,1,"USD"]
["ESRISoftware ArgGISCCE_CAP_UF_20_Z1_S","CCE_CAP_UF_20_Z1_SSoftware ArgGIS",null,"ESRI","CCE_CAP_UF_20_Z1_S","Software ArgGIS","ESRI","COP","N/A","Capacitación para usuario final hasta 20 Personas.  ","Por sesión de capacitación de 4 horas para un grupo de hasta 20 personas.","Und","Servicios ArcGIS","Zona 1","Sitio","Capacitador","CCE_CAP_UF_20_Z1_S","Credito a 30 días ",13718250,1,1,"COP"]
["ESRISoftware ArgGISCCE_CAP_UF_20_Z2_R","CCE_CAP_UF_20_Z2_RSoftware ArgGIS",null,"ESRI","CCE_CAP_UF_20_Z2_R","Software ArgGIS","ESRI","USD","N/A","Capacitación para usuario final hasta 20 Personas.  ","Por sesión de capacitación de 4 horas para un grupo de hasta 20 personas.","Und","Servicios ArcGIS","Zona 2","Remoto","Capacitador","CCE_CAP_UF_20_Z2_R","Credito a 30 días ",4156.95,1,1,"USD"]
["ESRISoftware ArgGISCCE_CAP_UF_20_Z2_S","CCE_CAP_UF_20_Z2_SSoftware ArgGIS",null,"ESRI","CCE_CAP_UF_20_Z2_S","Software ArgGIS","ESRI","COP","N/A","Capacitación para usuario final hasta 20 Personas.  ","Por sesión de capacitación de 4 horas para un grupo de hasta 20 personas.","Und","Servicios ArcGIS","Zona 2","Sitio","Capacitador","CCE_CAP_UF_20_Z2_S","Credito a 30 días ",13718250,1,1,"COP"]
["ESRISoftware ArgGISCCE_CAP_UF_20_Z3_R","CCE_CAP_UF_20_Z3_RSoftware ArgGIS",null,"ESRI","CCE_CAP_UF_20_Z3_R","Software ArgGIS","ESRI","USD","N/A","Capacitación para usuario final hasta 20 Personas.  ","Por sesión de capacitación de 4 horas para un grupo de hasta 20 personas.","Und","Servicios ArcGIS","Zona 3","Remoto","Capacitador","CCE_CAP_UF_20_Z3_R","Credito a 30 días ",4156.95,1,1,"USD"]
["ESRISoftware ArgGISCCE_CAP_UF_20_Z3_S","CCE_CAP_UF_20_Z3_SSoftware ArgGIS",null,"ESRI","CCE_CAP_UF_20_Z3_S","Software ArgGIS","ESRI","COP","N/A","Capacitación para usuario final hasta 20 Personas.  ","Por sesión de capacitación de 4 horas para un grupo de hasta 20 personas.","Und","Servicios ArcGIS","Zona 3","Sitio","Capacitador","CCE_CAP_UF_20_Z3_S","Credito a 30 días ",13718250,1,1,"COP"]
["ESRISoftware ArgGISCCE_CAP_UT_10_Z1_R","CCE_CAP_UT_10_Z1_RSoftware ArgGIS",null,"ESRI","CCE_CAP_UT_10_Z1_R","Software ArgGIS","ESRI","USD","N/A","Capacitación para usuario técnico o administrador - hasta 10 Personas.  ","Por sesión de capacitación de 4 horas para un grupo de hasta 10 personas.","Und","Servicios ArcGIS","Zona 1","Remoto","Capacitador","CCE_CAP_UT_10_Z1_R","Credito a 30 días ",3605.7000000000003,1,1,"USD"]
["ESRISoftware ArgGISCCE_CAP_UT_10_Z1_S","CCE_CAP_UT_10_Z1_SSoftware ArgGIS",null,"ESRI","CCE_CAP_UT_10_Z1_S","Software ArgGIS","ESRI","COP","N/A","Capacitación para usuario técnico o administrador - hasta 10 Personas.  ","Por sesión de capacitación de 4 horas para un grupo de hasta 10 personas.","Und","Servicios ArcGIS","Zona 1","Sitio","Capacitador","CCE_CAP_UT_10_Z1_S","Credito a 30 días ",11899125,1,1,"COP"]
["ESRISoftware ArgGISCCE_CAP_UT_10_Z2_R","CCE_CAP_UT_10_Z2_RSoftware ArgGIS",null,"ESRI","CCE_CAP_UT_10_Z2_R","Software ArgGIS","ESRI","USD","N/A","Capacitación para usuario técnico o administrador - hasta 10 Personas.  ","Por sesión de capacitación de 4 horas para un grupo de hasta 10 personas.","Und","Servicios ArcGIS","Zona 2","Remoto","Capacitador","CCE_CAP_UT_10_Z2_R","Credito a 30 días ",3605.7000000000003,1,1,"USD"]
["ESRISoftware ArgGISCCE_CAP_UT_10_Z2_S","CCE_CAP_UT_10_Z2_SSoftware ArgGIS",null,"ESRI","CCE_CAP_UT_10_Z2_S","Software ArgGIS","ESRI","COP","N/A","Capacitación para usuario técnico o administrador - hasta 10 Personas.  ","Por sesión de capacitación de 4 horas para un grupo de hasta 10 personas.","Und","Servicios ArcGIS","Zona 2","Sitio","Capacitador","CCE_CAP_UT_10_Z2_S","Credito a 30 días ",11899125,1,1,"COP"]
["ESRISoftware ArgGISCCE_CAP_UT_10_Z3_R","CCE_CAP_UT_10_Z3_RSoftware ArgGIS",null,"ESRI","CCE_CAP_UT_10_Z3_R","Software ArgGIS","ESRI","USD","N/A","Capacitación para usuario técnico o administrador - hasta 10 Personas.  ","Por sesión de capacitación de 4 horas para un grupo de hasta 10 personas.","Und","Servicios ArcGIS","Zona 3","Remoto","Capacitador","CCE_CAP_UT_10_Z3_R","Credito a 30 días ",3605.7000000000003,1,1,"USD"]
["ESRISoftware ArgGISCCE_CAP_UT_10_Z3_S","CCE_CAP_UT_10_Z3_SSoftware ArgGIS",null,"ESRI","CCE_CAP_UT_10_Z3_S","Software ArgGIS","ESRI","COP","N/A","Capacitación para usuario técnico o administrador - hasta 10 Personas.  ","Por sesión de capacitación de 4 horas para un grupo de hasta 10 personas.","Und","Servicios ArcGIS","Zona 3","Sitio","Capacitador","CCE_CAP_UT_10_Z3_S","Credito a 30 días ",11899125,1,1,"COP"]
["ESRISoftware ArgGISCCE_CAP_UT_20_Z1_R","CCE_CAP_UT_20_Z1_RSoftware ArgGIS",null,"ESRI","CCE_CAP_UT_20_Z1_R","Software ArgGIS","ESRI","USD","N/A","Capacitación para usuario técnico o administrador hasta 20 Personas.  ","Por sesión de capacitación de 4 horas para un grupo de hasta 20 personas.","Und","Servicios ArcGIS","Zona 1","Remoto","Capacitador","CCE_CAP_UT_20_Z1_R","Credito a 30 días ",4156.95,1,1,"USD"]
["ESRISoftware ArgGISCCE_CAP_UT_20_Z1_S","CCE_CAP_UT_20_Z1_SSoftware ArgGIS",null,"ESRI","CCE_CAP_UT_20_Z1_S","Software ArgGIS","ESRI","COP","N/A","Capacitación para usuario técnico o administrador hasta 20 Personas.  ","Por sesión de capacitación de 4 horas para un grupo de hasta 20 personas.","Und","Servicios ArcGIS","Zona 1","Sitio","Capacitador","CCE_CAP_UT_20_Z1_S","Credito a 30 días ",13718250,1,1,"COP"]
["ESRISoftware ArgGISCCE_CAP_UT_20_Z2_R","CCE_CAP_UT_20_Z2_RSoftware ArgGIS",null,"ESRI","CCE_CAP_UT_20_Z2_R","Software ArgGIS","ESRI","USD","N/A","Capacitación para usuario técnico o administrador hasta 20 Personas.  ","Por sesión de capacitación de 4 horas para un grupo de hasta 20 personas.","Und","Servicios ArcGIS","Zona 2","Remoto","Capacitador","CCE_CAP_UT_20_Z2_R","Credito a 30 días ",4156.95,1,1,"USD"]
["ESRISoftware ArgGISCCE_CAP_UT_20_Z2_S","CCE_CAP_UT_20_Z2_SSoftware ArgGIS",null,"ESRI","CCE_CAP_UT_20_Z2_S","Software ArgGIS","ESRI","COP","N/A","Capacitación para usuario técnico o administrador hasta 20 Personas.  ","Por sesión de capacitación de 4 horas para un grupo de hasta 20 personas.","Und","Servicios ArcGIS","Zona 2","Sitio","Capacitador","CCE_CAP_UT_20_Z2_S","Credito a 30 días ",13718250,1,1,"COP"]
["ESRISoftware ArgGISCCE_CAP_UT_20_Z3_R","CCE_CAP_UT_20_Z3_RSoftware ArgGIS",null,"ESRI","CCE_CAP_UT_20_Z3_R","Software ArgGIS","ESRI","USD","N/A","Capacitación para usuario técnico o administrador hasta 20 Personas.  ","Por sesión de capacitación de 4 horas para un grupo de hasta 20 personas.","Und","Servicios ArcGIS","Zona 3","Remoto","Capacitador","CCE_CAP_UT_20_Z3_R","Credito a 30 días ",4156.95,1,1,"USD"]
["ESRISoftware ArgGISCCE_CAP_UT_20_Z3_S","CCE_CAP_UT_20_Z3_SSoftware ArgGIS",null,"ESRI","CCE_CAP_UT_20_Z3_S","Software ArgGIS","ESRI","COP","N/A","Capacitación para usuario técnico o administrador hasta 20 Personas.  ","Por sesión de capacitación de 4 horas para un grupo de hasta 20 personas.","Und","Servicios ArcGIS","Zona 3","Sitio","Capacitador","CCE_CAP_UT_20_Z3_S","Credito a 30 días ",13718250,1,1,"COP"]
["ESRISoftware ArgGISCCE_ELA_ILIM","CCE_ELA_ILIMSoftware ArgGIS",null,"ESRI","CCE_ELA_ILIM","Software ArgGIS","ESRI","USD","N/A","Acuerdo  ELA ilimitado","Unidad","Und","ELA","N/A","N/A","N/A","CCE_ELA_ILIM","Credito a 30 días ",2500000,1,0,"USD"]
["ESRISoftware ArgGISCCE_ELA_LIM","CCE_ELA_LIMSoftware ArgGIS",null,"ESRI","CCE_ELA_LIM","Software ArgGIS","ESRI","USD","N/A","Acuerdo ELA limitado ","Unidad","Und","ELA","N/A","N/A","N/A","CCE_ELA_LIM","Credito a 30 días ",500000,1,0,"USD"]
["ESRISoftware ArgGISCCE_PAQ_AEJUM_AV_Z1","CCE_PAQ_AEJUM_AV_Z1Software ArgGIS",null,"ESRI","CCE_PAQ_AEJUM_AV_Z1","Software ArgGIS","ESRI","COP","N/A","ArcGIS Enterprise Jumpstart","Unidad","Und","Servicios ArcGIS","Zona 1","Sitio","Profesional","CCE_PAQ_AEJUM_AV_Z1","Credito a 30 días ",20766000,1,1,"COP"]
["ESRISoftware ArgGISCCE_PAQ_AEJUM_AV_Z2","CCE_PAQ_AEJUM_AV_Z2Software ArgGIS",null,"ESRI","CCE_PAQ_AEJUM_AV_Z2","Software ArgGIS","ESRI","COP","N/A","ArcGIS Enterprise Jumpstart","Unidad","Und","Servicios ArcGIS","Zona 2","Sitio","Profesional","CCE_PAQ_AEJUM_AV_Z2","Credito a 30 días ",20766000,1,1,"COP"]
["ESRISoftware ArgGISCCE_PAQ_AEJUM_AV_Z3","CCE_PAQ_AEJUM_AV_Z3Software ArgGIS",null,"ESRI","CCE_PAQ_AEJUM_AV_Z3","Software ArgGIS","ESRI","COP","N/A","ArcGIS Enterprise Jumpstart","Unidad","Und","Servicios ArcGIS","Zona 3","Sitio","Profesional","CCE_PAQ_AEJUM_AV_Z3","Credito a 30 días ",20766000,1,1,"COP"]
["ESRISoftware ArgGISCCE_PAQ_AMJ_Z1","CCE_PAQ_AMJ_Z1Software ArgGIS",null,"ESRI","CCE_PAQ_AMJ_Z1","Software ArgGIS","ESRI","COP","N/A","ArcGIS Monitor JumpStart","Unidad","Und","Servicios ArcGIS","Zona 1","Sitio","Profesional","CCE_PAQ_AMJ_Z1","Credito a 30 días ",10451000,1,1,"COP"]
["ESRISoftware ArgGISCCE_PAQ_AMJ_Z2","CCE_PAQ_AMJ_Z2Software ArgGIS",null,"ESRI","CCE_PAQ_AMJ_Z2","Software ArgGIS","ESRI","COP","N/A","ArcGIS Monitor JumpStart","Unidad","Und","Servicios ArcGIS","Zona 2","Sitio","Profesional","CCE_PAQ_AMJ_Z2","Credito a 30 días ",10451000,1,1,"COP"]
["ESRISoftware ArgGISCCE_PAQ_AMJ_Z3","CCE_PAQ_AMJ_Z3Software ArgGIS",null,"ESRI","CCE_PAQ_AMJ_Z3","Software ArgGIS","ESRI","COP","N/A","ArcGIS Monitor JumpStart","Unidad","Und","Servicios ArcGIS","Zona 3","Sitio","Profesional","CCE_PAQ_AMJ_Z3","Credito a 30 días ",10451000,1,1,"COP"]
["ESRISoftware ArgGISCCE_PAQ_CP_Z1","CCE_PAQ_CP_Z1Software ArgGIS",null,"ESRI","CCE_PAQ_CP_Z1","Software ArgGIS","ESRI","COP","N/A","Capacity Planning","Unidad","Und","Servicios ArcGIS","Zona 1","Sitio","Profesional","CCE_PAQ_CP_Z1","Credito a 30 días ",15575000,1,1,"COP"]
["ESRISoftware ArgGISCCE_PAQ_CP_Z2","CCE_PAQ_CP_Z2Software ArgGIS",null,"ESRI","CCE_PAQ_CP_Z2","Software ArgGIS","ESRI","COP","N/A","Capacity Planning","Unidad","Und","Servicios ArcGIS","Zona 2","Sitio","Profesional","CCE_PAQ_CP_Z2","Credito a 30 días ",15575000,1,1,"COP"]
["ESRISoftware ArgGISCCE_PAQ_CP_Z3","CCE_PAQ_CP_Z3Software ArgGIS",null,"ESRI","CCE_PAQ_CP_Z3","Software ArgGIS","ESRI","COP","N/A","Capacity Planning","Unidad","Und","Servicios ArcGIS","Zona 3","Sitio","Profesional","CCE_PAQ_CP_Z3","Credito a 30 días ",15575000,1,1,"COP"]
["ESRISoftware ArgGISCCE_PAQ_EGHC_Z1","CCE_PAQ_EGHC_Z1Software ArgGIS",null,"ESRI","CCE_PAQ_EGHC_Z1","Software ArgGIS","ESRI","COP","N/A","Enterprise GIS Health Check Zona 1","Unidad","Und","Servicios ArcGIS","Zona 1","Sitio","Profesional","CCE_PAQ_EGHC_Z1","Credito a 30 días ",17761000,1,1,"COP"]
["ESRISoftware ArgGISCCE_PAQ_EGHC_Z2","CCE_PAQ_EGHC_Z2Software ArgGIS",null,"ESRI","CCE_PAQ_EGHC_Z2","Software ArgGIS","ESRI","COP","N/A","Enterprise GIS Health Check Zona 2","Unidad","Und","Servicios ArcGIS","Zona 2","Sitio","Profesional","CCE_PAQ_EGHC_Z2","Credito a 30 días ",17761000,1,1,"COP"]
["ESRISoftware ArgGISCCE_PAQ_EGHC_Z3","CCE_PAQ_EGHC_Z3Software ArgGIS",null,"ESRI","CCE_PAQ_EGHC_Z3","Software ArgGIS","ESRI","COP","N/A","Enterprise GIS Health Check Zona 3","Unidad","Und","Servicios ArcGIS","Zona 3","Sitio","Profesional","CCE_PAQ_EGHC_Z3","Credito a 30 días ",17761000,1,1,"COP"]
["ESRISoftware ArgGISCCE_PAQ_JS_INS_Z1","CCE_PAQ_JS_INS_Z1Software ArgGIS",null,"ESRI","CCE_PAQ_JS_INS_Z1","Software ArgGIS","ESRI","COP","N/A","ArcGIS Insights Jumpstart","Unidad","Und","Servicios ArcGIS","Zona 1","Sitio","Profesional","CCE_PAQ_JS_INS_Z1","Credito a 30 días ",10451000,1,1,"COP"]
["ESRISoftware ArgGISCCE_PAQ_JS_INS_Z2","CCE_PAQ_JS_INS_Z2Software ArgGIS",null,"ESRI","CCE_PAQ_JS_INS_Z2","Software ArgGIS","ESRI","COP","N/A","ArcGIS Insights Jumpstart","Unidad","Und","Servicios ArcGIS","Zona 2","Sitio","Profesional","CCE_PAQ_JS_INS_Z2","Credito a 30 días ",10451000,1,1,"COP"]
["ESRISoftware ArgGISCCE_PAQ_JS_INS_Z3","CCE_PAQ_JS_INS_Z3Software ArgGIS",null,"ESRI","CCE_PAQ_JS_INS_Z3","Software ArgGIS","ESRI","COP","N/A","ArcGIS Insights Jumpstart","Unidad","Und","Servicios ArcGIS","Zona 3","Sitio","Profesional","CCE_PAQ_JS_INS_Z3","Credito a 30 días ",10451000,1,1,"COP"]
["ESRISoftware ArgGISCCE_PAQ_SERCOF_Z1","CCE_PAQ_SERCOF_Z1Software ArgGIS",null,"ESRI","CCE_PAQ_SERCOF_Z1","Software ArgGIS","ESRI","COP","N/A","Configuración y parametrización de los Productos Zona 1","dia","Und","Servicios ArcGIS","Zona 1","Sitio","Profesional","CCE_PAQ_SERCOF_Z1","Credito a 30 días ",2596000,1,1,"COP"]
["ESRISoftware ArgGISCCE_PAQ_SERCOF_Z2","CCE_PAQ_SERCOF_Z2Software ArgGIS",null,"ESRI","CCE_PAQ_SERCOF_Z2","Software ArgGIS","ESRI","COP","N/A","Configuración y parametrización de los Productos Zona 2","dia","Und","Servicios ArcGIS","Zona 2","Sitio","Profesional","CCE_PAQ_SERCOF_Z2","Credito a 30 días ",2596000,1,1,"COP"]
["ESRISoftware ArgGISCCE_PAQ_SERCOF_Z3","CCE_PAQ_SERCOF_Z3Software ArgGIS",null,"ESRI","CCE_PAQ_SERCOF_Z3","Software ArgGIS","ESRI","COP","N/A","Configuración y parametrización de los Productos Zona 3","dia","Und","Servicios ArcGIS","Zona 3","Sitio","Profesional","CCE_PAQ_SERCOF_Z3","Credito a 30 días ",2596000,1,1,"COP"]
["ESRISoftware ArgGISCCE_PAQ_WGLK_AGOL_Z1","CCE_PAQ_WGLK_AGOL_Z1Software ArgGIS",null,"ESRI","CCE_PAQ_WGLK_AGOL_Z1","Software ArgGIS","ESRI","COP","N/A","Web GIS Launch Kit for ArcGIS Online","Unidad","Und","Servicios ArcGIS","Zona 1","Sitio","Profesional","CCE_PAQ_WGLK_AGOL_Z1","Credito a 30 días ",7059000,1,1,"COP"]
[{"$f":"D706&F706&E706","v":"ESRISoftware ArgGISCCE_PAQ_WGLK_AGOL_Z2"},{"$f":"E706&F706","v":"CCE_PAQ_WGLK_AGOL_Z2Software ArgGIS"},null,"ESRI","CCE_PAQ_WGLK_AGOL_Z2","Software ArgGIS","ESRI","COP","N/A","Web GIS Launch Kit for ArcGIS Online","Unidad","Und","Servicios ArcGIS","Zona 2","Sitio","Profesional","CCE_PAQ_WGLK_AGOL_Z2","Credito a 30 días ",7059000,1,1,"COP"]
["ESRISoftware ArgGISCCE_PAQ_WGLK_AGOL_Z3","CCE_PAQ_WGLK_AGOL_Z3Software ArgGIS",null,"ESRI","CCE_PAQ_WGLK_AGOL_Z3","Software ArgGIS","ESRI","COP","N/A","Web GIS Launch Kit for ArcGIS Online","Unidad","Und","Servicios ArcGIS","Zona 3","Sitio","Profesional",{"$f":"+E707","v":"CCE_PAQ_WGLK_AGOL_Z3"},"Credito a 30 días ",7059000,1,1,"COP"]
["ESRISoftware ArgGISCCE_PAQ_WGLK_INS_Z1","CCE_PAQ_WGLK_INS_Z1Software ArgGIS",null,"ESRI","CCE_PAQ_WGLK_INS_Z1","Software ArgGIS","ESRI","COP","N/A"," ArcGIS Insights Launch Kit","Unidad","Und","Servicios ArcGIS","Zona 1","Sitio","Profesional","CCE_PAQ_WGLK_INS_Z1","Credito a 30 días ",7787000,1,1,"COP"]
["ESRISoftware ArgGISCCE_PAQ_WGLK_INS_Z1","CCE_PAQ_WGLK_INS_Z1Software ArgGIS",null,"ESRI","CCE_PAQ_WGLK_INS_Z1","Software ArgGIS","ESRI","COP","N/A"," ArcGIS Insights Launch Kit","Unidad","Und","Servicios ArcGIS","Zona 2","Sitio","Profesional","CCE_PAQ_WGLK_INS_Z1","Credito a 30 días ",7787000,1,1,"COP"]
["ESRISoftware ArgGISCCE_PAQ_WGLK_INS_Z3","CCE_PAQ_WGLK_INS_Z3Software ArgGIS",null,"ESRI","CCE_PAQ_WGLK_INS_Z3","Software ArgGIS","ESRI","COP","N/A"," ArcGIS Insights Launch Kit","Unidad","Und","Servicios ArcGIS","Zona 3","Sitio","Profesional","CCE_PAQ_WGLK_INS_Z3","Credito a 30 días ",7787000,1,1,"COP"]
["ESRISoftware ArgGISCCE_PAQ_WGLK_PORTAL_Z1","CCE_PAQ_WGLK_PORTAL_Z1Software ArgGIS",null,"ESRI","CCE_PAQ_WGLK_PORTAL_Z1","Software ArgGIS","ESRI","COP","N/A","Web GIS Launch Kit for Portal ArcGIS ","Unidad","Und","Servicios ArcGIS","Zona 1","Sitio","Profesional","CCE_PAQ_WGLK_PORTAL_Z1","Credito a 30 días ",13446000,1,1,"COP"]
["ESRISoftware ArgGISCCE_PAQ_WGLK_PORTAL_Z2","CCE_PAQ_WGLK_PORTAL_Z2Software ArgGIS",null,"ESRI","CCE_PAQ_WGLK_PORTAL_Z2","Software ArgGIS","ESRI","COP","N/A","Web GIS Launch Kit for Portal ArcGIS ","Unidad","Und","Servicios ArcGIS","Zona 2","Sitio","Profesional","CCE_PAQ_WGLK_PORTAL_Z2","Credito a 30 días ",13446000,1,1,"COP"]
["ESRISoftware ArgGISCCE_PAQ_WGLK_PORTAL_Z3","CCE_PAQ_WGLK_PORTAL_Z3Software ArgGIS",null,"ESRI","CCE_PAQ_WGLK_PORTAL_Z3","Software ArgGIS","ESRI","COP","N/A","Web GIS Launch Kit for Portal ArcGIS ","Unidad","Und","Servicios ArcGIS","Zona 3","Sitio","Profesional","CCE_PAQ_WGLK_PORTAL_Z3","Credito a 30 días ",13446000,1,1,"COP"]
["ESRISoftware ArgGISCCE_PRG_EEAP_Z1","CCE_PRG_EEAP_Z1Software ArgGIS",null,"ESRI","CCE_PRG_EEAP_Z1","Software ArgGIS","ESRI","COP","N/A","Esri Enterprise Advantage Program Zona 1","Unidad","Und","Servicios ArcGIS","Zona 1","Sitio","Profesional","CCE_PRG_EEAP_Z1","Credito a 30 días ",65817000,1,1,"COP"]
["ESRISoftware ArgGISCCE_PRG_EEAP_Z2","CCE_PRG_EEAP_Z2Software ArgGIS",null,"ESRI","CCE_PRG_EEAP_Z2","Software ArgGIS","ESRI","COP","N/A","Esri Enterprise Advantage Program Zona 2","Unidad","Und","Servicios ArcGIS","Zona 2","Sitio","Profesional","CCE_PRG_EEAP_Z2","Credito a 30 días ",65817000,1,1,"COP"]
["ESRISoftware ArgGISCCE_PRG_EEAP_Z3","CCE_PRG_EEAP_Z3Software ArgGIS",null,"ESRI","CCE_PRG_EEAP_Z3","Software ArgGIS","ESRI","COP","N/A","Esri Enterprise Advantage Program Zona 3","Unidad","Und","Servicios ArcGIS","Zona 3","Sitio","Profesional","CCE_PRG_EEAP_Z3","Credito a 30 días ",65817000,1,1,"COP"]
["ESRISoftware ArgGISIT-PQ-20-01","IT-PQ-20-01Software ArgGIS",null,"ESRI","IT-PQ-20-01","Software ArgGIS","ESRI","COP","N/A","Paquete de incidentes","Unidad","Und","Servicios ArcGIS","Zona 1","Sitio","Profesional","IT-PQ-20-01","Credito a 30 días ",6220000,1,1,"COP"]
["ESRISoftware ArgGISIT-PQ-20-02","IT-PQ-20-02Software ArgGIS",null,"ESRI","IT-PQ-20-02","Software ArgGIS","ESRI","COP","N/A","Paquete de incidentes","Unidad","Und","Servicios ArcGIS","Zona 2","Sitio","Profesional","IT-PQ-20-02","Credito a 30 días ",6400000,1,1,"COP"]
["ESRISoftware ArgGISIT-PQ-20-03","IT-PQ-20-03Software ArgGIS",null,"ESRI","IT-PQ-20-03","Software ArgGIS","ESRI","COP","N/A","Paquete de incidentes","Unidad","Und","Servicios ArcGIS","Zona 3","Sitio","Profesional","IT-PQ-20-03","Credito a 30 días ",6620000,1,1,"COP"]
["ESRISoftware ArgGISIT-SA-20-04","IT-SA-20-04Software ArgGIS",null,"ESRI","IT-SA-20-04","Software ArgGIS","ESRI","COP","N/A","Soporte Avanzado","Unidad","Und","Servicios ArcGIS","Zona 1","Sitio","Profesional","IT-SA-20-04","Credito a 30 días ",27000000,1,1,"COP"]
["ESRISoftware ArgGISIT-SA-20-05","IT-SA-20-05Software ArgGIS",null,"ESRI","IT-SA-20-05","Software ArgGIS","ESRI","COP","N/A","Soporte Avanzado","Unidad","Und","Servicios ArcGIS","Zona 2","Sitio","Profesional","IT-SA-20-05","Credito a 30 días ",27800000,1,1,"COP"]
["ESRISoftware ArgGISIT-SA-20-06","IT-SA-20-06Software ArgGIS",null,"ESRI","IT-SA-20-06","Software ArgGIS","ESRI","COP","N/A","Soporte Avanzado","Unidad","Und","Servicios ArcGIS","Zona 3","Sitio","Profesional","IT-SA-20-06","Credito a 30 días ",28000000,1,1,"COP"]
["ESRISoftware ArgGISIT-SP-20-07","IT-SP-20-07Software ArgGIS",null,"ESRI","IT-SP-20-07","Software ArgGIS","ESRI","COP","N/A","Soporte Premium","Año ","Und","Servicios ArcGIS","Zona 1","Sitio","Profesional","IT-SP-20-07","Credito a 30 días ",80000000,1,1,"COP"]
["ESRISoftware ArgGISIT-SP-20-08","IT-SP-20-08Software ArgGIS",null,"ESRI","IT-SP-20-08","Software ArgGIS","ESRI","COP","N/A","Soporte Premium","Año ","Und","Servicios ArcGIS","Zona 2","Sitio","Profesional","IT-SP-20-08","Credito a 30 días ",90000000,1,1,"COP"]
["ESRISoftware ArgGISIT-SP-20-09","IT-SP-20-09Software ArgGIS",null,"ESRI","IT-SP-20-09","Software ArgGIS","ESRI","COP","N/A","Soporte Premium","Año ","Und","Servicios ArcGIS","Zona 3","Sitio","Profesional","IT-SP-20-09","Credito a 30 días ",90000000,1,1,"COP"]
["ESRISoftware ArgGISIT-SP-20-07_M","IT-SP-20-07_MSoftware ArgGIS",null,"ESRI","IT-SP-20-07_M","Software ArgGIS","ESRI","COP","N/A","Soporte Premium","Mes ","Und","Servicios ArcGIS","Zona 1","Sitio","Profesional","IT-SP-20-07_M","Credito a 30 días ",7000000,1,1,"COP"]
["ESRISoftware ArgGISIT-SP-20-08_M","IT-SP-20-08_MSoftware ArgGIS",null,"ESRI","IT-SP-20-08_M","Software ArgGIS","ESRI","COP","N/A","Soporte Premium","Mes","Und","Servicios ArcGIS","Zona 2","Sitio","Profesional","IT-SP-20-08_M","Credito a 30 días ",7666667,1,1,"COP"]
["ESRISoftware ArgGISIT-SP-20-09_M","IT-SP-20-09_MSoftware ArgGIS",null,"ESRI","IT-SP-20-09_M","Software ArgGIS","ESRI","COP","N/A","Soporte Premium","Mes ","Und","Servicios ArcGIS","Zona 3","Sitio","Profesional","IT-SP-20-09_M","Credito a 30 días ",7666667,1,1,"COP"]
["ESRISoftware ArgGISIT-SW-07-02","IT-SW-07-02Software ArgGIS",null,"ESRI","IT-SW-07-02","Software ArgGIS","ESRI","COP","N/A","Instalación de Licencia o Suscripción Anual, o afínes ","Unidad","Und","Servicios ArcGIS","Zona 1","Sitio","Profesional","IT-SW-07-02","Credito a 30 días ",2300000,1,1,"COP"]
["ESRISoftware ArgGISIT-SW-07-04","IT-SW-07-04Software ArgGIS",null,"ESRI","IT-SW-07-04","Software ArgGIS","ESRI","COP","N/A","Instalación de Licencia o Suscripción Anual, o afínes ","Unidad","Und","Servicios ArcGIS","Zona 2","Sitio","Profesional","IT-SW-07-04","Credito a 30 días ",2500000,1,1,"COP"]
["ESRISoftware ArgGISIT-SW-07-06","IT-SW-07-06Software ArgGIS",null,"ESRI","IT-SW-07-06","Software ArgGIS","ESRI","COP","N/A","Instalación de Licencia o Suscripción Anual, o afínes ","Unidad","Und","Servicios ArcGIS","Zona 3","Sitio","Profesional","IT-SW-07-06","Credito a 30 días ",2800000,1,1,"COP"]
["ESRISoftware ArgGISIT-SW-09-01","IT-SW-09-01Software ArgGIS",null,"ESRI","IT-SW-09-01","Software ArgGIS","ESRI","COP","N/A","Soporte técnico en sitio ","Hora","Und","Servicios ArcGIS","Zona 1","Sitio","Profesional","IT-SW-09-01","Credito a 30 días ",140000,1,1,"COP"]
["ESRISoftware ArgGISIT-SW-09-02","IT-SW-09-02Software ArgGIS",null,"ESRI","IT-SW-09-02","Software ArgGIS","ESRI","COP","N/A","Soporte técnico en sitio ","Hora","Und","Servicios ArcGIS","Zona 2","Sitio","Profesional","IT-SW-09-02","Credito a 30 días ",180000,1,1,"COP"]
["ESRISoftware ArgGISIT-SW-09-03","IT-SW-09-03Software ArgGIS",null,"ESRI","IT-SW-09-03","Software ArgGIS","ESRI","COP","N/A","Soporte técnico en sitio ","Hora","Und","Servicios ArcGIS","Zona 3","Sitio","Profesional","IT-SW-09-03","Credito a 30 días ",200000,1,1,"COP"]
["ESRISoftware ArgGISIT-SW-10-02","IT-SW-10-02Software ArgGIS",null,"ESRI","IT-SW-10-02","Software ArgGIS","ESRI","COP","N/A","Soporte técnico proactivo ","Hora","Und","Servicios ArcGIS","Zona 2","Sitio","Profesional","IT-SW-10-02","Credito a 30 días ",140000,1,1,"COP"]
["ESRISoftware ArgGISIT-SW-10-05","IT-SW-10-05Software ArgGIS",null,"ESRI","IT-SW-10-05","Software ArgGIS","ESRI","COP","N/A","Soporte técnico proactivo ","Hora","Und","Servicios ArcGIS","Zona 3","Sitio","Profesional","IT-SW-10-05","Credito a 30 días ",180000,1,1,"COP"]
["ESRISoftware ArgGISIT-SW-10-06","IT-SW-10-06Software ArgGIS",null,"ESRI","IT-SW-10-06","Software ArgGIS","ESRI","COP","N/A","Soporte técnico proactivo ","Hora","Und","Servicios ArcGIS","Zona 1","Sitio","Profesional","IT-SW-10-06","Credito a 30 días ",120000,1,1,"COP"]
["ESRISoftware ArgGISIT-SW-11-01","IT-SW-11-01Software ArgGIS",null,"ESRI","IT-SW-11-01","Software ArgGIS","ESRI","COP","N/A","Soporte técnico reactivo ","Hora","Und","Servicios ArcGIS","Zona 1","Sitio","Profesional","IT-SW-11-01","Credito a 30 días ",140000,1,1,"COP"]
["ESRISoftware ArgGISIT-SW-11-03","IT-SW-11-03Software ArgGIS",null,"ESRI","IT-SW-11-03","Software ArgGIS","ESRI","COP","N/A","Soporte técnico reactivo ","Hora","Und","Servicios ArcGIS","Zona 2","Sitio","Profesional","IT-SW-11-03","Credito a 30 días ",180000,1,1,"COP"]
["ESRISoftware ArgGISIT-SW-11-05","IT-SW-11-05Software ArgGIS",null,"ESRI","IT-SW-11-05","Software ArgGIS","ESRI","COP","N/A","Soporte técnico reactivo ","Hora","Und","Servicios ArcGIS","Zona 3","Sitio","Profesional","IT-SW-11-05","Credito a 30 días ",200000,1,1,"COP"]
["ESRISoftware ArgGIS168505-LU","168505-LUSoftware ArgGIS",null,"ESRI","168505-LU","Software ArgGIS","ESRI","USD","N/A","Population Tier One Intl Small Local Government Cloud-Based Term Enterprise Agreement","Licencia/año","Und","Licencias","N/A","N/A","N/A","168505-LU","Credito a 30 días ",20582.099999999999,1,0,"USD"]
["ESRISoftware ArgGISCCE_SOL_CAT_ACT","CCE_SOL_CAT_ACTSoftware ArgGIS",null,"ESRI","CCE_SOL_CAT_ACT","Software ArgGIS","ESRI","COP","N/A","Solución ArcGIS para Catastro - Actualización+Difusión","Unidad","Und","Soluciones ArcGIS","N/A","N/A","N/A","CCE_SOL_CAT_ACT","Credito a 30 días ",1800000000,1,1,"COP"]
["ESRISoftware ArgGISCCE_SOL_CAT_CONS","CCE_SOL_CAT_CONSSoftware ArgGIS",null,"ESRI","CCE_SOL_CAT_CONS","Software ArgGIS","ESRI","COP","N/A","Solución ArcGIS para Catastro - Conservación+Difusión","Unidad","Und","Soluciones ArcGIS","N/A","N/A","N/A","CCE_SOL_CAT_CONS","Credito a 30 días ",2000000000,1,1,"COP"]
["ESRISoftware ArgGISCCE_SOL_CAT_GEST","CCE_SOL_CAT_GESTSoftware ArgGIS",null,"ESRI","CCE_SOL_CAT_GEST","Software ArgGIS","ESRI","COP","N/A","Solución ArcGIS para Catastro - Actualización+Conservación+Difusión","Unidad","Und","Soluciones ArcGIS","N/A","N/A","N/A","CCE_SOL_CAT_GEST","Credito a 30 días ",2500000000,1,1,"COP"]
["ESRISoftware ArgGISCCE_SOL_VIG_LIC_CONT","CCE_SOL_VIG_LIC_CONTSoftware ArgGIS",null,"ESRI","CCE_SOL_VIG_LIC_CONT","Software ArgGIS","ESRI","COP","N/A","Solución ArcGIS para Vigilancia y Control de Licencias de Construcción","Unidad","Und","Soluciones ArcGIS","N/A","N/A","N/A","CCE_SOL_VIG_LIC_CONT","Credito a 30 días ",60987000,1,1,"COP"]
["ESRISoftware ArgGISCCE_SOL_VIG_REND_CNT","CCE_SOL_VIG_REND_CNTSoftware ArgGIS",null,"ESRI","CCE_SOL_VIG_REND_CNT","Software ArgGIS","ESRI","COP","N/A","Solución ArcGIS para la Rendición de Cuentas","Unidad","Und","Soluciones ArcGIS","N/A","N/A","N/A","CCE_SOL_VIG_REND_CNT","Credito a 30 días ",19170000,1,1,"COP"]
["ESRISoftware ArgGISCCE_SOL_OBS_ANS_DELITO","CCE_SOL_OBS_ANS_DELITOSoftware ArgGIS",null,"ESRI","CCE_SOL_OBS_ANS_DELITO","Software ArgGIS","ESRI","COP","N/A","Solución ArcGIS Observatorio y Análisis del Delito","Unidad","Und","Soluciones ArcGIS","N/A","N/A","N/A","CCE_SOL_OBS_ANS_DELITO","Credito a 30 días ",55364000,1,1,"COP"]

{"sheet":"ProXCat","index":7,"n_rows":44,"n_cols":1,"rows_kept":44,"cut":false,"hidden":true,"merged":[]}
[]
[]
["Etiquetas de fila"]
[1]
["Controles Empresariales S.A.S."]
["The Best Experience in Technology S.A"]
["UT Soft-IG"]
["UT Soluciones Microsoft 2017"]
["Total 1"]
[2]
["Controles Empresariales S.A.S."]
["Dell Colombia INC"]
["The Best Experience in Technology S.A"]
["UT Soft-IG"]
["UT Soluciones Microsoft 2017"]
["Total 2"]
[3]
["Controles Empresariales S.A.S."]
["UT Soft-IG"]
["UT Soluciones Microsoft 2017"]
["Total 3"]
[4]
["Controles Empresariales S.A.S."]
["UT Soft-IG"]
["Total 4"]
[5]
["Controles Empresariales S.A.S."]
["UT Soft-IG"]
["Vision Software S.A.S."]
["Total 5"]
[6]
["Controles Empresariales S.A.S."]
["The Best Experience in Technology S.A"]
["UT Soft-IG"]
["UT Soluciones Microsoft 2017"]
["Total 6"]
[7]
["Controles Empresariales S.A.S."]
["The Best Experience in Technology S.A"]
["UT Soft-IG"]
["UT Soluciones Microsoft 2017"]
["Vision Software S.A.S."]
["Total 7"]
["Total general"]

{"sheet":"Cuadro Totales","index":8,"n_rows":14,"n_cols":7,"rows_kept":14,"cut":false,"hidden":true,"merged":[[12,0,12,2]]}
["Precio Unitario","Precio máximo permitido","Subtotal","IVA","Precio Total"]
[]
[null,null,null,"Valor Total",{"$f":"SUM(E2)","v":0}]
[]
[]
[null,null,null,null,null," "]
[]
["Precio Unitario","Precio máximo permitido","Descuento adicional","Precio con Descuento","Subtotal","IVA","Precio Total"]
[]
[null,null,null,null,null,"Valor Total",{"$f":"SUM(G9)","v":0}]
[]
[]
["Servicios Azure"]
["Subtotal","IVA","Precio Total"]

{"sheet":"Listas","index":9,"n_rows":746,"n_cols":6,"rows_kept":746,"cut":false,"hidden":true,"merged":[]}
["Categoria","Zona","Marca","ProductoInicial","Producto","Proveedores"]
["Software ArgGIS",null,null,"C52384",null,"ESRI"]
[null,null,null,"C52385"]
[null,null,null,"C52386"]
[null,null,null,"C52387"]
[null,null,null,"C86497"]
[null,null,null,"C86500"]
[null,null,null,"C87192"]
[null,null,null,"C87193"]
[null,null,null,"C87194"]
[null,null,null,"C87195"]
[null,null,null,"C87198"]
[null,null,null,"C87199"]
[null,null,null,"C87232"]
[null,null,null,"C87233"]
[null,null,null,"C87236"]
[null,null,null,"C87237"]
[null,null,null,"C92774"]
[null,null,null,"C92775"]
[null,null,null,"C93094"]
[null,null,null,"C93095"]
[null,null,null,"C93303"]
[null,null,null,"C93304"]
[null,null,null,"C93306"]
[null,null,null,"C93307"]
[null,null,null,"C93984"]
[null,null,null,"C96880"]
[null,null,null,"C97442"]
[null,null,null,"C97443"]
[null,null,null,"C97444"]
[null,null,null,"C97445"]
[null,null,null,"C98134"]
[null,null,null,"C98135"]
[null,null,null,"C98696"]
[null,null,null,"C98697"]
[null,null,null,"C100571"]
[null,null,null,"C100572"]
[null,null,null,"C100573"]
[null,null,null,"C100574"]
[null,null,null,"C118242"]
[null,null,null,"C118243"]
[null,null,null,"C121804"]
[null,null,null,"C121805"]
[null,null,null,"C121810"]
[null,null,null,"C121871"]
[null,null,null,"C121872"]
[null,null,null,"C121873"]
[null,null,null,"C121874"]
[null,null,null,"C121875"]
[null,null,null,"C122181"]
[null,null,null,"C122183"]
[null,null,null,"C122184"]
[null,null,null,"C122185"]
[null,null,null,"C122187"]
[null,null,null,"C122188"]
[null,null,null,"C122189"]
[null,null,null,"C122190"]
[null,null,null,"C122191"]
[null,null,null,"C122192"]
[null,null,null,"C122195"]
[null,null,null,"C122196"]
[null,null,null,"C122197"]
[null,null,null,"C122270"]
[null,null,null,"C122275"]
[null,null,null,"C122276"]
[null,null,null,"C122277"]
[null,null,null,"C122278"]
[null,null,null,"C122279"]
[null,null,null,"C122280"]
[null,null,null,"C122281"]
[null,null,null,"C122282"]
[null,null,null,"C122283"]
[null,null,null,"C122284"]
[null,null,null,"C122285"]
[null,null,null,"C122286"]
[null,null,null,"C122287"]
[null,null,null,"C122288"]
[null,null,null,"C122290"]
[null,null,null,"C122291"]
[null,null,null,"C122292"]
[null,null,null,"C122293"]
[null,null,null,"C122294"]
[null,null,null,"C122295"]
[null,null,null,"C122296"]
[null,null,null,"C122297"]
[null,null,null,"C122299"]
[null,null,null,"C122300"]
[null,null,null,"C154880"]
[null,null,null,"C123515"]
[null,null,null,"C127623"]
[null,null,null,"C127624"]
[null,null,null,"C127625"]
[null,null,null,"C127626"]
[null,null,null,"C127627"]
[null,null,null,"C127657"]
[null,null,null,"C128916"]
[null,null,null,"C130909"]
[null,null,null,"C130922"]
[null,null,null,"C130923"]
[null,null,null,"C130942"]
[null,null,null,"C130943"]
[null,null,null,"C133018"]
[null,null,null,"C133019"]
[null,null,null,"C133033"]
[null,null,null,"C133034"]
[null,null,null,"C133196"]
[null,null,null,"C151823"]
[null,null,null,"C153147"]
[null,null,null,"C153148"]
[null,null,null,"C153373"]
[null,null,null,"C153416"]
[null,null,null,"C153417"]
[null,null,null,"C153418"]
[null,null,null,"C153543"]
[null,null,null,"C153544"]
[null,null,null,"C153545"]
[null,null,null,"C153546"]
[null,null,null,"C153547"]
[null,null,null,"C153548"]
[null,null,null,"C154097"]
[null,null,null,"C154300"]
[null,null,null,"C157002"]
[null,null,null,"C157007"]
[null,null,null,"C157021"]
[null,null,null,"C157022"]
[null,null,null,"C157023"]
[null,null,null,"C157024"]
[null,null,null,"C157558"]
[null,null,null,"C157564"]
[null,null,null,"C157565"]
[null,null,null,"C157566"]
[null,null,null,"C157577"]
[null,null,null,"C157578"]
[null,null,null,"C157580"]
[null,null,null,"C157591"]
[null,null,null,"C157592"]
[null,null,null,"C157593"]
[null,null,null,"C159044"]
[null,null,null,"C159055"]
[null,null,null,"C159070"]
[null,null,null,"C159166"]
[null,null,null,"C159168"]
[null,null,null,"C159171"]
[null,null,null,"C159173"]
[null,null,null,"C161320"]
[null,null,null,"C161322"]
[null,null,null,"C161324"]
[null,null,null,"C161325"]
[null,null,null,"C161326"]
[null,null,null,"C161328"]
[null,null,null,"C161334"]
[null,null,null,"C161336"]
[null,null,null,"C161337"]
[null,null,null,"C161338"]
[null,null,null,"C161339"]
[null,null,null,"C161341"]
[null,null,null,"C161343"]
[null,null,null,"C161344"]
[null,null,null,"C161345"]
[null,null,null,"C161346"]
[null,null,null,"C161347"]
[null,null,null,"C161348"]
[null,null,null,"C161349"]
[null,null,null,"C161350"]
[null,null,null,"C161351"]
[null,null,null,"C161354"]
[null,null,null,"C161355"]
[null,null,null,"C161356"]
[null,null,null,"C161357"]
[null,null,null,"C161358"]
[null,null,null,"C161359"]
[null,null,null,"C161360"]
[null,null,null,"C161362"]
[null,null,null,"C161363"]
[null,null,null,"C161364"]
[null,null,null,"C161365"]
[null,null,null,"C161366"]
[null,null,null,"C161367"]
[null,null,null,"C161369"]
[null,null,null,"C161370"]
[null,null,null,"C161372"]
[null,null,null,"C161380"]
[null,null,null,"C161387"]
[null,null,null,"C161388"]
[null,null,null,"C161389"]
[null,null,null,"C161392"]
[null,null,null,"C161393"]
[null,null,null,"C161397"]
[null,null,null,"C161398"]
[null,null,null,"C161399"]
[null,null,null,"C161400"]
[null,null,null,"C161402"]
[null,null,null,"C161403"]
[null,null,null,"C161404"]
[null,null,null,"C161405"]
[null,null,null,"C161406"]
[null,null,null,"C161407"]
[null,null,null,"C161409"]
[null,null,null,"C161414"]
[null,null,null,"C161419"]
[null,null,null,"C161420"]
[null,null,null,"C161421"]
[null,null,null,"C161422"]
[null,null,null,"C161423"]
[null,null,null,"C161429"]
[null,null,null,"C161430"]
[null,null,null,"C161433"]
[null,null,null,"C161434"]
[null,null,null,"C161435"]
[null,null,null,"C161449"]
[null,null,null,"C161454"]
[null,null,null,"C162037"]
[null,null,null,"C162039"]
[null,null,null,"C162073"]
[null,null,null,"C162075"]
[null,null,null,"C162282"]
[null,null,null,"C162283"]
[null,null,null,"C162284"]
[null,null,null,"C162285"]
[null,null,null,"C162295"]
[null,null,null,"C165324"]
[null,null,null,"C165325"]
[null,null,null,"C165326"]
[null,null,null,"C165327"]
[null,null,null,"C165531"]
[null,null,null,"C165533"]
[null,null,null,"C165535"]
[null,null,null,"C165536"]
[null,null,null,"C165537"]
[null,null,null,"C165542"]
[null,null,null,"C165543"]
[null,null,null,"C165544"]
[null,null,null,"C165545"]
[null,null,null,"C165546"]
[null,null,null,"C165547"]
[null,null,null,"C165554"]
[null,null,null,"C165556"]
[null,null,null,"C165557"]
[null,null,null,"C165558"]
[null,null,null,"C165559"]
[null,null,null,"C165560"]
[null,null,null,"C165561"]
[null,null,null,"C165562"]
[null,null,null,"C166996"]
[null,null,null,"C167257"]
[null,null,null,"C167258"]
[null,null,null,"C167269"]
[null,null,null,"C167270"]
[null,null,null,"C167400"]
[null,null,null,"C167441"]
[null,null,null,"C167442"]
[null,null,null,"C167443"]
[null,null,null,"C167920"]
[null,null,null,"C167922"]
[null,null,null,"C167926"]
[null,null,null,"C168038"]
[null,null,null,"C168040"]
[null,null,null,"C168115"]
[null,null,null,"C168630"]
[null,null,null,"C168631"]
[null,null,null,"C169017"]
[null,null,null,"C169043"]
[null,null,null,"C169044"]
[null,null,null,"100475-LU"]
[null,null,null,"100477-LU"]
[null,null,null,"101322-LU"]
[null,null,null,"102583-LU"]
[null,null,null,"106238-LU"]
[null,null,null,"106304-LU"]
[null,null,null,"106307-LU"]
[null,null,null,"111290-LU"]
[null,null,null,"111560-LU"]
[null,null,null,"114684-LU"]
[null,null,null,"114687-LU"]
[null,null,null,"121831-LU"]
[null,null,null,"121832-LU"]
[null,null,null,"121833-LU"]
[null,null,null,"121834-LU"]
[null,null,null,"121835-LU"]
[null,null,null,"121836-LU"]
[null,null,null,"121839-LU"]
[null,null,null,"121840-LU"]
[null,null,null,"122086-LU"]
[null,null,null,"122132-LU"]
[null,null,null,"122133-LU"]
[null,null,null,"122134-LU"]
[null,null,null,"122135-LU"]
[null,null,null,"122136-LU"]
[null,null,null,"122137-LU"]
[null,null,null,"122139-LU"]
[null,null,null,"122140-LU"]
[null,null,null,"122496-LU"]
[null,null,null,"122497-LU"]
[null,null,null,"122603-LU"]
[null,null,null,"122774-LU"]
[null,null,null,"122775-LU"]
[null,null,null,"122776-LU"]
[null,null,null,"123386-LU"]
[null,null,null,"127611-LU"]
[null,null,null,"127612-LU"]
[null,null,null,"127615-LU"]
[null,null,null,"127616-LU"]
[null,null,null,"127619-LU"]
[null,null,null,"127658-LU"]
[null,null,null,"127672-LU"]
[null,null,null,"128208-LU"]
[null,null,null,"128884-LU"]
[null,null,null,"128890-LU"]
[null,null,null,"130214-LU"]
[null,null,null,"130215-LU"]
[null,null,null,"130885-LU"]
[null,null,null,"130940-LU"]
[null,null,null,"130941-LU"]
[null,null,null,"132296-LU"]
[null,null,null,"133005-LU"]
[null,null,null,"133006-LU"]
[null,null,null,"133016-LU"]
[null,null,null,"133017-LU"]
[null,null,null,"133032-LU"]
[null,null,null,"133066-LU"]
[null,null,null,"133068-LU"]
[null,null,null,"133069-LU"]
[null,null,null,"133072-LU"]
[null,null,null,"133073-LU"]
[null,null,null,"133074-LU"]
[null,null,null,"133075-LU"]
[null,null,null,"133080-LU"]
[null,null,null,"133085-LU"]
[null,null,null,"133086-LU"]
[null,null,null,"133124-LU"]
[null,null,null,"133127-LU"]
[null,null,null,"133128-LU"]
[null,null,null,"139794-LU"]
[null,null,null,"139795-LU"]
[null,null,null,"139796-LU"]
[null,null,null,"139797-LU"]
[null,null,null,"139821-LU"]
[null,null,null,"139822-LU"]
[null,null,null,"139823-LU"]
[null,null,null,"139825-LU"]
[null,null,null,"139826-LU"]
[null,null,null,"139827-LU"]
[null,null,null,"139828-LU"]
[null,null,null,"139829-LU"]
[null,null,null,"139830-LU"]
[null,null,null,"139833-LU"]
[null,null,null,"139834-LU"]
[null,null,null,"139835-LU"]
[null,null,null,"139837-LU"]
[null,null,null,"139838-LU"]
[null,null,null,"139841-LU"]
[null,null,null,"139842-LU"]
[null,null,null,"139843-LU"]
[null,null,null,"139844-LU"]
[null,null,null,"139845-LU"]
[null,null,null,"139846-LU"]
[null,null,null,"144392-LU"]
[null,null,null,"144395-LU"]
[null,null,null,"144396-LU"]
[null,null,null,"144398-LU"]
[null,null,null,"144399-LU"]
[null,null,null,"144400-LU"]
[null,null,null,"148097-LU"]
[null,null,null,"148098-LU"]
[null,null,null,"148100-LU"]
[null,null,null,"148104-LU"]
[null,null,null,"148105-LU"]
[null,null,null,"148106-LU"]
[null,null,null,"148107-LU"]
[null,null,null,"148112-LU"]
[null,null,null,"148113-LU"]
[null,null,null,"148114-LU"]
[null,null,null,"148115-LU"]
[null,null,null,"148116-LU"]
[null,null,null,"148117-LU"]
[null,null,null,"148118-LU"]
[null,null,null,"150543-LU"]
[null,null,null,"153351-LU"]
[null,null,null,"153352-LU"]
[null,null,null,"153353-LU"]
[null,null,null,"153359-LU"]
[null,null,null,"153360-LU"]
[null,null,null,"153391-LU"]
[null,null,null,"153472-LU"]
[null,null,null,"153473-LU"]
[null,null,null,"153476-LU"]
[null,null,null,"153477-LU"]
[null,null,null,"153480-LU"]
[null,null,null,"153551-LU"]
[null,null,null,"153552-LU"]
[null,null,null,"154141-LU"]
[null,null,null,"154142-LU"]
[null,null,null,"154143-LU"]
[null,null,null,"154144-LU"]
[null,null,null,"154251-LU"]
[null,null,null,"154252-LU"]
[null,null,null,"154283-LU"]
[null,null,null,"154292-LU"]
[null,null,null,"154293-LU"]
[null,null,null,"154295-LU"]
[null,null,null,"154296-LU"]
[null,null,null,"154297-LU"]
[null,null,null,"154332-LU"]
[null,null,null,"154567-LU"]
[null,null,null,"154621-LU"]
[null,null,null,"154623-LU"]
[null,null,null,"154625-LU"]
[null,null,null,"154627-LU"]
[null,null,null,"154631-LU"]
[null,null,null,"154633-LU"]
[null,null,null,"154635-LU"]
[null,null,null,"154637-LU"]
[null,null,null,"154639-LU"]
[null,null,null,"154745-LU"]
[null,null,null,"154747-LU"]
[null,null,null,"154749-LU"]
[null,null,null,"154750-LU"]
[null,null,null,"154781-LU"]
[null,null,null,"154783-LU"]
[null,null,null,"154806-LU"]
[null,null,null,"154810-LU"]
[null,null,null,"154818-LU"]
[null,null,null,"154819-LU"]
[null,null,null,"154821-LU"]
[null,null,null,"154823-LU"]
[null,null,null,"154827-LU"]
[null,null,null,"155734-LU"]
[null,null,null,"155740-LU"]
[null,null,null,"157060-LU"]
[null,null,null,"157062-LU"]
[null,null,null,"157066-LU"]
[null,null,null,"157067-LU"]
[null,null,null,"157510-LU"]
[null,null,null,"157512-LU"]
[null,null,null,"157568-LU"]
[null,null,null,"157569-LU"]
[null,null,null,"157570-LU"]
[null,null,null,"157571-LU"]
[null,null,null,"157572-LU"]
[null,null,null,"157574-LU"]
[null,null,null,"157051-LU"]
[null,null,null,"157080-LU"]
[null,null,null,"157087-LU"]
[null,null,null,"158381-LU"]
[null,null,null,"159047-LU"]
[null,null,null,"159049-LU"]
[null,null,null,"159050-LU"]
[null,null,null,"159060-LU"]
[null,null,null,"160031-LU"]
[null,null,null,"160033-LU"]
[null,null,null,"160037-LU"]
[null,null,null,"160054-LU"]
[null,null,null,"160370-LU"]
[null,null,null,"160372-LU"]
[null,null,null,"160450-LU"]
[null,null,null,"160452-LU"]
[null,null,null,"160454-LU"]
[null,null,null,"160455-LU"]
[null,null,null,"160456-LU"]
[null,null,null,"160458-LU"]
[null,null,null,"160460-LU"]
[null,null,null,"160463-LU"]
[null,null,null,"160468-LU"]
[null,null,null,"160470-LU"]
[null,null,null,"160472-LU"]
[null,null,null,"160473-LU"]
[null,null,null,"160474-LU"]
[null,null,null,"160475-LU"]
[null,null,null,"160476-LU"]
[null,null,null,"160478-LU"]
[null,null,null,"160480-LU"]
[null,null,null,"160483-LU"]
[null,null,null,"160484-LU"]
[null,null,null,"160485-LU"]
[null,null,null,"160486-LU"]
[null,null,null,"160487-LU"]
[null,null,null,"160489-LU"]
[null,null,null,"160490-LU"]
[null,null,null,"160491-LU"]
[null,null,null,"160492-LU"]
[null,null,null,"160495-LU"]
[null,null,null,"160496-LU"]
[null,null,null,"160497-LU"]
[null,null,null,"160498-LU"]
[null,null,null,"160499-LU"]
[null,null,null,"160500-LU"]
[null,null,null,"160503-LU"]
[null,null,null,"160505-LU"]
[null,null,null,"160506-LU"]
[null,null,null,"160507-LU"]
[null,null,null,"160509-LU"]
[null,null,null,"160510-LU"]
[null,null,null,"160513-LU"]
[null,null,null,"160514-LU"]
[null,null,null,"160516-LU"]
[null,null,null,"160582-LU"]
[null,null,null,"160583-LU"]
[null,null,null,"160584-LU"]
[null,null,null,"160588-LU"]
[null,null,null,"160590-LU"]
[null,null,null,"160594-LU"]
[null,null,null,"160596-LU"]
[null,null,null,"160598-LU"]
[null,null,null,"160602-LU"]
[null,null,null,"160616-LU"]
[null,null,null,"160660-LU"]
[null,null,null,"160663-LU"]
[null,null,null,"160669-LU"]
[null,null,null,"160678-LU"]
[null,null,null,"160684-LU"]
[null,null,null,"160704-LU"]
[null,null,null,"160705-LU"]
[null,null,null,"160706-LU"]
[null,null,null,"160711-LU"]
[null,null,null,"160713-LU"]
[null,null,null,"160722-LU"]
[null,null,null,"160723-LU"]
[null,null,null,"160724-LU"]
[null,null,null,"160729-LU"]
[null,null,null,"160779-LU"]
[null,null,null,"160894-LU"]
[null,null,null,"160895-LU"]
[null,null,null,"160899-LU"]
[null,null,null,"160900-LU"]
[null,null,null,"160901-LU"]
[null,null,null,"160930-LU"]
[null,null,null,"160932-LU"]
[null,null,null,"160942-LU"]
[null,null,null,"161019-LU"]
[null,null,null,"161020-LU"]
[null,null,null,"161022-LU"]
[null,null,null,"161047-LU"]
[null,null,null,"161055-LU"]
[null,null,null,"161078-LU"]
[null,null,null,"161083-LU"]
[null,null,null,"161089-LU"]
[null,null,null,"161096-LU"]
[null,null,null,"161097-LU"]
[null,null,null,"161108-LU"]
[null,null,null,"161111-LU"]
[null,null,null,"161112-LU"]
[null,null,null,"162036-LU"]
[null,null,null,"162038-LU"]
[null,null,null,"162040-LU"]
[null,null,null,"162071-LU"]
[null,null,null,"162072-LU"]
[null,null,null,"162074-LU"]
[null,null,null,"162076-LU"]
[null,null,null,"162077-LU"]
[null,null,null,"162293-LU"]
[null,null,null,"162296-LU"]
[null,null,null,"162299-LU"]
[null,null,null,"162352-LU"]
[null,null,null,"162412-LU"]
[null,null,null,"162557-LU"]
[null,null,null,"162633-LU"]
[null,null,null,"165321-LU"]
[null,null,null,"165322-LU"]
[null,null,null,"165558-LU"]
[null,null,null,"166362-LU"]
[null,null,null,"166790-LU"]
[null,null,null,"166893-LU"]
[null,null,null,"166894-LU"]
[null,null,null,"166901-LU"]
[null,null,null,"166902-LU"]
[null,null,null,"166903-LU"]
[null,null,null,"166931-LU"]
[null,null,null,"166932-LU"]
[null,null,null,"166966-LU"]
[null,null,null,"166967-LU"]
[null,null,null,"166974-LU"]
[null,null,null,"166975-LU"]
[null,null,null,"166976-LU"]
[null,null,null,"166978-LU"]
[null,null,null,"166979-LU"]
[null,null,null,"166980-LU"]
[null,null,null,"167335-LU"]
[null,null,null,"167336-LU"]
[null,null,null,"167337-LU"]
[null,null,null,"167338-LU"]
[null,null,null,"167340-LU"]
[null,null,null,"167411-LU"]
[null,null,null,"167928-LU"]
[null,null,null,"167929-LU"]
[null,null,null,"167930-LU"]
[null,null,null,"167942-LU"]
[null,null,null,"167943-LU"]
[null,null,null,"167944-LU"]
[null,null,null,"168037-LU"]
[null,null,null,"168039-LU"]
[null,null,null,"168041-LU"]
[null,null,null,"168042-LU"]
[null,null,null,"168057-LU"]
[null,null,null,"168103-LU"]
[null,null,null,"168104-LU"]
[null,null,null,"168105-LU"]
[null,null,null,"168106-LU"]
[null,null,null,"168107-LU"]
[null,null,null,"168108-LU"]
[null,null,null,"169018-LU"]
[null,null,null,"169050-LU"]
[null,null,null,"169769-LU"]
[null,null,null,"169770-LU"]
[null,null,null,"169771-LU"]
[null,null,null,"52382-LU"]
[null,null,null,"86353-LU"]
[null,null,null,"86609-LU"]
[null,null,null,"87143-LU"]
[null,null,null,"88282-LU"]
[null,null,null,"88283-LU"]
[null,null,null,"88284-LU"]
[null,null,null,"88925-LU"]
[null,null,null,"88927-LU"]
[null,null,null,"88928-LU"]
[null,null,null,"88929-LU"]
[null,null,null,"90321-LU"]
[null,null,null,"91605-LU"]
[null,null,null,"93164-LU"]
[null,null,null,"93168-LU"]
[null,null,null,"93172-LU"]
[null,null,null,"93176-LU"]
[null,null,null,"93194-LU"]
[null,null,null,"93198-LU"]
[null,null,null,"93206-LU"]
[null,null,null,"97189-LU"]
[null,null,null,"97190-LU"]
[null,null,null,"97191-LU"]
[null,null,null,"97192-LU"]
[null,null,null,"97213-LU"]
[null,null,null,"98131-LU"]
[null,null,null,"98133-LU"]
[null,null,null,"99045-LU"]
[null,null,null,"99047-LU"]
[null,null,null,"99734-LU"]
[null,null,null,"99736-LU"]
[null,null,null,"174945-LU"]
[null,null,null,"166950-LU"]
[null,null,null,"C167283"]
[null,null,null,"174947-LU"]
[null,null,null,"166992-LU"]
[null,null,null,"C174948"]
[null,null,null,"172426-LU"]
[null,null,null,"172423-LU"]
[null,null,null,"C165652"]
[null,null,null,"C165653"]
[null,null,null,"166896-LU"]
[null,null,null,"166895-LU"]
[null,null,null,"166897-LU"]
[null,null,null,"CCE_CAP_CON_Z1_R"]
[null,null,null,"CCE_CAP_CON_Z2_R"]
[null,null,null,"CCE_CAP_CON_Z3_R"]
[null,null,null,"CCE_CAP_GRU_Z1_R"]
[null,null,null,"CCE_CAP_GRU_Z1_S"]
[null,null,null,"CCE_CAP_GRU_Z2_R"]
[null,null,null,"CCE_CAP_GRU_Z2_S"]
[null,null,null,"CCE_CAP_GRU_Z3_R"]
[null,null,null,"CCE_CAP_GRU_Z3_S"]
[null,null,null,"CCE_CAP_IND_Z1_R"]
[null,null,null,"CCE_CAP_IND_Z2_R"]
[null,null,null,"CCE_CAP_IND_Z3_R"]
[null,null,null,"CCE_CAP_UF_10_Z1_R"]
[null,null,null,"CCE_CAP_UF_10_Z1_S"]
[null,null,null,"CCE_CAP_UF_10_Z2_R"]
[null,null,null,"CCE_CAP_UF_10_Z2_S"]
[null,null,null,"CCE_CAP_UF_10_Z3_R"]
[null,null,null,"CCE_CAP_UF_10_Z3_S"]
[null,null,null,"CCE_CAP_UF_20_Z1_R"]
[null,null,null,"CCE_CAP_UF_20_Z1_S"]
[null,null,null,"CCE_CAP_UF_20_Z2_R"]
[null,null,null,"CCE_CAP_UF_20_Z2_S"]
[null,null,null,"CCE_CAP_UF_20_Z3_R"]
[null,null,null,"CCE_CAP_UF_20_Z3_S"]
[null,null,null,"CCE_CAP_UT_10_Z1_R"]
[null,null,null,"CCE_CAP_UT_10_Z1_S"]
[null,null,null,"CCE_CAP_UT_10_Z2_R"]
[null,null,null,"CCE_CAP_UT_10_Z2_S"]
[null,null,null,"CCE_CAP_UT_10_Z3_R"]
[null,null,null,"CCE_CAP_UT_10_Z3_S"]
[null,null,null,"CCE_CAP_UT_20_Z1_R"]
[null,null,null,"CCE_CAP_UT_20_Z1_S"]
[null,null,null,"CCE_CAP_UT_20_Z2_R"]
[null,null,null,"CCE_CAP_UT_20_Z2_S"]
[null,null,null,"CCE_CAP_UT_20_Z3_R"]
[null,null,null,"CCE_CAP_UT_20_Z3_S"]
[null,null,null,"CCE_ELA_ILIM"]
[null,null,null,"CCE_ELA_LIM"]
[null,null,null,"CCE_PAQ_AEJUM_AV_Z1"]
[null,null,null,"CCE_PAQ_AEJUM_AV_Z2"]
[null,null,null,"CCE_PAQ_AEJUM_AV_Z3"]
[null,null,null,"CCE_PAQ_AMJ_Z1"]
[null,null,null,"CCE_PAQ_AMJ_Z2"]
[null,null,null,"CCE_PAQ_AMJ_Z3"]
[null,null,null,"CCE_PAQ_CP_Z1"]
[null,null,null,"CCE_PAQ_CP_Z2"]
[null,null,null,"CCE_PAQ_CP_Z3"]
[null,null,null,"CCE_PAQ_EGHC_Z1"]
[null,null,null,"CCE_PAQ_EGHC_Z2"]
[null,null,null,"CCE_PAQ_EGHC_Z3"]
[null,null,null,"CCE_PAQ_JS_INS_Z1"]
[null,null,null,"CCE_PAQ_JS_INS_Z2"]
[null,null,null,"CCE_PAQ_JS_INS_Z3"]
[null,null,null,"CCE_PAQ_SERCOF_Z1"]
[null,null,null,"CCE_PAQ_SERCOF_Z2"]
[null,null,null,"CCE_PAQ_SERCOF_Z3"]
[null,null,null,"CCE_PAQ_WGLK_AGOL_Z1"]
[null,null,null,"CCE_PAQ_WGLK_AGOL_Z2"]
[null,null,null,"CCE_PAQ_WGLK_AGOL_Z3"]
[null,null,null,"CCE_PAQ_WGLK_INS_Z1"]
[null,null,null,"CCE_PAQ_WGLK_INS_Z3"]
[null,null,null,"CCE_PAQ_WGLK_PORTAL_Z1"]
[null,null,null,"CCE_PAQ_WGLK_PORTAL_Z2"]
[null,null,null,"CCE_PAQ_WGLK_PORTAL_Z3"]
[null,null,null,"CCE_PRG_EEAP_Z1"]
[null,null,null,"CCE_PRG_EEAP_Z2"]
[null,null,null,"CCE_PRG_EEAP_Z3"]
[null,null,null,"IT-PQ-20-01"]
[null,null,null,"IT-PQ-20-02"]
[null,null,null,"IT-PQ-20-03"]
[null,null,null,"IT-SA-20-04"]
[null,null,null,"IT-SA-20-05"]
[null,null,null,"IT-SA-20-06"]
[null,null,null,"IT-SP-20-07"]
[null,null,null,"IT-SP-20-08"]
[null,null,null,"IT-SP-20-09"]
[null,null,null,"IT-SP-20-07_M"]
[null,null,null,"IT-SP-20-08_M"]
[null,null,null,"IT-SP-20-09_M"]
[null,null,null,"IT-SW-07-02"]
[null,null,null,"IT-SW-07-04"]
[null,null,null,"IT-SW-07-06"]
[null,null,null,"IT-SW-09-01"]
[null,null,null,"IT-SW-09-02"]
[null,null,null,"IT-SW-09-03"]
[null,null,null,"IT-SW-10-02"]
[null,null,null,"IT-SW-10-05"]
[null,null,null,"IT-SW-10-06"]
[null,null,null,"IT-SW-11-01"]
[null,null,null,"IT-SW-11-03"]
[null,null,null,"IT-SW-11-05"]
[null,null,null,"168505-LU"]
[null,null,null,"CCE_SOL_CAT_ACT"]
[null,null,null,"CCE_SOL_CAT_CONS"]
[null,null,null,"CCE_SOL_CAT_GEST"]
[null,null,null,"CCE_SOL_VIG_LIC_CONT"]
[null,null,null,"CCE_SOL_VIG_REND_CNT"]
[null,null,null,"CCE_SOL_OBS_ANS_DELITO"]

{"sheet":"minimo","index":10,"n_rows":5,"n_cols":4,"rows_kept":5,"cut":false,"hidden":true,"merged":[]}
[null,null,"categoria","(Todas)"]
[]
[null,null,"Etiquetas de fila","Suma de total"]
[null,null,"ESRI",16510]
[null,null,"Total general",16510]

{"sheet":"temp","index":11,"n_rows":6,"n_cols":25,"rows_kept":6,"cut":false,"hidden":true,"merged":[]}
["LLAVE","TEMP1","TEMP2","PROVEEDOR","Código matriz Colombia Compra Eficiente","categoria","PROVEEDOR2","Moneda","Parametrización de los Servicios","Nombre Producto","Unidad de Medida","Unidad TVEC","Tipo","Zona","Asistencia","Perfil","Número de parte","Forma de Pago","Precio","Activo","IVA","cant","valor base","valor con gravamenes","total"]
["ESRISoftware ArgGISC86497","C86497Software ArgGIS",null,"ESRI","C86497","Software ArgGIS","ESRI","USD","N/A","ArcGIS for Desktop Standard Concurrent Primary actualización","Licencia ","Und","Actualización","N/A","N/A","N/A","C86497","Credito a 30 días ",4890.375,1,0,{"$f":"SUMIF(ResumenCotizacion!$C:$C,E2,ResumenCotizacion!$P:$P)","v":1},{"$f":"S2","v":4890.375},{"$f":"ROUND(W2/(1-VLOOKUP(\"Total porcentaje:\",ResumenCotizacion!$F:$H,3,0)),0)","v":5073},{"$f":"V2*X2","v":5073}]
["ESRISoftware ArgGISC153147","C153147Software ArgGIS",null,"ESRI","C153147","Software ArgGIS","ESRI","USD","N/A","ArcGIS Online (Viewer) User Type Term License","Licencia/mes","Und","Licencias","N/A","N/A","N/A","C153147","Credito a 30 días ",10.8675,1,0,{"$f":"SUMIF(ResumenCotizacion!$C:$C,E3,ResumenCotizacion!$P:$P)","v":36},{"$f":"S3","v":10.8675},{"$f":"ROUND(W3/(1-VLOOKUP(\"Total porcentaje:\",ResumenCotizacion!$F:$H,3,0)),0)","v":11},{"$f":"V3*X3","v":396}]
["ESRISoftware ArgGISC153148","C153148Software ArgGIS",null,"ESRI","C153148","Software ArgGIS","ESRI","USD","N/A","ArcGIS Online (Creator) User Type Term License","Licencia/mes","Und","Licencias","N/A","N/A","N/A","C153148","Credito a 30 días ",54.337499999999999,1,0,{"$f":"SUMIF(ResumenCotizacion!$C:$C,E4,ResumenCotizacion!$P:$P)","v":12},54.337499999999999,{"$f":"ROUND(W4/(1-VLOOKUP(\"Total porcentaje:\",ResumenCotizacion!$F:$H,3,0)),0)","v":56},672]
["ESRISoftware ArgGISC153418","C153418Software ArgGIS",null,"ESRI","C153418","Software ArgGIS","ESRI","USD","N/A","ArcGIS Online Service Credits; Block of 1,000","paquete de creditos","Und","Licencias","N/A","N/A","N/A","C153418","Credito a 30 días ",130.41,1,0,{"$f":"SUMIF(ResumenCotizacion!$C:$C,E5,ResumenCotizacion!$P:$P)","v":3},130.41,{"$f":"ROUND(W5/(1-VLOOKUP(\"Total porcentaje:\",ResumenCotizacion!$F:$H,3,0)),0)","v":135},405]
["ESRISoftware ArgGIS86353-LU","86353-LUSoftware ArgGIS",null,"ESRI","86353-LU","Software ArgGIS","ESRI","USD","N/A","ArcGIS for Desktop Standard Concurrent Licen","Licencia ","Und","Licencias","N/A","N/A","N/A","86353-LU","Credito a 30 días ",9604.98,1,0,{"$f":"SUMIF(ResumenCotizacion!$C:$C,E6,ResumenCotizacion!$P:$P)","v":1},9604.98,{"$f":"ROUND(W6/(1-VLOOKUP(\"Total porcentaje:\",ResumenCotizacion!$F:$H,3,0)),0)","v":9964},9964]

{"sheet":"tempListas","index":12,"n_rows":2,"n_cols":1,"rows_kept":2,"cut":false,"hidden":true,"merged":[]}
["categoria"]
["Software ArgGIS"]